Workbook

Sheet Main
C2: Rang | D2: N° de voile | E2: Nom | F2: Type | G2: YEAR | H2: LOA | I2: IMSL | J2: BMAX | K2: DRAFT | L2: DSPL | M2: CREW | N2: GPH | O2: TMF | P2: WL | Q2: NSP | R2: UpAngl | S2: DwnA | T2: DA(%) | V2: 0 | W2: V@UA | X2: 52 | Y2: 60 | Z2: 75 | AA2: 90 | AB2: 110 | AC2: 120 | AD2: 135 | AE2: 150 | AF2: 180
C3: 3127 | D3: =D52 -> GRE-1773 | E3: =E52 -> TOLMI | F3: FIRST 32 | G3: 1980 | H3: 9.785 | I3: 7.982 | J3: 3.32 | K3: 1.772 | L3: 3800 | M3: =+M52 -> 400 | N3: =N52 -> 702.2 | O3: 0.8887 | P3: 1167.2 | Q3: 1028.3 | R3: 44.2 | S3: 147.6 | T3: 0.35 | V3: =V52 -> 2.939735424 | W3: =W52 -> 4.100560645 | X3: 4.550050556 | Y3: 4.858955325 | Z3: 5.14506217 | AA3: 5.116543491 | AB3: 4.93624023 | AC3: 4.792332268 | AD3: 4.366282596 | AE3: 3.745318352 | AF3: 3.243535454
C4: 3128 | D4: =D53 -> ITA-10972 | E4: PIERROT | F4: FIRST 32 | G4: 1981 | H4: 9.785 | I4: 8.252 | J4: 3.32 | K4: 1.798 | L4: 4221 | M4: =+M53 -> 400 | N4: =N53 -> 721.6 | O4: 0.8664 | P4: 1212.9 | Q4: 1051.3 | R4: =IF($B4=1,#REF!,R53) -> 44.3 | S4: =S53 -> 147.5 | T4: 0.43 | V4: =V53 -> 2.871958516 | W4: 4.012837327 | X4: 4.447189623 | Y4: 4.74558397 | Z4: 5.013927577 | AA4: 4.978564514 | AB4: 4.692999609 | AC4: 4.547176961 | AD4: 4.121822762 | AE4: 3.545750025 | AF4: 3.07062436
D5: =D54 ->  | N5: =N54 ->  | R5: =IF($B5=1,#REF!,R54) ->  | S5: =S54 -> 0 | V5: =V54 -> 
D6: =D55 ->  | N6: =N55 ->  | R6: =IF($B6=1,#REF!,R55) ->  | S6: =S55 -> 0 | V6: =V55 -> 
D7: =D56 ->  | N7: =N56 ->  | R7: =IF($B7=1,#REF!,R56) ->  | S7: =S56 -> 0 | V7: =V56 -> 
D8: =D57 ->  | N8: =N57 ->  | R8: =IF($B8=1,#REF!,R57) ->  | S8: =S57 -> 0 | V8: =V57 -> 
A9: Wind:1..7, (C8=kn) | B9: 1 | C9: =IF(B9=7,20,B9*2+4) -> 6 | D9: Knots | E9: Vent Réel
A10: Favoris | B10: Klasse | C10: Rijnr. | N10: =CONCATENATE(C9," Nœuds") -> 6 Nœuds
A11: =OFFSET(ORC!$D$6,(C11-6),1) -> Salona 34 | C11: 6763
A12: =OFFSET(ORC!$D$6,(C12-6),1) -> GIB'SEA 90 Ir M/Hd | C12: 3937
A13: =OFFSET(ORC!$D$6,(C13-6),1) -> GIB'SEA 90 Plus | C13: 3938
A14: =OFFSET(ORC!$D$6,(C14-6),1) -> Gibsea plus | C14: 3942
A15: =OFFSET(ORC!$D$6,(C15-6),1) -> GIBSEA-31 | C15: 3943
A16: =OFFSET(ORC!$D$6,(C16-6),1) -> SAGITTA-35 Short M | C16: 6757
C17: 4
C18: 5
C19: 6
A20: =OFFSET(ORC!$D$6,(C20-6),1) -> 747 | C20: 7
A21: =OFFSET(ORC!$D$6,(C21-6),1) -> 747 | C21: 8
A22: =OFFSET(ORC!$D$6,(C22-6),1) -> 747 | C22: 9
A23: =OFFSET(ORC!$D$6,(C23-6),1) -> 1/2 TON | C23: 10
A24: =OFFSET(ORC!$D$6,(C24-6),1) -> 1/2 TON ONE OFF | C24: 11
A25: =OFFSET(ORC!$D$6,(C25-6),1) -> 1/2 TON ONE OFF | C25: 12
A26: =OFFSET(ORC!$D$6,(C26-6),1) -> 1/2 Tonner | C26: 13
A27: =OFFSET(ORC!$D$6,(C27-6),1) -> 1/4 Ton | C27: 14
A28: =OFFSET(ORC!$D$6,(C28-6),1) -> 1/4 Ton | C28: 15
A29: =OFFSET(ORC!$D$6,(C29-6),1) -> 1/4 TON ONE OFF | C29: 16
A30: =OFFSET(ORC!$D$6,(C30-6),1) -> 11m OD | C30: 17
A31: =OFFSET(ORC!$D$6,(C31-6),1) -> 11m OD | C31: 18
A32: =OFFSET(ORC!$D$6,(C32-6),1) -> 11m OD | C32: 19
A33: =OFFSET(ORC!$D$6,(C33-6),1) -> 11m OD | C33: 20
A34: =OFFSET(ORC!$D$6,(C34-6),1) -> 11m OD | C34: 21
A35: =OFFSET(ORC!$D$6,(C35-6),1) -> 11m OD | C35: 22 | E35: Opmerkingen:
A36: =OFFSET(ORC!$D$6,(C36-6),1) -> 11m OD | C36: 23
A40: 1
A41: 2
A42: 3
A43: 4
A44: 5
A45: 6
A46: 7
C49: ORC
D50: Données ORC
D51: N° de voile | E51: NOM | F51: TYPE | G51: YEAR | H51: LOA | I51: IMSL | J51: BMAX | K51: DRAFT | L51: DSPL | M51: CREW | N51: GPH | O51: TMF | P51: WL | Q51: NSP | R51: UpAngl | S51: DwnA | T51: DA(%) | V51: 0 | W51: V@UA | X51: 52 | Y51: 60 | Z51: 75 | AA51: 90 | AB51: 110 | AC51: 120 | AD51: 135 | AE51: 150 | AF51: 180
D52: =OFFSET(ORC!$C$6,($C3-6),0) -> GRE-1773 | E52: =OFFSET(ORC!$D$6,($C3-6),0) -> TOLMI | F52: =OFFSET(ORC!$E$6,($C3-6),0) -> FIRST 32 | G52: =OFFSET(ORC!$H$6,($C3-6),0) -> 1980 | H52: =OFFSET(ORC!$P$6,($C3-6),0) -> 9.785 | I52: =OFFSET(ORC!$Q$6,($C3-6),0) -> 7.982 | J52: =OFFSET(ORC!$S$6,($C3-6),0) -> 3.32 | K52: =OFFSET(ORC!$R$6,($C3-6),0) -> 1.772 | L52: =OFFSET(ORC!$T$6,($C3-6),0) -> 3800 | M52: =OFFSET(ORC!$M$6,($C3-6),0) -> 400 | N52: =OFFSET(ORC!$W$6,($C3-6),0) -> 702.2 | O52: =OFFSET(ORC!$X$6,($C3-6),0) -> 0.8887 | P52: =OFFSET(ORC!$AB$6,($C3-6),($B$9-1)) -> 1167.2 | Q52: =OFFSET(ORC!$AW$6,($C3-6),($B$9-1)) -> 1028.3 | R52: =OFFSET(ORC!$BK$6,($C3-6),($B$9-1)) -> 44.2 | S52: =OFFSET(ORC!$BR$6,($C3-6),($B$9-1)) -> 147.6 | T52: =OFFSET(ORC!$V$6,($C3-6),0) -> 0.35 | V52: =3600/OFFSET(ORC!$BY$6,($C3-6),($B$9-1)) -> 2.939735424 | W52: =(3600/OFFSET(ORC!$BY$6,($C3-6),($B$9-1)))/COS(R52/180*PI()) -> 4.100560645 | X52: =3600/OFFSET(ORC!$CF$6,($C3-6),($B$9-1)) -> 4.550050556 | Y52: =3600/OFFSET(ORC!$CM$6,($C3-6),($B$9-1)) -> 4.858955325 | Z52: =3600/OFFSET(ORC!$CT$6,($C3-6),($B$9-1)) -> 5.14506217 | AA52: =3600/OFFSET(ORC!$DA$6,($C3-6),($B$9-1)) -> 5.116543491 | AB52: =3600/OFFSET(ORC!$DH$6,($C3-6),($B$9-1)) -> 4.93624023 | AC52: =3600/OFFSET(ORC!$DO$6,($C3-6),($B$9-1)) -> 4.792332268 | AD52: =3600/OFFSET(ORC!$DV$6,($C3-6),($B$9-1)) -> 4.366282596 | AE52: =3600/OFFSET(ORC!$EC$6,($C3-6),($B$9-1)) -> 3.745318352 | AF52: =3600/OFFSET(ORC!$EJ$6,($C3-6),($B$9-1)) -> 3.243535454
D53: =OFFSET(ORC!$C$6,($C4-6),0) -> ITA-10972 | E53: =OFFSET(ORC!$D$6,($C4-6),0) -> PIERROT | F53: =OFFSET(ORC!$E$6,($C4-6),0) -> FIRST 32 | G53: =OFFSET(ORC!$H$6,($C4-6),0) -> 1981 | H53: =OFFSET(ORC!$P$6,($C4-6),0) -> 9.785 | I53: =OFFSET(ORC!$Q$6,($C4-6),0) -> 8.252 | J53: =OFFSET(ORC!$S$6,($C4-6),0) -> 3.32 | K53: =OFFSET(ORC!$R$6,($C4-6),0) -> 1.798 | L53: =OFFSET(ORC!$T$6,($C4-6),0) -> 4221 | M53: =OFFSET(ORC!$M$6,($C4-6),0) -> 400 | N53: =OFFSET(ORC!$W$6,($C4-6),0) -> 721.6 | O53: =OFFSET(ORC!$X$6,($C4-6),0) -> 0.8664 | P53: =OFFSET(ORC!$AB$6,($C4-6),($B$9-1)) -> 1212.9 | Q53: =OFFSET(ORC!$AW$6,($C4-6),($B$9-1)) -> 1051.3 | R53: =OFFSET(ORC!$BK$6,($C4-6),($B$9-1)) -> 44.3 | S53: =OFFSET(ORC!$BR$6,($C4-1),($B$9-1)) -> 147.5 | T53: =OFFSET(ORC!$V$6,($C4-6),0) -> 0.43 | V53: =3600/OFFSET(ORC!$BY$6,($C4-6),($B$9-1)) -> 2.871958516 | W53: =(3600/OFFSET(ORC!$BY$6,($C4-6),($B$9-1)))/COS(R53/180*PI()) -> 4.012837327 | X53: =3600/OFFSET(ORC!$CF$6,($C4-6),($B$9-1)) -> 4.447189623 | Y53: =3600/OFFSET(ORC!$CM$6,($C4-6),($B$9-1)) -> 4.74558397 | Z53: =3600/OFFSET(ORC!$CT$6,($C4-6),($B$9-1)) -> 5.013927577 | AA53: =3600/OFFSET(ORC!$DA$6,($C4-6),($B$9-1)) -> 4.978564514 | AB53: =3600/OFFSET(ORC!$DH$6,($C4-6),($B$9-1)) -> 4.692999609 | AC53: =3600/OFFSET(ORC!$DO$6,($C4-6),($B$9-1)) -> 4.547176961 | AD53: =3600/OFFSET(ORC!$DV$6,($C4-6),($B$9-1)) -> 4.121822762 | AE53: =3600/OFFSET(ORC!$EC$6,($C4-6),($B$9-1)) -> 3.545750025 | AF53: =3600/OFFSET(ORC!$EJ$6,($C4-6),($B$9-1)) -> 3.07062436
D54: =OFFSET(ORC!$C$6,($C5-6),0) ->  | E54: =OFFSET(ORC!$D$6,($C5-6),0) ->  | F54: =OFFSET(ORC!$E$6,($C5-6),0) ->  | G54: =OFFSET(ORC!$H$6,($C5-6),0) ->  | H54: =OFFSET(ORC!$P$6,($C5-6),0) ->  | I54: =OFFSET(ORC!$Q$6,($C5-6),0) ->  | J54: =OFFSET(ORC!$S$6,($C5-6),0) ->  | K54: =OFFSET(ORC!$R$6,($C5-6),0) ->  | L54: =OFFSET(ORC!$T$6,($C5-6),0) ->  | M54: =OFFSET(ORC!$M$6,($C5-6),0) ->  | N54: =OFFSET(ORC!$W$6,($C5-6),0) ->  | O54: =OFFSET(ORC!$X$6,($C5-6),0) ->  | P54: =OFFSET(ORC!$AB$6,($C5-6),($B$9-1)) ->  | Q54: =OFFSET(ORC!$AW$6,($C5-6),($B$9-1)) ->  | R54: =OFFSET(ORC!$BK$6,($C5-6),($B$9-1)) ->  | S54: =OFFSET(ORC!$BR$6,($C5-1),($B$9-1)) -> 0 | T54: =OFFSET(ORC!$V$6,($C5-6),0) ->  | V54: =3600/OFFSET(ORC!$BY$6,($C5-6),($B$9-1)) ->  | W54: =(3600/OFFSET(ORC!$BY$6,($C5-6),($B$9-1)))/COS(R54/180*PI()) ->  | X54: =3600/OFFSET(ORC!$CF$6,($C5-6),($B$9-1)) ->  | Y54: =3600/OFFSET(ORC!$CM$6,($C5-6),($B$9-1)) ->  | Z54: =3600/OFFSET(ORC!$CT$6,($C5-6),($B$9-1)) ->  | AA54: =3600/OFFSET(ORC!$DA$6,($C5-6),($B$9-1)) ->  | AB54: =3600/OFFSET(ORC!$DH$6,($C5-6),($B$9-1)) ->  | AC54: =3600/OFFSET(ORC!$DO$6,($C5-6),($B$9-1)) ->  | AD54: =3600/OFFSET(ORC!$DV$6,($C5-6),($B$9-1)) ->  | AE54: =3600/OFFSET(ORC!$EC$6,($C5-6),($B$9-1)) ->  | AF54: =3600/OFFSET(ORC!$EJ$6,($C5-6),($B$9-1)) -> 
D55: =OFFSET(ORC!$C$6,($C6-6),0) ->  | E55: =OFFSET(ORC!$D$6,($C6-6),0) ->  | F55: =OFFSET(ORC!$E$6,($C6-6),0) ->  | G55: =OFFSET(ORC!$H$6,($C6-6),0) ->  | H55: =OFFSET(ORC!$P$6,($C6-6),0) ->  | I55: =OFFSET(ORC!$Q$6,($C6-6),0) ->  | J55: =OFFSET(ORC!$S$6,($C6-6),0) ->  | K55: =OFFSET(ORC!$R$6,($C6-6),0) ->  | L55: =OFFSET(ORC!$T$6,($C6-6),0) ->  | M55: =OFFSET(ORC!$M$6,($C6-6),0) ->  | N55: =OFFSET(ORC!$W$6,($C6-6),0) ->  | O55: =OFFSET(ORC!$X$6,($C6-6),0) ->  | P55: =OFFSET(ORC!$AB$6,($C6-6),($B$9-1)) ->  | Q55: =OFFSET(ORC!$AW$6,($C6-6),($B$9-1)) ->  | R55: =OFFSET(ORC!$BK$6,($C6-6),($B$9-1)) ->  | S55: =OFFSET(ORC!$BR$6,($C6-1),($B$9-1)) -> 0 | T55: =OFFSET(ORC!$V$6,($C6-6),0) ->  | V55: =3600/OFFSET(ORC!$BY$6,($C6-6),($B$9-1)) ->  | W55: =(3600/OFFSET(ORC!$BY$6,($C6-6),($B$9-1)))/COS(R55/180*PI()) ->  | X55: =3600/OFFSET(ORC!$CF$6,($C6-6),($B$9-1)) ->  | Y55: =3600/OFFSET(ORC!$CM$6,($C6-6),($B$9-1)) ->  | Z55: =3600/OFFSET(ORC!$CT$6,($C6-6),($B$9-1)) ->  | AA55: =3600/OFFSET(ORC!$DA$6,($C6-6),($B$9-1)) ->  | AB55: =3600/OFFSET(ORC!$DH$6,($C6-6),($B$9-1)) ->  | AC55: =3600/OFFSET(ORC!$DO$6,($C6-6),($B$9-1)) ->  | AD55: =3600/OFFSET(ORC!$DV$6,($C6-6),($B$9-1)) ->  | AE55: =3600/OFFSET(ORC!$EC$6,($C6-6),($B$9-1)) ->  | AF55: =3600/OFFSET(ORC!$EJ$6,($C6-6),($B$9-1)) -> 
D56: =OFFSET(ORC!$C$6,($C7-6),0) ->  | E56: =OFFSET(ORC!$D$6,($C7-6),0) ->  | F56: =OFFSET(ORC!$E$6,($C7-6),0) ->  | G56: =OFFSET(ORC!$H$6,($C7-6),0) ->  | H56: =OFFSET(ORC!$P$6,($C7-6),0) ->  | I56: =OFFSET(ORC!$Q$6,($C7-6),0) ->  | J56: =OFFSET(ORC!$S$6,($C7-6),0) ->  | K56: =OFFSET(ORC!$R$6,($C7-6),0) ->  | L56: =OFFSET(ORC!$T$6,($C7-6),0) ->  | M56: =OFFSET(ORC!$M$6,($C7-6),0) ->  | N56: =OFFSET(ORC!$W$6,($C7-6),0) ->  | O56: =OFFSET(ORC!$X$6,($C7-6),0) ->  | P56: =OFFSET(ORC!$AB$6,($C7-6),($B$9-1)) ->  | Q56: =OFFSET(ORC!$AW$6,($C7-6),($B$9-1)) ->  | R56: =OFFSET(ORC!$BK$6,($C7-6),($B$9-1)) ->  | S56: =OFFSET(ORC!$BR$6,($C7-1),($B$9-1)) -> 0 | T56: =OFFSET(ORC!$V$6,($C7-6),0) ->  | V56: =3600/OFFSET(ORC!$BY$6,($C7-6),($B$9-1)) ->  | W56: =(3600/OFFSET(ORC!$BY$6,($C7-6),($B$9-1)))/COS(R56/180*PI()) ->  | X56: =3600/OFFSET(ORC!$CF$6,($C7-6),($B$9-1)) ->  | Y56: =3600/OFFSET(ORC!$CM$6,($C7-6),($B$9-1)) ->  | Z56: =3600/OFFSET(ORC!$CT$6,($C7-6),($B$9-1)) ->  | AA56: =3600/OFFSET(ORC!$DA$6,($C7-6),($B$9-1)) ->  | AB56: =3600/OFFSET(ORC!$DH$6,($C7-6),($B$9-1)) ->  | AC56: =3600/OFFSET(ORC!$DO$6,($C7-6),($B$9-1)) ->  | AD56: =3600/OFFSET(ORC!$DV$6,($C7-6),($B$9-1)) ->  | AE56: =3600/OFFSET(ORC!$EC$6,($C7-6),($B$9-1)) ->  | AF56: =3600/OFFSET(ORC!$EJ$6,($C7-6),($B$9-1)) -> 
D57: =OFFSET(ORC!$C$6,($C8-6),0) ->  | E57: =OFFSET(ORC!$D$6,($C8-6),0) ->  | F57: =OFFSET(ORC!$E$6,($C8-6),0) ->  | G57: =OFFSET(ORC!$H$6,($C8-6),0) ->  | H57: =OFFSET(ORC!$P$6,($C8-6),0) ->  | I57: =OFFSET(ORC!$Q$6,($C8-6),0) ->  | J57: =OFFSET(ORC!$S$6,($C8-6),0) ->  | K57: =OFFSET(ORC!$R$6,($C8-6),0) ->  | L57: =OFFSET(ORC!$T$6,($C8-6),0) ->  | M57: =OFFSET(ORC!$M$6,($C8-6),0) ->  | N57: =OFFSET(ORC!$W$6,($C8-6),0) ->  | O57: =OFFSET(ORC!$X$6,($C8-6),0) ->  | P57: =OFFSET(ORC!$AB$6,($C8-6),($B$9-1)) ->  | Q57: =OFFSET(ORC!$AW$6,($C8-6),($B$9-1)) ->  | R57: =OFFSET(ORC!$BK$6,($C8-6),($B$9-1)) ->  | S57: =OFFSET(ORC!$BR$6,($C8-1),($B$9-1)) -> 0 | T57: =OFFSET(ORC!$V$6,($C8-6),0) ->  | V57: =3600/OFFSET(ORC!$BY$6,($C8-6),($B$9-1)) ->  | W57: =(3600/OFFSET(ORC!$BY$6,($C8-6),($B$9-1)))/COS(R57/180*PI()) ->  | X57: =3600/OFFSET(ORC!$CF$6,($C8-6),($B$9-1)) ->  | Y57: =3600/OFFSET(ORC!$CM$6,($C8-6),($B$9-1)) ->  | Z57: =3600/OFFSET(ORC!$CT$6,($C8-6),($B$9-1)) ->  | AA57: =3600/OFFSET(ORC!$DA$6,($C8-6),($B$9-1)) ->  | AB57: =3600/OFFSET(ORC!$DH$6,($C8-6),($B$9-1)) ->  | AC57: =3600/OFFSET(ORC!$DO$6,($C8-6),($B$9-1)) ->  | AD57: =3600/OFFSET(ORC!$DV$6,($C8-6),($B$9-1)) ->  | AE57: =3600/OFFSET(ORC!$EC$6,($C8-6),($B$9-1)) ->  | AF57: =3600/OFFSET(ORC!$EJ$6,($C8-6),($B$9-1)) -> 
E60: Table de données pour le graphe polaire
E61: True Wind | O61: Apparent Wind
D62: UpAngl | E62: V@UA | F62: 52 | G62: 60 | H62: 75 | I62: 90 | J62: 110 | K62: 120 | L62: 135 | M62: 150 | N62: VMG180 | O62: 150 | P62: 135 | Q62: 120 | R62: 110 | S62: 90 | T62: 75 | U62: 60 | V62: 52 | W62: V@UA
D63: =R3 -> 44.2 | E63: =W3*SIN(D63/180*PI()) -> 2.858767784 | F63: =X3*SIN(F$62/180*PI()) -> 3.585488768 | G63: 4.207978747 | H63: 4.969748427 | I63: 5.116543491 | J63: 4.638548519 | K63: 4.150281488 | L63: 3.087428032 | M63: 1.872659176 | N63: 0 | O63: =-AE3*SIN((O$62/180*PI())-ATAN((AE3*SIN(O$62/180*PI())/($C$9+AE3*COS(O$62/180*PI()))))) -> -3.371726086 | P63: =-AD3*SIN((P$62/180*PI())-ATAN((AD3*SIN(P$62/180*PI())/($C$9+AD3*COS(P$62/180*PI()))))) -> -4.364429643 | Q63: =-AC3*SIN((Q$62/180*PI())-ATAN((AC3*SIN(Q$62/180*PI())/($C$9+AC3*COS(Q$62/180*PI()))))) -> -4.530392145 | R63: =-AB3*SIN((R$62/180*PI())-ATAN((AB3*SIN(R$62/180*PI())/($C$9+AB3*COS(R$62/180*PI()))))) -> -4.394642642 | S63: =-AA3*SIN((S$62/180*PI())-ATAN((AA3*SIN(S$62/180*PI())/($C$9+AA3*COS(S$62/180*PI()))))) -> -3.893193534 | T63: =-Z3*SIN((T$62/180*PI())-ATAN((Z3*SIN(T$62/180*PI())/($C$9+Z3*COS(T$62/180*PI()))))) -> -3.366553005 | U63: =-Y3*SIN((U$62/180*PI())-ATAN((Y3*SIN(U$62/180*PI())/($C$9+Y3*COS(U$62/180*PI()))))) -> -2.679836911 | V63: =-X3*SIN((V$62/180*PI())-ATAN((X3*SIN(V$62/180*PI())/($C$9+X3*COS(V$62/180*PI()))))) -> -2.263660947 | W63: =-W3*SIN((D63/180*PI())-ATAN((W3*SIN(D63/180*PI())/($C$9+W3*COS(D63/180*PI()))))) -> -1.827524962
E64: =V3 -> 2.939735424 | F64: =X3*COS(F$62/180*PI()) -> 2.801290838 | G64: 2.429477662 | H64: 1.331640078 | I64: 3.134262676e-16 | J64: -1.688293591 | K64: -2.396166134 | L64: -3.087428032 | M64: -3.243540838 | N64: =-AF3 -> -3.243535454 | O64: =AE3*COS((O$62/180*PI())-ATAN((AE3*SIN(O$62/180*PI())/($C$9+AE3*COS(O$62/180*PI()))))) -> -1.630605028 | P64: =AD3*COS((P$62/180*PI())-ATAN((AD3*SIN(P$62/180*PI())/($C$9+AD3*COS(P$62/180*PI()))))) -> 0.1271911646 | Q64: =AC3*COS((Q$62/180*PI())-ATAN((AC3*SIN(Q$62/180*PI())/($C$9+AC3*COS(Q$62/180*PI()))))) -> 1.562688576 | R64: =AB3*COS((R$62/180*PI())-ATAN((AB3*SIN(R$62/180*PI())/($C$9+AB3*COS(R$62/180*PI()))))) -> 2.248017719 | S64: =AA3*COS((S$62/180*PI())-ATAN((AA3*SIN(S$62/180*PI())/($C$9+AA3*COS(S$62/180*PI()))))) -> 3.319949006 | T64: =Z3*COS((T$62/180*PI())-ATAN((Z3*SIN(T$62/180*PI())/($C$9+Z3*COS(T$62/180*PI()))))) -> 3.890756429 | U64: =Y3*COS((U$62/180*PI())-ATAN((Y3*SIN(U$62/180*PI())/($C$9+Y3*COS(U$62/180*PI()))))) -> 4.053137177 | V64: =X3*COS((V$62/180*PI())-ATAN((X3*SIN(V$62/180*PI())/($C$9+X3*COS(V$62/180*PI()))))) -> 3.946998756 | W64: =W3*COS((D63/180*PI())-ATAN((W3*SIN(D63/180*PI())/($C$9+W3*COS(D63/180*PI()))))) -> 3.670796932
D65: =R4 -> 44.3 | E65: =W4*SIN(D65/180*PI()) -> 2.802626927 | F65: =X4*SIN(F$62/180*PI()) -> 3.504433246 | G65: 4.109796274 | H65: 4.843082137 | I65: 4.978564514 | J65: 4.409977102 | K65: 3.937970764 | L65: 2.914568826 | M65: 1.772875012 | N65: 0 | O65: =-AE4*SIN((O$62/180*PI())-ATAN((AE4*SIN(O$62/180*PI())/($C$9+AE4*COS(O$62/180*PI()))))) -> -3.106666603 | P65: =-AD4*SIN((P$62/180*PI())-ATAN((AD4*SIN(P$62/180*PI())/($C$9+AD4*COS(P$62/180*PI()))))) -> -4.120152496 | Q65: =-AC4*SIN((Q$62/180*PI())-ATAN((AC4*SIN(Q$62/180*PI())/($C$9+AC4*COS(Q$62/180*PI()))))) -> -4.358089967 | R65: =-AB4*SIN((R$62/180*PI())-ATAN((AB4*SIN(R$62/180*PI())/($C$9+AB4*COS(R$62/180*PI()))))) -> -4.249899568 | S65: =-AA4*SIN((S$62/180*PI())-ATAN((AA4*SIN(S$62/180*PI())/($C$9+AA4*COS(S$62/180*PI()))))) -> -3.831362401 | T65: =-Z4*SIN((T$62/180*PI())-ATAN((Z4*SIN(T$62/180*PI())/($C$9+Z4*COS(T$62/180*PI()))))) -> -3.317735828 | U65: =-Y4*SIN((U$62/180*PI())-ATAN((Y4*SIN(U$62/180*PI())/($C$9+Y4*COS(U$62/180*PI()))))) -> -2.643788548 | V65: =-X4*SIN((V$62/180*PI())-ATAN((X4*SIN(V$62/180*PI())/($C$9+X4*COS(V$62/180*PI()))))) -> -2.233424016 | W65: =-W4*SIN((D65/180*PI())-ATAN((W4*SIN(D65/180*PI())/($C$9+W4*COS(D65/180*PI()))))) -> -1.807348689
E66: =V4 -> 2.871958516 | F66: =X4*COS(F$62/180*PI()) -> 2.737963324 | G66: 2.372791985 | H66: 1.297699948 | I66: 3.049740311e-16 | J66: -1.605100399 | K66: -2.27358848 | L66: -2.914568826 | M66: -3.070709597 | N66: =-AF4 -> -3.07062436 | O66: =AE4*COS((O$62/180*PI())-ATAN((AE4*SIN(O$62/180*PI())/($C$9+AE4*COS(O$62/180*PI()))))) -> -1.709083337 | P66: =AD4*COS((P$62/180*PI())-ATAN((AD4*SIN(P$62/180*PI())/($C$9+AD4*COS(P$62/180*PI()))))) -> -0.1173298222 | Q66: =AC4*COS((Q$62/180*PI())-ATAN((AC4*SIN(Q$62/180*PI())/($C$9+AC4*COS(Q$62/180*PI()))))) -> 1.297640224 | R66: =AB4*COS((R$62/180*PI())-ATAN((AB4*SIN(R$62/180*PI())/($C$9+AB4*COS(R$62/180*PI()))))) -> 1.990627787 | S66: =AA4*COS((S$62/180*PI())-ATAN((AA4*SIN(S$62/180*PI())/($C$9+AA4*COS(S$62/180*PI()))))) -> 3.179114148 | T66: =Z4*COS((T$62/180*PI())-ATAN((Z4*SIN(T$62/180*PI())/($C$9+Z4*COS(T$62/180*PI()))))) -> 3.759268376 | U66: =Y4*COS((U$62/180*PI())-ATAN((Y4*SIN(U$62/180*PI())/($C$9+Y4*COS(U$62/180*PI()))))) -> 3.940932546 | V66: =X4*COS((V$62/180*PI())-ATAN((X4*SIN(V$62/180*PI())/($C$9+X4*COS(V$62/180*PI()))))) -> 3.845687547 | W66: =W4*COS((D65/180*PI())-ATAN((W4*SIN(D65/180*PI())/($C$9+W4*COS(D65/180*PI()))))) -> 3.582785805
D67: =R5 ->  | E67: =W5*SIN(D67/180*PI()) ->  | F67: =X5*SIN(F$62/180*PI()) ->  | N67: 0 | O67: =-AE5*SIN((O$62/180*PI())-ATAN((AE5*SIN(O$62/180*PI())/($C$9+AE5*COS(O$62/180*PI()))))) ->  | P67: =-AD5*SIN((P$62/180*PI())-ATAN((AD5*SIN(P$62/180*PI())/($C$9+AD5*COS(P$62/180*PI()))))) ->  | Q67: =-AC5*SIN((Q$62/180*PI())-ATAN((AC5*SIN(Q$62/180*PI())/($C$9+AC5*COS(Q$62/180*PI()))))) ->  | R67: =-AB5*SIN((R$62/180*PI())-ATAN((AB5*SIN(R$62/180*PI())/($C$9+AB5*COS(R$62/180*PI()))))) ->  | S67: =-AA5*SIN((S$62/180*PI())-ATAN((AA5*SIN(S$62/180*PI())/($C$9+AA5*COS(S$62/180*PI()))))) ->  | T67: =-Z5*SIN((T$62/180*PI())-ATAN((Z5*SIN(T$62/180*PI())/($C$9+Z5*COS(T$62/180*PI()))))) ->  | U67: =-Y5*SIN((U$62/180*PI())-ATAN((Y5*SIN(U$62/180*PI())/($C$9+Y5*COS(U$62/180*PI()))))) ->  | V67: =-X5*SIN((V$62/180*PI())-ATAN((X5*SIN(V$62/180*PI())/($C$9+X5*COS(V$62/180*PI()))))) ->  | W67: =-W5*SIN((D67/180*PI())-ATAN((W5*SIN(D67/180*PI())/($C$9+W5*COS(D67/180*PI()))))) -> 
E68: =V5 ->  | F68: =X5*COS(F$62/180*PI()) ->  | N68: =-AF5 ->  | O68: =AE5*COS((O$62/180*PI())-ATAN((AE5*SIN(O$62/180*PI())/($C$9+AE5*COS(O$62/180*PI()))))) ->  | P68: =AD5*COS((P$62/180*PI())-ATAN((AD5*SIN(P$62/180*PI())/($C$9+AD5*COS(P$62/180*PI()))))) ->  | Q68: =AC5*COS((Q$62/180*PI())-ATAN((AC5*SIN(Q$62/180*PI())/($C$9+AC5*COS(Q$62/180*PI()))))) ->  | R68: =AB5*COS((R$62/180*PI())-ATAN((AB5*SIN(R$62/180*PI())/($C$9+AB5*COS(R$62/180*PI()))))) ->  | S68: =AA5*COS((S$62/180*PI())-ATAN((AA5*SIN(S$62/180*PI())/($C$9+AA5*COS(S$62/180*PI()))))) ->  | T68: =Z5*COS((T$62/180*PI())-ATAN((Z5*SIN(T$62/180*PI())/($C$9+Z5*COS(T$62/180*PI()))))) ->  | U68: =Y5*COS((U$62/180*PI())-ATAN((Y5*SIN(U$62/180*PI())/($C$9+Y5*COS(U$62/180*PI()))))) ->  | V68: =X5*COS((V$62/180*PI())-ATAN((X5*SIN(V$62/180*PI())/($C$9+X5*COS(V$62/180*PI()))))) ->  | W68: =W5*COS((D67/180*PI())-ATAN((W5*SIN(D67/180*PI())/($C$9+W5*COS(D67/180*PI()))))) -> 
D69: =R6 ->  | E69: =W6*SIN(D69/180*PI()) ->  | F69: =X6*SIN(F$62/180*PI()) ->  | N69: 0 | O69: =-AE6*SIN((O$62/180*PI())-ATAN((AE6*SIN(O$62/180*PI())/($C$9+AE6*COS(O$62/180*PI()))))) ->  | P69: =-AD6*SIN((P$62/180*PI())-ATAN((AD6*SIN(P$62/180*PI())/($C$9+AD6*COS(P$62/180*PI()))))) ->  | Q69: =-AC6*SIN((Q$62/180*PI())-ATAN((AC6*SIN(Q$62/180*PI())/($C$9+AC6*COS(Q$62/180*PI()))))) ->  | R69: =-AB6*SIN((R$62/180*PI())-ATAN((AB6*SIN(R$62/180*PI())/($C$9+AB6*COS(R$62/180*PI()))))) ->  | S69: =-AA6*SIN((S$62/180*PI())-ATAN((AA6*SIN(S$62/180*PI())/($C$9+AA6*COS(S$62/180*PI()))))) ->  | T69: =-Z6*SIN((T$62/180*PI())-ATAN((Z6*SIN(T$62/180*PI())/($C$9+Z6*COS(T$62/180*PI()))))) ->  | U69: =-Y6*SIN((U$62/180*PI())-ATAN((Y6*SIN(U$62/180*PI())/($C$9+Y6*COS(U$62/180*PI()))))) ->  | V69: =-X6*SIN((V$62/180*PI())-ATAN((X6*SIN(V$62/180*PI())/($C$9+X6*COS(V$62/180*PI()))))) ->  | W69: =-W6*SIN((D69/180*PI())-ATAN((W6*SIN(D69/180*PI())/($C$9+W6*COS(D69/180*PI()))))) -> 
E70: =V6 ->  | F70: =X6*COS(F$62/180*PI()) ->  | N70: =-AF6 ->  | O70: =AE6*COS((O$62/180*PI())-ATAN((AE6*SIN(O$62/180*PI())/($C$9+AE6*COS(O$62/180*PI()))))) ->  | P70: =AD6*COS((P$62/180*PI())-ATAN((AD6*SIN(P$62/180*PI())/($C$9+AD6*COS(P$62/180*PI()))))) ->  | Q70: =AC6*COS((Q$62/180*PI())-ATAN((AC6*SIN(Q$62/180*PI())/($C$9+AC6*COS(Q$62/180*PI()))))) ->  | R70: =AB6*COS((R$62/180*PI())-ATAN((AB6*SIN(R$62/180*PI())/($C$9+AB6*COS(R$62/180*PI()))))) ->  | S70: =AA6*COS((S$62/180*PI())-ATAN((AA6*SIN(S$62/180*PI())/($C$9+AA6*COS(S$62/180*PI()))))) ->  | T70: =Z6*COS((T$62/180*PI())-ATAN((Z6*SIN(T$62/180*PI())/($C$9+Z6*COS(T$62/180*PI()))))) ->  | U70: =Y6*COS((U$62/180*PI())-ATAN((Y6*SIN(U$62/180*PI())/($C$9+Y6*COS(U$62/180*PI()))))) ->  | V70: =X6*COS((V$62/180*PI())-ATAN((X6*SIN(V$62/180*PI())/($C$9+X6*COS(V$62/180*PI()))))) ->  | W70: =W6*COS((D69/180*PI())-ATAN((W6*SIN(D69/180*PI())/($C$9+W6*COS(D69/180*PI()))))) -> 
D71: =R7 ->  | E71: =W7*SIN(D71/180*PI()) ->  | F71: =X7*SIN(F$62/180*PI()) ->  | N71: 0 | O71: =-AE7*SIN((O$62/180*PI())-ATAN((AE7*SIN(O$62/180*PI())/($C$9+AE7*COS(O$62/180*PI()))))) ->  | P71: =-AD7*SIN((P$62/180*PI())-ATAN((AD7*SIN(P$62/180*PI())/($C$9+AD7*COS(P$62/180*PI()))))) ->  | Q71: =-AC7*SIN((Q$62/180*PI())-ATAN((AC7*SIN(Q$62/180*PI())/($C$9+AC7*COS(Q$62/180*PI()))))) ->  | R71: =-AB7*SIN((R$62/180*PI())-ATAN((AB7*SIN(R$62/180*PI())/($C$9+AB7*COS(R$62/180*PI()))))) ->  | S71: =-AA7*SIN((S$62/180*PI())-ATAN((AA7*SIN(S$62/180*PI())/($C$9+AA7*COS(S$62/180*PI()))))) ->  | T71: =-Z7*SIN((T$62/180*PI())-ATAN((Z7*SIN(T$62/180*PI())/($C$9+Z7*COS(T$62/180*PI()))))) ->  | U71: =-Y7*SIN((U$62/180*PI())-ATAN((Y7*SIN(U$62/180*PI())/($C$9+Y7*COS(U$62/180*PI()))))) ->  | V71: =-X7*SIN((V$62/180*PI())-ATAN((X7*SIN(V$62/180*PI())/($C$9+X7*COS(V$62/180*PI()))))) ->  | W71: =-W7*SIN((D71/180*PI())-ATAN((W7*SIN(D71/180*PI())/($C$9+W7*COS(D71/180*PI()))))) -> 
E72: =V7 ->  | F72: =X7*COS(F$62/180*PI()) ->  | N72: =-AF7 ->  | O72: =AE7*COS((O$62/180*PI())-ATAN((AE7*SIN(O$62/180*PI())/($C$9+AE7*COS(O$62/180*PI()))))) ->  | P72: =AD7*COS((P$62/180*PI())-ATAN((AD7*SIN(P$62/180*PI())/($C$9+AD7*COS(P$62/180*PI()))))) ->  | Q72: =AC7*COS((Q$62/180*PI())-ATAN((AC7*SIN(Q$62/180*PI())/($C$9+AC7*COS(Q$62/180*PI()))))) ->  | R72: =AB7*COS((R$62/180*PI())-ATAN((AB7*SIN(R$62/180*PI())/($C$9+AB7*COS(R$62/180*PI()))))) ->  | S72: =AA7*COS((S$62/180*PI())-ATAN((AA7*SIN(S$62/180*PI())/($C$9+AA7*COS(S$62/180*PI()))))) ->  | T72: =Z7*COS((T$62/180*PI())-ATAN((Z7*SIN(T$62/180*PI())/($C$9+Z7*COS(T$62/180*PI()))))) ->  | U72: =Y7*COS((U$62/180*PI())-ATAN((Y7*SIN(U$62/180*PI())/($C$9+Y7*COS(U$62/180*PI()))))) ->  | V72: =X7*COS((V$62/180*PI())-ATAN((X7*SIN(V$62/180*PI())/($C$9+X7*COS(V$62/180*PI()))))) ->  | W72: =W7*COS((D71/180*PI())-ATAN((W7*SIN(D71/180*PI())/($C$9+W7*COS(D71/180*PI()))))) -> 
D73: =R8 ->  | E73: =W8*SIN(D73/180*PI()) ->  | F73: =X8*SIN(F$62/180*PI()) ->  | N73: 0 | O73: =-AE8*SIN((O$62/180*PI())-ATAN((AE8*SIN(O$62/180*PI())/($C$9+AE8*COS(O$62/180*PI()))))) ->  | P73: =-AD8*SIN((P$62/180*PI())-ATAN((AD8*SIN(P$62/180*PI())/($C$9+AD8*COS(P$62/180*PI()))))) ->  | Q73: =-AC8*SIN((Q$62/180*PI())-ATAN((AC8*SIN(Q$62/180*PI())/($C$9+AC8*COS(Q$62/180*PI()))))) ->  | R73: =-AB8*SIN((R$62/180*PI())-ATAN((AB8*SIN(R$62/180*PI())/($C$9+AB8*COS(R$62/180*PI()))))) ->  | S73: =-AA8*SIN((S$62/180*PI())-ATAN((AA8*SIN(S$62/180*PI())/($C$9+AA8*COS(S$62/180*PI()))))) ->  | T73: =-Z8*SIN((T$62/180*PI())-ATAN((Z8*SIN(T$62/180*PI())/($C$9+Z8*COS(T$62/180*PI()))))) ->  | U73: =-Y8*SIN((U$62/180*PI())-ATAN((Y8*SIN(U$62/180*PI())/($C$9+Y8*COS(U$62/180*PI()))))) ->  | V73: =-X8*SIN((V$62/180*PI())-ATAN((X8*SIN(V$62/180*PI())/($C$9+X8*COS(V$62/180*PI()))))) ->  | W73: =-W8*SIN((D73/180*PI())-ATAN((W8*SIN(D73/180*PI())/($C$9+W8*COS(D73/180*PI()))))) -> 
E74: =V8 ->  | F74: =X8*COS(F$62/180*PI()) ->  | N74: =-AF8 ->  | O74: =AE8*COS((O$62/180*PI())-ATAN((AE8*SIN(O$62/180*PI())/($C$9+AE8*COS(O$62/180*PI()))))) ->  | P74: =AD8*COS((P$62/180*PI())-ATAN((AD8*SIN(P$62/180*PI())/($C$9+AD8*COS(P$62/180*PI()))))) ->  | Q74: =AC8*COS((Q$62/180*PI())-ATAN((AC8*SIN(Q$62/180*PI())/($C$9+AC8*COS(Q$62/180*PI()))))) ->  | R74: =AB8*COS((R$62/180*PI())-ATAN((AB8*SIN(R$62/180*PI())/($C$9+AB8*COS(R$62/180*PI()))))) ->  | S74: =AA8*COS((S$62/180*PI())-ATAN((AA8*SIN(S$62/180*PI())/($C$9+AA8*COS(S$62/180*PI()))))) ->  | T74: =Z8*COS((T$62/180*PI())-ATAN((Z8*SIN(T$62/180*PI())/($C$9+Z8*COS(T$62/180*PI()))))) ->  | U74: =Y8*COS((U$62/180*PI())-ATAN((Y8*SIN(U$62/180*PI())/($C$9+Y8*COS(U$62/180*PI()))))) ->  | V74: =X8*COS((V$62/180*PI())-ATAN((X8*SIN(V$62/180*PI())/($C$9+X8*COS(V$62/180*PI()))))) ->  | W74: =W8*COS((D73/180*PI())-ATAN((W8*SIN(D73/180*PI())/($C$9+W8*COS(D73/180*PI()))))) -> 
D77: données bateau N°1 | S77: vent apparent | AD77: AWA
C78: Wind(kn) | D78: Up Angle | E78: 0 | F78: V@UA | G78: 52 | H78: 60 | I78: 75 | J78: 90 | K78: 110 | L78: 120 | M78: 135 | N78: 150 | O78: 180 | P78: V@DA | Q78: DA | S78: UA | T78: 52 | U78: 60 | V78: 75 | W78: 90 | X78: 110 | Y78: 120 | Z78: 135 | AA78: 150 | AB78: DA | AD78: UA | AE78: 52 | AF78: 60 | AG78: 75 | AH78: 90 | AI78: 110 | AJ78: 120 | AK78: 135 | AL78: 150 | AM78: DA
B79: Wind=1 | C79: 6 | D79: =OFFSET(ORC!$BK$6,($C$3-6),(0)) -> 44.2 | E79: =3600/OFFSET(ORC!$BY$6,($C$3-6),(0)) -> 2.939735424 | F79: =3600/OFFSET(ORC!$BY$6,($C$3-6),(0))/COS(D79/180*PI()) -> 4.100560645 | G79: =3600/OFFSET(ORC!$CF$6,($C$3-6),(0)) -> 4.550050556 | H79: =3600/OFFSET(ORC!$CM$6,($C$3-6),(0)) -> 4.858955325 | I79: =3600/OFFSET(ORC!$CT$6,($C$3-6),(0)) -> 5.14506217 | J79: =3600/OFFSET(ORC!$DA$6,($C$3-6),(0)) -> 5.116543491 | K79: =3600/OFFSET(ORC!$DH$6,($C$3-6),(0)) -> 4.93624023 | L79: =3600/OFFSET(ORC!$DO$6,($C$3-6),(0)) -> 4.792332268 | M79: =3600/OFFSET(ORC!$DV$6,($C$3-6),(0)) -> 4.366282596 | N79: =3600/OFFSET(ORC!$EC$6,($C$3-6),(0)) -> 3.745318352 | O79: =3600/OFFSET(ORC!$EJ$6,($C$3-6),(0)) -> 3.243535454 | P79: =Main!O79/COS((180-Main!Q79)/180*PI()) -> 3.841558896 | Q79: =OFFSET(ORC!$BR$6,($C$3-6),(0)) -> 147.6 | S79: =SQRT(SUMSQ(($C79*SIN(D79/180*PI())),(F79+$C79*COS(D79/180*PI())))) -> 9.3857031 | T79: =SQRT(SUMSQ(($C79*SIN(G$78/180*PI())),(G79+$C79*COS(G$78/180*PI())))) -> 9.503601955 | U79: 9.421421273 | V79: 8.857276425 | W79: 7.88536729 | X79: 6.333004383 | Y79: 5.496585755 | Z79: 4.244441933 | AA79: 3.332404462 | AB79: =SQRT(SUMSQ(($C79*SIN(Q79/180*PI())),(P79+$C79*COS(Q79/180*PI())))) -> 3.440225183 | AD79: =DEGREES(ACOS((F79+$C79*COS(D79/180*PI()))/S79)) -> 26.46665173 | AE79: =DEGREES(ACOS((G79+$C79*COS(G$78/180*PI()))/T79)) -> 29.83489542 | AF79: 33.47171964 | AG79: 40.8686379 | AH79: 49.54387335 | AI79: 62.90862316 | AJ79: 70.96891911 | AK79: 88.33072005 | AL79: 115.8089381 | AM79: =DEGREES(ACOS((P79+$C79*COS(Q79/180*PI()))/AB79)) -> 110.8491928
B80: Wind=2 | C80: 8 | D80: =OFFSET(ORC!$BK$6,($C$3-6),(1)) -> 42.8 | E80: =3600/OFFSET(ORC!$BY$6,($C$3-6),(1)) -> 3.546099291 | F80: =3600/OFFSET(ORC!$BY$6,($C$3-6),(1))/COS(D80/180*PI()) -> 4.832976634 | G80: =3600/OFFSET(ORC!$CF$6,($C$3-6),(1)) -> 5.430683361 | H80: =3600/OFFSET(ORC!$CM$6,($C$3-6),(1)) -> 5.78313253 | I80: =3600/OFFSET(ORC!$CT$6,($C$3-6),(1)) -> 6.083136195 | J80: =3600/OFFSET(ORC!$DA$6,($C$3-6),(1)) -> 6.050420168 | K80: =3600/OFFSET(ORC!$DH$6,($C$3-6),(1)) -> 6.013028228 | L80: =3600/OFFSET(ORC!$DO$6,($C$3-6),(1)) -> 5.857468272 | M80: =3600/OFFSET(ORC!$DV$6,($C$3-6),(1)) -> 5.371530886 | N80: =3600/OFFSET(ORC!$EC$6,($C$3-6),(1)) -> 4.730617608 | O80: =3600/OFFSET(ORC!$EJ$6,($C$3-6),(1)) -> 4.09882728 | P80: =Main!O80/COS((180-Main!Q80)/180*PI()) -> 4.677389062 | Q80: =OFFSET(ORC!$BR$6,($C$3-6),(1)) -> 151.2 | S80: =SQRT(SUMSQ(($C80*SIN(D80/180*PI())),(F80+$C80*COS(D80/180*PI())))) -> 12.00396817 | T80: 12.12384932 | U80: 11.98789732 | V80: 11.23367482 | W80: 10.03033321 | X80: 8.200687779 | Y80: 7.172878668 | Z80: 5.664045323 | AA80: 4.56392184 | AB80: =SQRT(SUMSQ(($C80*SIN(Q80/180*PI())),(P80+$C80*COS(Q80/180*PI())))) -> 4.505189447 | AD80: 26.92418692 | AE80: 31.3305053 | AF80: 35.30530218 | AG80: 43.46243016 | AH80: 52.89969161 | AI80: 66.44779877 | AJ80: 74.99180743 | AK80: 92.88746744 | AL80: 118.7842354 | AM80: =DEGREES(ACOS((P80+$C80*COS(Q80/180*PI()))/AB80)) -> 121.1889173
B81: Wind=3 | C81: 10 | D81: =OFFSET(ORC!$BK$6,($C$3-6),(2)) -> 43 | E81: =3600/OFFSET(ORC!$BY$6,($C$3-6),(2)) -> 4.012483281 | F81: =3600/OFFSET(ORC!$BY$6,($C$3-6),(2))/COS(D81/180*PI()) -> 5.486378578 | G81: =3600/OFFSET(ORC!$CF$6,($C$3-6),(2)) -> 6.103763988 | H81: =3600/OFFSET(ORC!$CM$6,($C$3-6),(2)) -> 6.375066407 | I81: =3600/OFFSET(ORC!$CT$6,($C$3-6),(2)) -> 6.576543661 | J81: =3600/OFFSET(ORC!$DA$6,($C$3-6),(2)) -> 6.563354603 | K81: =3600/OFFSET(ORC!$DH$6,($C$3-6),(2)) -> 6.62129851 | L81: =3600/OFFSET(ORC!$DO$6,($C$3-6),(2)) -> 6.539509537 | M81: =3600/OFFSET(ORC!$DV$6,($C$3-6),(2)) -> 6.222990493 | N81: =3600/OFFSET(ORC!$EC$6,($C$3-6),(2)) -> 5.582260816 | O81: =3600/OFFSET(ORC!$EJ$6,($C$3-6),(2)) -> 4.846526656 | P81: =Main!O81/COS((180-Main!Q81)/180*PI()) -> 5.458935199 | Q81: =OFFSET(ORC!$BR$6,($C$3-6),(2)) -> 152.6 | S81: 14.5034484 | T81: 14.57439473 | U81: 14.29657776 | V81: 13.3151651 | W81: 11.96150591 | X81: 9.92719722 | Y81: 8.796026922 | Z81: 7.121743827 | AA81: 5.871459978 | AB81: 5.733187629 | AD81: 28.04934849 | AE81: 32.7300526 | AF81: 37.2833447 | AG81: 46.50486839 | AH81: 56.7216896 | AI81: 71.18840358 | AJ81: 79.91998678 | AK81: 96.83917233 | AL81: 121.616396 | AM81: 126.6118215
B82: Wind=4 | C82: 12 | D82: =OFFSET(ORC!$BK$6,($C$3-6),(3)) -> 41.9 | E82: =3600/OFFSET(ORC!$BY$6,($C$3-6),(3)) -> 4.398826979 | F82: =3600/OFFSET(ORC!$BY$6,($C$3-6),(3))/COS(D82/180*PI()) -> 5.909927102 | G82: =3600/OFFSET(ORC!$CF$6,($C$3-6),(3)) -> 6.480648065 | H82: =3600/OFFSET(ORC!$CM$6,($C$3-6),(3)) -> 6.674082314 | I82: =3600/OFFSET(ORC!$CT$6,($C$3-6),(3)) -> 6.846709776 | J82: =3600/OFFSET(ORC!$DA$6,($C$3-6),(3)) -> 6.88731586 | K82: =3600/OFFSET(ORC!$DH$6,($C$3-6),(3)) -> 6.972690296 | L82: =3600/OFFSET(ORC!$DO$6,($C$3-6),(3)) -> 6.904487917 | M82: =3600/OFFSET(ORC!$DV$6,($C$3-6),(3)) -> 6.687720602 | N82: =3600/OFFSET(ORC!$EC$6,($C$3-6),(3)) -> 6.29590766 | O82: =3600/OFFSET(ORC!$EJ$6,($C$3-6),(3)) -> 5.532503458 | P82: =Main!O82/COS((180-Main!Q82)/180*PI()) -> 5.966997193 | Q82: =OFFSET(ORC!$BR$6,($C$3-6),(3)) -> 158 | S82: 16.8671007 | T82: 16.78559048 | U82: 16.39000801 | V82: 15.27765846 | W82: 13.83600809 | X82: 11.63542853 | Y82: 10.43159136 | Z82: 8.67359353 | AA82: 7.265016855 | AB82: 6.842877503 | AD82: 28.36752555 | AE82: 34.28765285 | AF82: 39.35055606 | AG82: 49.34944111 | AH82: 60.14663313 | AI82: 75.72790081 | AJ82: 85.02583124 | AK82: 101.9609636 | AL82: 124.3226378 | AM82: 138.9339824
B83: Wind=5 | C83: 14 | D83: =OFFSET(ORC!$BK$6,($C$3-6),(4)) -> 40.9 | E83: =3600/OFFSET(ORC!$BY$6,($C$3-6),(4)) -> 4.614201487 | F83: =3600/OFFSET(ORC!$BY$6,($C$3-6),(4))/COS(D83/180*PI()) -> 6.104624342 | G83: =3600/OFFSET(ORC!$CF$6,($C$3-6),(4)) -> 6.667901463 | H83: =3600/OFFSET(ORC!$CM$6,($C$3-6),(4)) -> 6.863679695 | I83: =3600/OFFSET(ORC!$CT$6,($C$3-6),(4)) -> 7.074081352 | J83: =3600/OFFSET(ORC!$DA$6,($C$3-6),(4)) -> 7.061592781 | K83: =3600/OFFSET(ORC!$DH$6,($C$3-6),(4)) -> 7.326007326 | L83: =3600/OFFSET(ORC!$DO$6,($C$3-6),(4)) -> 7.244918495 | M83: =3600/OFFSET(ORC!$DV$6,($C$3-6),(4)) -> 7.010710808 | N83: =3600/OFFSET(ORC!$EC$6,($C$3-6),(4)) -> 6.701414743 | O83: =3600/OFFSET(ORC!$EJ$6,($C$3-6),(4)) -> 6.148590948 | P83: =Main!O83/COS((180-Main!Q83)/180*PI()) -> 6.148590948 | Q83: =OFFSET(ORC!$BR$6,($C$3-6),(4)) -> 180 | S83: 19.03848944 | T83: 18.85220601 | U83: 18.41742693 | V83: 17.24262226 | W83: 15.68011775 | X83: 13.39822396 | Y83: 12.12682914 | Z83: 10.31237479 | AA83: 8.85484546 | AB83: 7.851409052 | AD83: 28.78114469 | AE83: 35.81651915 | AF83: 41.17102538 | AG83: 51.65369566 | AH83: 63.23364639 | AI83: 79.0817861 | AJ83: 88.84275188 | AK83: 106.2678397 | AL83: 127.7651532 | AM83: 180
B84: Wind=6 | C84: 16 | D84: =OFFSET(ORC!$BK$6,($C$3-6),(5)) -> 40.2 | E84: =3600/OFFSET(ORC!$BY$6,($C$3-6),(5)) -> 4.720073423 | F84: =3600/OFFSET(ORC!$BY$6,($C$3-6),(5))/COS(D84/180*PI()) -> 6.179756436 | G84: =3600/OFFSET(ORC!$CF$6,($C$3-6),(5)) -> 6.752954418 | H84: =3600/OFFSET(ORC!$CM$6,($C$3-6),(5)) -> 6.984866123 | I84: =3600/OFFSET(ORC!$CT$6,($C$3-6),(5)) -> 7.281553398 | J84: =3600/OFFSET(ORC!$DA$6,($C$3-6),(5)) -> 7.302231237 | K84: =3600/OFFSET(ORC!$DH$6,($C$3-6),(5)) -> 7.643312102 | L84: =3600/OFFSET(ORC!$DO$6,($C$3-6),(5)) -> 7.610993658 | M84: =3600/OFFSET(ORC!$DV$6,($C$3-6),(5)) -> 7.349938751 | N84: =3600/OFFSET(ORC!$EC$6,($C$3-6),(5)) -> 7.001166861 | O84: =3600/OFFSET(ORC!$EJ$6,($C$3-6),(5)) -> 6.594614398 | P84: =Main!O84/COS((180-Main!Q84)/180*PI()) -> 6.594614398 | Q84: =OFFSET(ORC!$BR$6,($C$3-6),(5)) -> 180 | S84: 21.10051514 | T84: 20.84810489 | U84: 20.4094638 | V84: 19.21791795 | W84: 17.58756893 | X84: 15.19101331 | Y84: 13.86186589 | Z84: 11.98797191 | AA84: 10.53538371 | AB84: 9.405385602 | AD84: 29.30342879 | AE84: 37.21182259 | AF84: 42.75935641 | AG84: 53.53187974 | AH84: 65.4685441 | AI84: 81.78356899 | AJ84: 91.60810589 | AK84: 109.3079633 | AL84: 130.5934358 | AM84: 180
B85: Wind=7 | C85: 20 | D85: =OFFSET(ORC!$BK$6,($C$3-6),(6)) -> 40.2 | E85: =3600/OFFSET(ORC!$BY$6,($C$3-6),(6)) -> 4.75749967 | F85: =3600/OFFSET(ORC!$BY$6,($C$3-6),(6))/COS(D85/180*PI()) -> 6.228756751 | G85: =3600/OFFSET(ORC!$CF$6,($C$3-6),(6)) -> 6.802721088 | H85: =3600/OFFSET(ORC!$CM$6,($C$3-6),(6)) -> 7.067137809 | I85: =3600/OFFSET(ORC!$CT$6,($C$3-6),(6)) -> 7.540846251 | J85: =3600/OFFSET(ORC!$DA$6,($C$3-6),(6)) -> 7.738607051 | K85: =3600/OFFSET(ORC!$DH$6,($C$3-6),(6)) -> 7.936507937 | L85: =3600/OFFSET(ORC!$DO$6,($C$3-6),(6)) -> 8.254987388 | M85: =3600/OFFSET(ORC!$DV$6,($C$3-6),(6)) -> 8.057296329 | N85: =3600/OFFSET(ORC!$EC$6,($C$3-6),(6)) -> 7.64493523 | O85: =3600/OFFSET(ORC!$EJ$6,($C$3-6),(6)) -> 7.189934092 | P85: =Main!O85/COS((180-Main!Q85)/180*PI()) -> 7.189934092 | Q85: =OFFSET(ORC!$BR$6,($C$3-6),(6)) -> 180 | S85: 25.08181408 | T85: 24.77506703 | U85: 24.31639762 | V85: 23.12861749 | W85: 21.4449537 | X85: 18.82578909 | Y85: 17.40818971 | Z85: 15.395625 | AA85: 13.91462216 | AB85: 12.81006591 | AD85: 30.97618986 | AE85: 39.50399984 | AF85: 45.42215115 | AG85: 56.6434051 | AH85: 68.8470333 | AI85: 86.6621462 | AJ85: 95.75304276 | AK85: 113.2804264 | AL85: 134.0553453 | AM85: 180
D87: Bateau N°1
E88: True Wind | O88: vent apparent
E89: V@UA | F89: 52 | G89: 60 | H89: 75 | I89: 90 | J89: 110 | K89: 120 | L89: 135 | M89: 150 | N89: VMG180 | O89: 150 | P89: 135 | Q89: 120 | R89: 110 | S89: 90 | T89: 75 | U89: 60 | V89: 52 | W89: V@UA
E90: =F79*SIN(D79/180*PI()) -> 2.858767784 | F90: =G79*SIN(G$78/180*PI()) -> 3.585488768 | G90: =H79*SIN(H$78/180*PI()) -> 4.207978747 | H90: 4.969748427 | I90: 5.116543491 | J90: 4.638548519 | K90: 4.150281488 | L90: 3.087428032 | M90: 1.872659176 | N90: 0 | O90: =-N79*SIN((O$89/180*PI())-ATAN((N79*SIN(O$89/180*PI())/(C79+N79*COS(O$89/180*PI()))))) -> -3.371726086 | P90: =-M79*SIN((P$89/180*PI())-ATAN((M79*SIN(P$89/180*PI())/(C79+M79*COS(P$89/180*PI()))))) -> -4.364429643 | Q90: =-L79*SIN((Q$89/180*PI())-ATAN((L79*SIN(Q$89/180*PI())/(C79+L79*COS(Q$89/180*PI()))))) -> -4.530392145 | R90: =-K79*SIN((R$89/180*PI())-ATAN((K79*SIN(R$89/180*PI())/(C79+K79*COS(R$89/180*PI()))))) -> -4.394642642 | S90: =-J79*SIN((S$89/180*PI())-ATAN((J79*SIN(S$89/180*PI())/(C79+J79*COS(S$89/180*PI()))))) -> -3.893193534 | T90: =-I79*SIN((T$89/180*PI())-ATAN((I79*SIN(T$89/180*PI())/(C79+I79*COS(T$89/180*PI()))))) -> -3.366553005 | U90: =-H79*SIN((U$89/180*PI())-ATAN((H79*SIN(U$89/180*PI())/(C79+H79*COS(U$89/180*PI()))))) -> -2.679836911 | V90: =-G79*SIN((V$89/180*PI())-ATAN((G79*SIN(V$89/180*PI())/(C79+G79*COS(V$89/180*PI()))))) -> -2.263660947 | W90: =-F79*SIN((D79/180*PI())-ATAN((F79*SIN(D79/180*PI())/(C79+F79*COS(D79/180*PI()))))) -> -1.827524962
E91: =E79 -> 2.939735424 | F91: =G79*COS(G$78/180*PI()) -> 2.801290838 | G91: =H79*COS(H$78/180*PI()) -> 2.429477662 | H91: 1.331640078 | I91: 3.134262676e-16 | J91: -1.688293591 | K91: -2.396166134 | L91: -3.087428032 | M91: -3.243540838 | N91: =-O79 -> -3.243535454 | O91: =N79*COS((O$89/180*PI())-ATAN((N79*SIN(O$89/180*PI())/(C79+N79*COS(O$89/180*PI()))))) -> -1.630605028 | P91: =M79*COS((P$89/180*PI())-ATAN((M79*SIN(P$89/180*PI())/(C79+M79*COS(P$89/180*PI()))))) -> 0.1271911646 | Q91: =L79*COS((Q$89/180*PI())-ATAN((L79*SIN(Q$89/180*PI())/(C79+L79*COS(Q$89/180*PI()))))) -> 1.562688576 | R91: =K79*COS((R$89/180*PI())-ATAN((K79*SIN(R$89/180*PI())/(C79+K79*COS(R$89/180*PI()))))) -> 2.248017719 | S91: =J79*COS((S$89/180*PI())-ATAN((J79*SIN(S$89/180*PI())/(C79+J79*COS(S$89/180*PI()))))) -> 3.319949006 | T91: =I79*COS((T$89/180*PI())-ATAN((I79*SIN(T$89/180*PI())/(C79+I79*COS(T$89/180*PI()))))) -> 3.890756429 | U91: =H79*COS((U$89/180*PI())-ATAN((H79*SIN(U$89/180*PI())/(C79+H79*COS(U$89/180*PI()))))) -> 4.053137177 | V91: =G79*COS((V$89/180*PI())-ATAN((G79*SIN(V$89/180*PI())/(C79+G79*COS(V$89/180*PI()))))) -> 3.946998756 | W91: =F79*COS((D79/180*PI())-ATAN((F79*SIN(D79/180*PI())/(C79+F79*COS(D79/180*PI()))))) -> 3.670796932
E92: =F80*SIN(D80/180*PI()) -> 3.283723948 | F92: =G80*SIN(G$78/180*PI()) -> 4.279436888 | G92: 5.008339685 | H92: 5.875858355 | I92: 6.050420168 | J92: 5.650398254 | K92: 5.072716325 | L92: 3.798245915 | M92: 2.365308804 | N92: 0 | O92: =-N80*SIN((O$89/180*PI())-ATAN((N80*SIN(O$89/180*PI())/(C80+N80*COS(O$89/180*PI()))))) -> -4.146098705 | P92: =-M80*SIN((P$89/180*PI())-ATAN((M80*SIN(P$89/180*PI())/(C80+M80*COS(P$89/180*PI()))))) -> -5.364711189 | Q92: =-L80*SIN((Q$89/180*PI())-ATAN((L80*SIN(Q$89/180*PI())/(C80+L80*COS(Q$89/180*PI()))))) -> -5.65766305 | R92: =-K80*SIN((R$89/180*PI())-ATAN((K80*SIN(R$89/180*PI())/(C80+K80*COS(R$89/180*PI()))))) -> -5.512121331 | S92: =-J80*SIN((S$89/180*PI())-ATAN((J80*SIN(S$89/180*PI())/(C80+J80*COS(S$89/180*PI()))))) -> -4.825698245 | T92: =-I80*SIN((T$89/180*PI())-ATAN((I80*SIN(T$89/180*PI())/(C80+I80*COS(T$89/180*PI()))))) -> -4.184460347 | U92: =-H80*SIN((U$89/180*PI())-ATAN((H80*SIN(U$89/180*PI())/(C80+H80*COS(U$89/180*PI()))))) -> -3.342263986 | V92: =-G80*SIN((V$89/180*PI())-ATAN((G80*SIN(V$89/180*PI())/(C80+G80*COS(V$89/180*PI()))))) -> -2.823813973 | W92: =-F80*SIN((D80/180*PI())-ATAN((F80*SIN(D80/180*PI())/(C80+F80*COS(D80/180*PI()))))) -> -2.188425628
E93: =E80 -> 3.546099291 | F93: =G80*COS(G$78/180*PI()) -> 3.34346253 | G93: 2.891566265 | H93: 1.574431501 | I93: 3.70633146e-16 | J93: -2.056576776 | K93: -2.928734136 | L93: -3.798245915 | M93: -4.096835024 | N93: =-O80 -> -4.09882728 | O93: =N80*COS((O$89/180*PI())-ATAN((N80*SIN(O$89/180*PI())/(C80+N80*COS(O$89/180*PI()))))) -> -2.277851725 | P93: =M80*COS((P$89/180*PI())-ATAN((M80*SIN(P$89/180*PI())/(C80+M80*COS(P$89/180*PI()))))) -> -0.2705880992 | Q93: =L80*COS((Q$89/180*PI())-ATAN((L80*SIN(Q$89/180*PI())/(C80+L80*COS(Q$89/180*PI()))))) -> 1.516833335 | R93: =K80*COS((R$89/180*PI())-ATAN((K80*SIN(R$89/180*PI())/(C80+K80*COS(R$89/180*PI()))))) -> 2.402712405 | S93: =J80*COS((S$89/180*PI())-ATAN((J80*SIN(S$89/180*PI())/(C80+J80*COS(S$89/180*PI()))))) -> 3.649687748 | T93: =I80*COS((T$89/180*PI())-ATAN((I80*SIN(T$89/180*PI())/(C80+I80*COS(T$89/180*PI()))))) -> 4.415295864 | U93: =H80*COS((U$89/180*PI())-ATAN((H80*SIN(U$89/180*PI())/(C80+H80*COS(U$89/180*PI()))))) -> 4.719522572 | V93: =G80*COS((V$89/180*PI())-ATAN((G80*SIN(V$89/180*PI())/(C80+G80*COS(V$89/180*PI()))))) -> 4.63879256 | W93: =F80*COS((D80/180*PI())-ATAN((F80*SIN(D80/180*PI())/(C80+F80*COS(D80/180*PI()))))) -> 4.309113182
E94: =F81*SIN(D81/180*PI()) -> 3.741701193 | F94: =G81*SIN(G$78/180*PI()) -> 4.80983166 | G94: 5.520969459 | H94: 6.35245337 | I94: 6.563354603 | J94: 6.22198535 | K94: 5.663381387 | L94: 4.400318777 | M94: 2.791130408 | N94: 0 | O94: =-N81*SIN((O$89/180*PI())-ATAN((N81*SIN(O$89/180*PI())/(C81+N81*COS(O$89/180*PI()))))) -> -4.753724658 | P94: =-M81*SIN((P$89/180*PI())-ATAN((M81*SIN(P$89/180*PI())/(C81+M81*COS(P$89/180*PI()))))) -> -6.178709714 | Q94: =-L81*SIN((Q$89/180*PI())-ATAN((L81*SIN(Q$89/180*PI())/(C81+L81*COS(Q$89/180*PI()))))) -> -6.438567591 | R94: =-K81*SIN((R$89/180*PI())-ATAN((K81*SIN(R$89/180*PI())/(C81+K81*COS(R$89/180*PI()))))) -> -6.267615332 | S94: =-J81*SIN((S$89/180*PI())-ATAN((J81*SIN(S$89/180*PI())/(C81+J81*COS(S$89/180*PI()))))) -> -5.487063797 | T94: =-I81*SIN((T$89/180*PI())-ATAN((I81*SIN(T$89/180*PI())/(C81+I81*COS(T$89/180*PI()))))) -> -4.77084086 | U94: =-H81*SIN((U$89/180*PI())-ATAN((H81*SIN(U$89/180*PI())/(C81+H81*COS(U$89/180*PI()))))) -> -3.861741985 | V94: =-G81*SIN((V$89/180*PI())-ATAN((G81*SIN(V$89/180*PI())/(C81+G81*COS(V$89/180*PI()))))) -> -3.300193078 | W94: =-F81*SIN((D81/180*PI())-ATAN((F81*SIN(D81/180*PI())/(C81+F81*COS(D81/180*PI()))))) -> -2.579870035
E95: =E81 -> 4.012483281 | F95: =G81*COS(G$78/180*PI()) -> 3.757852342 | G95: 3.187533203 | H95: 1.70213475 | I95: 4.020541876e-16 | J95: -2.264617465 | K95: -3.269754768 | L95: -4.400318777 | M95: -4.834379677 | N95: =-O81 -> -4.846526656 | O95: =N81*COS((O$89/180*PI())-ATAN((N81*SIN(O$89/180*PI())/(C81+N81*COS(O$89/180*PI()))))) -> -2.926386456 | P95: =M81*COS((P$89/180*PI())-ATAN((M81*SIN(P$89/180*PI())/(C81+M81*COS(P$89/180*PI()))))) -> -0.7410512401 | Q95: =L81*COS((Q$89/180*PI())-ATAN((L81*SIN(Q$89/180*PI())/(C81+L81*COS(Q$89/180*PI()))))) -> 1.144566449 | R95: =K81*COS((R$89/180*PI())-ATAN((K81*SIN(R$89/180*PI())/(C81+K81*COS(R$89/180*PI()))))) -> 2.13508595 | S95: =J81*COS((S$89/180*PI())-ATAN((J81*SIN(S$89/180*PI())/(C81+J81*COS(S$89/180*PI()))))) -> 3.601354543 | T95: =I81*COS((T$89/180*PI())-ATAN((I81*SIN(T$89/180*PI())/(C81+I81*COS(T$89/180*PI()))))) -> 4.526588562 | U95: =H81*COS((U$89/180*PI())-ATAN((H81*SIN(U$89/180*PI())/(C81+H81*COS(U$89/180*PI()))))) -> 5.072319049 | V95: =G81*COS((V$89/180*PI())-ATAN((G81*SIN(V$89/180*PI())/(C81+G81*COS(V$89/180*PI()))))) -> 5.134652906 | W95: =F81*COS((D81/180*PI())-ATAN((F81*SIN(D81/180*PI())/(C81+F81*COS(D81/180*PI()))))) -> 4.841964529
E96: =F82*SIN(D82/180*PI()) -> 3.946841719 | F96: =G82*SIN(G$78/180*PI()) -> 5.106820365 | G96: 5.779924831 | H96: 6.613413797 | I96: 6.88731586 | J96: 6.552185618 | K96: 5.979461936 | L96: 4.728932588 | M96: 3.14795383 | N96: 0 | O96: =-N82*SIN((O$89/180*PI())-ATAN((N82*SIN(O$89/180*PI())/(C82+N82*COS(O$89/180*PI()))))) -> -5.199636383 | P96: =-M82*SIN((P$89/180*PI())-ATAN((M82*SIN(P$89/180*PI())/(C82+M82*COS(P$89/180*PI()))))) -> -6.54252368 | Q96: =-L82*SIN((Q$89/180*PI())-ATAN((L82*SIN(Q$89/180*PI())/(C82+L82*COS(Q$89/180*PI()))))) -> -6.878484857 | R96: =-K82*SIN((R$89/180*PI())-ATAN((K82*SIN(R$89/180*PI())/(C82+K82*COS(R$89/180*PI()))))) -> -6.757484454 | S96: =-J82*SIN((S$89/180*PI())-ATAN((J82*SIN(S$89/180*PI())/(C82+J82*COS(S$89/180*PI()))))) -> -5.973384072 | T96: =-I82*SIN((T$89/180*PI())-ATAN((I82*SIN(T$89/180*PI())/(C82+I82*COS(T$89/180*PI()))))) -> -5.194576497 | U96: =-H82*SIN((U$89/180*PI())-ATAN((H82*SIN(U$89/180*PI())/(C82+H82*COS(U$89/180*PI()))))) -> -4.231791585 | V96: =-G82*SIN((V$89/180*PI())-ATAN((G82*SIN(V$89/180*PI())/(C82+G82*COS(V$89/180*PI()))))) -> -3.65086021 | W96: =-F82*SIN((D82/180*PI())-ATAN((F82*SIN(D82/180*PI())/(C82+F82*COS(D82/180*PI()))))) -> -2.807957425
E97: =E82 -> 4.398826979 | F97: =G82*COS(G$78/180*PI()) -> 3.989885349 | G97: 3.337041157 | H97: 1.772058886 | I97: 4.218992192e-16 | J97: -2.384800535 | K97: -3.452243959 | L97: -4.728932588 | M97: -5.452415973 | N97: =-O82 -> -5.532503458 | O97: =N82*COS((O$89/180*PI())-ATAN((N82*SIN(O$89/180*PI())/(C82+N82*COS(O$89/180*PI()))))) -> -3.549962641 | P97: =M82*COS((P$89/180*PI())-ATAN((M82*SIN(P$89/180*PI())/(C82+M82*COS(P$89/180*PI()))))) -> -1.385998107 | Q97: =L82*COS((Q$89/180*PI())-ATAN((L82*SIN(Q$89/180*PI())/(C82+L82*COS(Q$89/180*PI()))))) -> 0.5986647365 | R97: =K82*COS((R$89/180*PI())-ATAN((K82*SIN(R$89/180*PI())/(C82+K82*COS(R$89/180*PI()))))) -> 1.718957192 | S97: =J82*COS((S$89/180*PI())-ATAN((J82*SIN(S$89/180*PI())/(C82+J82*COS(S$89/180*PI()))))) -> 3.428381905 | T97: =I82*COS((T$89/180*PI())-ATAN((I82*SIN(T$89/180*PI())/(C82+I82*COS(T$89/180*PI()))))) -> 4.460247725 | U97: =H82*COS((U$89/180*PI())-ATAN((H82*SIN(U$89/180*PI())/(C82+H82*COS(U$89/180*PI()))))) -> 5.160941262 | V97: =G82*COS((V$89/180*PI())-ATAN((G82*SIN(V$89/180*PI())/(C82+G82*COS(V$89/180*PI()))))) -> 5.354439192 | W97: =F82*COS((D82/180*PI())-ATAN((F82*SIN(D82/180*PI())/(C82+F82*COS(D82/180*PI()))))) -> 5.200251287
E98: =F83*SIN(D83/180*PI()) -> 3.996946709 | F98: =G83*SIN(G$78/180*PI()) -> 5.254378057 | G98: 5.944120979 | H98: 6.833037875 | I98: 7.061592781 | J98: 6.884195024 | K98: 6.274283465 | L98: 4.957321153 | M98: 3.350707372 | N98: 0 | O98: =-N83*SIN((O$89/180*PI())-ATAN((N83*SIN(O$89/180*PI())/(C83+N83*COS(O$89/180*PI()))))) -> -5.297653518 | P98: =-M83*SIN((P$89/180*PI())-ATAN((M83*SIN(P$89/180*PI())/(C83+M83*COS(P$89/180*PI()))))) -> -6.730020736 | Q98: =-L83*SIN((Q$89/180*PI())-ATAN((L83*SIN(Q$89/180*PI())/(C83+L83*COS(Q$89/180*PI()))))) -> -7.24344076 | R98: =-K83*SIN((R$89/180*PI())-ATAN((K83*SIN(R$89/180*PI())/(C83+K83*COS(R$89/180*PI()))))) -> -7.193395979 | S98: =-J83*SIN((S$89/180*PI())-ATAN((J83*SIN(S$89/180*PI())/(C83+J83*COS(S$89/180*PI()))))) -> -6.304946208 | T98: =-I83*SIN((T$89/180*PI())-ATAN((I83*SIN(T$89/180*PI())/(C83+I83*COS(T$89/180*PI()))))) -> -5.548026791 | U98: =-H83*SIN((U$89/180*PI())-ATAN((H83*SIN(U$89/180*PI())/(C83+H83*COS(U$89/180*PI()))))) -> -4.518421277 | V98: =-G83*SIN((V$89/180*PI())-ATAN((G83*SIN(V$89/180*PI())/(C83+G83*COS(V$89/180*PI()))))) -> -3.901999202 | W98: =-F83*SIN((D83/180*PI())-ATAN((F83*SIN(D83/180*PI())/(C83+F83*COS(D83/180*PI()))))) -> -2.939164586
E99: =E83 -> 4.614201487 | F99: =G83*COS(G$78/180*PI()) -> 4.105170052 | G99: 3.431839847 | H99: 1.83090698 | I99: 4.325749743e-16 | J99: -2.505642076 | K99: -3.622459247 | L99: -4.957321153 | M99: -5.803595409 | N99: =-O83 -> -6.148590948 | O99: =N83*COS((O$89/180*PI())-ATAN((N83*SIN(O$89/180*PI())/(C83+N83*COS(O$89/180*PI()))))) -> -4.104123141 | P99: =M83*COS((P$89/180*PI())-ATAN((M83*SIN(P$89/180*PI())/(C83+M83*COS(P$89/180*PI()))))) -> -1.963895856 | Q99: =L83*COS((Q$89/180*PI())-ATAN((L83*SIN(Q$89/180*PI())/(C83+L83*COS(Q$89/180*PI()))))) -> 0.1463213929 | R99: =K83*COS((R$89/180*PI())-ATAN((K83*SIN(R$89/180*PI())/(C83+K83*COS(R$89/180*PI()))))) -> 1.387601397 | S99: =J83*COS((S$89/180*PI())-ATAN((J83*SIN(S$89/180*PI())/(C83+J83*COS(S$89/180*PI()))))) -> 3.180211616 | T99: =I83*COS((T$89/180*PI())-ATAN((I83*SIN(T$89/180*PI())/(C83+I83*COS(T$89/180*PI()))))) -> 4.388852435 | U99: =H83*COS((U$89/180*PI())-ATAN((H83*SIN(U$89/180*PI())/(C83+H83*COS(U$89/180*PI()))))) -> 5.16662057 | V99: =G83*COS((V$89/180*PI())-ATAN((G83*SIN(V$89/180*PI())/(C83+G83*COS(V$89/180*PI()))))) -> 5.406968851 | W99: =F83*COS((D83/180*PI())-ATAN((F83*SIN(D83/180*PI())/(C83+F83*COS(D83/180*PI()))))) -> 5.350490621
E100: =F84*SIN(D84/180*PI()) -> 3.9887713 | F100: =G84*SIN(G$78/180*PI()) -> 5.3214007 | G100: 6.049071505 | H100: 7.033440483 | I100: 7.302231237 | J100: 7.182363981 | K100: 6.591313855 | L100: 5.197191532 | M100: 3.500583431 | N100: 0 | O100: =-N84*SIN((O$89/180*PI())-ATAN((N84*SIN(O$89/180*PI())/(C84+N84*COS(O$89/180*PI()))))) -> -5.316307068 | P100: =-M84*SIN((P$89/180*PI())-ATAN((M84*SIN(P$89/180*PI())/(C84+M84*COS(P$89/180*PI()))))) -> -6.936541485 | Q100: =-L84*SIN((Q$89/180*PI())-ATAN((L84*SIN(Q$89/180*PI())/(C84+L84*COS(Q$89/180*PI()))))) -> -7.607996104 | R100: =-K84*SIN((R$89/180*PI())-ATAN((K84*SIN(R$89/180*PI())/(C84+K84*COS(R$89/180*PI()))))) -> -7.564855703 | S100: =-J84*SIN((S$89/180*PI())-ATAN((J84*SIN(S$89/180*PI())/(C84+J84*COS(S$89/180*PI()))))) -> -6.643084114 | T100: =-I84*SIN((T$89/180*PI())-ATAN((I84*SIN(T$89/180*PI())/(C84+I84*COS(T$89/180*PI()))))) -> -5.855735675 | U100: =-H84*SIN((U$89/180*PI())-ATAN((H84*SIN(U$89/180*PI())/(C84+H84*COS(U$89/180*PI()))))) -> -4.742169859 | V100: =-G84*SIN((V$89/180*PI())-ATAN((G84*SIN(V$89/180*PI())/(C84+G84*COS(V$89/180*PI()))))) -> -4.083940082 | W100: =-F84*SIN((D84/180*PI())-ATAN((F84*SIN(D84/180*PI())/(C84+F84*COS(D84/180*PI()))))) -> -3.024586858
E101: =E84 -> 4.720073423 | F101: =G84*COS(G$78/180*PI()) -> 4.15753388 | G101: 3.492433062 | H101: 1.884604697 | I101: 4.473158659e-16 | J101: -2.614166701 | K101: -3.805496829 | L101: -5.197191532 | M101: -6.063188358 | N101: =-O84 -> -6.594614398 | O101: =N84*COS((O$89/180*PI())-ATAN((N84*SIN(O$89/180*PI())/(C84+N84*COS(O$89/180*PI()))))) -> -4.555569842 | P101: =M84*COS((P$89/180*PI())-ATAN((M84*SIN(P$89/180*PI())/(C84+M84*COS(P$89/180*PI()))))) -> -2.430224652 | Q101: =L84*COS((Q$89/180*PI())-ATAN((L84*SIN(Q$89/180*PI())/(C84+L84*COS(Q$89/180*PI()))))) -> -0.2135877543 | R101: =K84*COS((R$89/180*PI())-ATAN((K84*SIN(R$89/180*PI())/(C84+K84*COS(R$89/180*PI()))))) -> 1.092326913 | S101: =J84*COS((S$89/180*PI())-ATAN((J84*SIN(S$89/180*PI())/(C84+J84*COS(S$89/180*PI()))))) -> 3.031833521 | T101: =I84*COS((T$89/180*PI())-ATAN((I84*SIN(T$89/180*PI())/(C84+I84*COS(T$89/180*PI()))))) -> 4.327976385 | U101: =H84*COS((U$89/180*PI())-ATAN((H84*SIN(U$89/180*PI())/(C84+H84*COS(U$89/180*PI()))))) -> 5.128370091 | V101: =G84*COS((V$89/180*PI())-ATAN((G84*SIN(V$89/180*PI())/(C84+G84*COS(V$89/180*PI()))))) -> 5.37808765 | W101: =F84*COS((D84/180*PI())-ATAN((F84*SIN(D84/180*PI())/(C84+F84*COS(D84/180*PI()))))) -> 5.388994706
E102: =F85*SIN(D85/180*PI()) -> 4.02039893 | F102: =G85*SIN(G$78/180*PI()) -> 5.360617371 | G102: 6.120320875 | H102: 7.283898145 | I102: 7.738607051 | J102: 7.457877943 | K102: 7.149028786 | L102: 5.697368873 | M102: 3.822467615 | N102: 0 | O102: =-N85*SIN((O$89/180*PI())-ATAN((N85*SIN(O$89/180*PI())/(C85+N85*COS(O$89/180*PI()))))) -> -5.494173785 | P102: =-M85*SIN((P$89/180*PI())-ATAN((M85*SIN(P$89/180*PI())/(C85+M85*COS(P$89/180*PI()))))) -> -7.40128299 | Q102: =-L85*SIN((Q$89/180*PI())-ATAN((L85*SIN(Q$89/180*PI())/(C85+L85*COS(Q$89/180*PI()))))) -> -8.213408637 | R102: =-K85*SIN((R$89/180*PI())-ATAN((K85*SIN(R$89/180*PI())/(C85+K85*COS(R$89/180*PI()))))) -> -7.923044188 | S102: =-J85*SIN((S$89/180*PI())-ATAN((J85*SIN(S$89/180*PI())/(C85+J85*COS(S$89/180*PI()))))) -> -7.217182336 | T102: =-I85*SIN((T$89/180*PI())-ATAN((I85*SIN(T$89/180*PI())/(C85+I85*COS(T$89/180*PI()))))) -> -6.298602281 | U102: =-H85*SIN((U$89/180*PI())-ATAN((H85*SIN(U$89/180*PI())/(C85+H85*COS(U$89/180*PI()))))) -> -5.033904258 | V102: =-G85*SIN((V$89/180*PI())-ATAN((G85*SIN(V$89/180*PI())/(C85+G85*COS(V$89/180*PI()))))) -> -4.327429157 | W102: =-F85*SIN((D85/180*PI())-ATAN((F85*SIN(D85/180*PI())/(C85+F85*COS(D85/180*PI()))))) -> -3.20582787
E103: =E85 -> 4.75749967 | F103: =G85*COS(G$78/180*PI()) -> 4.188173302 | G103: 3.533568905 | H103: 1.951714626 | I103: 4.740471236e-16 | J103: -2.714445582 | K103: -4.127493694 | L103: -5.697368873 | M103: -6.62070812 | N103: =-O85 -> -7.189934092 | O103: =N85*COS((O$89/180*PI())-ATAN((N85*SIN(O$89/180*PI())/(C85+N85*COS(O$89/180*PI()))))) -> -5.315927868 | P103: =M85*COS((P$89/180*PI())-ATAN((M85*SIN(P$89/180*PI())/(C85+M85*COS(P$89/180*PI()))))) -> -3.184499057 | Q103: =L85*COS((Q$89/180*PI())-ATAN((L85*SIN(Q$89/180*PI())/(C85+L85*COS(Q$89/180*PI()))))) -> -0.827487369 | R103: =K85*COS((R$89/180*PI())-ATAN((K85*SIN(R$89/180*PI())/(C85+K85*COS(R$89/180*PI()))))) -> 0.4620920029 | S103: =J85*COS((S$89/180*PI())-ATAN((J85*SIN(S$89/180*PI())/(C85+J85*COS(S$89/180*PI()))))) -> 2.792546905 | T103: =I85*COS((T$89/180*PI())-ATAN((I85*SIN(T$89/180*PI())/(C85+I85*COS(T$89/180*PI()))))) -> 4.146320234 | U103: =H85*COS((U$89/180*PI())-ATAN((H85*SIN(U$89/180*PI())/(C85+H85*COS(U$89/180*PI()))))) -> 4.960266599 | V103: =G85*COS((V$89/180*PI())-ATAN((G85*SIN(V$89/180*PI())/(C85+G85*COS(V$89/180*PI()))))) -> 5.248844739 | W103: =F85*COS((D85/180*PI())-ATAN((F85*SIN(D85/180*PI())/(C85+F85*COS(D85/180*PI()))))) -> 5.340419303
F106: Hulptabel voor TN berekening
G107: CR6 | H107: CR8 | I107: CR10 | J107: CR12 | K107: CR14 | L107: CR16 | M107: CR20 | O107: WL6 | P107: WL8 | Q107: WL10 | R107: WL12 | S107: WL14 | T107: WL16 | U107: WL20
G108: =IF($B$3=1,(0.242*OFFSET(#REF!,($C$3-1),(0))+0.0455*OFFSET(#REF!,($C$3-1),(0))+0.0657*OFFSET(#REF!,($C$3-1),(0))+0.0859*OFFSET(#REF!,($C$3-1),(0))+0.1002*OFFSET(#REF!,($C$3-1),(0))+0.0859*OFFSET(#REF!,($C$3-1),(0))+0.0716*OFFSET(#REF!,($C$3-1),(0))+0.0859*OFFSET(#REF!,($C$3-1),(0))+0.1301*OFFSET(#REF!,($C$3-1),(0))+0.0872*OFFSET(#REF!,($C$3-1),(0))),(0)) -> 0 | H108: =IF($B$3=1,(0.242*OFFSET(#REF!,($C$3-1),(0))+0.0455*OFFSET(#REF!,($C$3-1),(0))+0.0657*OFFSET(#REF!,($C$3-1),(0))+0.0859*OFFSET(#REF!,($C$3-1),(0))+0.1002*OFFSET(#REF!,($C$3-1),(0))+0.0859*OFFSET(#REF!,($C$3-1),(0))+0.0716*OFFSET(#REF!,($C$3-1),(0))+0.0859*OFFSET(#REF!,($C$3-1),(0))+0.1301*OFFSET(#REF!,($C$3-1),(0))+0.0872*OFFSET(#REF!,($C$3-1),(0))),(0)) -> 0 | I108: =IF($B$3=1,(0.242*OFFSET(#REF!,($C$3-1),(0))+0.0455*OFFSET(#REF!,($C$3-1),(0))+0.0657*OFFSET(#REF!,($C$3-1),(0))+0.0859*OFFSET(#REF!,($C$3-1),(0))+0.1002*OFFSET(#REF!,($C$3-1),(0))+0.0859*OFFSET(#REF!,($C$3-1),(0))+0.0716*OFFSET(#REF!,($C$3-1),(0))+0.0859*OFFSET(#REF!,($C$3-1),(0))+0.1301*OFFSET(#REF!,($C$3-1),(0))+0.0872*OFFSET(#REF!,($C$3-1),(0))),(0)) -> 0 | J108: =IF($B$3=1,(0.242*OFFSET(#REF!,($C$3-1),(0))+0.0455*OFFSET(#REF!,($C$3-1),(0))+0.0657*OFFSET(#REF!,($C$3-1),(0))+0.0859*OFFSET(#REF!,($C$3-1),(0))+0.1002*OFFSET(#REF!,($C$3-1),(0))+0.0859*OFFSET(#REF!,($C$3-1),(0))+0.0716*OFFSET(#REF!,($C$3-1),(0))+0.0859*OFFSET(#REF!,($C$3-1),(0))+0.1301*OFFSET(#REF!,($C$3-1),(0))+0.0872*OFFSET(#REF!,($C$3-1),(0))),(0)) -> 0 | K108: =IF($B$3=1,(0.242*OFFSET(#REF!,($C$3-1),(0))+0.0455*OFFSET(#REF!,($C$3-1),(0))+0.0657*OFFSET(#REF!,($C$3-1),(0))+0.0859*OFFSET(#REF!,($C$3-1),(0))+0.1002*OFFSET(#REF!,($C$3-1),(0))+0.0859*OFFSET(#REF!,($C$3-1),(0))+0.0716*OFFSET(#REF!,($C$3-1),(0))+0.0859*OFFSET(#REF!,($C$3-1),(0))+0.1301*OFFSET(#REF!,($C$3-1),(0))+0.0872*OFFSET(#REF!,($C$3-1),(0))),(0)) -> 0 | L108: =IF($B$3=1,(0.242*OFFSET(#REF!,($C$3-1),(0))+0.0455*OFFSET(#REF!,($C$3-1),(0))+0.0657*OFFSET(#REF!,($C$3-1),(0))+0.0859*OFFSET(#REF!,($C$3-1),(0))+0.1002*OFFSET(#REF!,($C$3-1),(0))+0.0859*OFFSET(#REF!,($C$3-1),(0))+0.0716*OFFSET(#REF!,($C$3-1),(0))+0.0859*OFFSET(#REF!,($C$3-1),(0))+0.1301*OFFSET(#REF!,($C$3-1),(0))+0.0872*OFFSET(#REF!,($C$3-1),(0))),(0)) -> 0 | M108: =IF($B$3=1,(0.242*OFFSET(#REF!,($C$3-1),(0))+0.0455*OFFSET(#REF!,($C$3-1),(0))+0.0657*OFFSET(#REF!,($C$3-1),(0))+0.0859*OFFSET(#REF!,($C$3-1),(0))+0.1002*OFFSET(#REF!,($C$3-1),(0))+0.0859*OFFSET(#REF!,($C$3-1),(0))+0.0716*OFFSET(#REF!,($C$3-1),(0))+0.0859*OFFSET(#REF!,($C$3-1),(0))+0.1301*OFFSET(#REF!,($C$3-1),(0))+0.0872*OFFSET(#REF!,($C$3-1),(0))),(0)) -> 0 | O108: =IF($B$3=1,(0.5*OFFSET(#REF!,($C$3-1),(0))+0.5*OFFSET(#REF!,($C$3-1),(0))),(0)) -> 0 | P108: =IF($B$3=1,(0.5*OFFSET(#REF!,($C$3-1),(0))+0.5*OFFSET(#REF!,($C$3-1),(0))),(0)) -> 0 | Q108: =IF($B$3=1,(0.5*OFFSET(#REF!,($C$3-1),(0))+0.5*OFFSET(#REF!,($C$3-1),(0))),(0)) -> 0 | R108: =IF($B$3=1,(0.5*OFFSET(#REF!,($C$3-1),(0))+0.5*OFFSET(#REF!,($C$3-1),(0))),(0)) -> 0 | S108: =IF($B$3=1,(0.5*OFFSET(#REF!,($C$3-1),(0))+0.5*OFFSET(#REF!,($C$3-1),(0))),(0)) -> 0 | T108: =IF($B$3=1,(0.5*OFFSET(#REF!,($C$3-1),(0))+0.5*OFFSET(#REF!,($C$3-1),(0))),(0)) -> 0 | U108: =IF($B$3=1,(0.5*OFFSET(#REF!,($C$3-1),(0))+0.5*OFFSET(#REF!,($C$3-1),(0))),(0)) -> 0
G110: CR-L | I110: CR-M | K110: CR-H | O110: WL-L | Q110: WL-M | S110: WL-H
E111: Tripple Numbers voor IMS boot op 1 => | G111: =IF($B$3=1,(675/(G108/2+H108/2)),(0)) -> 0 | I111: =IF($B$3=1,(675/(H108/12+I108/3+J108/3+K108/4)),(0)) -> 0 | K111: =IF($B$3=1,(675/(K108/4+3*L108/8+3*M108/8)),(0)) -> 0 | O111: =IF($B$3=1,(675/(O108/2+P108/2)),(0)) -> 0 | Q111: =IF($B$3=1,(675/(P108/12+Q108/3+R108/3+S108/4)),(0)) -> 0 | S111: =IF($B$3=1,(675/(S108/4+3*T108/8+3*U108/8)),(0)) -> 0
D112: données bateau N°2 | S112: vent apparent | AD112: AWA
C113: Wind(kn) | D113: Up Angle | E113: 0 | F113: V@UA | G113: 52 | H113: 60 | I113: 75 | J113: 90 | K113: 110 | L113: 120 | M113: 135 | N113: 150 | O113: 180 | P113: V@DA | Q113: DA | S113: UA | T113: 52 | U113: 60 | V113: 75 | W113: 90 | X113: 110 | Y113: 120 | Z113: 135 | AA113: 150 | AB113: DA | AD113: UA | AE113: 52 | AF113: 60 | AG113: 75 | AH113: 90 | AI113: 110 | AJ113: 120 | AK113: 135 | AL113: 150 | AM113: DA
B114: Wind=1 | C114: 6 | D114: =OFFSET(ORC!$BK$6,($C$4-6),(0)) -> 44.3 | E114: =3600/OFFSET(ORC!$BY$6,($C$4-6),(0)) -> 2.871958516 | F114: =3600/OFFSET(ORC!$BY$6,($C$4-6),(0))/COS(D114/180*PI()) -> 4.012837327 | G114: =3600/OFFSET(ORC!$CF$6,($C$4-6),(0)) -> 4.447189623 | H114: =3600/OFFSET(ORC!$CM$6,($C$4-6),(0)) -> 4.74558397 | I114: =3600/OFFSET(ORC!$CT$6,($C$4-6),(0)) -> 5.013927577 | J114: =3600/OFFSET(ORC!$DA$6,($C$4-6),(0)) -> 4.978564514 | K114: =3600/OFFSET(ORC!$DH$6,($C$4-6),(0)) -> 4.692999609 | L114: =3600/OFFSET(ORC!$DO$6,($C$4-6),(0)) -> 4.547176961 | M114: =3600/OFFSET(ORC!$DV$6,($C$4-6),(0)) -> 4.121822762 | N114: =3600/OFFSET(ORC!$EC$6,($C$4-6),(0)) -> 3.545750025 | O114: =3600/OFFSET(ORC!$EJ$6,($C$4-6),(0)) -> 3.07062436 | P114: =Main!O114/COS((180-Main!Q114)/180*PI()) -> 3.616874868 | Q114: =OFFSET(ORC!$BR$6,($C$4-6),(0)) -> 148.1 | S114: =SQRT(SUMSQ(($C114*SIN(D114/180*PI())),(F114+$C114*COS(D114/180*PI())))) -> 9.304104772 | T114: =SQRT(SUMSQ(($C114*SIN(G$78/180*PI())),(G114+$C114*COS(G$78/180*PI())))) -> 9.414513022 | U114: =SQRT(SUMSQ(($C114*SIN(H$78/180*PI())),(H114+$C114*COS(H$78/180*PI())))) -> 9.327061222 | V114: =SQRT(SUMSQ(($C114*SIN(I$78/180*PI())),(I114+$C114*COS(I$78/180*PI())))) -> 8.758531219 | W114: =SQRT(SUMSQ(($C114*SIN(J$78/180*PI())),(J114+$C114*COS(J$78/180*PI())))) -> 7.796544402 | X114: =SQRT(SUMSQ(($C114*SIN(K$78/180*PI())),(K114+$C114*COS(K$78/180*PI())))) -> 6.225997152 | Y114: =SQRT(SUMSQ(($C114*SIN(L$78/180*PI())),(L114+$C114*COS(L$78/180*PI())))) -> 5.421600921 | Z114: =SQRT(SUMSQ(($C114*SIN(M$78/180*PI())),(M114+$C114*COS(M$78/180*PI())))) -> 4.244360608 | AA114: =SQRT(SUMSQ(($C114*SIN(N$78/180*PI())),(N114+$C114*COS(N$78/180*PI())))) -> 3.424007604 | AB114: =SQRT(SUMSQ(($C114*SIN(Q114/180*PI())),(P114+$C114*COS(Q114/180*PI())))) -> 3.497755206 | AD114: =DEGREES(ACOS((F114+$C114*COS(D114/180*PI()))/S114)) -> 26.76881881 | AE114: =DEGREES(ACOS((G114+$C114*COS(G$78/180*PI()))/T114)) -> 30.14633408 | AF114: =DEGREES(ACOS((H114+$C114*COS(H$78/180*PI()))/U114)) -> 33.85582455 | AG114: =DEGREES(ACOS((I114+$C114*COS(I$78/180*PI()))/V114)) -> 41.42995775 | AH114: =DEGREES(ACOS((J114+$C114*COS(J$78/180*PI()))/W114)) -> 50.31544426 | AI114: =DEGREES(ACOS((K114+$C114*COS(K$78/180*PI()))/X114)) -> 64.90188661 | AJ114: =DEGREES(ACOS((L114+$C114*COS(L$78/180*PI()))/Y114)) -> 73.41887131 | AK114: =DEGREES(ACOS((M114+$C114*COS(M$78/180*PI()))/Z114)) -> 91.63117441 | AL114: =DEGREES(ACOS((N114+$C114*COS(N$78/180*PI()))/AA114)) -> 118.8166938 | AM114: =DEGREES(ACOS((P114+$C114*COS(Q114/180*PI()))/AB114)) -> 114.9772293
B115: Wind=2 | C115: 8 | D115: =OFFSET(ORC!$BK$6,($C$4-6),(1)) -> 42.6 | E115: =3600/OFFSET(ORC!$BY$6,($C$4-6),(1)) -> 3.476917133 | F115: =3600/OFFSET(ORC!$BY$6,($C$4-6),(1))/COS(D115/180*PI()) -> 4.723449113 | G115: =3600/OFFSET(ORC!$CF$6,($C$4-6),(1)) -> 5.303476724 | H115: =3600/OFFSET(ORC!$CM$6,($C$4-6),(1)) -> 5.635566688 | I115: =3600/OFFSET(ORC!$CT$6,($C$4-6),(1)) -> 5.948446794 | J115: =3600/OFFSET(ORC!$DA$6,($C$4-6),(1)) -> 5.901639344 | K115: =3600/OFFSET(ORC!$DH$6,($C$4-6),(1)) -> 5.723370429 | L115: =3600/OFFSET(ORC!$DO$6,($C$4-6),(1)) -> 5.558128763 | M115: =3600/OFFSET(ORC!$DV$6,($C$4-6),(1)) -> 5.102040816 | N115: =3600/OFFSET(ORC!$EC$6,($C$4-6),(1)) -> 4.518639387 | O115: =3600/OFFSET(ORC!$EJ$6,($C$4-6),(1)) -> 3.918580603 | P115: =Main!O115/COS((180-Main!Q115)/180*PI()) -> 4.450518332 | Q115: =OFFSET(ORC!$BR$6,($C$4-6),(1)) -> 151.7 | S115: =SQRT(SUMSQ(($C115*SIN(D115/180*PI())),(F115+$C115*COS(D115/180*PI())))) -> 11.91392654 | T115: 12.01537374 | U115: 11.86777761 | V115: 11.13629922 | W115: 9.941295034 | X115: 8.089304141 | Y115: 7.101250963 | Z115: 5.683996652 | AA115: 4.669689274 | AB115: =SQRT(SUMSQ(($C115*SIN(Q115/180*PI())),(P115+$C115*COS(Q115/180*PI())))) -> 4.594542826 | AD115: 27.03345982 | AE115: 31.64591781 | AF115: 35.71703967 | AG115: 43.93911582 | AH115: 53.58362148 | AI115: 68.32884834 | AJ115: 77.32526017 | AK115: 95.60154519 | AL115: 121.0643797 | AM115: =DEGREES(ACOS((P115+$C115*COS(Q115/180*PI()))/AB115)) -> 124.3627595
B116: Wind=3 | C116: 10 | D116: =OFFSET(ORC!$BK$6,($C$4-6),(2)) -> 42.6 | E116: =3600/OFFSET(ORC!$BY$6,($C$4-6),(2)) -> 3.926273312 | F116: =3600/OFFSET(ORC!$BY$6,($C$4-6),(2))/COS(D116/180*PI()) -> 5.333906873 | G116: =3600/OFFSET(ORC!$CF$6,($C$4-6),(2)) -> 5.992010652 | H116: =3600/OFFSET(ORC!$CM$6,($C$4-6),(2)) -> 6.271777003 | I116: =3600/OFFSET(ORC!$CT$6,($C$4-6),(2)) -> 6.478315638 | J116: =3600/OFFSET(ORC!$DA$6,($C$4-6),(2)) -> 6.448146158 | K116: =3600/OFFSET(ORC!$DH$6,($C$4-6),(2)) -> 6.440071556 | L116: =3600/OFFSET(ORC!$DO$6,($C$4-6),(2)) -> 6.340260655 | M116: =3600/OFFSET(ORC!$DV$6,($C$4-6),(2)) -> 5.962239152 | N116: =3600/OFFSET(ORC!$EC$6,($C$4-6),(2)) -> 5.333333333 | O116: =3600/OFFSET(ORC!$EJ$6,($C$4-6),(2)) -> 4.640969447 | P116: =Main!O116/COS((180-Main!Q116)/180*PI()) -> 5.12074321 | Q116: =OFFSET(ORC!$BR$6,($C$4-6),(2)) -> 155 | S116: 14.38666149 | T116: 14.48051083 | U116: 14.2145333 | V116: 13.24774709 | W116: 11.89868013 | X116: 9.870250134 | Y116: 8.763349738 | Z116: 7.157478676 | AA116: 6.005697409 | AB116: 5.779500159 | AD116: 28.06601492 | AE116: 32.96913198 | AF116: 37.53554508 | AG116: 46.8130561 | AH116: 57.18548565 | AI116: 72.1842636 | AJ116: 81.20269755 | AK116: 98.91209224 | AL116: 123.6391643 | AM116: 133.0098287
B117: Wind=4 | C117: 12 | D117: =OFFSET(ORC!$BK$6,($C$4-6),(3)) -> 42.5 | E117: =3600/OFFSET(ORC!$BY$6,($C$4-6),(3)) -> 4.320691311 | F117: =3600/OFFSET(ORC!$BY$6,($C$4-6),(3))/COS(D117/180*PI()) -> 5.860333819 | G117: =3600/OFFSET(ORC!$CF$6,($C$4-6),(3)) -> 6.390910705 | H117: =3600/OFFSET(ORC!$CM$6,($C$4-6),(3)) -> 6.592199231 | I117: =3600/OFFSET(ORC!$CT$6,($C$4-6),(3)) -> 6.763103513 | J117: =3600/OFFSET(ORC!$DA$6,($C$4-6),(3)) -> 6.768189509 | K117: =3600/OFFSET(ORC!$DH$6,($C$4-6),(3)) -> 6.807866868 | L117: =3600/OFFSET(ORC!$DO$6,($C$4-6),(3)) -> 6.740310803 | M117: =3600/OFFSET(ORC!$DV$6,($C$4-6),(3)) -> 6.506416049 | N117: =3600/OFFSET(ORC!$EC$6,($C$4-6),(3)) -> 6.073899106 | O117: =3600/OFFSET(ORC!$EJ$6,($C$4-6),(3)) -> 5.314437555 | P117: =Main!O117/COS((180-Main!Q117)/180*PI()) -> 5.773394388 | Q117: =OFFSET(ORC!$BR$6,($C$4-6),(3)) -> 157 | S117: 16.79404966 | T117: 16.71152417 | U117: 16.32677192 | V117: 15.22332582 | W117: 13.77709655 | X117: 11.59589534 | Y117: 10.41864003 | Z117: 8.712973544 | AA117: 7.392471044 | AB117: 7.05588984 | AD117: 28.86420905 | AE117: 34.46097629 | AF117: 39.53275672 | AG117: 49.58817901 | AH117: 60.57631525 | AI117: 76.51718918 | AJ117: 85.9253358 | AK117: 103.1274028 | AL117: 125.7438596 | AM117: 138.3545576
B118: Wind=5 | C118: 14 | D118: =OFFSET(ORC!$BK$6,($C$4-6),(4)) -> 40.8 | E118: =3600/OFFSET(ORC!$BY$6,($C$4-6),(4)) -> 4.561581348 | F118: =3600/OFFSET(ORC!$BY$6,($C$4-6),(4))/COS(D118/180*PI()) -> 6.025906397 | G118: =3600/OFFSET(ORC!$CF$6,($C$4-6),(4)) -> 6.60187053 | H118: =3600/OFFSET(ORC!$CM$6,($C$4-6),(4)) -> 6.791171477 | I118: =3600/OFFSET(ORC!$CT$6,($C$4-6),(4)) -> 6.982156711 | J118: =3600/OFFSET(ORC!$DA$6,($C$4-6),(4)) -> 7.018912069 | K118: =3600/OFFSET(ORC!$DH$6,($C$4-6),(4)) -> 7.113218731 | L118: =3600/OFFSET(ORC!$DO$6,($C$4-6),(4)) -> 7.040876198 | M118: =3600/OFFSET(ORC!$DV$6,($C$4-6),(4)) -> 6.833712984 | N118: =3600/OFFSET(ORC!$EC$6,($C$4-6),(4)) -> 6.5347613 | O118: =3600/OFFSET(ORC!$EJ$6,($C$4-6),(4)) -> 5.959278265 | P118: =Main!O118/COS((180-Main!Q118)/180*PI()) -> 5.959278265 | Q118: =OFFSET(ORC!$BR$6,($C$4-6),(4)) -> 180 | S118: 18.97461003 | T118: 18.79870156 | U118: 18.36290856 | V118: 17.18574223 | W118: 15.66094271 | X118: 13.35955412 | Y118: 12.12442456 | Z118: 10.3633498 | AA118: 8.957877262 | AB118: 8.040721735 | AD118: 28.82343551 | AE118: 35.93429074 | AF118: 41.319961 | AG118: 51.89405226 | AH118: 63.37306333 | AI118: 79.97790026 | AJ118: 89.80683305 | AK118: 107.2072692 | AL118: 128.6078368 | AM118: 180
B119: Wind=6 | C119: 16 | D119: =OFFSET(ORC!$BK$6,($C$4-6),(5)) -> 40.2 | E119: =3600/OFFSET(ORC!$BY$6,($C$4-6),(5)) -> 4.671078241 | F119: =3600/OFFSET(ORC!$BY$6,($C$4-6),(5))/COS(D119/180*PI()) -> 6.115609489 | G119: =3600/OFFSET(ORC!$CF$6,($C$4-6),(5)) -> 6.697674419 | H119: =3600/OFFSET(ORC!$CM$6,($C$4-6),(5)) -> 6.916426513 | I119: =3600/OFFSET(ORC!$CT$6,($C$4-6),(5)) -> 7.172743574 | J119: =3600/OFFSET(ORC!$DA$6,($C$4-6),(5)) -> 7.174172977 | K119: =3600/OFFSET(ORC!$DH$6,($C$4-6),(5)) -> 7.431874484 | L119: =3600/OFFSET(ORC!$DO$6,($C$4-6),(5)) -> 7.342443402 | M119: =3600/OFFSET(ORC!$DV$6,($C$4-6),(5)) -> 7.123070835 | N119: =3600/OFFSET(ORC!$EC$6,($C$4-6),(5)) -> 6.835010442 | O119: =3600/OFFSET(ORC!$EJ$6,($C$4-6),(5)) -> 6.438919692 | P119: =Main!O119/COS((180-Main!Q119)/180*PI()) -> 6.438919692 | Q119: =OFFSET(ORC!$BR$6,($C$4-6),(5)) -> 180 | S119: 21.04459986 | T119: 20.80410648 | U119: 20.35926767 | V119: 19.15344394 | W119: 17.53478708 | X119: 15.16224039 | Y119: 13.87199988 | Z119: 12.06488475 | AA119: 10.64424737 | AB119: 9.561080308 | AD119: 29.38890649 | AE119: 37.30389454 | AF119: 42.89012017 | AG119: 53.79363945 | AH119: 65.84921273 | AI119: 82.574383 | AJ119: 92.71693637 | AK119: 110.324808 | AL119: 131.2725997 | AM119: 180
B120: Wind=7 | C120: 20 | D120: =OFFSET(ORC!$BK$6,($C$4-6),(6)) -> 40 | E120: =3600/OFFSET(ORC!$BY$6,($C$4-6),(6)) -> 4.716981132 | F120: =3600/OFFSET(ORC!$BY$6,($C$4-6),(6))/COS(D120/180*PI()) -> 6.157581553 | G120: =3600/OFFSET(ORC!$CF$6,($C$4-6),(6)) -> 6.751687922 | H120: =3600/OFFSET(ORC!$CM$6,($C$4-6),(6)) -> 6.99436565 | I120: =3600/OFFSET(ORC!$CT$6,($C$4-6),(6)) -> 7.425742574 | J120: =3600/OFFSET(ORC!$DA$6,($C$4-6),(6)) -> 7.588532884 | K120: =3600/OFFSET(ORC!$DH$6,($C$4-6),(6)) -> 7.913827215 | L120: =3600/OFFSET(ORC!$DO$6,($C$4-6),(6)) -> 8.007117438 | M120: =3600/OFFSET(ORC!$DV$6,($C$4-6),(6)) -> 7.756948933 | N120: =3600/OFFSET(ORC!$EC$6,($C$4-6),(6)) -> 7.390679532 | O120: =3600/OFFSET(ORC!$EJ$6,($C$4-6),(6)) -> 7.016176184 | P120: =Main!O120/COS((180-Main!Q120)/180*PI()) -> 7.016176184 | Q120: =OFFSET(ORC!$BR$6,($C$4-6),(6)) -> 180 | S120: 25.03188079 | T120: 24.73571215 | U120: 24.26537582 | V120: 23.06552832 | W120: 21.39125595 | X120: 18.82448216 | Y120: 17.43478078 | Z120: 15.51678475 | AA120: 14.09260426 | AB120: 12.98382382 | AD120: 30.9022642 | AE120: 39.57919643 | AF120: 45.54454584 | AG120: 56.8822268 | AH120: 69.22192021 | AI120: 86.73106206 | AJ120: 96.56353997 | AK120: 114.2992179 | AL120: 134.7982666 | AM120: 180
D122: Bateau N°2
E123: True Wind | O123: vent apparent
E124: V@UA | F124: 52 | G124: 60 | H124: 75 | I124: 90 | J124: 110 | K124: 120 | L124: 135 | M124: 150 | N124: VMG180 | O124: 150 | P124: 135 | Q124: 120 | R124: 110 | S124: 90 | T124: 75 | U124: 60 | V124: 52 | W124: V@UA
E125: =F114*SIN(D114/180*PI()) -> 2.802626927 | F125: =G114*SIN(G$78/180*PI()) -> 3.504433246 | G125: =H114*SIN(H$78/180*PI()) -> 4.109796274 | H125: =I114*SIN(I$78/180*PI()) -> 4.843082137 | I125: =J114*SIN(J$78/180*PI()) -> 4.978564514 | J125: =K114*SIN(K$78/180*PI()) -> 4.409977102 | K125: =L114*SIN(L$78/180*PI()) -> 3.937970764 | L125: =M114*SIN(M$78/180*PI()) -> 2.914568826 | M125: =N114*SIN(N$78/180*PI()) -> 1.772875012 | N125: 0 | O125: =-N114*SIN((O$89/180*PI())-ATAN((N114*SIN(O$89/180*PI())/(C114+N114*COS(O$89/180*PI()))))) -> -3.106666603 | P125: =-M114*SIN((P$89/180*PI())-ATAN((M114*SIN(P$89/180*PI())/(C114+M114*COS(P$89/180*PI()))))) -> -4.120152496 | Q125: =-L114*SIN((Q$89/180*PI())-ATAN((L114*SIN(Q$89/180*PI())/(C114+L114*COS(Q$89/180*PI()))))) -> -4.358089967 | R125: =-K114*SIN((R$89/180*PI())-ATAN((K114*SIN(R$89/180*PI())/(C114+K114*COS(R$89/180*PI()))))) -> -4.249899568 | S125: =-J114*SIN((S$89/180*PI())-ATAN((J114*SIN(S$89/180*PI())/(C114+J114*COS(S$89/180*PI()))))) -> -3.831362401 | T125: =-I114*SIN((T$89/180*PI())-ATAN((I114*SIN(T$89/180*PI())/(C114+I114*COS(T$89/180*PI()))))) -> -3.317735828 | U125: =-H114*SIN((U$89/180*PI())-ATAN((H114*SIN(U$89/180*PI())/(C114+H114*COS(U$89/180*PI()))))) -> -2.643788548 | V125: =-G114*SIN((V$89/180*PI())-ATAN((G114*SIN(V$89/180*PI())/(C114+G114*COS(V$89/180*PI()))))) -> -2.233424016 | W125: =-F114*SIN((D114/180*PI())-ATAN((F114*SIN(D114/180*PI())/(C114+F114*COS(D114/180*PI()))))) -> -1.807348689
E126: =E114 -> 2.871958516 | F126: =G114*COS(G$78/180*PI()) -> 2.737963324 | G126: =H114*COS(H$78/180*PI()) -> 2.372791985 | H126: =I114*COS(I$78/180*PI()) -> 1.297699948 | I126: =J114*COS(J$78/180*PI()) -> 3.049740311e-16 | J126: =K114*COS(K$78/180*PI()) -> -1.605100399 | K126: =L114*COS(L$78/180*PI()) -> -2.27358848 | L126: =M114*COS(M$78/180*PI()) -> -2.914568826 | M126: =N114*COS(N$78/180*PI()) -> -3.070709597 | N126: =-O114 -> -3.07062436 | O126: =N114*COS((O$89/180*PI())-ATAN((N114*SIN(O$89/180*PI())/(C114+N114*COS(O$89/180*PI()))))) -> -1.709083337 | P126: =M114*COS((P$89/180*PI())-ATAN((M114*SIN(P$89/180*PI())/(C114+M114*COS(P$89/180*PI()))))) -> -0.1173298222 | Q126: =L114*COS((Q$89/180*PI())-ATAN((L114*SIN(Q$89/180*PI())/(C114+L114*COS(Q$89/180*PI()))))) -> 1.297640224 | R126: =K114*COS((R$89/180*PI())-ATAN((K114*SIN(R$89/180*PI())/(C114+K114*COS(R$89/180*PI()))))) -> 1.990627787 | S126: =J114*COS((S$89/180*PI())-ATAN((J114*SIN(S$89/180*PI())/(C114+J114*COS(S$89/180*PI()))))) -> 3.179114148 | T126: =I114*COS((T$89/180*PI())-ATAN((I114*SIN(T$89/180*PI())/(C114+I114*COS(T$89/180*PI()))))) -> 3.759268376 | U126: =H114*COS((U$89/180*PI())-ATAN((H114*SIN(U$89/180*PI())/(C114+H114*COS(U$89/180*PI()))))) -> 3.940932546 | V126: =G114*COS((V$89/180*PI())-ATAN((G114*SIN(V$89/180*PI())/(C114+G114*COS(V$89/180*PI()))))) -> 3.845687547 | W126: =F114*COS((D114/180*PI())-ATAN((F114*SIN(D114/180*PI())/(C114+F114*COS(D114/180*PI()))))) -> 3.582785805
E127: =F115*SIN(D115/180*PI()) -> 3.197189199 | F127: =G115*SIN(G$78/180*PI()) -> 4.17919669 | G127: =H115*SIN(H$78/180*PI()) -> 4.880543916 | H127: =I115*SIN(I$78/180*PI()) -> 5.745758385 | I127: =J115*SIN(J$78/180*PI()) -> 5.901639344 | J127: =K115*SIN(K$78/180*PI()) -> 5.378208958 | K127: =L115*SIN(L$78/180*PI()) -> 4.813480707 | L127: =M115*SIN(M$78/180*PI()) -> 3.607687659 | M127: =N115*SIN(N$78/180*PI()) -> 2.259319694 | N127: 0 | O127: =-N115*SIN((O$89/180*PI())-ATAN((N115*SIN(O$89/180*PI())/(C115+N115*COS(O$89/180*PI()))))) -> -3.870612473 | P127: =-M115*SIN((P$89/180*PI())-ATAN((M115*SIN(P$89/180*PI())/(C115+M115*COS(P$89/180*PI()))))) -> -5.077677387 | Q127: =-L115*SIN((Q$89/180*PI())-ATAN((L115*SIN(Q$89/180*PI())/(C115+L115*COS(Q$89/180*PI()))))) -> -5.422684799 | R127: =-K115*SIN((R$89/180*PI())-ATAN((K115*SIN(R$89/180*PI())/(C115+K115*COS(R$89/180*PI()))))) -> -5.318834713 | S127: =-J115*SIN((S$89/180*PI())-ATAN((J115*SIN(S$89/180*PI())/(C115+J115*COS(S$89/180*PI()))))) -> -4.749191589 | T127: =-I115*SIN((T$89/180*PI())-ATAN((I115*SIN(T$89/180*PI())/(C115+I115*COS(T$89/180*PI()))))) -> -4.127589082 | U127: =-H115*SIN((U$89/180*PI())-ATAN((H115*SIN(U$89/180*PI())/(C115+H115*COS(U$89/180*PI()))))) -> -3.289946325 | V127: =-G115*SIN((V$89/180*PI())-ATAN((G115*SIN(V$89/180*PI())/(C115+G115*COS(V$89/180*PI()))))) -> -2.782566255 | W127: =-F115*SIN((D115/180*PI())-ATAN((F115*SIN(D115/180*PI())/(C115+F115*COS(D115/180*PI()))))) -> -2.146858426
E128: =E115 -> 3.476917133 | F128: =G115*COS(G$78/180*PI()) -> 3.265146304 | G128: =H115*COS(H$78/180*PI()) -> 2.817783344 | H128: =I115*COS(I$78/180*PI()) -> 1.539571319 | I128: =J115*COS(J$78/180*PI()) -> 3.615192162e-16 | J128: =K115*COS(K$78/180*PI()) -> -1.957507975 | K128: =L115*COS(L$78/180*PI()) -> -2.779064382 | L128: =M115*COS(M$78/180*PI()) -> -3.607687659 | M128: =N115*COS(N$78/180*PI()) -> -3.9132565 | N128: =-O115 -> -3.918580603 | O128: =N115*COS((O$89/180*PI())-ATAN((N115*SIN(O$89/180*PI())/(C115+N115*COS(O$89/180*PI()))))) -> -2.331621966 | P128: =M115*COS((P$89/180*PI())-ATAN((M115*SIN(P$89/180*PI())/(C115+M115*COS(P$89/180*PI()))))) -> -0.4980088755 | Q128: =L115*COS((Q$89/180*PI())-ATAN((L115*SIN(Q$89/180*PI())/(C115+L115*COS(Q$89/180*PI()))))) -> 1.219542915 | R128: =K115*COS((R$89/180*PI())-ATAN((K115*SIN(R$89/180*PI())/(C115+K115*COS(R$89/180*PI()))))) -> 2.1135199 | S128: =J115*COS((S$89/180*PI())-ATAN((J115*SIN(S$89/180*PI())/(C115+J115*COS(S$89/180*PI()))))) -> 3.503501992 | T128: =I115*COS((T$89/180*PI())-ATAN((I115*SIN(T$89/180*PI())/(C115+I115*COS(T$89/180*PI()))))) -> 4.283343045 | U128: =H115*COS((U$89/180*PI())-ATAN((H115*SIN(U$89/180*PI())/(C115+H115*COS(U$89/180*PI()))))) -> 4.575572649 | V128: =G115*COS((V$89/180*PI())-ATAN((G115*SIN(V$89/180*PI())/(C115+G115*COS(V$89/180*PI()))))) -> 4.514885425 | W128: =F115*COS((D115/180*PI())-ATAN((F115*SIN(D115/180*PI())/(C115+F115*COS(D115/180*PI()))))) -> 4.207370963
E129: =F116*SIN(D116/180*PI()) -> 3.610393387 | F129: =G116*SIN(G$78/180*PI()) -> 4.72176883 | G129: =H116*SIN(H$78/180*PI()) -> 5.431518212 | H129: =I116*SIN(I$78/180*PI()) -> 6.257572386 | I129: =J116*SIN(J$78/180*PI()) -> 6.448146158 | J129: =K116*SIN(K$78/180*PI()) -> 6.051687719 | K129: =L116*SIN(L$78/180*PI()) -> 5.490826794 | L129: =M116*SIN(M$78/180*PI()) -> 4.215939735 | M129: =N116*SIN(N$78/180*PI()) -> 2.666666667 | N129: 0 | O129: =-N116*SIN((O$89/180*PI())-ATAN((N116*SIN(O$89/180*PI())/(C116+N116*COS(O$89/180*PI()))))) -> -4.440228145 | P129: =-M116*SIN((P$89/180*PI())-ATAN((M116*SIN(P$89/180*PI())/(C116+M116*COS(P$89/180*PI()))))) -> -5.890258185 | Q129: =-L116*SIN((Q$89/180*PI())-ATAN((L116*SIN(Q$89/180*PI())/(C116+L116*COS(Q$89/180*PI()))))) -> -6.265671186 | R129: =-K116*SIN((R$89/180*PI())-ATAN((K116*SIN(R$89/180*PI())/(C116+K116*COS(R$89/180*PI()))))) -> -6.131240482 | S129: =-J116*SIN((S$89/180*PI())-ATAN((J116*SIN(S$89/180*PI())/(C116+J116*COS(S$89/180*PI()))))) -> -5.419211279 | T129: =-I116*SIN((T$89/180*PI())-ATAN((I116*SIN(T$89/180*PI())/(C116+I116*COS(T$89/180*PI()))))) -> -4.723499283 | U129: =-H116*SIN((U$89/180*PI())-ATAN((H116*SIN(U$89/180*PI())/(C116+H116*COS(U$89/180*PI()))))) -> -3.821102036 | V129: =-G116*SIN((V$89/180*PI())-ATAN((G116*SIN(V$89/180*PI())/(C116+G116*COS(V$89/180*PI()))))) -> -3.26077504 | W129: =-F116*SIN((D116/180*PI())-ATAN((F116*SIN(D116/180*PI())/(C116+F116*COS(D116/180*PI()))))) -> -2.509542182
E130: =E116 -> 3.926273312 | F130: =G116*COS(G$78/180*PI()) -> 3.689050118 | G130: =H116*COS(H$78/180*PI()) -> 3.135888502 | H130: =I116*COS(I$78/180*PI()) -> 1.676711467 | I130: =J116*COS(J$78/180*PI()) -> 3.949968151e-16 | J130: =K116*COS(K$78/180*PI()) -> -2.202634197 | K130: =L116*COS(L$78/180*PI()) -> -3.170130328 | L130: =M116*COS(M$78/180*PI()) -> -4.215939735 | M130: =N116*COS(N$78/180*PI()) -> -4.618802154 | N130: =-O116 -> -4.640969447 | O130: =N116*COS((O$89/180*PI())-ATAN((N116*SIN(O$89/180*PI())/(C116+N116*COS(O$89/180*PI()))))) -> -2.95445739 | P130: =M116*COS((P$89/180*PI())-ATAN((M116*SIN(P$89/180*PI())/(C116+M116*COS(P$89/180*PI()))))) -> -0.9236634781 | Q130: =L116*COS((Q$89/180*PI())-ATAN((L116*SIN(Q$89/180*PI())/(C116+L116*COS(Q$89/180*PI()))))) -> 0.9696750848 | R130: =K116*COS((R$89/180*PI())-ATAN((K116*SIN(R$89/180*PI())/(C116+K116*COS(R$89/180*PI()))))) -> 1.97038367 | S130: =J116*COS((S$89/180*PI())-ATAN((J116*SIN(S$89/180*PI())/(C116+J116*COS(S$89/180*PI()))))) -> 3.494386639 | T130: =I116*COS((T$89/180*PI())-ATAN((I116*SIN(T$89/180*PI())/(C116+I116*COS(T$89/180*PI()))))) -> 4.433635983 | U130: =H116*COS((U$89/180*PI())-ATAN((H116*SIN(U$89/180*PI())/(C116+H116*COS(U$89/180*PI()))))) -> 4.973365662 | V130: =G116*COS((V$89/180*PI())-ATAN((G116*SIN(V$89/180*PI())/(C116+G116*COS(V$89/180*PI()))))) -> 5.027080445 | W130: =F116*COS((D116/180*PI())-ATAN((F116*SIN(D116/180*PI())/(C116+F116*COS(D116/180*PI()))))) -> 4.70667192
E131: =F117*SIN(D117/180*PI()) -> 3.959184141 | F131: =G117*SIN(G$78/180*PI()) -> 5.036106361 | G131: =H117*SIN(H$78/180*PI()) -> 5.709012001 | H131: =I117*SIN(I$78/180*PI()) -> 6.532656349 | I131: =J117*SIN(J$78/180*PI()) -> 6.768189509 | J131: =K117*SIN(K$78/180*PI()) -> 6.39730226 | K131: =L117*SIN(L$78/180*PI()) -> 5.837280385 | L131: =M117*SIN(M$78/180*PI()) -> 4.60073091 | M131: =N117*SIN(N$78/180*PI()) -> 3.036949553 | N131: 0 | O131: =-N117*SIN((O$89/180*PI())-ATAN((N117*SIN(O$89/180*PI())/(C117+N117*COS(O$89/180*PI()))))) -> -4.929798767 | P131: =-M117*SIN((P$89/180*PI())-ATAN((M117*SIN(P$89/180*PI())/(C117+M117*COS(P$89/180*PI()))))) -> -6.336386842 | Q131: =-L117*SIN((Q$89/180*PI())-ATAN((L117*SIN(Q$89/180*PI())/(C117+L117*COS(Q$89/180*PI()))))) -> -6.723273327 | R131: =-K117*SIN((R$89/180*PI())-ATAN((K117*SIN(R$89/180*PI())/(C117+K117*COS(R$89/180*PI()))))) -> -6.620241459 | S131: =-J117*SIN((S$89/180*PI())-ATAN((J117*SIN(S$89/180*PI())/(C117+J117*COS(S$89/180*PI()))))) -> -5.895166216 | T131: =-I117*SIN((T$89/180*PI())-ATAN((I117*SIN(T$89/180*PI())/(C117+I117*COS(T$89/180*PI()))))) -> -5.149457952 | U131: =-H117*SIN((U$89/180*PI())-ATAN((H117*SIN(U$89/180*PI())/(C117+H117*COS(U$89/180*PI()))))) -> -4.196061801 | V131: =-G117*SIN((V$89/180*PI())-ATAN((G117*SIN(V$89/180*PI())/(C117+G117*COS(V$89/180*PI()))))) -> -3.616263587 | W131: =-F117*SIN((D117/180*PI())-ATAN((F117*SIN(D117/180*PI())/(C117+F117*COS(D117/180*PI()))))) -> -2.828990664
E132: =E117 -> 4.320691311 | F132: =G117*COS(G$78/180*PI()) -> 3.934637513 | G132: =H117*COS(H$78/180*PI()) -> 3.296099615 | H132: =I117*COS(I$78/180*PI()) -> 1.750419993 | I132: =J117*COS(J$78/180*PI()) -> 4.14601846e-16 | J132: =K117*COS(K$78/180*PI()) -> -2.328427602 | K132: =L117*COS(L$78/180*PI()) -> -3.370155402 | L132: =M117*COS(M$78/180*PI()) -> -4.60073091 | M132: =N117*COS(N$78/180*PI()) -> -5.260150926 | N132: =-O117 -> -5.314437555 | O132: =N117*COS((O$89/180*PI())-ATAN((N117*SIN(O$89/180*PI())/(C117+N117*COS(O$89/180*PI()))))) -> -3.548145215 | P132: =M117*COS((P$89/180*PI())-ATAN((M117*SIN(P$89/180*PI())/(C117+M117*COS(P$89/180*PI()))))) -> -1.477718375 | Q132: =L117*COS((Q$89/180*PI())-ATAN((L117*SIN(Q$89/180*PI())/(C117+L117*COS(Q$89/180*PI()))))) -> 0.4789420587 | R132: =K117*COS((R$89/180*PI())-ATAN((K117*SIN(R$89/180*PI())/(C117+K117*COS(R$89/180*PI()))))) -> 1.587278906 | S132: =J117*COS((S$89/180*PI())-ATAN((J117*SIN(S$89/180*PI())/(C117+J117*COS(S$89/180*PI()))))) -> 3.324966845 | T132: =I117*COS((T$89/180*PI())-ATAN((I117*SIN(T$89/180*PI())/(C117+I117*COS(T$89/180*PI()))))) -> 4.384364484 | U132: =H117*COS((U$89/180*PI())-ATAN((H117*SIN(U$89/180*PI())/(C117+H117*COS(U$89/180*PI()))))) -> 5.084304875 | V132: =G117*COS((V$89/180*PI())-ATAN((G117*SIN(V$89/180*PI())/(C117+G117*COS(V$89/180*PI()))))) -> 5.269381112 | W132: =F117*COS((D117/180*PI())-ATAN((F117*SIN(D117/180*PI())/(C117+F117*COS(D117/180*PI()))))) -> 5.132282561
E133: =F118*SIN(D118/180*PI()) -> 3.937451397 | F133: =G118*SIN(G$78/180*PI()) -> 5.202344972 | G133: =H118*SIN(H$78/180*PI()) -> 5.881327021 | H133: =I118*SIN(I$78/180*PI()) -> 6.74424549 | I133: =J118*SIN(J$78/180*PI()) -> 7.018912069 | J133: =K118*SIN(K$78/180*PI()) -> 6.684239152 | K133: =L118*SIN(L$78/180*PI()) -> 6.097577652 | L133: =M118*SIN(M$78/180*PI()) -> 4.832164792 | M133: =N118*SIN(N$78/180*PI()) -> 3.26738065 | N133: 0 | O133: =-N118*SIN((O$89/180*PI())-ATAN((N118*SIN(O$89/180*PI())/(C118+N118*COS(O$89/180*PI()))))) -> -5.106492059 | P133: =-M118*SIN((P$89/180*PI())-ATAN((M118*SIN(P$89/180*PI())/(C118+M118*COS(P$89/180*PI()))))) -> -6.527841713 | Q133: =-L118*SIN((Q$89/180*PI())-ATAN((L118*SIN(Q$89/180*PI())/(C118+L118*COS(Q$89/180*PI()))))) -> -7.040836183 | R133: =-K118*SIN((R$89/180*PI())-ATAN((K118*SIN(R$89/180*PI())/(C118+K118*COS(R$89/180*PI()))))) -> -7.004676003 | S133: =-J118*SIN((S$89/180*PI())-ATAN((J118*SIN(S$89/180*PI())/(C118+J118*COS(S$89/180*PI()))))) -> -6.274511744 | T133: =-I118*SIN((T$89/180*PI())-ATAN((I118*SIN(T$89/180*PI())/(C118+I118*COS(T$89/180*PI()))))) -> -5.494056386 | U133: =-H118*SIN((U$89/180*PI())-ATAN((H118*SIN(U$89/180*PI())/(C118+H118*COS(U$89/180*PI()))))) -> -4.483961679 | V133: =-G118*SIN((V$89/180*PI())-ATAN((G118*SIN(V$89/180*PI())/(C118+G118*COS(V$89/180*PI()))))) -> -3.874354267 | W133: =-F118*SIN((D118/180*PI())-ATAN((F118*SIN(D118/180*PI())/(C118+F118*COS(D118/180*PI()))))) -> -2.905162187
E134: =E118 -> 4.561581348 | F134: =G118*COS(G$78/180*PI()) -> 4.06451735 | G134: =H118*COS(H$78/180*PI()) -> 3.395585739 | H134: =I118*COS(I$78/180*PI()) -> 1.807115133 | I134: =J118*COS(J$78/180*PI()) -> 4.299604638e-16 | J134: =K118*COS(K$78/180*PI()) -> -2.43286409 | K134: =L118*COS(L$78/180*PI()) -> -3.520438099 | L134: =M118*COS(M$78/180*PI()) -> -4.832164792 | M134: =N118*COS(N$78/180*PI()) -> -5.659269293 | N134: =-O118 -> -5.959278265 | O134: =N118*COS((O$89/180*PI())-ATAN((N118*SIN(O$89/180*PI())/(C118+N118*COS(O$89/180*PI()))))) -> -4.077602739 | P134: =M118*COS((P$89/180*PI())-ATAN((M118*SIN(P$89/180*PI())/(C118+M118*COS(P$89/180*PI()))))) -> -2.021612157 | Q134: =L118*COS((Q$89/180*PI())-ATAN((L118*SIN(Q$89/180*PI())/(C118+L118*COS(Q$89/180*PI()))))) -> 0.02373755947 | R134: =K118*COS((R$89/180*PI())-ATAN((K118*SIN(R$89/180*PI())/(C118+K118*COS(R$89/180*PI()))))) -> 1.237899358 | S134: =J118*COS((S$89/180*PI())-ATAN((J118*SIN(S$89/180*PI())/(C118+J118*COS(S$89/180*PI()))))) -> 3.145731872 | T134: =I118*COS((T$89/180*PI())-ATAN((I118*SIN(T$89/180*PI())/(C118+I118*COS(T$89/180*PI()))))) -> 4.308811525 | U134: =H118*COS((U$89/180*PI())-ATAN((H118*SIN(U$89/180*PI())/(C118+H118*COS(U$89/180*PI()))))) -> 5.100401719 | V134: =G118*COS((V$89/180*PI())-ATAN((G118*SIN(V$89/180*PI())/(C118+G118*COS(V$89/180*PI()))))) -> 5.345472244 | W134: =F118*COS((D118/180*PI())-ATAN((F118*SIN(D118/180*PI())/(C118+F118*COS(D118/180*PI()))))) -> 5.279354181
E135: =F119*SIN(D119/180*PI()) -> 3.94736716 | F135: =G119*SIN(G$78/180*PI()) -> 5.277839466 | G135: =H119*SIN(H$78/180*PI()) -> 5.989801064 | H135: =I119*SIN(I$78/180*PI()) -> 6.928338264 | I135: =J119*SIN(J$78/180*PI()) -> 7.174172977 | J135: =K119*SIN(K$78/180*PI()) -> 6.983677611 | K135: =L119*SIN(L$78/180*PI()) -> 6.358742512 | L135: =M119*SIN(M$78/180*PI()) -> 5.03677169 | M135: =N119*SIN(N$78/180*PI()) -> 3.417505221 | N135: 0 | O135: =-N119*SIN((O$89/180*PI())-ATAN((N119*SIN(O$89/180*PI())/(C119+N119*COS(O$89/180*PI()))))) -> -5.137054941 | P135: =-M119*SIN((P$89/180*PI())-ATAN((M119*SIN(P$89/180*PI())/(C119+M119*COS(P$89/180*PI()))))) -> -6.679578688 | Q135: =-L119*SIN((Q$89/180*PI())-ATAN((L119*SIN(Q$89/180*PI())/(C119+L119*COS(Q$89/180*PI()))))) -> -7.334189812 | R135: =-K119*SIN((R$89/180*PI())-ATAN((K119*SIN(R$89/180*PI())/(C119+K119*COS(R$89/180*PI()))))) -> -7.36954691 | S135: =-J119*SIN((S$89/180*PI())-ATAN((J119*SIN(S$89/180*PI())/(C119+J119*COS(S$89/180*PI()))))) -> -6.54623105 | T135: =-I119*SIN((T$89/180*PI())-ATAN((I119*SIN(T$89/180*PI())/(C119+I119*COS(T$89/180*PI()))))) -> -5.78764908 | U135: =-H119*SIN((U$89/180*PI())-ATAN((H119*SIN(U$89/180*PI())/(C119+H119*COS(U$89/180*PI()))))) -> -4.707282137 | V135: =-G119*SIN((V$89/180*PI())-ATAN((G119*SIN(V$89/180*PI())/(C119+G119*COS(V$89/180*PI()))))) -> -4.059075142 | W135: =-F119*SIN((D119/180*PI())-ATAN((F119*SIN(D119/180*PI())/(C119+F119*COS(D119/180*PI()))))) -> -3.001143998
E136: =E119 -> 4.671078241 | F136: =G119*COS(G$78/180*PI()) -> 4.123500114 | G136: =H119*COS(H$78/180*PI()) -> 3.458213256 | H136: =I119*COS(I$78/180*PI()) -> 1.856442643 | I136: =J119*COS(J$78/180*PI()) -> 4.394713469e-16 | J136: =K119*COS(K$78/180*PI()) -> -2.541850776 | K136: =L119*COS(L$78/180*PI()) -> -3.671221701 | L136: =M119*COS(M$78/180*PI()) -> -5.03677169 | M136: =N119*COS(N$78/180*PI()) -> -5.919292678 | N136: =-O119 -> -6.438919692 | O136: =N119*COS((O$89/180*PI())-ATAN((N119*SIN(O$89/180*PI())/(C119+N119*COS(O$89/180*PI()))))) -> -4.508662139 | P136: =M119*COS((P$89/180*PI())-ATAN((M119*SIN(P$89/180*PI())/(C119+M119*COS(P$89/180*PI()))))) -> -2.474139583 | Q136: =L119*COS((Q$89/180*PI())-ATAN((L119*SIN(Q$89/180*PI())/(C119+L119*COS(Q$89/180*PI()))))) -> -0.3480444165 | R136: =K119*COS((R$89/180*PI())-ATAN((K119*SIN(R$89/180*PI())/(C119+K119*COS(R$89/180*PI()))))) -> 0.960487735 | S136: =J119*COS((S$89/180*PI())-ATAN((J119*SIN(S$89/180*PI())/(C119+J119*COS(S$89/180*PI()))))) -> 2.935237119 | T136: =I119*COS((T$89/180*PI())-ATAN((I119*SIN(T$89/180*PI())/(C119+I119*COS(T$89/180*PI()))))) -> 4.236905535 | U136: =H119*COS((U$89/180*PI())-ATAN((H119*SIN(U$89/180*PI())/(C119+H119*COS(U$89/180*PI()))))) -> 5.067390905 | V136: =G119*COS((V$89/180*PI())-ATAN((G119*SIN(V$89/180*PI())/(C119+G119*COS(V$89/180*PI()))))) -> 5.32754649 | W136: =F119*COS((D119/180*PI())-ATAN((F119*SIN(D119/180*PI())/(C119+F119*COS(D119/180*PI()))))) -> 5.328584627
E137: =F120*SIN(D120/180*PI()) -> 3.958017128 | F137: =G120*SIN(G$78/180*PI()) -> 5.320402688 | G137: =H120*SIN(H$78/180*PI()) -> 6.057298336 | H137: =I120*SIN(I$78/180*PI()) -> 7.172716532 | I137: =J120*SIN(J$78/180*PI()) -> 7.588532884 | J137: =K120*SIN(K$78/180*PI()) -> 7.436565036 | K137: =L120*SIN(L$78/180*PI()) -> 6.934367112 | L137: =M120*SIN(M$78/180*PI()) -> 5.484991192 | M137: =N120*SIN(N$78/180*PI()) -> 3.695339766 | N137: 0 | O137: =-N120*SIN((O$89/180*PI())-ATAN((N120*SIN(O$89/180*PI())/(C120+N120*COS(O$89/180*PI()))))) -> -5.244367467 | P137: =-M120*SIN((P$89/180*PI())-ATAN((M120*SIN(P$89/180*PI())/(C120+M120*COS(P$89/180*PI()))))) -> -7.069752245 | Q137: =-L120*SIN((Q$89/180*PI())-ATAN((L120*SIN(Q$89/180*PI())/(C120+L120*COS(Q$89/180*PI()))))) -> -7.954636424 | R137: =-K120*SIN((R$89/180*PI())-ATAN((K120*SIN(R$89/180*PI())/(C120+K120*COS(R$89/180*PI()))))) -> -7.900950448 | S137: =-J120*SIN((S$89/180*PI())-ATAN((J120*SIN(S$89/180*PI())/(C120+J120*COS(S$89/180*PI()))))) -> -7.09498582 | T137: =-I120*SIN((T$89/180*PI())-ATAN((I120*SIN(T$89/180*PI())/(C120+I120*COS(T$89/180*PI()))))) -> -6.21942531 | U137: =-H120*SIN((U$89/180*PI())-ATAN((H120*SIN(U$89/180*PI())/(C120+H120*COS(U$89/180*PI()))))) -> -4.992544422 | V137: =-G120*SIN((V$89/180*PI())-ATAN((G120*SIN(V$89/180*PI())/(C120+G120*COS(V$89/180*PI()))))) -> -4.301798675 | W137: =-F120*SIN((D120/180*PI())-ATAN((F120*SIN(D120/180*PI())/(C120+F120*COS(D120/180*PI()))))) -> -3.162380934
E138: =E120 -> 4.716981132 | F138: =G120*COS(G$78/180*PI()) -> 4.156754147 | G138: =H120*COS(H$78/180*PI()) -> 3.497182825 | H138: =I120*COS(I$78/180*PI()) -> 1.921923602 | I138: =J120*COS(J$78/180*PI()) -> 4.648539669e-16 | J138: =K120*COS(K$78/180*PI()) -> -2.706688318 | K138: =L120*COS(L$78/180*PI()) -> -4.003558719 | L138: =M120*COS(M$78/180*PI()) -> -5.484991192 | M138: =N120*COS(N$78/180*PI()) -> -6.400516226 | N138: =-O120 -> -7.016176184 | O138: =N120*COS((O$89/180*PI())-ATAN((N120*SIN(O$89/180*PI())/(C120+N120*COS(O$89/180*PI()))))) -> -5.207566977 | P138: =M120*COS((P$89/180*PI())-ATAN((M120*SIN(P$89/180*PI())/(C120+M120*COS(P$89/180*PI()))))) -> -3.191999366 | Q138: =L120*COS((Q$89/180*PI())-ATAN((L120*SIN(Q$89/180*PI())/(C120+L120*COS(Q$89/180*PI()))))) -> -0.9152535335 | R138: =K120*COS((R$89/180*PI())-ATAN((K120*SIN(R$89/180*PI())/(C120+K120*COS(R$89/180*PI()))))) -> 0.4512684466 | S138: =J120*COS((S$89/180*PI())-ATAN((J120*SIN(S$89/180*PI())/(C120+J120*COS(S$89/180*PI()))))) -> 2.69202666 | T138: =I120*COS((T$89/180*PI())-ATAN((I120*SIN(T$89/180*PI())/(C120+I120*COS(T$89/180*PI()))))) -> 4.057142048 | U138: =H120*COS((U$89/180*PI())-ATAN((H120*SIN(U$89/180*PI())/(C120+H120*COS(U$89/180*PI()))))) -> 4.898535601 | V138: =G120*COS((V$89/180*PI())-ATAN((G120*SIN(V$89/180*PI())/(C120+G120*COS(V$89/180*PI()))))) -> 5.203827242 | W138: =F120*COS((D120/180*PI())-ATAN((F120*SIN(D120/180*PI())/(C120+F120*COS(D120/180*PI()))))) -> 5.283479669

Sheet Detail 1
A2: N° de Voile | C2: =Main!$D$3 -> GRE-1773 | G2: GPH: | H2: =Main!$N$3 -> 702.2
A3: Nom | C3: =Main!$E$3 -> TOLMI | G3: TMF: | H3: =Main!$O$3 -> 0.8887
A4: Type: | C4: =Main!$F$3 -> FIRST 32 | G4: DSPL: | H4: =Main!L3 -> 3800
A5: GV: | B5: =OFFSET(ORC!$A$6,(Main!$C3-6),164) -> 20 | C5: GENOA: | D5: =OFFSET(ORC!$A$6,(Main!$C3-6),165) -> 30.5 | F5: SPI: | G5: =OFFSET(ORC!$A$6,(Main!$C3-6),166) -> 62.4 | H5: ASYM: | I5: =OFFSET(ORC!$A$6,(Main!$C3-6),167) -> 0
A11: VENT REEL | B11: ANGLE OPTIMAL | F11: VITESSE | O11: ANGLE OPTIMAL
B12: UA | C12: VMG | D12: V@UA | E12: 52 | F12: 60 | G12: 75 | H12: 90 | I12: 110 | J12: 120 | K12: 135 | L12: 150 | M12: V@DA | N12: VMG | O12: DA
A13: 6 | B13: =Main!D79 -> 44.2 | C13: =Main!E79 -> 2.939735424 | D13: =Main!F79 -> 4.100560645 | E13: =Main!G79 -> 4.550050556 | F13: =Main!H79 -> 4.858955325 | G13: =Main!I79 -> 5.14506217 | H13: =Main!J79 -> 5.116543491 | I13: =Main!K79 -> 4.93624023 | J13: =Main!L79 -> 4.792332268 | K13: =Main!M79 -> 4.366282596 | L13: =Main!N79 -> 3.745318352 | M13: =Main!P79 -> 3.841558896 | N13: =Main!O79 -> 3.243535454 | O13: =Main!Q79 -> 147.6
A14: 8 | B14: =Main!D80 -> 42.8 | C14: =Main!E80 -> 3.546099291 | D14: =Main!F80 -> 4.832976634 | E14: =Main!G80 -> 5.430683361 | F14: =Main!H80 -> 5.78313253 | G14: =Main!I80 -> 6.083136195 | H14: =Main!J80 -> 6.050420168 | I14: =Main!K80 -> 6.013028228 | J14: =Main!L80 -> 5.857468272 | K14: =Main!M80 -> 5.371530886 | L14: =Main!N80 -> 4.730617608 | M14: =Main!P80 -> 4.677389062 | N14: =Main!O80 -> 4.09882728 | O14: =Main!Q80 -> 151.2
A15: 10 | B15: =Main!D81 -> 43 | C15: =Main!E81 -> 4.012483281 | D15: =Main!F81 -> 5.486378578 | E15: =Main!G81 -> 6.103763988 | F15: =Main!H81 -> 6.375066407 | G15: =Main!I81 -> 6.576543661 | H15: =Main!J81 -> 6.563354603 | I15: =Main!K81 -> 6.62129851 | J15: =Main!L81 -> 6.539509537 | K15: =Main!M81 -> 6.222990493 | L15: =Main!N81 -> 5.582260816 | M15: =Main!P81 -> 5.458935199 | N15: =Main!O81 -> 4.846526656 | O15: =Main!Q81 -> 152.6
A16: 12 | B16: =Main!D82 -> 41.9 | C16: =Main!E82 -> 4.398826979 | D16: =Main!F82 -> 5.909927102 | E16: =Main!G82 -> 6.480648065 | F16: =Main!H82 -> 6.674082314 | G16: =Main!I82 -> 6.846709776 | H16: =Main!J82 -> 6.88731586 | I16: =Main!K82 -> 6.972690296 | J16: =Main!L82 -> 6.904487917 | K16: =Main!M82 -> 6.687720602 | L16: =Main!N82 -> 6.29590766 | M16: =Main!P82 -> 5.966997193 | N16: =Main!O82 -> 5.532503458 | O16: =Main!Q82 -> 158
A17: 14 | B17: =Main!D83 -> 40.9 | C17: =Main!E83 -> 4.614201487 | D17: =Main!F83 -> 6.104624342 | E17: =Main!G83 -> 6.667901463 | F17: =Main!H83 -> 6.863679695 | G17: =Main!I83 -> 7.074081352 | H17: =Main!J83 -> 7.061592781 | I17: =Main!K83 -> 7.326007326 | J17: =Main!L83 -> 7.244918495 | K17: =Main!M83 -> 7.010710808 | L17: =Main!N83 -> 6.701414743 | M17: =Main!P83 -> 6.148590948 | N17: =Main!O83 -> 6.148590948 | O17: =Main!Q83 -> 180
A18: 16 | B18: =Main!D84 -> 40.2 | C18: =Main!E84 -> 4.720073423 | D18: =Main!F84 -> 6.179756436 | E18: =Main!G84 -> 6.752954418 | F18: =Main!H84 -> 6.984866123 | G18: =Main!I84 -> 7.281553398 | H18: =Main!J84 -> 7.302231237 | I18: =Main!K84 -> 7.643312102 | J18: =Main!L84 -> 7.610993658 | K18: =Main!M84 -> 7.349938751 | L18: =Main!N84 -> 7.001166861 | M18: =Main!P84 -> 6.594614398 | N18: =Main!O84 -> 6.594614398 | O18: =Main!Q84 -> 180
A19: 20 | B19: =Main!D85 -> 40.2 | C19: =Main!E85 -> 4.75749967 | D19: =Main!F85 -> 6.228756751 | E19: =Main!G85 -> 6.802721088 | F19: =Main!H85 -> 7.067137809 | G19: =Main!I85 -> 7.540846251 | H19: =Main!J85 -> 7.738607051 | I19: =Main!K85 -> 7.936507937 | J19: =Main!L85 -> 8.254987388 | K19: =Main!M85 -> 8.057296329 | L19: =Main!N85 -> 7.64493523 | M19: =Main!P85 -> 7.189934092 | N19: =Main!O85 -> 7.189934092 | O19: =Main!Q85 -> 180
A20: Snelheden in knopen | D20: UA=Up Angle, VMG=resulterende snelheid recht tegen de wind (bijUA), V@UA=snelheid bij optimale opkruishoek
A21: Hoeken in graden | D21: DA=Down Angle, VMG=resulterende snelheid recht voor de wind (bijDA), V@DA=snelheid bij afkruis opkruishoek
A22: Vent réel | B22: ANGLE OPTIMAL | D22: vitesse du bateau en vent réel / vitesse du vent apparent et l'angle | M22: Optimale afkruis hoek / VMG
B23: UA/VMG | C23: V@UA | D23: 52 | E23: 60 | F23: 75 | G23: 90 | H23: 110 | I23: 120 | J23: 135 | K23: 150 | L23: V@DA | M23: DA/VMG | N23: TWA
A24: 6 | B24: =Main!D79 -> 44.2 | C24: =Main!F79 -> 4.100560645 | D24: =Main!G79 -> 4.550050556 | E24: =Main!H79 -> 4.858955325 | F24: =Main!I79 -> 5.14506217 | G24: =Main!J79 -> 5.116543491 | H24: =Main!K79 -> 4.93624023 | I24: =Main!L79 -> 4.792332268 | J24: =Main!M79 -> 4.366282596 | K24: =Main!N79 -> 3.745318352 | L24: =Main!P79 -> 3.841558896 | M24: =Main!Q79 -> 147.6 | N24: SPEED
B25: =Main!E79 -> 2.939735424 | C25: =Main!S79 -> 9.3857031 | D25: =Main!T79 -> 9.503601955 | E25: =Main!U79 -> 9.421421273 | F25: =Main!V79 -> 8.857276425 | G25: =Main!W79 -> 7.88536729 | H25: =Main!X79 -> 6.333004383 | I25: =Main!Y79 -> 5.496585755 | J25: =Main!Z79 -> 4.244441933 | K25: =Main!AA79 -> 3.332404462 | L25: =Main!AB79 -> 3.440225183 | M25: =Main!O79 -> 3.243535454 | N25: AWS
C26: =Main!AD79 -> 26.46665173 | D26: =Main!AE79 -> 29.83489542 | E26: =Main!AF79 -> 33.47171964 | F26: =Main!AG79 -> 40.8686379 | G26: =Main!AH79 -> 49.54387335 | H26: =Main!AI79 -> 62.90862316 | I26: =Main!AJ79 -> 70.96891911 | J26: =Main!AK79 -> 88.33072005 | K26: =Main!AL79 -> 115.8089381 | L26: =Main!AM79 -> 110.8491928 | N26: AWA
A27: 8 | B27: =Main!D80 -> 42.8 | C27: =Main!F80 -> 4.832976634 | D27: =Main!G80 -> 5.430683361 | E27: =Main!H80 -> 5.78313253 | F27: =Main!I80 -> 6.083136195 | G27: =Main!J80 -> 6.050420168 | H27: =Main!K80 -> 6.013028228 | I27: =Main!L80 -> 5.857468272 | J27: =Main!M80 -> 5.371530886 | K27: =Main!N80 -> 4.730617608 | L27: =Main!P80 -> 4.677389062 | M27: =Main!Q80 -> 151.2 | N27: SPEED
B28: =Main!E80 -> 3.546099291 | C28: =Main!S80 -> 12.00396817 | D28: =Main!T80 -> 12.12384932 | E28: =Main!U80 -> 11.98789732 | F28: =Main!V80 -> 11.23367482 | G28: =Main!W80 -> 10.03033321 | H28: =Main!X80 -> 8.200687779 | I28: =Main!Y80 -> 7.172878668 | J28: =Main!Z80 -> 5.664045323 | K28: =Main!AA80 -> 4.56392184 | L28: =Main!AB80 -> 4.505189447 | M28: =Main!O80 -> 4.09882728 | N28: AWS
C29: =Main!AD80 -> 26.92418692 | D29: =Main!AE80 -> 31.3305053 | E29: =Main!AF80 -> 35.30530218 | F29: =Main!AG80 -> 43.46243016 | G29: =Main!AH80 -> 52.89969161 | H29: =Main!AI80 -> 66.44779877 | I29: =Main!AJ80 -> 74.99180743 | J29: =Main!AK80 -> 92.88746744 | K29: =Main!AL80 -> 118.7842354 | L29: =Main!AM80 -> 121.1889173 | N29: AWA
A30: 10 | B30: =Main!D81 -> 43 | C30: =Main!F81 -> 5.486378578 | D30: =Main!G81 -> 6.103763988 | E30: =Main!H81 -> 6.375066407 | F30: =Main!I81 -> 6.576543661 | G30: =Main!J81 -> 6.563354603 | H30: =Main!K81 -> 6.62129851 | I30: =Main!L81 -> 6.539509537 | J30: =Main!M81 -> 6.222990493 | K30: =Main!N81 -> 5.582260816 | L30: =Main!P81 -> 5.458935199 | M30: =Main!Q81 -> 152.6 | N30: SPEED
B31: =Main!E81 -> 4.012483281 | C31: =Main!S81 -> 14.5034484 | D31: =Main!T81 -> 14.57439473 | E31: =Main!U81 -> 14.29657776 | F31: =Main!V81 -> 13.3151651 | G31: =Main!W81 -> 11.96150591 | H31: =Main!X81 -> 9.92719722 | I31: =Main!Y81 -> 8.796026922 | J31: =Main!Z81 -> 7.121743827 | K31: =Main!AA81 -> 5.871459978 | L31: =Main!AB81 -> 5.733187629 | M31: =Main!O81 -> 4.846526656 | N31: AWS
C32: =Main!AD81 -> 28.04934849 | D32: =Main!AE81 -> 32.7300526 | E32: =Main!AF81 -> 37.2833447 | F32: =Main!AG81 -> 46.50486839 | G32: =Main!AH81 -> 56.7216896 | H32: =Main!AI81 -> 71.18840358 | I32: =Main!AJ81 -> 79.91998678 | J32: =Main!AK81 -> 96.83917233 | K32: =Main!AL81 -> 121.616396 | L32: =Main!AM81 -> 126.6118215 | N32: AWA
A33: 12 | B33: =Main!D82 -> 41.9 | C33: =Main!F82 -> 5.909927102 | D33: =Main!G82 -> 6.480648065 | E33: =Main!H82 -> 6.674082314 | F33: =Main!I82 -> 6.846709776 | G33: =Main!J82 -> 6.88731586 | H33: =Main!K82 -> 6.972690296 | I33: =Main!L82 -> 6.904487917 | J33: =Main!M82 -> 6.687720602 | K33: =Main!N82 -> 6.29590766 | L33: =Main!P82 -> 5.966997193 | M33: =Main!Q82 -> 158 | N33: SPEED
B34: =Main!E82 -> 4.398826979 | C34: =Main!S82 -> 16.8671007 | D34: =Main!T82 -> 16.78559048 | E34: =Main!U82 -> 16.39000801 | F34: =Main!V82 -> 15.27765846 | G34: =Main!W82 -> 13.83600809 | H34: =Main!X82 -> 11.63542853 | I34: =Main!Y82 -> 10.43159136 | J34: =Main!Z82 -> 8.67359353 | K34: =Main!AA82 -> 7.265016855 | L34: =Main!AB82 -> 6.842877503 | M34: =Main!O82 -> 5.532503458 | N34: AWS
C35: =Main!AD82 -> 28.36752555 | D35: =Main!AE82 -> 34.28765285 | E35: =Main!AF82 -> 39.35055606 | F35: =Main!AG82 -> 49.34944111 | G35: =Main!AH82 -> 60.14663313 | H35: =Main!AI82 -> 75.72790081 | I35: =Main!AJ82 -> 85.02583124 | J35: =Main!AK82 -> 101.9609636 | K35: =Main!AL82 -> 124.3226378 | L35: =Main!AM82 -> 138.9339824 | N35: AWA
A36: 14 | B36: =Main!D83 -> 40.9 | C36: =Main!F83 -> 6.104624342 | D36: =Main!G83 -> 6.667901463 | E36: =Main!H83 -> 6.863679695 | F36: =Main!I83 -> 7.074081352 | G36: =Main!J83 -> 7.061592781 | H36: =Main!K83 -> 7.326007326 | I36: =Main!L83 -> 7.244918495 | J36: =Main!M83 -> 7.010710808 | K36: =Main!N83 -> 6.701414743 | L36: =Main!P83 -> 6.148590948 | M36: =Main!Q83 -> 180 | N36: SPEED
B37: =Main!E83 -> 4.614201487 | C37: =Main!S83 -> 19.03848944 | D37: =Main!T83 -> 18.85220601 | E37: =Main!U83 -> 18.41742693 | F37: =Main!V83 -> 17.24262226 | G37: =Main!W83 -> 15.68011775 | H37: =Main!X83 -> 13.39822396 | I37: =Main!Y83 -> 12.12682914 | J37: =Main!Z83 -> 10.31237479 | K37: =Main!AA83 -> 8.85484546 | L37: =Main!AB83 -> 7.851409052 | M37: =Main!O83 -> 6.148590948 | N37: AWS
C38: =Main!AD83 -> 28.78114469 | D38: =Main!AE83 -> 35.81651915 | E38: =Main!AF83 -> 41.17102538 | F38: =Main!AG83 -> 51.65369566 | G38: =Main!AH83 -> 63.23364639 | H38: =Main!AI83 -> 79.0817861 | I38: =Main!AJ83 -> 88.84275188 | J38: =Main!AK83 -> 106.2678397 | K38: =Main!AL83 -> 127.7651532 | L38: =Main!AM83 -> 180 | N38: AWA
A39: 16 | B39: =Main!D84 -> 40.2 | C39: =Main!F84 -> 6.179756436 | D39: =Main!G84 -> 6.752954418 | E39: =Main!H84 -> 6.984866123 | F39: =Main!I84 -> 7.281553398 | G39: =Main!J84 -> 7.302231237 | H39: =Main!K84 -> 7.643312102 | I39: =Main!L84 -> 7.610993658 | J39: =Main!M84 -> 7.349938751 | K39: =Main!N84 -> 7.001166861 | L39: =Main!P84 -> 6.594614398 | M39: =Main!Q84 -> 180 | N39: SPEED
B40: =Main!E84 -> 4.720073423 | C40: =Main!S84 -> 21.10051514 | D40: =Main!T84 -> 20.84810489 | E40: =Main!U84 -> 20.4094638 | F40: =Main!V84 -> 19.21791795 | G40: =Main!W84 -> 17.58756893 | H40: =Main!X84 -> 15.19101331 | I40: =Main!Y84 -> 13.86186589 | J40: =Main!Z84 -> 11.98797191 | K40: =Main!AA84 -> 10.53538371 | L40: =Main!AB84 -> 9.405385602 | M40: =Main!O84 -> 6.594614398 | N40: AWS
C41: =Main!AD84 -> 29.30342879 | D41: =Main!AE84 -> 37.21182259 | E41: =Main!AF84 -> 42.75935641 | F41: =Main!AG84 -> 53.53187974 | G41: =Main!AH84 -> 65.4685441 | H41: =Main!AI84 -> 81.78356899 | I41: =Main!AJ84 -> 91.60810589 | J41: =Main!AK84 -> 109.3079633 | K41: =Main!AL84 -> 130.5934358 | L41: =Main!AM84 -> 180 | N41: AWA
A42: 20 | B42: =Main!D85 -> 40.2 | C42: =Main!F85 -> 6.228756751 | D42: =Main!G85 -> 6.802721088 | E42: =Main!H85 -> 7.067137809 | F42: =Main!I85 -> 7.540846251 | G42: =Main!J85 -> 7.738607051 | H42: =Main!K85 -> 7.936507937 | I42: =Main!L85 -> 8.254987388 | J42: =Main!M85 -> 8.057296329 | K42: =Main!N85 -> 7.64493523 | L42: =Main!P85 -> 7.189934092 | M42: =Main!Q85 -> 180 | N42: SPEED
B43: =Main!E85 -> 4.75749967 | C43: =Main!S85 -> 25.08181408 | D43: =Main!T85 -> 24.77506703 | E43: =Main!U85 -> 24.31639762 | F43: =Main!V85 -> 23.12861749 | G43: =Main!W85 -> 21.4449537 | H43: =Main!X85 -> 18.82578909 | I43: =Main!Y85 -> 17.40818971 | J43: =Main!Z85 -> 15.395625 | K43: =Main!AA85 -> 13.91462216 | L43: =Main!AB85 -> 12.81006591 | M43: =Main!O85 -> 7.189934092 | N43: AWS
C44: =Main!AD85 -> 30.97618986 | D44: =Main!AE85 -> 39.50399984 | E44: =Main!AF85 -> 45.42215115 | F44: =Main!AG85 -> 56.6434051 | G44: =Main!AH85 -> 68.8470333 | H44: =Main!AI85 -> 86.6621462 | I44: =Main!AJ85 -> 95.75304276 | J44: =Main!AK85 -> 113.2804264 | K44: =Main!AL85 -> 134.0553453 | L44: =Main!AM85 -> 180 | N44: AWA
A45: Snelheden in knopen | D45: UA=Up Angle, VMG=resulterende snelheid recht tegen de wind (bijUA), V@UA=snelheid bij optimale opkruishoek
A46: Hoeken in graden | D46: DA=Down Angle, VMG=resulterende snelheid recht voor de wind (bijDA), V@DA=snelheid bij afkruis opkruishoek

Sheet Detail 2
A2: N° de Voile | C2: =Main!$D$4 -> ITA-10972 | G2: GPH: | H2: =Main!$N$4 -> 721.6
A3: Nom | C3: =Main!$E$4 -> PIERROT | G3: TMF: | H3: =Main!$O$4 -> 0.8664
A4: Type: | C4: =Main!$F$4 -> FIRST 32 | G4: DSPL: | H4: =Main!L4 -> 4221
A5: GV: | B5: =OFFSET(ORC!$A$6,(Main!$C4-6),164) -> 19.4 | C5: GENOA: | D5: =OFFSET(ORC!$A$6,(Main!$C4-6),165) -> 30.7 | F5: SPI: | G5: =OFFSET(ORC!$A$6,(Main!$C4-6),166) -> 49.9 | H5: ASYM: | I5: =OFFSET(ORC!$A$6,(Main!$C4-6),167) -> 0
A11: VENT REEL | B11: ANGLE OPTIMAL | F11: VITESSE | O11: ANGLE OPTIMAL
B12: UA | C12: VMG | D12: V@UA | E12: 52 | F12: 60 | G12: 75 | H12: 90 | I12: 110 | J12: 120 | K12: 135 | L12: 150 | M12: V@DA | N12: VMG | O12: DA
A13: 6 | B13: =Main!D114 -> 44.3 | C13: =Main!E114 -> 2.871958516 | D13: =Main!F114 -> 4.012837327 | E13: =Main!G114 -> 4.447189623 | F13: =Main!H114 -> 4.74558397 | G13: =Main!I114 -> 5.013927577 | H13: =Main!J114 -> 4.978564514 | I13: =Main!K114 -> 4.692999609 | J13: =Main!L114 -> 4.547176961 | K13: =Main!M114 -> 4.121822762 | L13: =Main!N114 -> 3.545750025 | M13: =Main!P114 -> 3.616874868 | N13: =Main!O114 -> 3.07062436 | O13: =Main!Q114 -> 148.1
A14: 8 | B14: =Main!D115 -> 42.6 | C14: =Main!E115 -> 3.476917133 | D14: =Main!F115 -> 4.723449113 | E14: =Main!G115 -> 5.303476724 | F14: =Main!H115 -> 5.635566688 | G14: =Main!I115 -> 5.948446794 | H14: =Main!J115 -> 5.901639344 | I14: =Main!K115 -> 5.723370429 | J14: =Main!L115 -> 5.558128763 | K14: =Main!M115 -> 5.102040816 | L14: =Main!N115 -> 4.518639387 | M14: =Main!P115 -> 4.450518332 | N14: =Main!O115 -> 3.918580603 | O14: =Main!Q115 -> 151.7
A15: 10 | B15: =Main!D116 -> 42.6 | C15: =Main!E116 -> 3.926273312 | D15: =Main!F116 -> 5.333906873 | E15: =Main!G116 -> 5.992010652 | F15: =Main!H116 -> 6.271777003 | G15: =Main!I116 -> 6.478315638 | H15: =Main!J116 -> 6.448146158 | I15: =Main!K116 -> 6.440071556 | J15: =Main!L116 -> 6.340260655 | K15: =Main!M116 -> 5.962239152 | L15: =Main!N116 -> 5.333333333 | M15: =Main!P116 -> 5.12074321 | N15: =Main!O116 -> 4.640969447 | O15: =Main!Q116 -> 155
A16: 12 | B16: =Main!D117 -> 42.5 | C16: =Main!E117 -> 4.320691311 | D16: =Main!F117 -> 5.860333819 | E16: =Main!G117 -> 6.390910705 | F16: =Main!H117 -> 6.592199231 | G16: =Main!I117 -> 6.763103513 | H16: =Main!J117 -> 6.768189509 | I16: =Main!K117 -> 6.807866868 | J16: =Main!L117 -> 6.740310803 | K16: =Main!M117 -> 6.506416049 | L16: =Main!N117 -> 6.073899106 | M16: =Main!P117 -> 5.773394388 | N16: =Main!O117 -> 5.314437555 | O16: =Main!Q117 -> 157
A17: 14 | B17: =Main!D118 -> 40.8 | C17: =Main!E118 -> 4.561581348 | D17: =Main!F118 -> 6.025906397 | E17: =Main!G118 -> 6.60187053 | F17: =Main!H118 -> 6.791171477 | G17: =Main!I118 -> 6.982156711 | H17: =Main!J118 -> 7.018912069 | I17: =Main!K118 -> 7.113218731 | J17: =Main!L118 -> 7.040876198 | K17: =Main!M118 -> 6.833712984 | L17: =Main!N118 -> 6.5347613 | M17: =Main!P118 -> 5.959278265 | N17: =Main!O118 -> 5.959278265 | O17: =Main!Q118 -> 180
A18: 16 | B18: =Main!D119 -> 40.2 | C18: =Main!E119 -> 4.671078241 | D18: =Main!F119 -> 6.115609489 | E18: =Main!G119 -> 6.697674419 | F18: =Main!H119 -> 6.916426513 | G18: =Main!I119 -> 7.172743574 | H18: =Main!J119 -> 7.174172977 | I18: =Main!K119 -> 7.431874484 | J18: =Main!L119 -> 7.342443402 | K18: =Main!M119 -> 7.123070835 | L18: =Main!N119 -> 6.835010442 | M18: =Main!P119 -> 6.438919692 | N18: =Main!O119 -> 6.438919692 | O18: =Main!Q119 -> 180
A19: 20 | B19: =Main!D120 -> 40 | C19: =Main!E120 -> 4.716981132 | D19: =Main!F120 -> 6.157581553 | E19: =Main!G120 -> 6.751687922 | F19: =Main!H120 -> 6.99436565 | G19: =Main!I120 -> 7.425742574 | H19: =Main!J120 -> 7.588532884 | I19: =Main!K120 -> 7.913827215 | J19: =Main!L120 -> 8.007117438 | K19: =Main!M120 -> 7.756948933 | L19: =Main!N120 -> 7.390679532 | M19: =Main!P120 -> 7.016176184 | N19: =Main!O120 -> 7.016176184 | O19: =Main!Q120 -> 180
A20: Snelheden in knopen | D20: UA=Up Angle, VMG=resulterende snelheid recht tegen de wind (bijUA), V@UA=snelheid bij optimale opkruishoek
A21: Hoeken in graden | D21: DA=Down Angle, VMG=resulterende snelheid recht voor de wind (bijDA), V@DA=snelheid bij afkruis opkruishoek
A22: Vent réel | B22: ANGLE OPTIMAL | D22: vitesse du bateau en vent réel / vitesse du vent apparent et l'angle | M22: Optimale afkruis hoek / VMG
B23: UA/VMG | C23: V@UA | D23: 52 | E23: 60 | F23: 75 | G23: 90 | H23: 110 | I23: 120 | J23: 135 | K23: 150 | L23: V@DA | M23: DA/VMG | N23: TWA
A24: 6 | B24: =Main!D114 -> 44.3 | C24: =Main!F114 -> 4.012837327 | D24: =Main!G114 -> 4.447189623 | E24: =Main!H114 -> 4.74558397 | F24: =Main!I114 -> 5.013927577 | G24: =Main!J114 -> 4.978564514 | H24: =Main!K114 -> 4.692999609 | I24: =Main!L114 -> 4.547176961 | J24: =Main!M114 -> 4.121822762 | K24: =Main!N114 -> 3.545750025 | L24: =Main!P114 -> 3.616874868 | M24: =Main!Q114 -> 148.1 | N24: SPEED
B25: =Main!E114 -> 2.871958516 | C25: =Main!S114 -> 9.304104772 | D25: =Main!T114 -> 9.414513022 | E25: =Main!U114 -> 9.327061222 | F25: =Main!V114 -> 8.758531219 | G25: =Main!W114 -> 7.796544402 | H25: =Main!X114 -> 6.225997152 | I25: =Main!Y114 -> 5.421600921 | J25: =Main!Z79114 -> 0 | K25: =Main!AA114 -> 3.424007604 | L25: =Main!AB114 -> 3.497755206 | M25: =Main!O114 -> 3.07062436 | N25: AWS
C26: =Main!AD114 -> 26.76881881 | D26: =Main!AE114 -> 30.14633408 | E26: =Main!AF114 -> 33.85582455 | F26: =Main!AG114 -> 41.42995775 | G26: =Main!AH114 -> 50.31544426 | H26: =Main!AI114 -> 64.90188661 | I26: =Main!AJ114 -> 73.41887131 | J26: =Main!AK114 -> 91.63117441 | K26: =Main!AL114 -> 118.8166938 | L26: =Main!AM114 -> 114.9772293 | N26: AWA
A27: 8 | B27: =Main!D115 -> 42.6 | C27: =Main!F115 -> 4.723449113 | D27: =Main!G115 -> 5.303476724 | E27: =Main!H115 -> 5.635566688 | F27: =Main!I115 -> 5.948446794 | G27: =Main!J115 -> 5.901639344 | H27: =Main!K115 -> 5.723370429 | I27: =Main!L115 -> 5.558128763 | J27: =Main!M115 -> 5.102040816 | K27: =Main!N115 -> 4.518639387 | L27: =Main!O115 -> 3.918580603 | M27: =Main!Q115 -> 151.7 | N27: SPEED
B28: =Main!E115 -> 3.476917133 | C28: =Main!S115 -> 11.91392654 | D28: =Main!T115 -> 12.01537374 | E28: =Main!U115 -> 11.86777761 | F28: =Main!V115 -> 11.13629922 | G28: =Main!W115 -> 9.941295034 | H28: =Main!X115 -> 8.089304141 | I28: =Main!Y115 -> 7.101250963 | J28: =Main!Z115 -> 5.683996652 | K28: =Main!AA115 -> 4.669689274 | L28: =Main!AB115 -> 4.594542826 | M28: =Main!O115 -> 3.918580603 | N28: AWS
C29: =Main!AD115 -> 27.03345982 | D29: =Main!AE115 -> 31.64591781 | E29: =Main!AF115 -> 35.71703967 | F29: =Main!AG115 -> 43.93911582 | G29: =Main!AH115 -> 53.58362148 | H29: =Main!AI115 -> 68.32884834 | I29: =Main!AJ115 -> 77.32526017 | J29: =Main!AK115 -> 95.60154519 | K29: =Main!AL115 -> 121.0643797 | L29: =Main!AM115 -> 124.3627595 | N29: AWA
A30: 10 | B30: =Main!D116 -> 42.6 | C30: =Main!F116 -> 5.333906873 | D30: =Main!G116 -> 5.992010652 | E30: =Main!H116 -> 6.271777003 | F30: =Main!I116 -> 6.478315638 | G30: =Main!J116 -> 6.448146158 | H30: =Main!K116 -> 6.440071556 | I30: =Main!L116 -> 6.340260655 | J30: =Main!M116 -> 5.962239152 | K30: =Main!N116 -> 5.333333333 | L30: =Main!O116 -> 4.640969447 | M30: =Main!Q116 -> 155 | N30: SPEED
B31: =Main!E116 -> 3.926273312 | C31: =Main!S116 -> 14.38666149 | D31: =Main!T116 -> 14.48051083 | E31: =Main!U116 -> 14.2145333 | F31: =Main!V116 -> 13.24774709 | G31: =Main!W116 -> 11.89868013 | H31: =Main!X116 -> 9.870250134 | I31: =Main!Y116 -> 8.763349738 | J31: =Main!Z116 -> 7.157478676 | K31: =Main!AA116 -> 6.005697409 | L31: =Main!AB116 -> 5.779500159 | M31: =Main!O116 -> 4.640969447 | N31: AWS
C32: =Main!AD116 -> 28.06601492 | D32: =Main!AE116 -> 32.96913198 | E32: =Main!AF116 -> 37.53554508 | F32: =Main!AG116 -> 46.8130561 | G32: =Main!AH116 -> 57.18548565 | H32: =Main!AI116 -> 72.1842636 | I32: =Main!AJ116 -> 81.20269755 | J32: =Main!AK116 -> 98.91209224 | K32: =Main!AL116 -> 123.6391643 | L32: =Main!AM116 -> 133.0098287 | N32: AWA
A33: 12 | B33: =Main!D117 -> 42.5 | C33: =Main!F117 -> 5.860333819 | D33: =Main!G117 -> 6.390910705 | E33: =Main!H117 -> 6.592199231 | F33: =Main!I117 -> 6.763103513 | G33: =Main!J117 -> 6.768189509 | H33: =Main!K117 -> 6.807866868 | I33: =Main!L117 -> 6.740310803 | J33: =Main!M117 -> 6.506416049 | K33: =Main!N117 -> 6.073899106 | L33: =Main!O117 -> 5.314437555 | M33: =Main!Q117 -> 157 | N33: SPEED
B34: =Main!E117 -> 4.320691311 | C34: =Main!S117 -> 16.79404966 | D34: =Main!T117 -> 16.71152417 | E34: =Main!U117 -> 16.32677192 | F34: =Main!V117 -> 15.22332582 | G34: =Main!W117 -> 13.77709655 | H34: =Main!X117 -> 11.59589534 | I34: =Main!Y117 -> 10.41864003 | J34: =Main!Z117 -> 8.712973544 | K34: =Main!AA117 -> 7.392471044 | L34: =Main!AB117 -> 7.05588984 | M34: =Main!O117 -> 5.314437555 | N34: AWS
C35: =Main!AD117 -> 28.86420905 | D35: =Main!AE117 -> 34.46097629 | E35: =Main!AF117 -> 39.53275672 | F35: =Main!AG117 -> 49.58817901 | G35: =Main!AH117 -> 60.57631525 | H35: =Main!AI117 -> 76.51718918 | I35: =Main!AJ117 -> 85.9253358 | J35: =Main!AK117 -> 103.1274028 | K35: =Main!AL117 -> 125.7438596 | L35: =Main!AM117 -> 138.3545576 | N35: AWA
A36: 14 | B36: =Main!D118 -> 40.8 | C36: =Main!F118 -> 6.025906397 | D36: =Main!G118 -> 6.60187053 | E36: =Main!H118 -> 6.791171477 | F36: =Main!I118 -> 6.982156711 | G36: =Main!J118 -> 7.018912069 | H36: =Main!K118 -> 7.113218731 | I36: =Main!L118 -> 7.040876198 | J36: =Main!M118 -> 6.833712984 | K36: =Main!N118 -> 6.5347613 | L36: =Main!O118 -> 5.959278265 | M36: =Main!Q118 -> 180 | N36: SPEED
B37: =Main!E118 -> 4.561581348 | C37: =Main!S118 -> 18.97461003 | D37: =Main!T118 -> 18.79870156 | E37: =Main!U118 -> 18.36290856 | F37: =Main!V118 -> 17.18574223 | G37: =Main!W118 -> 15.66094271 | H37: =Main!X118 -> 13.35955412 | I37: =Main!Y118 -> 12.12442456 | J37: =Main!Z118 -> 10.3633498 | K37: =Main!AA118 -> 8.957877262 | L37: =Main!AB118 -> 8.040721735 | M37: =Main!O118 -> 5.959278265 | N37: AWS
C38: =Main!AD118 -> 28.82343551 | D38: =Main!AE118 -> 35.93429074 | E38: =Main!AF118 -> 41.319961 | F38: =Main!AG118 -> 51.89405226 | G38: =Main!AH118 -> 63.37306333 | H38: =Main!AI118 -> 79.97790026 | I38: =Main!AJ118 -> 89.80683305 | J38: =Main!AK118 -> 107.2072692 | K38: =Main!AL118 -> 128.6078368 | L38: =Main!AM118 -> 180 | N38: AWA
A39: 16 | B39: =Main!D119 -> 40.2 | C39: =Main!F119 -> 6.115609489 | D39: =Main!G119 -> 6.697674419 | E39: =Main!H119 -> 6.916426513 | F39: =Main!I119 -> 7.172743574 | G39: =Main!J119 -> 7.174172977 | H39: =Main!K119 -> 7.431874484 | I39: =Main!L119 -> 7.342443402 | J39: =Main!M119 -> 7.123070835 | K39: =Main!N119 -> 6.835010442 | L39: =Main!O119 -> 6.438919692 | M39: =Main!Q119 -> 180 | N39: SPEED
B40: =Main!E119 -> 4.671078241 | C40: =Main!S119 -> 21.04459986 | D40: =Main!T119 -> 20.80410648 | E40: =Main!U119 -> 20.35926767 | F40: =Main!V119 -> 19.15344394 | G40: =Main!W119 -> 17.53478708 | H40: =Main!X119 -> 15.16224039 | I40: =Main!Y119 -> 13.87199988 | J40: =Main!Z119 -> 12.06488475 | K40: =Main!AA119 -> 10.64424737 | L40: =Main!AB119 -> 9.561080308 | M40: =Main!O119 -> 6.438919692 | N40: AWS
C41: =Main!AD119 -> 29.38890649 | D41: =Main!AE119 -> 37.30389454 | E41: =Main!AF119 -> 42.89012017 | F41: =Main!AG119 -> 53.79363945 | G41: =Main!AH119 -> 65.84921273 | H41: =Main!AI119 -> 82.574383 | I41: =Main!AJ119 -> 92.71693637 | J41: =Main!AK119 -> 110.324808 | K41: =Main!AL119 -> 131.2725997 | L41: =Main!AM119 -> 180 | N41: AWA
A42: 20 | B42: =Main!D120 -> 40 | C42: =Main!F120 -> 6.157581553 | D42: =Main!G120 -> 6.751687922 | E42: =Main!H120 -> 6.99436565 | F42: =Main!I120 -> 7.425742574 | G42: =Main!J120 -> 7.588532884 | H42: =Main!K120 -> 7.913827215 | I42: =Main!L120 -> 8.007117438 | J42: =Main!M120 -> 7.756948933 | K42: =Main!N120 -> 7.390679532 | L42: =Main!O120 -> 7.016176184 | M42: =Main!Q120 -> 180 | N42: SPEED
B43: =Main!E120 -> 4.716981132 | C43: =Main!S120 -> 25.03188079 | D43: =Main!T120 -> 24.73571215 | E43: =Main!U120 -> 24.26537582 | F43: =Main!V120 -> 23.06552832 | G43: =Main!W120 -> 21.39125595 | H43: =Main!X120 -> 18.82448216 | I43: =Main!Y120 -> 17.43478078 | J43: =Main!Z120 -> 15.51678475 | K43: =Main!AA120 -> 14.09260426 | L43: =Main!AB120 -> 12.98382382 | M43: =Main!O120 -> 7.016176184 | N43: AWS
C44: =Main!AD120 -> 30.9022642 | D44: =Main!AE120 -> 39.57919643 | E44: =Main!AF120 -> 45.54454584 | F44: =Main!AG120 -> 56.8822268 | G44: =Main!AH120 -> 69.22192021 | H44: =Main!AI120 -> 86.73106206 | I44: =Main!AJ120 -> 96.56353997 | J44: =Main!AK120 -> 114.2992179 | K44: =Main!AL120 -> 134.7982666 | L44: =Main!AM120 -> 180 | N44: AWA
A45: Snelheden in knopen | D45: UA=Up Angle, VMG=resulterende snelheid recht tegen de wind (bijUA), V@UA=snelheid bij optimale opkruishoek
A46: Hoeken in graden | D46: DA=Down Angle, VMG=resulterende snelheid recht voor de wind (bijDA), V@DA=snelheid bij afkruis opkruishoek

Sheet ORC
C1: SAILNUMB | D1: NAME | E1: TYPE | F1: BUILDER | G1: DESIGNER | H1: YEAR | I1: CLUB | J1: OWNER | K1: C_Type | L1: D | M1: CREW | N1: DD-MM-yyYY | O1: HH:MM:SS | P1: LOA | Q1: IMSL | R1: DRAFT | S1: BMAX | T1: DSPL | U1: INDEX | V1: DA | W1: GPH | X1: TMF | Y1: ILCGA | Z1: PLT-O | AA1: PLD-O | AB1: WL6 | AC1: WL8 | AD1: WL10 | AE1: WL12 | AF1: WL14 | AG1: WL16 | AH1: WL20 | AI1: OL6 | AJ1: OL8 | AK1: OL10 | AL1: OL12 | AM1: OL14 | AN1: OL16 | AO1: OL20 | AP1: CR6 | AQ1: CR8 | AR1: CR10 | AS1: CR12 | AT1: CR14 | AU1: CR16 | AV1: CR20 | AW1: NSP6 | AX1: NSP8 | AY1: NSP10 | AZ1: NSP12 | BA1: NSP14 | BB1: NSP16 | BC1: NSP20 | BD1: OC6 | BE1: OC8 | BF1: OC10 | BG1: OC12 | BH1: OC14 | BI1: OC16 | BJ1: OC20 | BK1: UA6 | BL1: UA8 | BM1: UA10 | BN1: UA12 | BO1: UA14 | BP1: UA16 | BQ1: UA20 | BR1: DA6 | BS1: DA8 | BT1: DA10 | BU1: DA12 | BV1: DA14 | BW1: DA16 | BX1: DA20 | BY1: UP6 | BZ1: UP8 | CA1: UP10 | CB1: UP12 | CC1: UP14 | CD1: UP16 | CE1: UP20 | CF1: R526 | CG1: R528 | CH1: R5210 | CI1: R5212 | CJ1: R5214 | CK1: R5216 | CL1: R5220 | CM1: R606 | CN1: R608 | CO1: R6010 | CP1: R6012 | CQ1: R6014 | CR1: R6016 | CS1: R6020 | CT1: R756 | CU1: R758 | CV1: R7510 | CW1: R7512 | CX1: R7514 | CY1: R7516 | CZ1: R7520 | DA1: R906 | DB1: R908 | DC1: R9010 | DD1: R9012 | DE1: R9014 | DF1: R9016 | DG1: R9020 | DH1: R1106 | DI1: R1108 | DJ1: R11010 | DK1: R11012 | DL1: R11014 | DM1: R11016 | DN1: R11020 | DO1: R1206 | DP1: R1208 | DQ1: R12010 | DR1: R12012 | DS1: R12014 | DT1: R12016 | DU1: R12020 | DV1: R1356 | DW1: R1358 | DX1: R13510 | DY1: R13512 | DZ1: R13514 | EA1: R13516 | EB1: R13520 | EC1: R1506 | ED1: R1508 | EE1: R15010 | EF1: R15012 | EG1: R15014 | EH1: R15016 | EI1: R15020 | EJ1: D6 | EK1: D8 | EL1: D10 | EM1: D12 | EN1: D14 | EO1: D16 | EP1: D20 | EQ1: OTNLOW | ER1: OTNMED | ES1: OTNHIG | ET1: ITNLOW | EU1: ITNMED | EV1: ITNHIG | EW1: DH_TOD | EX1: DH_TOT | EY1: PLT-I | EZ1: PLD-I | FA1: TMF-OF | FB1: PLT2H | FC1: PLD2H | FD1: OSN | FE1: ReferenceNo | FF1: CDL | FG1: DSPS | FH1: WSS | FI1: MAIN | FJ1: GENOA | FK1: SYM | FL1: ASYM
E2: FIRST 32
A6: NATCERTN. | B6: FILE_ID | C6: SAILNUMB | D6: NAME | E6: TYPE | F6: BUILDER | G6: DESIGNER | H6: YEAR | I6: CLUB | J6: OWNER | K6: C_Type | L6: D | M6: CREW | N6: DD-MM-yyYY | O6: HH:MM:SS | P6: LOA | Q6: IMSL | R6: DRAFT | S6: BMAX | T6: DSPL | U6: INDEX | V6: DA | W6: GPH | X6: TMF | Y6: ILCGA | Z6: PLT-O | AA6: PLD-O | AB6: WL6 | AC6: WL8 | AD6: WL10 | AE6: WL12 | AF6: WL14 | AG6: WL16 | AH6: WL20 | AI6: OL6 | AJ6: OL8 | AK6: OL10 | AL6: OL12 | AM6: OL14 | AN6: OL16 | AO6: OL20 | AP6: CR6 | AQ6: CR8 | AR6: CR10 | AS6: CR12 | AT6: CR14 | AU6: CR16 | AV6: CR20 | AW6: NSP6 | AX6: NSP8 | AY6: NSP10 | AZ6: NSP12 | BA6: NSP14 | BB6: NSP16 | BC6: NSP20 | BD6: OC6 | BE6: OC8 | BF6: OC10 | BG6: OC12 | BH6: OC14 | BI6: OC16 | BJ6: OC20 | BK6: UA6 | BL6: UA8 | BM6: UA10 | BN6: UA12 | BO6: UA14 | BP6: UA16 | BQ6: UA20 | BR6: DA6 | BS6: DA8 | BT6: DA10 | BU6: DA12 | BV6: DA14 | BW6: DA16 | BX6: DA20 | BY6: UP6 | BZ6: UP8 | CA6: UP10 | CB6: UP12 | CC6: UP14 | CD6: UP16 | CE6: UP20 | CF6: R526 | CG6: R528 | CH6: R5210 | CI6: R5212 | CJ6: R5214 | CK6: R5216 | CL6: R5220 | CM6: R606 | CN6: R608 | CO6: R6010 | CP6: R6012 | CQ6: R6014 | CR6: R6016 | CS6: R6020 | CT6: R756 | CU6: R758 | CV6: R7510 | CW6: R7512 | CX6: R7514 | CY6: R7516 | CZ6: R7520 | DA6: R906 | DB6: R908 | DC6: R9010 | DD6: R9012 | DE6: R9014 | DF6: R9016 | DG6: R9020 | DH6: R1106 | DI6: R1108 | DJ6: R11010 | DK6: R11012 | DL6: R11014 | DM6: R11016 | DN6: R11020 | DO6: R1206 | DP6: R1208 | DQ6: R12010 | DR6: R12012 | DS6: R12014 | DT6: R12016 | DU6: R12020 | DV6: R1356 | DW6: R1358 | DX6: R13510 | DY6: R13512 | DZ6: R13514 | EA6: R13516 | EB6: R13520 | EC6: R1506 | ED6: R1508 | EE6: R15010 | EF6: R15012 | EG6: R15014 | EH6: R15016 | EI6: R15020 | EJ6: D6 | EK6: D8 | EL6: D10 | EM6: D12 | EN6: D14 | EO6: D16 | EP6: D20 | EQ6: OTNLOW | ER6: OTNMED | ES6: OTNHIG | ET6: ITNLOW | EU6: ITNMED | EV6: ITNHIG | EW6: DH_TOD | EX6: DH_TOT | EY6: PLT-I | EZ6: PLD-I | FA6: TMF-OF | FB6: PLT2H | FC6: PLD2H | FD6: OSN | FE6: ReferenceNo | FF6: CDL | FG6: DSPS | FH6: WSS | FI6: MAIN | FJ6: GENOA | FK6: SYM | FL6: ASYM
A7: FRA16125a | B7: F15747 | C7: FRA-15747 | D7: PIL POIL | E7: 747 | F7: EMBARCACIONES PCG | G7: ECHENIQUE Inigo | H7: 1999 | I7: 56740 LOCMARIAQUER | J7: LEFRANC Pierre | K7: CLUB | L7: S | M7: 380 | N7: 15/4/2016 | O7: 08:49:28 | P7: 7.49 | Q7: 6.902 | R7: 1.77 | S7: 2.44 | T7: 1240 | U7: 97.3 | V7: 0 | W7: 658 | X7: 0.9273 | Y7: 727.9 | Z7: 0.661 | AA7: 51.3 | AB7: 1037.7 | AC7: 847.5 | AD7: 751.8 | AE7: 714.7 | AF7: 679.1 | AG7: 657.5 | AH7: 592.1 | AI7: 995.6 | AJ7: 819.8 | AK7: 735.2 | AL7: 692.6 | AM7: 662.6 | AN7: 637.7 | AO7: 582.2 | AP7: 888.2 | AQ7: 726.1 | AR7: 640.4 | AS7: 589.9 | AT7: 556 | AU7: 529.7 | AV7: 484.2 | AW7: 955.1 | AX7: 772.5 | AY7: 674.4 | AZ7: 616.8 | BA7: 579.9 | BB7: 554 | BC7: 516.6 | BD7: 1086.1 | BE7: 848.9 | BF7: 716.1 | BG7: 633.4 | BH7: 576.1 | BI7: 531.3 | BJ7: 458.5 | BK7: 42.7 | BL7: 41.7 | BM7: 38.7 | BN7: 37.3 | BO7: 36.6 | BP7: 36.4 | BQ7: 36.9 | BR7: 144.7 | BS7: 148 | BT7: 150.8 | BU7: 174 | BV7: 177.4 | BW7: 177.6 | BX7: 137 | BY7: 1084.5 | BZ7: 901.1 | CA7: 810.1 | CB7: 781.3 | CC7: 767.6 | CD7: 759.1 | CE7: 759 | CF7: 710.8 | CG7: 609.5 | CH7: 574.6 | CI7: 562.5 | CJ7: 555.6 | CK7: 551.6 | CL7: 541.1 | CM7: 669.7 | CN7: 591.1 | CO7: 558.8 | CP7: 542.6 | CQ7: 533.5 | CR7: 527.9 | CS7: 513.1 | CT7: 638.7 | CU7: 577.1 | CV7: 542 | CW7: 510.3 | CX7: 494.7 | CY7: 486 | CZ7: 474 | DA7: 634.2 | DB7: 566.3 | DC7: 538 | DD7: 505.5 | DE7: 470.6 | DF7: 448.6 | DG7: 435 | DH7: 634.5 | DI7: 564.3 | DJ7: 513.5 | DK7: 476.9 | DL7: 452.5 | DM7: 430.8 | DN7: 391.1 | DO7: 653 | DP7: 574 | DQ7: 526.2 | DR7: 474.7 | DS7: 431 | DT7: 407.6 | DU7: 358.3 | DV7: 727.4 | DW7: 605.3 | DX7: 556.7 | DY7: 511.2 | DZ7: 464 | EA7: 416.3 | EB7: 308.1 | EC7: 858.1 | ED7: 687.6 | EE7: 601 | EF7: 562.7 | EG7: 529.4 | EH7: 489.1 | EI7: 368.3 | EJ7: 990.8 | EK7: 793.9 | EL7: 693.4 | EM7: 648.1 | EN7: 590.7 | EO7: 555.9 | EP7: 425.2 | EQ7: 0.9183 | ER7: 1.1422 | ES7: 1.2997 | ET7: 0.7161 | EU7: 0.9256 | EV7: 1.0574 | EW7: 0 | EX7: 0 | EY7: 1.05 | EZ7: 396.4 | FA7: 0.933 | FB7: 0 | FC7: 0 | FD7: 643.1 | FE7: FRA00004056 | FF7: 7.104 | FG7: 1732 | FH7: 12.6 | FI7: 23 | FJ7: 15.5 | FK7: 0 | FL7: 53.6 | FM7: 7
A8: FRA16142a | B8: F15710 | C8: FRA-15710 | D8: ILLICO | E8: 747 | F8: EMBARCACIONES PCG | G8: ECHENIQUE Inigo | H8: 1998 | I8: 69630 - CHAPONOST | J8: LEONE Salvatore Christian | K8: CLUB | L8: S | M8: 364 | N8: 19/4/2016 | O8: 11:21:56 | P8: 7.47 | Q8: 6.751 | R8: 1.749 | S8: 2.44 | T8: 1070 | U8: 96.9 | V8: 0 | W8: 648.6 | X8: 0.9368 | Y8: 720.5 | Z8: 0.66 | AA8: 43.9 | AB8: 1025.7 | AC8: 834.6 | AD8: 746.4 | AE8: 711.3 | AF8: 677.7 | AG8: 649.5 | AH8: 584.1 | AI8: 982.3 | AJ8: 808.3 | AK8: 728.5 | AL8: 688 | AM8: 657.5 | AN8: 630.2 | AO8: 579.9 | AP8: 876.3 | AQ8: 716.2 | AR8: 631.4 | AS8: 580.9 | AT8: 546.7 | AU8: 519.7 | AV8: 474.2 | AW8: 942.1 | AX8: 762.2 | AY8: 665.5 | AZ8: 608.2 | BA8: 571.3 | BB8: 545 | BC8: 506.9 | BD8: 1074.3 | BE8: 839 | BF8: 707.1 | BG8: 624.5 | BH8: 566.6 | BI8: 520.9 | BJ8: 447.1 | BK8: 43 | BL8: 41.6 | BM8: 38.6 | BN8: 37.4 | BO8: 36.9 | BP8: 36.7 | BQ8: 37.8 | BR8: 144.1 | BS8: 147.8 | BT8: 151 | BU8: 151 | BV8: 177.3 | BW8: 143.7 | BX8: 137.6 | BY8: 1066.7 | BZ8: 883 | CA8: 805.4 | CB8: 780.9 | CC8: 769.2 | CD8: 760.4 | CE8: 764.5 | CF8: 696.6 | CG8: 600.2 | CH8: 570.4 | CI8: 558.8 | CJ8: 551.9 | CK8: 545.3 | CL8: 536.9 | CM8: 655.3 | CN8: 583.1 | CO8: 550.8 | CP8: 536 | CQ8: 527 | CR8: 521.7 | CS8: 505.9 | CT8: 625.7 | CU8: 568.7 | CV8: 527.8 | CW8: 497.9 | CX8: 484.5 | CY8: 476.4 | CZ8: 458.9 | DA8: 625.1 | DB8: 559.2 | DC8: 527.1 | DD8: 487.6 | DE8: 450.5 | DF8: 434.5 | DG8: 422.4 | DH8: 626 | DI8: 556.6 | DJ8: 500 | DK8: 467.7 | DL8: 439.8 | DM8: 418.6 | DN8: 371 | DO8: 644.1 | DP8: 567.6 | DQ8: 513.9 | DR8: 457.2 | DS8: 420.2 | DT8: 396 | DU8: 342.5 | DV8: 720.1 | DW8: 599.5 | DX8: 549.1 | DY8: 499 | DZ8: 447.4 | EA8: 396.5 | EB8: 294.9 | EC8: 852.7 | ED8: 680.9 | EE8: 595.7 | EF8: 557.1 | EG8: 518.3 | EH8: 466.5 | EI8: 349.6 | EJ8: 984.6 | EK8: 786.2 | EL8: 687.3 | EM8: 641.8 | EN8: 586.1 | EO8: 538.7 | EP8: 403.7 | EQ8: 0.9313 | ER8: 1.1577 | ES8: 1.3253 | ET8: 0.7257 | EU8: 0.9312 | EV8: 1.068 | EW8: 0 | EX8: 0 | EY8: 1.067 | EZ8: 398.8 | FA8: 0.9466 | FB8: 0 | FC8: 0 | FD8: 633.9 | FE8: FRA00004091 | FF8: 7.033 | FG8: 1544 | FH8: 11.9 | FI8: 22.4 | FJ8: 15.2 | FK8: 0 | FL8: 52.6 | FM8: 8
A9: knw26194 | B9: FRA15730 | C9: FRA 15730 | D9: Dynamix | E9: 747 | F9: P.CUESTA | G9: ECHENIQUE Inigo | H9: 1998 | I9: 109453 | J9: R.A. Brinkman | K9: CLUB | L9: S | M9: 350 | N9: 23/3/2016 | O9: 14:48:00 | P9: 7.49 | Q9: 6.708 | R9: 1.737 | S9: 2.44 | T9: 1032 | U9: 105.9 | V9: 0 | W9: 644.6 | X9: 0.946 | Y9: 713.5 | Z9: 0.649 | AA9: 32.2 | AB9: 1027.6 | AC9: 833.9 | AD9: 741.2 | AE9: 703.6 | AF9: 669.6 | AG9: 638.9 | AH9: 568.5 | AI9: 984.1 | AJ9: 806.9 | AK9: 722.7 | AL9: 679.3 | AM9: 647.5 | AN9: 618.8 | AO9: 564.2 | AP9: 875.4 | AQ9: 713.8 | AR9: 627.4 | AS9: 575.3 | AT9: 539.5 | AU9: 510.9 | AV9: 462.5 | AW9: 943.5 | AX9: 761.4 | AY9: 662.9 | AZ9: 604.1 | BA9: 565.7 | BB9: 538.2 | BC9: 497.7 | BD9: 1072.3 | BE9: 835.3 | BF9: 701.8 | BG9: 617.8 | BH9: 558.6 | BI9: 511.8 | BJ9: 436.3 | BK9: 42.9 | BL9: 41.3 | BM9: 38 | BN9: 36.4 | BO9: 35.6 | BP9: 35.5 | BQ9: 36.2 | BR9: 144 | BS9: 147.9 | BT9: 151 | BU9: 149.8 | BV9: 177.3 | BW9: 143.5 | BX9: 137.7 | BY9: 1071.5 | BZ9: 882.7 | CA9: 795.3 | CB9: 766.9 | CC9: 753.2 | CD9: 744 | CE9: 744.3 | CF9: 700.8 | CG9: 601.5 | CH9: 567.2 | CI9: 553.1 | CJ9: 544.6 | CK9: 537.1 | CL9: 526.4 | CM9: 659.8 | CN9: 584.5 | CO9: 548.4 | CP9: 529.5 | CQ9: 518.9 | CR9: 512.4 | CS9: 496.1 | CT9: 630.3 | CU9: 570.6 | CV9: 528 | CW9: 492.6 | CX9: 476.9 | CY9: 467.9 | CZ9: 450.6 | DA9: 624.8 | DB9: 558.3 | DC9: 526.3 | DD9: 487.7 | DE9: 446.7 | DF9: 427.1 | DG9: 412.4 | DH9: 625.2 | DI9: 555.5 | DJ9: 496.9 | DK9: 462.5 | DL9: 434.5 | DM9: 412 | DN9: 362 | DO9: 643 | DP9: 566.8 | DQ9: 511.2 | DR9: 453.5 | DS9: 414.4 | DT9: 389.7 | DU9: 333.7 | DV9: 719 | DW9: 599.2 | DX9: 547.4 | DY9: 496.1 | DZ9: 443.6 | EA9: 392.3 | EB9: 287 | EC9: 851.9 | ED9: 679.9 | EE9: 595.5 | EF9: 554.5 | EG9: 515.8 | EH9: 462.4 | EI9: 340.1 | EJ9: 983.7 | EK9: 785 | EL9: 687.2 | EM9: 640.3 | EN9: 586 | EO9: 533.9 | EP9: 392.7 | EQ9: 0.9304 | ER9: 1.1669 | ES9: 1.3494 | ET9: 0.7252 | EU9: 0.9395 | EV9: 1.0884 | EW9: 641.9 | EX9: 0.9347 | EY9: 1.018 | EZ9: 355.6 | FA9: 0.9548 | FB9: 0.68 | FC9: 64.9 | FD9: 628.4 | FE9: knw00004888 | FF9: 7.145 | FG9: 1487 | FH9: 12.1 | FI9: 22.3 | FJ9: 15 | FK9: 0 | FL9: 53.4 | FM9: 9
A10: ITA104912 | B10: I10491 | C10: ITA-10491 | D10: AMARCORD | E10: 1/2 TON | F10: PEZZINI | G10: BRIAND-PHELIPON | H10: 1985 | I10: C.N.IL MAESTRALE | J10: MACINA ANTONIO & NICOLA | K10: INTL | L10: R | M10: 480 | N10: 9/3/2016 | O10: 09:22:36 | P10: 8.911 | Q10: 6.967 | R10: 1.765 | S10: 3.24 | T10: 2108 | U10: 107 | V10: 0 | W10: 644.9 | X10: 0.9596 | Y10: 703.4 | Z10: 0.689 | AA10: 64.1 | AB10: 1024.7 | AC10: 837.1 | AD10: 736.2 | AE10: 684.2 | AF10: 651.5 | AG10: 629.9 | AH10: 600.6 | AI10: 982 | AJ10: 807.1 | AK10: 721.2 | AL10: 676.3 | AM10: 648.9 | AN10: 629.1 | AO10: 593 | AP10: 873.1 | AQ10: 712 | AR10: 626.9 | AS10: 577.7 | AT10: 546.7 | AU10: 525 | AV10: 493.5 | AW10: 925 | AX10: 748.7 | AY10: 654.5 | AZ10: 599.5 | BA10: 565 | BB10: 541.7 | BC10: 510.9 | BD10: 1068.9 | BE10: 833.4 | BF10: 701.7 | BG10: 621.1 | BH10: 567.6 | BI10: 528.6 | BJ10: 471 | BK10: 42.8 | BL10: 42.4 | BM10: 40.2 | BN10: 38.8 | BO10: 38.2 | BP10: 37.8 | BQ10: 38.3 | BR10: 145.8 | BS10: 149 | BT10: 154.7 | BU10: 170.8 | BV10: 180 | BW10: 180 | BX10: 180 | BY10: 1061.5 | BZ10: 883.7 | CA10: 799 | CB10: 766.3 | CC10: 750.4 | CD10: 741.8 | CE10: 739.9 | CF10: 693.5 | CG10: 590.6 | CH10: 554.9 | CI10: 539.4 | CJ10: 530.1 | CK10: 524.5 | CL10: 518.4 | CM10: 650.7 | CN10: 569.6 | CO10: 538.6 | CP10: 519.3 | CQ10: 508.4 | CR10: 502.2 | CS10: 497.6 | CT10: 618.4 | CU10: 553.9 | CV10: 521.9 | CW10: 496.9 | CX10: 480.9 | CY10: 472.4 | CZ10: 465 | DA10: 620.8 | DB10: 554.4 | DC10: 520.5 | DD10: 493.3 | DE10: 471.9 | DF10: 454.4 | DG10: 434.5 | DH10: 633.5 | DI10: 552.9 | DJ10: 510.3 | DK10: 478.4 | DL10: 461.7 | DM10: 446.6 | DN10: 417 | DO10: 654 | DP10: 562.5 | DQ10: 519.9 | DR10: 483.5 | DS10: 452.1 | DT10: 428.8 | DU10: 393.1 | DV10: 727.9 | DW10: 597.8 | DX10: 544.9 | DY10: 507.3 | DZ10: 475.5 | EA10: 445.4 | EB10: 357.7 | EC10: 855.5 | ED10: 684.6 | EE10: 588.8 | EF10: 542.1 | EG10: 507 | EH10: 477.1 | EI10: 411 | EJ10: 987.8 | EK10: 790.5 | EL10: 673.4 | EM10: 602 | EN10: 552.5 | EO10: 517.9 | EP10: 461.2 | EQ10: 0.9332 | ER10: 1.1702 | ES10: 1.3097 | ET10: 0.7251 | EU10: 0.956 | EV10: 1.0813 | EW10: 643.4 | EX10: 0.9326 | EY10: 0.978 | EZ10: 322.7 | FA10: 0.9536 | FB10: 0.71 | FC10: 89.3 | FD10: 629.2 | FE10: ITA00018374 | FF10: 7.28 | FG10: 2607 | FH10: 14.6 | FI10: 29.6 | FJ10: 22.6 | FK10: 61.9 | FL10: 0 | FM10: 10
A11: nor5719 | B11: 5719 | C11: NOR 3410 | D11: 1/2 literen | E11: 1/2 TON ONE OFF | F11: BENETEAU | G11: BERRET | H11: 1980 | J11: Ole Jakob lovsjo | K11: CLUB | L11: C | M11: 455 | N11: 1/7/2016 | O11: 13:13:10 | P11: 9.12 | Q11: 7.526 | R11: 1.684 | S11: 3.23 | T11: 2970 | U11: 103.6 | V11: 0.09 | W11: 697.9 | X11: 0.8876 | Y11: 760.5 | Z11: 0.612 | AA11: 47.9 | AB11: 1140 | AC11: 928.4 | AD11: 806.7 | AE11: 735.7 | AF11: 692.1 | AG11: 668.8 | AH11: 642.6 | AI11: 1086.8 | AJ11: 890 | AK11: 783.6 | AL11: 726.4 | AM11: 694.2 | AN11: 674.2 | AO11: 650.1 | AP11: 958.3 | AQ11: 775.1 | AR11: 677.3 | AS11: 620.7 | AT11: 586.1 | AU11: 563.8 | AV11: 536.5 | AW11: 989.2 | AX11: 796.9 | AY11: 693.6 | AZ11: 633.6 | BA11: 596.7 | BB11: 572.8 | BC11: 543.8 | BD11: 1178.8 | BE11: 911.8 | BF11: 761.6 | BG11: 670 | BH11: 610.4 | BI11: 568.6 | BJ11: 509.4 | BK11: 43.3 | BL11: 42.7 | BM11: 42.5 | BN11: 41.4 | BO11: 40.6 | BP11: 40.2 | BQ11: 40.6 | BR11: 148.2 | BS11: 152.7 | BT11: 154.3 | BU11: 165.1 | BV11: 180 | BW11: 180 | BX11: 180 | BY11: 1149.8 | BZ11: 964.7 | CA11: 862.3 | CB11: 818 | CC11: 797.2 | CD11: 786.9 | CE11: 784.1 | CF11: 751 | CG11: 632 | CH11: 579 | CI11: 560 | CJ11: 551.8 | CK11: 547.8 | CL11: 545 | CM11: 706.5 | CN11: 600.1 | CO11: 560.5 | CP11: 542.5 | CQ11: 533.5 | CR11: 528.4 | CS11: 525.3 | CT11: 669.2 | CU11: 578.5 | CV11: 545.9 | CW11: 525 | CX11: 508.8 | CY11: 498.8 | CZ11: 491.5 | DA11: 672.9 | DB11: 580.5 | DC11: 546.2 | DD11: 522.6 | DE11: 503.7 | DF11: 486.4 | DG11: 466.5 | DH11: 720.2 | DI11: 596.3 | DJ11: 549.1 | DK11: 519.8 | DL11: 492.4 | DM11: 469.6 | DN11: 449.5 | DO11: 748.4 | DP11: 614.1 | DQ11: 557.3 | DR11: 527.8 | DS11: 501.1 | DT11: 476.3 | DU11: 434.4 | DV11: 833.8 | DW11: 679.5 | DX11: 587.5 | DY11: 548 | DZ11: 520.8 | EA11: 494.9 | EB11: 449.7 | EC11: 978.8 | ED11: 774 | EE11: 653.7 | EF11: 580.2 | EG11: 545.6 | EH11: 519.9 | EI11: 473 | EJ11: 1130.2 | EK11: 892.1 | EL11: 751.2 | EM11: 653.3 | EN11: 587 | EO11: 550.7 | EP11: 501.2 | EQ11: 0.8467 | ER11: 1.0905 | ES11: 1.2202 | ET11: 0.6527 | EU11: 0.8829 | EV11: 1.0153 | EW11: 690.5 | EX11: 0.869 | EY11: 0.79 | EZ11: 234.5 | FA11: 0.8817 | FB11: 0.621 | FC11: 61.3 | FD11: 680.5 | FE11: nor00001738 | FF11: 7.095 | FG11: 3568 | FH11: 17.8 | FI11: 27 | FJ11: 24.8 | FK11: 45.8 | FL11: 0 | FM11: 11
A12: nor7303 | B12: 7303 | C12: NOR 9974 | D12: Sarpsborg EL Installasjo | E12: 1/2 TON ONE OFF | F12: Melander | H12: 1981 | J12: Havard Mathiesen Boe | K12: CLUB | L12: C | M12: 416 | N12: 17/6/2016 | O12: 20:47:36 | P12: 9.51 | Q12: 7.316 | R12: 1.686 | S12: 3.21 | T12: 2586 | U12: 109.8 | V12: 0 | W12: 674 | X12: 0.9184 | Y12: 735 | Z12: 0.641 | AA12: 52.7 | AB12: 1089.9 | AC12: 892.5 | AD12: 775.9 | AE12: 711.1 | AF12: 671.7 | AG12: 649.7 | AH12: 622.5 | AI12: 1039 | AJ12: 853.9 | AK12: 754.9 | AL12: 702.3 | AM12: 672 | AN12: 652.7 | AO12: 628.3 | AP12: 920.4 | AQ12: 747 | AR12: 654.6 | AS12: 601 | AT12: 567.9 | AU12: 546.3 | AV12: 519 | AW12: 953.2 | AX12: 770.4 | AY12: 672.3 | AZ12: 615 | BA12: 579.6 | BB12: 556.4 | BC12: 527.4 | BD12: 1131.7 | BE12: 878.1 | BF12: 735.4 | BG12: 648.1 | BH12: 591 | BI12: 550.4 | BJ12: 492 | BK12: 43.1 | BL12: 42.9 | BM12: 41.6 | BN12: 40.3 | BO12: 39.4 | BP12: 39 | BQ12: 39.7 | BR12: 147.7 | BS12: 152.1 | BT12: 153.5 | BU12: 168 | BV12: 180 | BW12: 180 | BX12: 180 | BY12: 1098.3 | BZ12: 924.6 | CA12: 827.5 | CB12: 788.6 | CC12: 770.6 | CD12: 761.4 | CE12: 760.8 | CF12: 719.4 | CG12: 609.2 | CH12: 565.3 | CI12: 549 | CJ12: 540.8 | CK12: 536.3 | CL12: 531.3 | CM12: 676.1 | CN12: 583 | CO12: 548.6 | CP12: 530.5 | CQ12: 521.4 | CR12: 515.9 | CS12: 511.6 | CT12: 640.7 | CU12: 565.1 | CV12: 533.5 | CW12: 509.5 | CX12: 493.7 | CY12: 486.1 | CZ12: 479.8 | DA12: 644.1 | DB12: 566.6 | DC12: 533.4 | DD12: 507.2 | DE12: 485.9 | DF12: 470.1 | DG12: 454.2 | DH12: 686.4 | DI12: 577.5 | DJ12: 535.2 | DK12: 501.9 | DL12: 474.3 | DM12: 453.3 | DN12: 431.5 | DO12: 714.5 | DP12: 592.4 | DQ12: 543.9 | DR12: 510.8 | DS12: 482.6 | DT12: 457.9 | DU12: 411.7 | DV12: 796.8 | DW12: 649.6 | DX12: 571.8 | DY12: 534.6 | DZ12: 503.5 | EA12: 477.1 | EB12: 429 | EC12: 936.7 | ED12: 745.4 | EE12: 630.7 | EF12: 566.4 | EG12: 532.4 | EH12: 503.1 | EI12: 455.6 | EJ12: 1081.6 | EK12: 860.5 | EL12: 724.4 | EM12: 633.6 | EN12: 572.8 | EO12: 537.9 | EP12: 484.1 | EQ12: 0.8822 | ER12: 1.1256 | ES12: 1.2592 | ET12: 0.681 | EU12: 0.9146 | EV12: 1.0465 | EW12: 665 | EX12: 0.9023 | EY12: 0.846 | EZ12: 255.7 | FA12: 0.9118 | FB12: 0.651 | FC12: 65.2 | FD12: 658.1 | FE12: nor00001643 | FF12: 7.244 | FG12: 3130 | FH12: 16.7 | FI12: 30.2 | FJ12: 24.1 | FK12: 48.5 | FL12: 0 | FM12: 12
A13: MNE003/16 | B13: GBR5687 | C13: GBR 5687 | D13: Grimalkin | E13: 1/2 Tonner | F13: Nicholson | G13: Holland | H13: 1978 | I13: MONTENEGRO | J13: Simon Sarsfield | K13: CLUB | L13: C | M13: 360 | N13: 25/4/2016 | O13: 08:56:22 | P13: 9.14 | Q13: 7.437 | R13: 1.649 | S13: 3.12 | T13: 2977 | U13: 108.5 | V13: 0.12 | W13: 731.6 | X13: 0.8572 | Y13: 787.4 | Z13: 0.569 | AA13: 36.9 | AB13: 1219.5 | AC13: 977.1 | AD13: 840.2 | AE13: 758.5 | AF13: 710.2 | AG13: 684.9 | AH13: 664.9 | AI13: 1150.5 | AJ13: 936 | AK13: 816.4 | AL13: 748.5 | AM13: 712.4 | AN13: 692.8 | AO13: 676 | AP13: 1012.1 | AQ13: 815.4 | AR13: 709.4 | AS13: 647.9 | AT13: 610.6 | AU13: 586.9 | AV13: 559.5 | AW13: 1012.1 | AX13: 815.4 | AY13: 709.4 | AZ13: 647.9 | BA13: 610.6 | BB13: 586.9 | BC13: 559.5 | BD13: 1252.5 | BE13: 961 | BF13: 797.4 | BG13: 698.4 | BH13: 635.2 | BI13: 592 | BJ13: 533.4 | BK13: 43.2 | BL13: 42.2 | BM13: 42.6 | BN13: 40.7 | BO13: 39.9 | BP13: 39.5 | BQ13: 40.5 | BR13: 167.8 | BS13: 169.1 | BT13: 170.6 | BU13: 171.1 | BV13: 173 | BW13: 175.5 | BX13: 176 | BY13: 1173.3 | BZ13: 987.3 | CA13: 878.3 | CB13: 821 | CC13: 799 | CD13: 789.8 | CE13: 797.3 | CF13: 767.3 | CG13: 648.7 | CH13: 592.7 | CI13: 569.8 | CJ13: 560.3 | CK13: 555.7 | CL13: 554.3 | CM13: 723.5 | CN13: 616 | CO13: 575.1 | CP13: 554.8 | CQ13: 543 | CR13: 537.2 | CS13: 533.8 | CT13: 687.5 | CU13: 595.5 | CV13: 561.9 | CW13: 540.5 | CX13: 522.8 | CY13: 509.7 | CZ13: 499.8 | DA13: 691.6 | DB13: 597.9 | DC13: 563.5 | DD13: 541.6 | DE13: 521.6 | DF13: 501.7 | DG13: 478.7 | DH13: 769.7 | DI13: 636.2 | DJ13: 579.9 | DK13: 552.5 | DL13: 529.8 | DM13: 507.3 | DN13: 467.3 | DO13: 812.5 | DP13: 675 | DQ13: 597.1 | DR13: 563.1 | DS13: 539.6 | DT13: 517.1 | DU13: 475.9 | DV13: 930.7 | DW13: 753.5 | DX13: 646.5 | DY13: 588.9 | DZ13: 559.9 | EA13: 537.8 | EB13: 495.5 | EC13: 1098.6 | ED13: 857 | EE13: 725 | EF13: 634.9 | EG13: 585.5 | EH13: 558.2 | EI13: 515.9 | EJ13: 1265.7 | EK13: 966.9 | EL13: 802 | EM13: 696.1 | EN13: 621.5 | EO13: 580 | EP13: 532.5 | EQ13: 0.7997 | ER13: 1.0444 | ES13: 1.1727 | ET13: 0.6146 | EU13: 0.8524 | EV13: 0.9872 | EW13: 0 | EX13: 0 | EY13: 0.703 | EZ13: 187.4 | FA13: 0.845 | FB13: 0 | FC13: 0 | FD13: 710.1 | FE13: MNE00062676 | FF13: 7.027 | FG13: 3572 | FH13: 17.6 | FI13: 24.4 | FJ13: 25.5 | FK13: 0 | FL13: 0 | FM13: 13
A14: knw15025 | B14: NED_3925 | C14: NED 3925 | D14: ITCH | E14: 1/4 Ton | F14: Broager G. | G14: A.MOHNNAUPT | H14: 1979 | I14: 223145 | J14: B.P.,Aarts | K14: CLUB | L14: R | M14: 307 | N14: 23/3/2016 | O14: 14:24:56 | P14: 8.084 | Q14: 6.232 | R14: 1.518 | S14: 2.85 | T14: 1435 | U14: 96.3 | V14: 0.04 | W14: 726.7 | X14: 0.8529 | Y14: 791.4 | Z14: 0.61 | AA14: 65.3 | AB14: 1164.3 | AC14: 950.4 | AD14: 830.7 | AE14: 765.1 | AF14: 727.8 | AG14: 708.1 | AH14: 679.3 | AI14: 1112 | AJ14: 912.7 | AK14: 811.2 | AL14: 759.4 | AM14: 730.4 | AN14: 712.8 | AO14: 685.5 | AP14: 988.3 | AQ14: 803.4 | AR14: 705.7 | AS14: 649.9 | AT14: 616.2 | AU14: 594.3 | AV14: 566.5 | AW14: 1018.1 | AX14: 824.6 | AY14: 721.9 | AZ14: 663 | BA14: 627 | BB14: 603.6 | BC14: 573.6 | BD14: 1212.3 | BE14: 942.6 | BF14: 792 | BG14: 700.6 | BH14: 641 | BI14: 598.5 | BJ14: 536.3 | BK14: 42.9 | BL14: 42.5 | BM14: 41 | BN14: 39.9 | BO14: 39.2 | BP14: 39.3 | BQ14: 40.1 | BR14: 149 | BS14: 153.1 | BT14: 155.6 | BU14: 180 | BV14: 180 | BW14: 180 | BX14: 180 | BY14: 1172.1 | BZ14: 983 | CA14: 889.5 | CB14: 856.2 | CC14: 841.5 | CD14: 837.6 | CE14: 839 | CF14: 768.9 | CG14: 652.8 | CH14: 612 | CI14: 598.9 | CJ14: 592.2 | CK14: 588.5 | CL14: 582.5 | CM14: 723.4 | CN14: 627.8 | CO14: 594.2 | CP14: 579.1 | CQ14: 571 | CR14: 566.5 | CS14: 559.9 | CT14: 687.4 | CU14: 610.1 | CV14: 576.9 | CW14: 552.7 | CX14: 539.7 | CY14: 532.9 | CZ14: 528.6 | DA14: 691.8 | DB14: 612.4 | DC14: 577.1 | DD14: 548.3 | DE14: 525.8 | DF14: 511.2 | DG14: 500.3 | DH14: 741.4 | DI14: 625.9 | DJ14: 580.8 | DK14: 543.8 | DL14: 512.7 | DM14: 491.1 | DN14: 469.3 | DO14: 772.2 | DP14: 641 | DQ14: 590 | DR14: 554.3 | DS14: 522.7 | DT14: 494.3 | DU14: 445.8 | DV14: 861.6 | DW14: 699.7 | DX14: 618.7 | DY14: 579.1 | DZ14: 544.6 | EA14: 515.1 | EB14: 459.1 | EC14: 1001.7 | ED14: 796.1 | EE14: 673 | EF14: 610.8 | EG14: 575 | EH14: 542.6 | EI14: 488.7 | EJ14: 1156.6 | EK14: 917.7 | EL14: 771.8 | EM14: 673.9 | EN14: 614.1 | EO14: 578.6 | EP14: 519.7 | EQ14: 0.8233 | ER14: 1.043 | ES14: 1.1556 | ET14: 0.6384 | EU14: 0.8511 | EV14: 0.9612 | EW14: 719.7 | EX14: 0.8337 | EY14: 0.841 | EZ14: 301.9 | FA14: 0.8455 | FB14: 0.621 | FC14: 80.7 | FD14: 709.7 | FE14: knw00004759 | FF14: 6.157 | FG14: 1867 | FH14: 12.5 | FI14: 19.6 | FJ14: 18.3 | FK14: 31.7 | FL14: 0 | FM14: 14
A15: knw5293 | B15: NEDI3161 | C15: NED 3161 | D15: FOOLPROOF | E15: 1/4 Ton | F15: Caparros | G15: J.Fauroux | H15: 1981 | I15: 118549 | J15: R.J.H.,Foolen | K15: CLUB | L15: C | M15: 375 | N15: 23/3/2016 | O15: 14:27:30 | P15: 7.865 | Q15: 6.39 | R15: 1.481 | S15: 3 | T15: 1413 | U15: 96.9 | V15: 0 | W15: 713.6 | X15: 0.8612 | Y15: 783.8 | Z15: 0.604 | AA15: 49.7 | AB15: 1149.3 | AC15: 942.5 | AD15: 825.1 | AE15: 757.1 | AF15: 721.5 | AG15: 700.9 | AH15: 679 | AI15: 1110.9 | AJ15: 914 | AK15: 811.2 | AL15: 754.7 | AM15: 723.2 | AN15: 703.8 | AO15: 678.2 | AP15: 972.5 | AQ15: 790.3 | AR15: 693.3 | AS15: 637 | AT15: 601.9 | AU15: 578.5 | AV15: 547.8 | AW15: 1036.7 | AX15: 836.6 | AY15: 729.2 | AZ15: 666.7 | BA15: 628.3 | BB15: 603.5 | BC15: 573.2 | BD15: 1191.4 | BE15: 927 | BF15: 777.9 | BG15: 685.8 | BH15: 624.2 | BI15: 579.2 | BJ15: 512.8 | BK15: 44.5 | BL15: 44 | BM15: 43.3 | BN15: 42.3 | BO15: 41.8 | BP15: 41.8 | BQ15: 43.3 | BR15: 147.4 | BS15: 150.6 | BT15: 153.8 | BU15: 171.8 | BV15: 180 | BW15: 180 | BX15: 180 | BY15: 1231.4 | BZ15: 1032.8 | CA15: 925.4 | CB15: 874.3 | CC15: 854.2 | CD15: 847.8 | CE15: 864.1 | CF15: 793.5 | CG15: 669.8 | CH15: 616.1 | CI15: 593.1 | CJ15: 581.7 | CK15: 576.1 | CL15: 576 | CM15: 741.4 | CN15: 635.2 | CO15: 594.4 | CP15: 572.3 | CQ15: 556.3 | CR15: 548.3 | CS15: 544 | CT15: 698 | CU15: 612.2 | CV15: 576.5 | CW15: 549.5 | CX15: 527.5 | CY15: 512.6 | CZ15: 501 | DA15: 697.1 | DB15: 603.3 | DC15: 560.4 | DD15: 539.3 | DE15: 520 | DF15: 499.8 | DG15: 469.2 | DH15: 685.4 | DI15: 596.2 | DJ15: 551.9 | DK15: 513.9 | DL15: 487.3 | DM15: 471.7 | DN15: 441.1 | DO15: 713.9 | DP15: 603.6 | DQ15: 559.4 | DR15: 520.6 | DS15: 486.4 | DT15: 453.3 | DU15: 409.5 | DV15: 793.2 | DW15: 646.1 | DX15: 582 | DY15: 543.1 | DZ15: 509 | EA15: 476.8 | EB15: 391.6 | EC15: 924.2 | ED15: 738 | EE15: 632.5 | EF15: 577.9 | EG15: 542.1 | EH15: 510.3 | EI15: 445.4 | EJ15: 1067.1 | EK15: 852.2 | EL15: 724.8 | EM15: 639.9 | EN15: 588.9 | EO15: 554 | EP15: 493.9 | EQ15: 0.8358 | ER15: 1.0615 | ES15: 1.189 | ET15: 0.6454 | EU15: 0.8584 | EV15: 0.9673 | EW15: 711.9 | EX15: 0.8428 | EY15: 0.845 | EZ15: 298.6 | FA15: 0.8616 | FB15: 0.625 | FC15: 76.3 | FD15: 696.4 | FE15: knw00004775 | FF15: 6.112 | FG15: 1858 | FH15: 12.3 | FI15: 19.5 | FJ15: 14.5 | FK15: 53.5 | FL15: 0 | FM15: 15
A16: nor5306 | B16: 5306 | C16: NOR 7946 | D16: Rassker | E16: 1/4 TON ONE OFF | F16: Hallberg Rassy | G16: Magnus Rassy | H16: 1983 | J16: Per Magne Tonnesen | K16: CLUB | L16: C | M16: 360 | N16: 2/9/2016 | O16: 20:37:40 | P16: 7.82 | Q16: 6.655 | R16: 1.77 | S16: 2.77 | T16: 1705 | U16: 109.4 | V16: 0 | W16: 689.8 | X16: 0.9106 | Y16: 741.3 | Z16: 0.656 | AA16: 72 | AB16: 1090.3 | AC16: 893.5 | AD16: 780.4 | AE16: 715.8 | AF16: 682 | AG16: 661.7 | AH16: 637.7 | AI16: 1046 | AJ16: 861.1 | AK16: 764.6 | AL16: 711.1 | AM16: 680.7 | AN16: 661.3 | AO16: 639.2 | AP16: 934.2 | AQ16: 761.8 | AR16: 670.6 | AS16: 617.8 | AT16: 585 | AU16: 563 | AV16: 534.6 | AW16: 998.1 | AX16: 806.6 | AY16: 703.8 | AZ16: 644 | BA16: 607 | BB16: 582.8 | BC16: 553.8 | BD16: 1137.6 | BE16: 887.5 | BF16: 747.8 | BG16: 662.6 | BH16: 607 | BI16: 567.3 | BJ16: 510.5 | BK16: 41.8 | BL16: 40.9 | BM16: 39.1 | BN16: 37.1 | BO16: 36 | BP16: 35.5 | BQ16: 36.9 | BR16: 147.1 | BS16: 150.5 | BT16: 155.6 | BU16: 175.3 | BV16: 180 | BW16: 180 | BX16: 180 | BY16: 1130 | BZ16: 944.7 | CA16: 842.3 | CB16: 792.7 | CC16: 773.3 | CD16: 764.4 | CE16: 774.6 | CF16: 749 | CG16: 638.5 | CH16: 596.6 | CI16: 576 | CJ16: 565.1 | CK16: 559.1 | CL16: 555.3 | CM16: 710.3 | CN16: 617.8 | CO16: 583.9 | CP16: 561.7 | CQ16: 546.3 | CR16: 538.5 | CS16: 532.8 | CT16: 680.4 | CU16: 604.6 | CV16: 573 | CW16: 547 | CX16: 524.5 | CY16: 509.6 | CZ16: 498.3 | DA16: 670 | DB16: 592.9 | DC16: 557.8 | DD16: 539.8 | DE16: 522.8 | DF16: 502.4 | DG16: 473.8 | DH16: 672.5 | DI16: 592.9 | DJ16: 555 | DK16: 519 | DL16: 493.5 | DM16: 479.5 | DN16: 455.8 | DO16: 697.1 | DP16: 603.3 | DQ16: 564.4 | DR16: 528.5 | DS16: 495.9 | DT16: 467.3 | DU16: 431.8 | DV16: 776.8 | DW16: 641.2 | DX16: 587.1 | DY16: 552.6 | DZ16: 518.9 | EA16: 488.6 | EB16: 425.9 | EC16: 909.8 | ED16: 729.5 | EE16: 628.1 | EF16: 583.3 | EG16: 551.2 | EH16: 519.8 | EI16: 463.7 | EJ16: 1050.5 | EK16: 842.3 | EL16: 718.4 | EM16: 638.9 | EN16: 590.6 | EO16: 559 | EP16: 500.8 | EQ16: 0.8714 | ER16: 1.0944 | ES16: 1.221 | ET16: 0.6805 | EU16: 0.9077 | EV16: 1.0262 | EW16: 677.3 | EX16: 0.8858 | EY16: 0.882 | EZ16: 289.7 | FA16: 0.8947 | FB16: 0.672 | FC16: 88.7 | FD16: 670.6 | FE16: nor00001957 | FF16: 6.876 | FG16: 2174 | FH16: 13.6 | FI16: 21.1 | FJ16: 16.6 | FK16: 50.2 | FL16: 50.2 | FM16: 16
A17: nor6392 | B17: 6392 | C17: NOR 173 | D17: NiPa | E17: 11m OD | F17: Grimstad Norge | G17: R Holland | H17: 1991 | J17: Nils S. Parnemann | K17: CLUB | L17: R | M17: 423 | N17: 20/4/2016 | O17: 20:40:54 | P17: 10.3 | Q17: 8.64 | R17: 1.708 | S17: 2.53 | T17: 1669 | U17: 100.3 | V17: 0.13 | W17: 600 | X17: 1.0231 | Y17: 659.8 | Z17: 0.674 | AA17: 19.7 | AB17: 993.8 | AC17: 796.5 | AD17: 694.6 | AE17: 644.4 | AF17: 612.2 | AG17: 579.6 | AH17: 526.1 | AI17: 956.6 | AJ17: 771.2 | AK17: 679.7 | AL17: 631.2 | AM17: 598.1 | AN17: 569 | AO17: 539.9 | AP17: 828.2 | AQ17: 668.5 | AR17: 582.6 | AS17: 531.4 | AT17: 497.4 | AU17: 472 | AV17: 432.7 | AW17: 912.4 | AX17: 726.6 | AY17: 624.9 | AZ17: 563.9 | BA17: 524.4 | BB17: 496.8 | BC17: 459.2 | BD17: 1018 | BE17: 785.7 | BF17: 654.6 | BG17: 572.9 | BH17: 516.9 | BI17: 474.2 | BJ17: 408.8 | BK17: 44.3 | BL17: 43.9 | BM17: 42.1 | BN17: 40.5 | BO17: 39.5 | BP17: 38.7 | BQ17: 39.3 | BR17: 143.3 | BS17: 141.6 | BT17: 152.3 | BU17: 158.2 | BV17: 155.9 | BW17: 151 | BX17: 144.6 | BY17: 1078.4 | BZ17: 872.7 | CA17: 774.2 | CB17: 736.9 | CC17: 717.7 | CD17: 695.7 | CE17: 693.6 | CF17: 693.2 | CG17: 565.9 | CH17: 521.4 | CI17: 507.2 | CJ17: 498.9 | CK17: 489.1 | CL17: 479.3 | CM17: 643.4 | CN17: 536.6 | CO17: 501.2 | CP17: 485.7 | CQ17: 475.8 | CR17: 469.3 | CS17: 452.1 | CT17: 600.4 | CU17: 517.1 | CV17: 479.4 | CW17: 452.1 | CX17: 439 | CY17: 430.9 | CZ17: 412.9 | DA17: 586.9 | DB17: 517.3 | DC17: 479.2 | DD17: 442.1 | DE17: 413.7 | DF17: 397.6 | DG17: 382.5 | DH17: 577.1 | DI17: 497 | DJ17: 465.6 | DK17: 441.6 | DL17: 417.5 | DM17: 395.6 | DN17: 338 | DO17: 593.5 | DP17: 503.2 | DQ17: 453.9 | DR17: 426.7 | DS17: 404.2 | DT17: 379.9 | DU17: 332.7 | DV17: 662.5 | DW17: 533.9 | DX17: 482 | DY17: 435.2 | DZ17: 389.7 | EA17: 352 | EB17: 308.8 | EC17: 787.5 | ED17: 623.8 | EE17: 533.5 | EF17: 483.4 | EG17: 441.3 | EH17: 400.1 | EI17: 310.6 | EJ17: 909.3 | EK17: 720.3 | EL17: 614.9 | EM17: 551.9 | EN17: 506.7 | EO17: 463.6 | EP17: 358.6 | EQ17: 0.9817 | ER17: 1.2656 | ES17: 1.4614 | ET17: 0.7541 | EU17: 1.0139 | EV17: 1.189 | EW17: 599 | EX17: 1.0016 | EY17: 0.929 | EZ17: 243.4 | FA17: 1.0274 | FB17: 0.696 | FC17: 45.1 | FD17: 584 | FE17: nor00000582 | FF17: 8.426 | FG17: 2327 | FH17: 15.8 | FI17: 29.7 | FJ17: 13.2 | FK17: 74.7 | FL17: 0 | FM17: 17
A18: nor666945 | B18: 666945 | C18: NOR 117 | D18: NN | E18: 11m OD | F18: ? | G18: R Holland | H18: 1972 | J18: Ole Petter Johnsen | K18: CLUB | L18: R | M18: 498 | N18: 28/4/2016 | O18: 20:36:18 | P18: 10.3 | Q18: 8.64 | R18: 1.708 | S18: 2.53 | T18: 1669 | U18: 100.3 | V18: 0.13 | W18: 594.5 | X18: 1.0331 | Y18: 653.4 | Z18: 0.673 | AA18: 14.1 | AB18: 988.7 | AC18: 791.8 | AD18: 685.9 | AE18: 636.2 | AF18: 604.6 | AG18: 574.2 | AH18: 517.6 | AI18: 950.7 | AJ18: 764.9 | AK18: 670.8 | AL18: 622 | AM18: 589.5 | AN18: 560.9 | AO18: 528 | AP18: 823.1 | AQ18: 663.4 | AR18: 577.2 | AS18: 525.5 | AT18: 491.1 | AU18: 465.1 | AV18: 424.4 | AW18: 907.6 | AX18: 722.1 | AY18: 620.3 | AZ18: 559 | BA18: 519.3 | BB18: 491.2 | BC18: 451.5 | BD18: 1010.5 | BE18: 778.7 | BF18: 647.7 | BG18: 565.8 | BH18: 509.6 | BI18: 466.7 | BJ18: 400.8 | BK18: 44 | BL18: 43.8 | BM18: 41.4 | BN18: 39.6 | BO18: 38.7 | BP18: 38 | BQ18: 38.3 | BR18: 143.3 | BS18: 141.6 | BT18: 152.3 | BU18: 158.2 | BV18: 155.9 | BW18: 150.9 | BX18: 143.7 | BY18: 1068.8 | BZ18: 863.9 | CA18: 757.1 | CB18: 720.6 | CC18: 702.6 | CD18: 685.1 | CE18: 678.5 | CF18: 688.7 | CG18: 562.7 | CH18: 515.6 | CI18: 500.6 | CJ18: 491.8 | CK18: 485 | CL18: 470.5 | CM18: 640.2 | CN18: 534.9 | CO18: 497 | CP18: 478.7 | CQ18: 467.8 | CR18: 461.1 | CS18: 443.9 | CT18: 600.7 | CU18: 516.9 | CV18: 478.7 | CW18: 447.4 | CX18: 432.4 | CY18: 423.4 | CZ18: 408 | DA18: 585.5 | DB18: 513.7 | DC18: 478.8 | DD18: 441.6 | DE18: 408.8 | DF18: 389.4 | DG18: 372.5 | DH18: 576.2 | DI18: 495.3 | DJ18: 459.2 | DK18: 435.7 | DL18: 411.4 | DM18: 387.1 | DN18: 330.2 | DO18: 592.7 | DP18: 502.8 | DQ18: 450.9 | DR18: 420.2 | DS18: 397 | DT18: 371.5 | DU18: 325 | DV18: 661.9 | DW18: 533.6 | DX18: 481.7 | DY18: 434.9 | DZ18: 389.2 | EA18: 344.8 | EB18: 300.4 | EC18: 786.8 | ED18: 623.3 | EE18: 533.3 | EF18: 483.2 | EG18: 441.2 | EH18: 397.7 | EI18: 308.9 | EJ18: 908.6 | EK18: 719.7 | EL18: 614.6 | EM18: 551.7 | EN18: 506.5 | EO18: 463.3 | EP18: 356.7 | EQ18: 0.986 | ER18: 1.279 | ES18: 1.4837 | ET18: 0.7582 | EU18: 1.0262 | EV18: 1.2041 | EW18: 595.7 | EX18: 1.0072 | EY18: 0.93 | EZ18: 238.7 | FA18: 1.0385 | FB18: 0.702 | FC18: 46.7 | FD18: 577.7 | FE18: nor00000785 | FF18: 8.614 | FG18: 2327 | FH18: 15.8 | FI18: 29.7 | FJ18: 13.2 | FK18: 74.7 | FL18: 0 | FM18: 18
A19: nor9935 | B19: 9935 | C19: NOR 160 | D19: Point 2 Point | E19: 11m OD | F19: ? | G19: R Holland | H19: 1972 | J19: Anders G. Larsson | K19: CLUB | L19: R | M19: 498 | N19: 28/4/2016 | O19: 20:36:26 | P19: 10.3 | Q19: 8.64 | R19: 1.708 | S19: 2.53 | T19: 1669 | U19: 100.3 | V19: 0.13 | W19: 598.4 | X19: 1.0235 | Y19: 659.5 | Z19: 0.667 | AA19: 13.6 | AB19: 996.5 | AC19: 798.7 | AD19: 692.9 | AE19: 642.3 | AF19: 610.3 | AG19: 579.8 | AH19: 523.6 | AI19: 959.5 | AJ19: 772.8 | AK19: 678.4 | AL19: 628.9 | AM19: 596 | AN19: 567.3 | AO19: 534.7 | AP19: 828.4 | AQ19: 667.8 | AR19: 581 | AS19: 529.1 | AT19: 494.5 | AU19: 468.5 | AV19: 428.1 | AW19: 912.7 | AX19: 726.3 | AY19: 624 | AZ19: 562.5 | BA19: 522.6 | BB19: 494.5 | BC19: 454.9 | BD19: 1018.2 | BE19: 784.8 | BF19: 652.7 | BG19: 570.1 | BH19: 513.3 | BI19: 470 | BJ19: 403.5 | BK19: 44.4 | BL19: 43.7 | BM19: 42.2 | BN19: 40.5 | BO19: 39.6 | BP19: 38.9 | BQ19: 39.2 | BR19: 143.3 | BS19: 141.6 | BT19: 152.3 | BU19: 158.2 | BV19: 156 | BW19: 151 | BX19: 143.7 | BY19: 1083.3 | BZ19: 876.9 | CA19: 770.9 | CB19: 732.7 | CC19: 713.9 | CD19: 696.1 | CE19: 689.7 | CF19: 695.4 | CG19: 568.1 | CH19: 519.2 | CI19: 504 | CJ19: 495.2 | CK19: 488.6 | CL19: 474.9 | CM19: 644.9 | CN19: 537.8 | CO19: 499.7 | CP19: 481.8 | CQ19: 471 | CR19: 464.3 | CS19: 447.2 | CT19: 601.3 | CU19: 517.3 | CV19: 479.5 | CW19: 448.7 | CX19: 433.8 | CY19: 424.8 | CZ19: 409.7 | DA19: 587.6 | DB19: 515.1 | DC19: 479.1 | DD19: 442.2 | DE19: 409.9 | DF19: 390.7 | DG19: 374 | DH19: 577.8 | DI19: 496 | DJ19: 460.1 | DK19: 436.5 | DL19: 412.3 | DM19: 388.2 | DN19: 331.7 | DO19: 594.1 | DP19: 503.3 | DQ19: 451.6 | DR19: 420.8 | DS19: 397.7 | DT19: 372.4 | DU19: 326.2 | DV19: 662.9 | DW19: 534.1 | DX19: 482.1 | DY19: 435.3 | DZ19: 389.7 | EA19: 345.4 | EB19: 301 | EC19: 787.8 | ED19: 624 | EE19: 533.6 | EF19: 483.4 | EG19: 441.4 | EH19: 398 | EI19: 309.5 | EJ19: 909.7 | EK19: 720.5 | EL19: 614.9 | EM19: 551.9 | EN19: 506.7 | EO19: 463.6 | EP19: 357.4 | EQ19: 0.9798 | ER19: 1.2705 | ES19: 1.4729 | ET19: 0.752 | EU19: 1.0163 | EV19: 1.1919 | EW19: 600.7 | EX19: 0.9988 | EY19: 0.924 | EZ19: 240.2 | FA19: 1.0306 | FB19: 0.695 | FC19: 45.4 | FD19: 582.2 | FE19: nor00000786 | FF19: 8.473 | FG19: 2327 | FH19: 15.8 | FI19: 29.7 | FJ19: 13.2 | FK19: 74.7 | FL19: 0 | FM19: 19
A20: nor21770 | B20: 21770 | C20: NOR 179 | D20: Vill Vakker & Vat | E20: 11m OD | F20: NN | G20: R Holland | H20: 1991 | J20: Aage Andersen | K20: CLUB | L20: R | M20: 498 | N20: 22/8/2016 | O20: 10:51:16 | P20: 10.3 | Q20: 8.64 | R20: 1.708 | S20: 2.53 | T20: 1669 | U20: 100.3 | V20: 0.13 | W20: 598.4 | X20: 1.0235 | Y20: 659.5 | Z20: 0.667 | AA20: 13.6 | AB20: 996.5 | AC20: 798.7 | AD20: 692.9 | AE20: 642.3 | AF20: 610.3 | AG20: 579.8 | AH20: 523.6 | AI20: 959.5 | AJ20: 772.8 | AK20: 678.4 | AL20: 628.9 | AM20: 596 | AN20: 567.3 | AO20: 534.7 | AP20: 828.4 | AQ20: 667.8 | AR20: 581 | AS20: 529.1 | AT20: 494.5 | AU20: 468.5 | AV20: 428.1 | AW20: 912.7 | AX20: 726.3 | AY20: 624 | AZ20: 562.5 | BA20: 522.6 | BB20: 494.5 | BC20: 454.9 | BD20: 1018.2 | BE20: 784.8 | BF20: 652.7 | BG20: 570.1 | BH20: 513.3 | BI20: 470 | BJ20: 403.5 | BK20: 44.4 | BL20: 43.7 | BM20: 42.2 | BN20: 40.5 | BO20: 39.6 | BP20: 38.9 | BQ20: 39.2 | BR20: 143.3 | BS20: 141.6 | BT20: 152.3 | BU20: 158.2 | BV20: 156 | BW20: 151 | BX20: 143.7 | BY20: 1083.3 | BZ20: 876.9 | CA20: 770.9 | CB20: 732.7 | CC20: 713.9 | CD20: 696.1 | CE20: 689.7 | CF20: 695.4 | CG20: 568.1 | CH20: 519.2 | CI20: 504 | CJ20: 495.2 | CK20: 488.6 | CL20: 474.9 | CM20: 644.9 | CN20: 537.8 | CO20: 499.7 | CP20: 481.8 | CQ20: 471 | CR20: 464.3 | CS20: 447.2 | CT20: 601.3 | CU20: 517.3 | CV20: 479.5 | CW20: 448.7 | CX20: 433.8 | CY20: 424.8 | CZ20: 409.7 | DA20: 587.6 | DB20: 515.1 | DC20: 479.1 | DD20: 442.2 | DE20: 409.9 | DF20: 390.7 | DG20: 374 | DH20: 577.8 | DI20: 496 | DJ20: 460.1 | DK20: 436.5 | DL20: 412.3 | DM20: 388.2 | DN20: 331.7 | DO20: 594.1 | DP20: 503.3 | DQ20: 451.6 | DR20: 420.8 | DS20: 397.7 | DT20: 372.4 | DU20: 326.2 | DV20: 662.9 | DW20: 534.1 | DX20: 482.1 | DY20: 435.3 | DZ20: 389.7 | EA20: 345.4 | EB20: 301 | EC20: 787.8 | ED20: 624 | EE20: 533.6 | EF20: 483.4 | EG20: 441.4 | EH20: 398 | EI20: 309.5 | EJ20: 909.7 | EK20: 720.5 | EL20: 614.9 | EM20: 551.9 | EN20: 506.7 | EO20: 463.6 | EP20: 357.4 | EQ20: 0.9798 | ER20: 1.2705 | ES20: 1.4729 | ET20: 0.752 | EU20: 1.0163 | EV20: 1.1919 | EW20: 600.7 | EX20: 0.9988 | EY20: 0.924 | EZ20: 240.2 | FA20: 1.0306 | FB20: 0.695 | FC20: 45.4 | FD20: 582.2 | FE20: nor00001900 | FF20: 8.473 | FG20: 2327 | FH20: 15.8 | FI20: 29.7 | FJ20: 13.2 | FK20: 74.7 | FL20: 0 | FM20: 20
A21: AUS281600 | B21: 2816 | C21: AUS211 | D21: Inevitable | E21: 11m OD | F21: Pacesetter Yachts | G21: Ron Holland | H21: 1972 | I21: 2106 Newport Australia | J21: Ronald Palmer | K21: CLUB | L21: R | M21: 450 | N21: 16/9/2016 | O21: 11:06:52 | P21: 10.305 | Q21: 8.602 | R21: 1.704 | S21: 2.53 | T21: 1625 | U21: 117 | V21: 0.12 | W21: 595 | X21: 1.0279 | Y21: 656.7 | Z21: 0.657 | AA21: 3.7 | AB21: 997.4 | AC21: 798.8 | AD21: 689.5 | AE21: 637.2 | AF21: 604.6 | AG21: 577.5 | AH21: 516.2 | AI21: 960.1 | AJ21: 771.9 | AK21: 674.6 | AL21: 623.1 | AM21: 590.1 | AN21: 563.2 | AO21: 523.1 | AP21: 827.2 | AQ21: 665.5 | AR21: 577.6 | AS21: 524.5 | AT21: 488.8 | AU21: 461.7 | AV21: 418.8 | AW21: 911.8 | AX21: 724.5 | AY21: 621.3 | AZ21: 558.8 | BA21: 518 | BB21: 488.8 | BC21: 446.3 | BD21: 1016.4 | BE21: 781.8 | BF21: 648.4 | BG21: 564.6 | BH21: 506.6 | BI21: 462.2 | BJ21: 393.1 | BK21: 44.4 | BL21: 43.8 | BM21: 42.1 | BN21: 40.3 | BO21: 39.2 | BP21: 38.7 | BQ21: 38.7 | BR21: 143.3 | BS21: 141.6 | BT21: 152.3 | BU21: 158 | BV21: 155.9 | BW21: 150.5 | BX21: 142.2 | BY21: 1084.2 | BZ21: 876.8 | CA21: 764 | CB21: 722.3 | CC21: 702.7 | CD21: 691.9 | CE21: 677.3 | CF21: 696.2 | CG21: 567.9 | CH21: 516.6 | CI21: 498.2 | CJ21: 487.6 | CK21: 480.8 | CL21: 464.3 | CM21: 645.6 | CN21: 537.7 | CO21: 497.6 | CP21: 474.3 | CQ21: 461.5 | CR21: 453.8 | CS21: 436.3 | CT21: 602 | CU21: 517.5 | CV21: 478.5 | CW21: 443.9 | CX21: 424.1 | CY21: 413.3 | CZ21: 400.6 | DA21: 588.5 | DB21: 510.6 | DC21: 478.2 | DD21: 440.9 | DE21: 405.4 | DF21: 379.4 | DG21: 355.8 | DH21: 578.4 | DI21: 495.8 | DJ21: 454.4 | DK21: 430.5 | DL21: 406.3 | DM21: 379 | DN21: 324.4 | DO21: 594.7 | DP21: 503.3 | DQ21: 450.3 | DR21: 414.7 | DS21: 390.7 | DT21: 364.2 | DU21: 318.5 | DV21: 663.6 | DW21: 534.4 | DX21: 481.8 | DY21: 434.7 | DZ21: 388.7 | EA21: 339.9 | EB21: 293.3 | EC21: 788.6 | ED21: 624.3 | EE21: 533.6 | EF21: 483.4 | EG21: 441.1 | EH21: 396.1 | EI21: 307.5 | EJ21: 910.6 | EK21: 720.8 | EL21: 615.1 | EM21: 552.1 | EN21: 506.5 | EO21: 463.1 | EP21: 355 | EQ21: 0.9796 | ER21: 1.2798 | ES21: 1.4958 | ET21: 0.7516 | EU21: 1.0228 | EV21: 1.2026 | EW21: 589.9 | EX21: 1.017 | EY21: 0.916 | EZ21: 233.3 | FA21: 1.0384 | FB21: 0.678 | FC21: 26.9 | FD21: 577.8 | FE21: AUS00000386 | FF21: 8.575 | FG21: 2282 | FH21: 15.7 | FI21: 29.1 | FJ21: 13.7 | FK21: 74 | FL21: 0 | FM21: 21
A22: SUISU1493 | B22: SUI1493 | C22: SUI 149 | D22: RUF rot | E22: 11m OD | F22: Precision Boats | G22: Ron Holland | H22: 1991 | I22: SCSta | J22: Streuli Hans | K22: CLUB | L22: R | M22: 498 | N22: 16/4/2016 | O22: 16:43:34 | P22: 10.305 | Q22: 8.64 | R22: 1.708 | S22: 2.53 | T22: 1669 | U22: 100.3 | V22: 0.1 | W22: 596 | X22: 1.0294 | Y22: 655.7 | Z22: 0.672 | AA22: 14.9 | AB22: 990 | AC22: 793.7 | AD22: 689.6 | AE22: 639.3 | AF22: 607.4 | AG22: 576 | AH22: 521.2 | AI22: 951.9 | AJ22: 767.1 | AK22: 674.4 | AL22: 625.6 | AM22: 592.5 | AN22: 562.8 | AO22: 532.4 | AP22: 824.6 | AQ22: 664.9 | AR22: 578.7 | AS22: 527.1 | AT22: 492.6 | AU22: 466.8 | AV22: 426.9 | AW22: 906.8 | AX22: 722.1 | AY22: 620.8 | AZ22: 559.8 | BA22: 520.2 | BB22: 492.2 | BC22: 453.2 | BD22: 1013.1 | BE22: 781.1 | BF22: 649.9 | BG22: 567.8 | BH22: 511.5 | BI22: 468.6 | BJ22: 403 | BK22: 44.3 | BL22: 43.5 | BM22: 41.8 | BN22: 40.1 | BO22: 39.2 | BP22: 38.3 | BQ22: 38.8 | BR22: 143.3 | BS22: 141.5 | BT22: 152.3 | BU22: 158.3 | BV22: 156.2 | BW22: 151.3 | BX22: 143.5 | BY22: 1068.4 | BZ22: 865.3 | CA22: 763.5 | CB22: 726.1 | CC22: 707.2 | CD22: 687.4 | CE22: 683.7 | CF22: 687.2 | CG22: 562.5 | CH22: 516.9 | CI22: 502.2 | CJ22: 493.5 | CK22: 485.5 | CL22: 472.7 | CM22: 638.2 | CN22: 534.4 | CO22: 497.6 | CP22: 480.3 | CQ22: 469.7 | CR22: 463 | CS22: 445.6 | CT22: 596.2 | CU22: 515.2 | CV22: 477.3 | CW22: 447.5 | CX22: 433.3 | CY22: 424.6 | CZ22: 407.6 | DA22: 588.8 | DB22: 514.5 | DC22: 477.3 | DD22: 440.4 | DE22: 409.2 | DF22: 390.9 | DG22: 374.7 | DH22: 579.1 | DI22: 496.7 | DJ22: 459.8 | DK22: 435.9 | DL22: 411.7 | DM22: 388.2 | DN22: 331.9 | DO22: 595.5 | DP22: 504 | DQ22: 452.1 | DR22: 420.6 | DS22: 397.4 | DT22: 372.3 | DU22: 326.3 | DV22: 664.5 | DW22: 535 | DX22: 482.9 | DY22: 436.2 | DZ22: 390.8 | EA22: 345.6 | EB22: 300.7 | EC22: 789.5 | ED22: 625.3 | EE22: 534.2 | EF22: 484.2 | EG22: 442.2 | EH22: 398.4 | EI22: 310.6 | EJ22: 911.7 | EK22: 722 | EL22: 615.7 | EM22: 552.5 | EN22: 507.6 | EO22: 464.6 | EP22: 358.7 | EQ22: 0.9847 | ER22: 1.2751 | ES22: 1.4782 | ET22: 0.7569 | EU22: 1.0213 | EV22: 1.1983 | EW22: 0 | EX22: 0 | EY22: 0.928 | EZ22: 239.5 | FA22: 1.0353 | FB22: 0 | FC22: 0 | FD22: 579.6 | FE22: SUI00002133 | FF22: 8.55 | FG22: 2327 | FH22: 15.8 | FI22: 29.4 | FJ22: 14.3 | FK22: 74.3 | FL22: 0 | FM22: 22
A23: SUISU3111 | B23: SUI3111 | C23: SUI 311 | D23: RUF blau | E23: 11m OD | F23: Precision Boats | G23: Ron Holland | H23: 1991 | I23: SCSta | J23: Streuli Hans | K23: CLUB | L23: R | M23: 498 | N23: 16/4/2016 | O23: 16:43:50 | P23: 10.305 | Q23: 8.64 | R23: 1.708 | S23: 2.53 | T23: 1669 | U23: 100.3 | V23: 0.1 | W23: 596 | X23: 1.0294 | Y23: 655.7 | Z23: 0.672 | AA23: 14.9 | AB23: 990 | AC23: 793.7 | AD23: 689.6 | AE23: 639.3 | AF23: 607.4 | AG23: 576 | AH23: 521.2 | AI23: 951.9 | AJ23: 767.1 | AK23: 674.4 | AL23: 625.6 | AM23: 592.5 | AN23: 562.8 | AO23: 532.4 | AP23: 824.6 | AQ23: 664.9 | AR23: 578.7 | AS23: 527.1 | AT23: 492.6 | AU23: 466.8 | AV23: 426.9 | AW23: 906.8 | AX23: 722.1 | AY23: 620.8 | AZ23: 559.8 | BA23: 520.2 | BB23: 492.2 | BC23: 453.2 | BD23: 1013.1 | BE23: 781.1 | BF23: 649.9 | BG23: 567.8 | BH23: 511.5 | BI23: 468.6 | BJ23: 403 | BK23: 44.3 | BL23: 43.5 | BM23: 41.8 | BN23: 40.1 | BO23: 39.2 | BP23: 38.3 | BQ23: 38.8 | BR23: 143.3 | BS23: 141.5 | BT23: 152.3 | BU23: 158.3 | BV23: 156.2 | BW23: 151.3 | BX23: 143.5 | BY23: 1068.4 | BZ23: 865.3 | CA23: 763.5 | CB23: 726.1 | CC23: 707.2 | CD23: 687.4 | CE23: 683.7 | CF23: 687.2 | CG23: 562.5 | CH23: 516.9 | CI23: 502.2 | CJ23: 493.5 | CK23: 485.5 | CL23: 472.7 | CM23: 638.2 | CN23: 534.4 | CO23: 497.6 | CP23: 480.3 | CQ23: 469.7 | CR23: 463 | CS23: 445.6 | CT23: 596.2 | CU23: 515.2 | CV23: 477.3 | CW23: 447.5 | CX23: 433.3 | CY23: 424.6 | CZ23: 407.6 | DA23: 588.8 | DB23: 514.5 | DC23: 477.3 | DD23: 440.4 | DE23: 409.2 | DF23: 390.9 | DG23: 374.7 | DH23: 579.1 | DI23: 496.7 | DJ23: 459.8 | DK23: 435.9 | DL23: 411.7 | DM23: 388.2 | DN23: 331.9 | DO23: 595.5 | DP23: 504 | DQ23: 452.1 | DR23: 420.6 | DS23: 397.4 | DT23: 372.3 | DU23: 326.3 | DV23: 664.5 | DW23: 535 | DX23: 482.9 | DY23: 436.2 | DZ23: 390.8 | EA23: 345.6 | EB23: 300.7 | EC23: 789.5 | ED23: 625.3 | EE23: 534.2 | EF23: 484.2 | EG23: 442.2 | EH23: 398.4 | EI23: 310.6 | EJ23: 911.7 | EK23: 722 | EL23: 615.7 | EM23: 552.5 | EN23: 507.6 | EO23: 464.6 | EP23: 358.7 | EQ23: 0.9847 | ER23: 1.2751 | ES23: 1.4782 | ET23: 0.7569 | EU23: 1.0213 | EV23: 1.1983 | EW23: 0 | EX23: 0 | EY23: 0.928 | EZ23: 239.5 | FA23: 1.0353 | FB23: 0 | FC23: 0 | FD23: 579.6 | FE23: SUI00002136 | FF23: 8.55 | FG23: 2327 | FH23: 15.8 | FI23: 29.4 | FJ23: 14.3 | FK23: 74.3 | FL23: 0 | FM23: 23
A24: CAN014/16 | B24: CAN35019 | C24: CAN 35019 | D24: The Shadow | E24: 1D35 | F24: Carroll Marine | G24: Nelson Marek | H24: 1998 | I24: CANADA | J24: Peter MCarthy | K24: CLUB | L24: R | M24: 1534 | N24: 8/3/2016 | O24: 11:03:04 | P24: 34.777 | Q24: 32.587 | R24: 7.609 | S24: 10.8 | T24: 7057 | U24: 113.2 | V24: 0 | W24: 575.6 | X24: 1.0673 | Y24: 632.5 | Z24: 0.721 | AA24: 32.5 | AB24: 941.9 | AC24: 765 | AD24: 665.9 | AE24: 614.7 | AF24: 582.6 | AG24: 558.1 | AH24: 521.4 | AI24: 898.4 | AJ24: 730.5 | AK24: 646.7 | AL24: 602.3 | AM24: 572.4 | AN24: 547.4 | AO24: 516.3 | AP24: 790 | AQ24: 639.8 | AR24: 559.2 | AS24: 511.5 | AT24: 480.4 | AU24: 458 | AV24: 425.1 | AW24: 843.2 | AX24: 677.3 | AY24: 587.3 | AZ24: 533.6 | BA24: 499 | BB24: 474.8 | BC24: 442.2 | BD24: 973 | BE24: 752.9 | BF24: 628.6 | BG24: 551.5 | BH24: 499.7 | BI24: 461.5 | BJ24: 404.5 | BK24: 43.6 | BL24: 42.8 | BM24: 40.2 | BN24: 39.1 | BO24: 37.9 | BP24: 37.3 | BQ24: 37.4 | BR24: 140.5 | BS24: 139.5 | BT24: 149.3 | BU24: 157.6 | BV24: 180 | BW24: 180 | BX24: 146.7 | BY24: 973.1 | BZ24: 797.7 | CA24: 716 | CB24: 684.2 | CC24: 666.1 | CD24: 650.2 | CE24: 646.3 | CF24: 631.1 | CG24: 526.2 | CH24: 493.3 | CI24: 481.7 | CJ24: 475 | CK24: 467.6 | CL24: 459.6 | CM24: 590.3 | CN24: 504.7 | CO24: 477.1 | CP24: 465.2 | CQ24: 457.2 | CR24: 450.6 | CS24: 436.7 | CT24: 554.9 | CU24: 490.2 | CV24: 459.3 | CW24: 437 | CX24: 425.1 | CY24: 417.7 | CZ24: 401.7 | DA24: 555.6 | DB24: 490.3 | DC24: 458.8 | DD24: 426 | DE24: 400.8 | DF24: 387.5 | DG24: 375.3 | DH24: 575.7 | DI24: 489 | DJ24: 447.9 | DK24: 422.9 | DL24: 400.6 | DM24: 383.5 | DN24: 336.1 | DO24: 594.3 | DP24: 496.8 | DQ24: 455.9 | DR24: 413.8 | DS24: 386.8 | DT24: 367.6 | DU24: 326.7 | DV24: 661.8 | DW24: 534 | DX24: 480.3 | DY24: 443.4 | DZ24: 404.8 | EA24: 365.5 | EB24: 300.7 | EC24: 788.7 | ED24: 634.2 | EE24: 533.2 | EF24: 481.1 | EG24: 447.3 | EH24: 412.6 | EI24: 343.4 | EJ24: 910.7 | EK24: 732.3 | EL24: 615.7 | EM24: 545.2 | EN24: 499.1 | EO24: 466 | EP24: 396.5 | EQ24: 1.0286 | ER24: 1.3171 | ES24: 1.505 | ET24: 0.7909 | EU24: 1.0609 | EV24: 1.2262 | EW24: 0 | EX24: 0 | EY24: 0.985 | EZ24: 255.4 | FA24: 1.0686 | FB24: 0 | FC24: 0 | FD24: 561.5 | FE24: CAN00061676 | FF24: 9.73 | FG24: 9007 | FH24: 248.5 | FI24: 505.6 | FJ24: 306.6 | FK24: 1041.7 | FL24: 0 | FM24: 24
A25: GER99754 | B25: GER4845 | C25: GER 4845 | D25: MAGIC LADY | E25: 1D35 | F25: CARROLL MARINE | G25: NELSON MAREK | H25: 1997 | J25: STEFAN RAUSCH | K25: CLUB | L25: R | M25: 600 | N25: 26/4/2016 | O25: 15:04:52 | P25: 10.63 | Q25: 9.809 | R25: 2.298 | S25: 3.29 | T25: 2869 | U25: 120 | V25: 0 | W25: 554 | X25: 1.0895 | Y25: 619.6 | Z25: 0.754 | AA25: 37.5 | AB25: 893.7 | AC25: 729.8 | AD25: 650.6 | AE25: 610.6 | AF25: 579.3 | AG25: 551.1 | AH25: 500 | AI25: 853.5 | AJ25: 702.9 | AK25: 632.8 | AL25: 592.9 | AM25: 562.2 | AN25: 537.4 | AO25: 504.9 | AP25: 746.8 | AQ25: 611.5 | AR25: 539.5 | AS25: 496.5 | AT25: 467.5 | AU25: 445.5 | AV25: 411 | AW25: 817.6 | AX25: 659.9 | AY25: 574.8 | AZ25: 524 | BA25: 491.1 | BB25: 467.7 | BC25: 434.8 | BD25: 933 | BE25: 726.4 | BF25: 610 | BG25: 537.1 | BH25: 486.6 | BI25: 447.8 | BJ25: 387.9 | BK25: 45.8 | BL25: 42.6 | BM25: 40 | BN25: 39.1 | BO25: 38.1 | BP25: 37.8 | BQ25: 38.2 | BR25: 142.6 | BS25: 144.5 | BT25: 150.3 | BU25: 151.5 | BV25: 148 | BW25: 145.2 | BX25: 142.8 | BY25: 922.6 | BZ25: 773.4 | CA25: 712.8 | CB25: 684.7 | CC25: 663.9 | CD25: 654.2 | CE25: 652.3 | CF25: 585.7 | CG25: 513.7 | CH25: 491.1 | CI25: 480.8 | CJ25: 473.2 | CK25: 464.6 | CL25: 458.7 | CM25: 538.9 | CN25: 493 | CO25: 474.1 | CP25: 462.8 | CQ25: 454.8 | CR25: 443.8 | CS25: 433.9 | CT25: 499.8 | CU25: 467.5 | CV25: 446.8 | CW25: 431.4 | CX25: 420.9 | CY25: 412.7 | CZ25: 395.3 | DA25: 490.2 | DB25: 450 | DC25: 425.1 | DD25: 408.4 | DE25: 392.5 | DF25: 381.9 | DG25: 366.1 | DH25: 508.7 | DI25: 467.9 | DJ25: 428.7 | DK25: 391.4 | DL25: 366.8 | DM25: 350.2 | DN25: 322.2 | DO25: 546.8 | DP25: 477.4 | DQ25: 430.7 | DR25: 397.8 | DS25: 361.6 | DT25: 340.7 | DU25: 305.1 | DV25: 627.5 | DW25: 507 | DX25: 460.4 | DY25: 416.4 | DZ25: 372.2 | EA25: 331.5 | EB25: 283 | EC25: 749 | ED25: 594.3 | EE25: 509.5 | EF25: 464.6 | EG25: 428.4 | EH25: 387.9 | EI25: 301.1 | EJ25: 864.9 | EK25: 686.2 | EL25: 588.4 | EM25: 536.5 | EN25: 494.6 | EO25: 447.9 | EP25: 347.7 | EQ25: 1.0922 | ER25: 1.3536 | ES25: 1.5469 | ET25: 0.8315 | EU25: 1.0782 | EV25: 1.2523 | EW25: 562 | EX25: 1.0677 | EY25: 1.116 | EZ25: 320.7 | FA25: 1.0991 | FB25: 0.774 | FC25: 63.6 | FD25: 545.9 | FE25: GER20014503 | FF25: 9.66 | FG25: 3730 | FH25: 22.4 | FI25: 51.4 | FJ25: 28.7 | FK25: 0 | FL25: 120.6 | FM25: 25
A26: GRE001101 | B26: GBR1035 | C26: GBR-1035 | D26: NO RESPECT | E26: 1D35 | F26: Carroll Marine | G26: NELSON/MAREK | H26: 1998 | I26: NO VOULIAGMENIS | J26: JOSE ANTONIO SALGUERO SUDREA | K26: INTL | L26: R | M26: 700 | N26: 30/6/2016 | O26: 12:41:20 | P26: 10.63 | Q26: 9.767 | R26: 2.295 | S26: 3.29 | T26: 2810 | U26: 111.7 | V26: 0 | W26: 567.8 | X26: 1.0802 | Y26: 624.9 | Z26: 0.726 | AA26: 29.4 | AB26: 931 | AC26: 751 | AD26: 656.9 | AE26: 608 | AF26: 577.6 | AG26: 554 | AH26: 508.7 | AI26: 888 | AJ26: 719.4 | AK26: 637.9 | AL26: 594.4 | AM26: 564.9 | AN26: 540.7 | AO26: 508.4 | AP26: 780.3 | AQ26: 631.4 | AR26: 551.5 | AS26: 504.1 | AT26: 473.1 | AU26: 450.4 | AV26: 415.7 | AW26: 838.1 | AX26: 672.1 | AY26: 581.9 | AZ26: 528 | BA26: 493 | BB26: 468.4 | BC26: 434.1 | BD26: 960.7 | BE26: 742.7 | BF26: 619.8 | BG26: 543.6 | BH26: 492 | BI26: 453.5 | BJ26: 394.8 | BK26: 43.5 | BL26: 42.7 | BM26: 39.7 | BN26: 38.5 | BO26: 37.6 | BP26: 37 | BQ26: 37.3 | BR26: 141 | BS26: 140.5 | BT26: 150 | BU26: 158.1 | BV26: 180 | BW26: 180 | BX26: 140.2 | BY26: 965.1 | BZ26: 785.9 | CA26: 707.6 | CB26: 676.9 | CC26: 660.8 | CD26: 648.5 | CE26: 644.7 | CF26: 625.6 | CG26: 520.5 | CH26: 490.1 | CI26: 478.7 | CJ26: 471.8 | CK26: 464.4 | CL26: 456.6 | CM26: 584.7 | CN26: 500.4 | CO26: 473.3 | CP26: 460.5 | CQ26: 452.2 | CR26: 444.8 | CS26: 432.6 | CT26: 550.3 | CU26: 486.6 | CV26: 452.2 | CW26: 430.1 | CX26: 418.6 | CY26: 411.7 | CZ26: 395.3 | DA26: 551.7 | DB26: 487.2 | DC26: 452.2 | DD26: 416.1 | DE26: 391.8 | DF26: 380.1 | DG26: 368 | DH26: 565.6 | DI26: 483.3 | DJ26: 440.2 | DK26: 416.1 | DL26: 393.3 | DM26: 375.5 | DN26: 322.7 | DO26: 584.3 | DP26: 490.9 | DQ26: 445.9 | DR26: 403.5 | DS26: 380.1 | DT26: 360.1 | DU26: 317.8 | DV26: 651.8 | DW26: 523.7 | DX26: 473.9 | DY26: 432.6 | DZ26: 391 | EA26: 348.7 | EB26: 292.2 | EC26: 776.7 | ED26: 620.2 | EE26: 525 | EF26: 475.1 | EG26: 437.7 | EH26: 400.3 | EI26: 322.8 | EJ26: 896.8 | EK26: 716.2 | EL26: 606.2 | EM26: 539.1 | EN26: 494.3 | EO26: 459.5 | EP26: 372.8 | EQ26: 1.0422 | ER26: 1.3358 | ES26: 1.5309 | ET26: 0.8026 | EU26: 1.0738 | EV26: 1.2433 | EW26: 0 | EX26: 0 | EY26: 1.024 | EZ26: 272.3 | FA26: 1.0848 | FB26: 0 | FC26: 0 | FD26: 553.1 | FE26: GRE01006350 | FF26: 9.749 | FG26: 3662 | FH26: 22.3 | FI26: 46.5 | FJ26: 25.3 | FK26: 96.7 | FL26: 0 | FM26: 26
A27: JPN160250 | B27: JC160250 | C27: JPN 1088 | D27: INDEPENDENCE 7 | E27: 1D35 | F27: CARROLL MARINE | G27: NELSON/MAREK | H27: 1998 | I27: MIURA | J27: TAKASHI HIRAMATSU | K27: CLUB | L27: R | M27: 643 | N27: 29/3/2016 | O27: 04:07:58 | P27: 10.63 | Q27: 9.808 | R27: 2.298 | S27: 3.29 | T27: 2868 | U27: 122.1 | V27: 0 | W27: 560 | X27: 1.0942 | Y27: 616.9 | Z27: 0.732 | AA27: 25.9 | AB27: 913.7 | AC27: 739.5 | AD27: 650.6 | AE27: 602 | AF27: 570.5 | AG27: 546.3 | AH27: 501.4 | AI27: 871.2 | AJ27: 708.3 | AK27: 630.7 | AL27: 587.8 | AM27: 557.4 | AN27: 532.2 | AO27: 497.2 | AP27: 768 | AQ27: 622.6 | AR27: 544.3 | AS27: 497.4 | AT27: 466.2 | AU27: 443 | AV27: 407.7 | AW27: 819.6 | AX27: 659.4 | AY27: 572.3 | AZ27: 519.9 | BA27: 485.6 | BB27: 461.2 | BC27: 427.3 | BD27: 946.3 | BE27: 732.6 | BF27: 611.6 | BG27: 536 | BH27: 484.3 | BI27: 445.5 | BJ27: 386.7 | BK27: 43.6 | BL27: 42.6 | BM27: 39.3 | BN27: 38.1 | BO27: 36.8 | BP27: 36.1 | BQ27: 36.5 | BR27: 141.1 | BS27: 140.7 | BT27: 150.1 | BU27: 158.2 | BV27: 180 | BW27: 180 | BX27: 139.6 | BY27: 941.3 | BZ27: 769.1 | CA27: 697.5 | CB27: 666.4 | CC27: 647.9 | CD27: 633.8 | CE27: 631 | CF27: 610.2 | CG27: 512.7 | CH27: 485.8 | CI27: 474.1 | CJ27: 466.4 | CK27: 457 | CL27: 447.9 | CM27: 570.1 | CN27: 494.7 | CO27: 469.3 | CP27: 455.5 | CQ27: 446.3 | CR27: 437.8 | CS27: 423.5 | CT27: 537.3 | CU27: 481.2 | CV27: 447 | CW27: 425 | CX27: 412.9 | CY27: 405.3 | CZ27: 386.3 | DA27: 537.7 | DB27: 481.5 | DC27: 446 | DD27: 410.1 | DE27: 386 | DF27: 373.5 | DG27: 360.3 | DH27: 559.4 | DI27: 481.3 | DJ27: 436.8 | DK27: 402.6 | DL27: 381 | DM27: 362.8 | DN27: 315.1 | DO27: 578.2 | DP27: 488.8 | DQ27: 444.5 | DR27: 400.3 | DS27: 366.5 | DT27: 344.6 | DU27: 306.2 | DV27: 644.7 | DW27: 520.4 | DX27: 472.4 | DY27: 431.7 | DZ27: 390.5 | EA27: 348.3 | EB27: 280.5 | EC27: 767.4 | ED27: 614.8 | EE27: 522.9 | EF27: 473.9 | EG27: 437 | EH27: 400.5 | EI27: 322 | EJ27: 886.1 | EK27: 709.9 | EL27: 603.7 | EM27: 537.6 | EN27: 493.1 | EO27: 458.8 | EP27: 371.8 | EQ27: 1.0592 | ER27: 1.3514 | ES27: 1.5573 | ET27: 0.8166 | EU27: 1.0856 | EV27: 1.2605 | EW27: 559.5 | EX27: 1.0723 | EY27: 1.041 | EZ27: 273.9 | FA27: 1.0995 | FB27: 0.758 | FC27: 52.9 | FD27: 545.7 | FE27: JPN00016012 | FF27: 9.925 | FG27: 3729 | FH27: 22.4 | FI27: 47.4 | FJ27: 28.9 | FK27: 97.4 | FL27: 72.7 | FM27: 27
A28: KOR | B28: kor6790- | C28: KOR-6790 | D28: TEAM HAEMARU | E28: 1D35 | F28: CARROLL MARINE | G28: NELSON/MAREK | H28: 1998 | I28: Seoul | J28: Kim, Cho-Sung | K28: CLUB | L28: R | M28: 643 | N28: 24/6/2016 | O28: 09:35:14 | P28: 10.63 | Q28: 9.808 | R28: 2.298 | S28: 3.29 | T28: 2868 | U28: 122.1 | V28: 0 | W28: 559.9 | X28: 1.0942 | Y28: 616.9 | Z28: 0.732 | AA28: 26.3 | AB28: 914 | AC28: 739.4 | AD28: 650.2 | AE28: 602.1 | AF28: 570.6 | AG28: 546.3 | AH28: 501.7 | AI28: 871.3 | AJ28: 708.3 | AK28: 630.6 | AL28: 587.9 | AM28: 557.5 | AN28: 532.3 | AO28: 497.4 | AP28: 767.5 | AQ28: 622.4 | AR28: 544.2 | AS28: 497.4 | AT28: 466.3 | AU28: 443.2 | AV28: 407.8 | AW28: 819.6 | AX28: 659.4 | AY28: 572.3 | AZ28: 519.9 | BA28: 485.6 | BB28: 461.2 | BC28: 427.3 | BD28: 946.5 | BE28: 732.6 | BF28: 611.6 | BG28: 536.1 | BH28: 484.5 | BI28: 445.7 | BJ28: 386.8 | BK28: 43.6 | BL28: 42.6 | BM28: 39.3 | BN28: 38.1 | BO28: 36.8 | BP28: 36.1 | BQ28: 36.5 | BR28: 141.1 | BS28: 144.3 | BT28: 150.4 | BU28: 158.3 | BV28: 180 | BW28: 180 | BX28: 139.5 | BY28: 941.3 | BZ28: 769.1 | CA28: 697.5 | CB28: 666.4 | CC28: 647.9 | CD28: 633.8 | CE28: 631 | CF28: 610.2 | CG28: 512.7 | CH28: 485.8 | CI28: 474.1 | CJ28: 466.4 | CK28: 457 | CL28: 447.9 | CM28: 570.1 | CN28: 494.7 | CO28: 469.3 | CP28: 455.5 | CQ28: 446.3 | CR28: 437.8 | CS28: 423.5 | CT28: 537.3 | CU28: 481.2 | CV28: 447 | CW28: 425 | CX28: 412.9 | CY28: 405.3 | CZ28: 386.3 | DA28: 537.7 | DB28: 481 | DC28: 445.9 | DD28: 410.1 | DE28: 386 | DF28: 373.5 | DG28: 360.2 | DH28: 554.4 | DI28: 479.8 | DJ28: 434.4 | DK28: 404.8 | DL28: 381.7 | DM28: 364 | DN28: 315.1 | DO28: 575.1 | DP28: 488.4 | DQ28: 444.7 | DR28: 400.4 | DS28: 367.4 | DT28: 346.7 | DU28: 306.4 | DV28: 645.1 | DW28: 520.6 | DX28: 472.7 | DY28: 431.9 | DZ28: 390.8 | EA28: 348.7 | EB28: 280.8 | EC28: 767.9 | ED28: 614.6 | EE28: 522.4 | EF28: 474.1 | EG28: 437.3 | EH28: 400.7 | EI28: 322.5 | EJ28: 886.7 | EK28: 709.7 | EL28: 602.9 | EM28: 537.8 | EN28: 493.2 | EO28: 458.9 | EP28: 372.4 | EQ28: 1.0598 | ER28: 1.3514 | ES28: 1.5565 | ET28: 0.8165 | EU28: 1.0857 | EV28: 1.2602 | EW28: 0 | EX28: 0 | EY28: 1.042 | EZ28: 274.7 | FA28: 1.0992 | FB28: 0 | FC28: 0 | FD28: 545.8 | FE28: KOR11001720 | FF28: 9.925 | FG28: 3729 | FH28: 22.4 | FI28: 47.4 | FJ28: 28.9 | FK28: 96.9 | FL28: 90.8 | FM28: 28
A29: USAUS6080 | B29: US6080 | C29: USA 35008 | D29: Deja Vu | E29: 1D35 | F29: Carroll Marine | G29: Nelson/Marek | H29: 1998 | I29: 77586 Seabrook USA | J29: Jeff D Kitterman | K29: CLUB | L29: R | M29: 696 | N29: 28/9/2016 | O29: 12:21:08 | P29: 10.63 | Q29: 9.874 | R29: 2.31 | S29: 3.29 | T29: 3055 | U29: 121.3 | V29: 0 | W29: 565.4 | X29: 1.0833 | Y29: 623.1 | Z29: 0.72 | AA29: 22.9 | AB29: 931.9 | AC29: 750.9 | AD29: 651.8 | AE29: 606.2 | AF29: 578.5 | AG29: 551.2 | AH29: 502.1 | AI29: 889.3 | AJ29: 718.7 | AK29: 633.5 | AL29: 589 | AM29: 559.5 | AN29: 534.1 | AO29: 497.4 | AP29: 778.4 | AQ29: 629.4 | AR29: 549.2 | AS29: 501.5 | AT29: 469.9 | AU29: 446.2 | AV29: 409.2 | AW29: 842.7 | AX29: 675.5 | AY29: 584.1 | AZ29: 529.3 | BA29: 493.7 | BB29: 468.7 | BC29: 433.4 | BD29: 958.7 | BE29: 740.1 | BF29: 616.7 | BG29: 540 | BH29: 487.8 | BI29: 448.4 | BJ29: 387.9 | BK29: 43.4 | BL29: 42.5 | BM29: 39.7 | BN29: 38.2 | BO29: 37 | BP29: 36.4 | BQ29: 36.4 | BR29: 142.8 | BS29: 144.5 | BT29: 149.1 | BU29: 151.8 | BV29: 148.2 | BW29: 145.5 | BX29: 139 | BY29: 970.2 | BZ29: 792.3 | CA29: 702.5 | CB29: 667.9 | CC29: 650.1 | CD29: 638.6 | CE29: 632 | CF29: 630 | CG29: 524.2 | CH29: 487.7 | CI29: 474.8 | CJ29: 467 | CK29: 461.6 | CL29: 450 | CM29: 589.4 | CN29: 503.4 | CO29: 472.7 | CP29: 456.9 | CQ29: 446.8 | CR29: 440.3 | CS29: 425.9 | CT29: 554.8 | CU29: 489.3 | CV29: 456.4 | CW29: 428.2 | CX29: 413.6 | CY29: 404.8 | CZ29: 392.8 | DA29: 556.3 | DB29: 483.9 | DC29: 456.5 | DD29: 423.1 | DE29: 392.4 | DF29: 374.1 | DG29: 358.7 | DH29: 551 | DI29: 477.5 | DJ29: 434.9 | DK29: 412.2 | DL29: 389.8 | DM29: 369.9 | DN29: 322.8 | DO29: 567.5 | DP29: 484.3 | DQ29: 439.7 | DR29: 398.1 | DS29: 374.6 | DT29: 354.2 | DU29: 309.7 | DV29: 649 | DW29: 517.1 | DX29: 468.3 | DY29: 427.1 | DZ29: 385.3 | EA29: 342.7 | EB29: 278.3 | EC29: 773.9 | ED29: 614.4 | EE29: 520.6 | EF29: 472.2 | EG29: 439 | EH29: 401.7 | EI29: 322.2 | EJ29: 893.6 | EK29: 709.4 | EL29: 601.2 | EM29: 544.5 | EN29: 506.9 | EO29: 463.8 | EP29: 372.1 | EQ29: 1.0435 | ER29: 1.342 | ES29: 1.5452 | ET29: 0.8023 | EU29: 1.0773 | EV29: 1.2509 | EW29: 0 | EX29: 0 | EY29: 1.015 | EZ29: 264.1 | FA29: 1.0903 | FB29: 0 | FC29: 0 | FD29: 550.3 | FE29: USA00000389 | FF29: 9.935 | FG29: 3927 | FH29: 22.8 | FI29: 47.2 | FJ29: 26.5 | FK29: 0 | FL29: 121.6 | FM29: 29
A30: CAN009/16 | B30: USA48006 | C30: USA 48006 | D30: Ha a' Koa | E30: 1D48 | F30: TPI | G30: Reichel Pugh | H30: 1995 | I30: CANADA | J30: Victor (Vic) Bishop | K30: CLUB | L30: R | M30: 944 | N30: 8/3/2016 | O30: 11:00:58 | P30: 14.739 | Q30: 13.012 | R30: 3.051 | S30: 4.33 | T30: 8389 | U30: 131 | V30: 0 | W30: 496 | X30: 1.2379 | Y30: 545.3 | Z30: 0.846 | AA30: 39.2 | AB30: 809.5 | AC30: 656.5 | AD30: 576.8 | AE30: 531.2 | AF30: 503.6 | AG30: 482 | AH30: 450.3 | AI30: 769.2 | AJ30: 627.3 | AK30: 557.6 | AL30: 518.7 | AM30: 492.4 | AN30: 471.6 | AO30: 443.3 | AP30: 677.4 | AQ30: 550 | AR30: 482 | AS30: 442 | AT30: 416 | AU30: 397.3 | AV30: 369.7 | AW30: 720.7 | AX30: 581.6 | AY30: 506.1 | AZ30: 460.7 | BA30: 431.2 | BB30: 410.4 | BC30: 381.5 | BD30: 838.9 | BE30: 649.4 | BF30: 542.8 | BG30: 477.1 | BH30: 433.3 | BI30: 401.1 | BJ30: 353.1 | BK30: 43.9 | BL30: 42.6 | BM30: 40.6 | BN30: 38.6 | BO30: 37.3 | BP30: 36.3 | BQ30: 36 | BR30: 142 | BS30: 143.7 | BT30: 147.9 | BU30: 154.9 | BV30: 162.6 | BW30: 180 | BX30: 148.7 | BY30: 822.7 | BZ30: 680.7 | CA30: 617.1 | CB30: 583.7 | CC30: 564.8 | CD30: 551.6 | CE30: 540.2 | CF30: 530.9 | CG30: 448.4 | CH30: 424 | CI30: 412.8 | CJ30: 405.1 | CK30: 400.4 | CL30: 389.1 | CM30: 494.3 | CN30: 429.3 | CO30: 410.1 | CP30: 398.7 | CQ30: 390.3 | CR30: 384 | CS30: 371.3 | CT30: 463.1 | CU30: 415.4 | CV30: 392.3 | CW30: 376.4 | CX30: 366 | CY30: 359 | CZ30: 349.9 | DA30: 461 | DB30: 414.7 | DC30: 388.4 | DD30: 364.6 | DE30: 347.9 | DF30: 337.8 | DG30: 325.6 | DH30: 496.4 | DI30: 421.2 | DJ30: 391.3 | DK30: 372.3 | DL30: 355.7 | DM30: 339 | DN30: 298.7 | DO30: 515.3 | DP30: 428 | DQ30: 393.4 | DR30: 364.7 | DS30: 347.3 | DT30: 332.1 | DU30: 295.6 | DV30: 576.2 | DW30: 461.8 | DX30: 415.1 | DY30: 385.7 | DZ30: 355.5 | EA30: 325.5 | EB30: 277.4 | EC30: 689.6 | ED30: 547.5 | EE30: 464.7 | EF30: 418.5 | EG30: 391.6 | EH30: 364 | EI30: 312 | EJ30: 796.3 | EK30: 632.2 | EL30: 536.6 | EM30: 478.7 | EN30: 442.4 | EO30: 412.3 | EP30: 360.3 | EQ30: 1.2026 | ER30: 1.5248 | ES30: 1.7335 | ET30: 0.9209 | EU30: 1.2274 | EV30: 1.4196 | EW30: 0 | EX30: 0 | EY30: 1.157 | EZ30: 263.3 | FA30: 1.2387 | FB30: 0 | FC30: 0 | FD30: 484.4 | FE30: CAN00061663 | FF30: 13.05 | FG30: 9687 | FH30: 38.9 | FI30: 88.7 | FJ30: 68.8 | FK30: 202.8 | FL30: 202.7 | FM30: 30
A31: GER80370 | B31: GER443 | C31: GER 443 | D31: UNIVERSITAS | E31: 1-TON | F31: FRANKLIN | G31: FARR | H31: 1988 | J31: ASV ROSTOCK | K31: INTL | L31: R | M31: 648 | N31: 17/4/2016 | O31: 13:15:56 | P31: 12.079 | Q31: 9.486 | R31: 2.27 | S31: 3.84 | T31: 5443 | U31: 107.9 | V31: 0 | W31: 600.5 | X31: 1.0272 | Y31: 657.1 | Z31: 0.731 | AA31: 61.9 | AB31: 963.3 | AC31: 793.1 | AD31: 695 | AE31: 638.4 | AF31: 602.2 | AG31: 581.5 | AH31: 552.6 | AI31: 915.2 | AJ31: 755.6 | AK31: 672.9 | AL31: 627.7 | AM31: 600 | AN31: 582 | AO31: 553.8 | AP31: 815.1 | AQ31: 663.7 | AR31: 583.6 | AS31: 537.3 | AT31: 508.8 | AU31: 489.9 | AV31: 464.9 | AW31: 846.7 | AX31: 686.7 | AY31: 601 | AZ31: 551 | BA31: 519.7 | BB31: 498.9 | BC31: 472.1 | BD31: 1005.2 | BE31: 782 | BF31: 656.6 | BG31: 579.9 | BH31: 529.9 | BI31: 494.8 | BJ31: 445.9 | BK31: 42.5 | BL31: 42.5 | BM31: 41 | BN31: 39.7 | BO31: 38.7 | BP31: 38.5 | BQ31: 38.2 | BR31: 140.8 | BS31: 150 | BT31: 150.6 | BU31: 158.7 | BV31: 180 | BW31: 180 | BX31: 180 | BY31: 963 | BZ31: 814 | CA31: 739.3 | CB31: 704.7 | CC31: 685.5 | CD31: 677.3 | CE31: 666.7 | CF31: 632 | CG31: 538.1 | CH31: 504.9 | CI31: 492.8 | CJ31: 486.2 | CK31: 481.7 | CL31: 474.9 | CM31: 593.9 | CN31: 516 | CO31: 489.5 | CP31: 477.9 | CQ31: 470.8 | CR31: 466.2 | CS31: 459.7 | CT31: 561.4 | CU31: 500.6 | CV31: 475.5 | CW31: 458.3 | CX31: 447.3 | CY31: 440.6 | CZ31: 434.5 | DA31: 563.1 | DB31: 501 | DC31: 474.6 | DD31: 453.6 | DE31: 436.2 | DF31: 423.9 | DG31: 412.3 | DH31: 609.1 | DI31: 512.5 | DJ31: 476 | DK31: 448.5 | DL31: 430.7 | DM31: 419.7 | DN31: 402.3 | DO31: 630.7 | DP31: 524.2 | DQ31: 483.4 | DR31: 455.5 | DS31: 429.4 | DT31: 408.3 | DU31: 386.2 | DV31: 701.3 | DW31: 571.6 | DX31: 506.1 | DY31: 475.3 | DZ31: 449.4 | EA31: 425.3 | EB31: 381.1 | EC31: 834.4 | ED31: 668.8 | EE31: 564 | EF31: 505.2 | EG31: 476.2 | EH31: 451.6 | EI31: 407.9 | EJ31: 963.5 | EK31: 772.2 | EL31: 650.8 | EM31: 572 | EN31: 518.8 | EO31: 485.7 | EP31: 438.4 | EQ31: 0.9984 | ER31: 1.2594 | ES31: 1.4034 | ET31: 0.7686 | EU31: 1.021 | EV31: 1.1722 | EW31: 596.2 | EX31: 1.0064 | EY31: 0.967 | EZ31: 268.6 | FA31: 1.0204 | FB31: 0.741 | FC31: 74.5 | FD31: 588 | FE31: GER11001245 | FF31: 9.233 | FG31: 6298 | FH31: 26 | FI31: 52 | FJ31: 44.6 | FK31: 95.9 | FL31: 0 | FM31: 31
A32: GER152487 | B32: GER884 | C32: GER 884 | D32: OROMOCTO | E32: 1-TON | F32: DE DOOD | G32: GILGENAST | H32: 1971 | I32: SYC / HYC | J32: KAI GRETEN | K32: CLUB | L32: C | M32: 400 | N32: 1/4/2016 | O32: 09:09:14 | P32: 12.001 | Q32: 9.077 | R32: 1.952 | S32: 3.67 | T32: 7914 | U32: 128.4 | V32: 0.36 | W32: 660.8 | X32: 0.9358 | Y32: 721.3 | Z32: 0.646 | AA32: 46.8 | AB32: 1072.8 | AC32: 887.4 | AD32: 774.1 | AE32: 700.2 | AF32: 654.5 | AG32: 626.8 | AH32: 598.4 | AI32: 1035.5 | AJ32: 855.8 | AK32: 754.5 | AL32: 693.2 | AM32: 655.9 | AN32: 632.3 | AO32: 605.5 | AP32: 907.8 | AQ32: 734.7 | AR32: 641.5 | AS32: 587 | AT32: 553.3 | AU32: 531.4 | AV32: 504.8 | AW32: 961.6 | AX32: 773.4 | AY32: 670.7 | AZ32: 609.6 | BA32: 571.1 | BB32: 545.8 | BC32: 514.6 | BD32: 1110.4 | BE32: 862.1 | BF32: 720.9 | BG32: 633.5 | BH32: 576.5 | BI32: 537 | BJ32: 484 | BK32: 44.6 | BL32: 43.8 | BM32: 44.3 | BN32: 43.9 | BO32: 42.5 | BP32: 41.6 | BQ32: 41.1 | BR32: 146.9 | BS32: 151.2 | BT32: 149.8 | BU32: 157 | BV32: 180 | BW32: 180 | BX32: 180 | BY32: 1138.5 | BZ32: 964.3 | CA32: 862 | CB32: 797.3 | CC32: 761.6 | CD32: 741.9 | CE32: 725.7 | CF32: 736.7 | CG32: 628.1 | CH32: 559.5 | CI32: 528.6 | CJ32: 515.6 | CK32: 508.3 | CL32: 502.3 | CM32: 693.2 | CN32: 588.9 | CO32: 534.3 | CP32: 511.5 | CQ32: 499.3 | CR32: 492.4 | CS32: 485.9 | CT32: 656.5 | CU32: 558.3 | CV32: 517.6 | CW32: 498 | CX32: 484.2 | CY32: 472.9 | CZ32: 460.2 | DA32: 657.1 | DB32: 558.5 | DC32: 517.5 | DD32: 498 | DE32: 483.1 | DF32: 469.6 | DG32: 447.4 | DH32: 668 | DI32: 552.1 | DJ32: 507 | DK32: 483.9 | DL32: 470.7 | DM32: 461.1 | DN32: 445.9 | DO32: 684.6 | DP32: 562.9 | DQ32: 511.8 | DR32: 486.6 | DS32: 465.2 | DT32: 448.2 | DU32: 431.7 | DV32: 747.5 | DW32: 611.5 | DX32: 533.1 | DY32: 501 | DZ32: 479.1 | EA32: 458.5 | EB32: 423.4 | EC32: 872.1 | ED32: 701.6 | EE32: 594.3 | EF32: 530.1 | EG32: 501.3 | EH32: 481 | EI32: 443.7 | EJ32: 1007.1 | EK32: 810.5 | EL32: 686.2 | EM32: 603.1 | EN32: 547.4 | EO32: 511.7 | EP32: 471.1 | EQ32: 0.8917 | ER32: 1.1515 | ES32: 1.2955 | ET32: 0.6887 | EU32: 0.9259 | EV32: 1.0833 | EW32: 646.3 | EX32: 0.9284 | EY32: 0.792 | EZ32: 202.2 | FA32: 0.9309 | FB32: 0.65 | FC32: 50.7 | FD32: 644.5 | FE32: GER20014039 | FF32: 8.046 | FG32: 8703 | FH32: 28.6 | FI32: 34.3 | FJ32: 51.2 | FK32: 121.2 | FL32: 0 | FM32: 32
A33: ITA97954 | B33: I9795 | C33: ITA-9795 | D33: ERA ORA | E33: 3/4 IOR | F33: MACIANTI | G33: MALETTO-NAVONE-ST. | H33: 1978 | I33: C.N.PORTODIMARE | J33: PIERRI ANTONINO | K33: INTL | L33: R | M33: 430 | N33: 2/11/2016 | O33: 20:09:12 | P33: 9.797 | Q33: 7.997 | R33: 1.928 | S33: 3.52 | T33: 3365 | U33: 101.3 | V33: 0 | W33: 654.6 | X33: 0.9438 | Y33: 715.2 | Z33: 0.661 | AA33: 54.4 | AB33: 1063.6 | AC33: 867.5 | AD33: 754.5 | AE33: 692.2 | AF33: 653.7 | AG33: 632.7 | AH33: 607.2 | AI33: 1016 | AJ33: 832.5 | AK33: 735.3 | AL33: 683.9 | AM33: 654.5 | AN33: 636 | AO33: 613 | AP33: 894.6 | AQ33: 725.5 | AR33: 635.6 | AS33: 583.8 | AT33: 552.1 | AU33: 531.7 | AV33: 506.5 | AW33: 933.3 | AX33: 752.9 | AY33: 656 | AZ33: 599.7 | BA33: 565 | BB33: 542.5 | BC33: 515.2 | BD33: 1101 | BE33: 853.5 | BF33: 714.5 | BG33: 629.8 | BH33: 574.7 | BI33: 535.9 | BJ33: 481.5 | BK33: 44 | BL33: 43.1 | BM33: 42.4 | BN33: 41.1 | BO33: 40.5 | BP33: 40.1 | BQ33: 40.5 | BR33: 146.1 | BS33: 150.3 | BT33: 152.8 | BU33: 161.7 | BV33: 180 | BW33: 180 | BX33: 180 | BY33: 1091.2 | BZ33: 913.1 | CA33: 814.8 | CB33: 772.7 | CC33: 754.1 | CD33: 745.4 | CE33: 744.3 | CF33: 706.9 | CG33: 597.5 | CH33: 549 | CI33: 531.6 | CJ33: 523.9 | CK33: 519.8 | CL33: 516.9 | CM33: 662.2 | CN33: 567.9 | CO33: 532 | CP33: 514.7 | CQ33: 505.8 | CR33: 500.5 | CS33: 496.7 | CT33: 625.2 | CU33: 547.6 | CV33: 517.6 | CW33: 496.5 | CX33: 480.7 | CY33: 472.1 | CZ33: 465.3 | DA33: 625.8 | DB33: 547.8 | DC33: 517 | DD33: 494.4 | DE33: 473.9 | DF33: 458.5 | DG33: 442.2 | DH33: 660.9 | DI33: 555.1 | DJ33: 515.6 | DK33: 485.6 | DL33: 460.4 | DM33: 445.9 | DN33: 428.2 | DO33: 683.8 | DP33: 568.1 | DQ33: 522.6 | DR33: 493 | DS33: 466 | DT33: 442.5 | DU33: 411.1 | DV33: 759.6 | DW33: 618.3 | DX33: 547 | DY33: 513.5 | DZ33: 485.8 | EA33: 460.3 | EB33: 415.6 | EC33: 897.2 | ED33: 711.8 | EE33: 603.5 | EF33: 543.4 | EG33: 512.7 | EH33: 486.5 | EI33: 440.8 | EJ33: 1036 | EK33: 822 | EL33: 694.2 | EM33: 611.7 | EN33: 553.3 | EO33: 519.9 | EP33: 470.1 | EQ33: 0.9081 | ER33: 1.1599 | ES33: 1.2933 | ET33: 0.6991 | EU33: 0.9401 | EV33: 1.0742 | EW33: 645.4 | EX33: 0.9297 | EY33: 0.873 | EZ33: 258.4 | FA33: 0.9388 | FB33: 0.671 | FC33: 65.6 | FD33: 639.1 | FE33: ITA00020723 | FF33: 7.733 | FG33: 3985 | FH33: 19.6 | FI33: 33.6 | FJ33: 29.6 | FK33: 64 | FL33: 0 | FM33: 33
A34: CLU76681 | B34: I7668 | C34: ITA-7668 | D34: MIDA | E34: 3/4 TONNER | F34: CROSATO | G34: NORLIN | H34: 1977 | I34: C.V.FIUMICINO | J34: MAVIGLIA RICCARDO c/o ANEMOS ASD | K34: CLUB | L34: C | M34: 500 | N34: 30/3/2016 | O34: 20:47:32 | P34: 10.38 | Q34: 8.573 | R34: 2 | S34: 3.33 | T34: 5504 | U34: 119.6 | V34: 0.41 | W34: 685.8 | X34: 0.9102 | Y34: 741.6 | Z34: 0.602 | AA34: 31.2 | AB34: 1132.7 | AC34: 925.6 | AD34: 804 | AE34: 718 | AF34: 667.1 | AG34: 637.1 | AH34: 608.5 | AI34: 1088.3 | AJ34: 892.1 | AK34: 779.3 | AL34: 708.2 | AM34: 666.2 | AN34: 641 | AO34: 614 | AP34: 951.6 | AQ34: 766.2 | AR34: 665.2 | AS34: 605.4 | AT34: 568 | AU34: 543.7 | AV34: 514.5 | AW34: 1005.4 | AX34: 804.7 | AY34: 694.3 | AZ34: 628.1 | BA34: 586.3 | BB34: 558.9 | BC34: 525.7 | BD34: 1164.8 | BE34: 898.8 | BF34: 747.1 | BG34: 653.2 | BH34: 592.1 | BI34: 550 | BJ34: 493.6 | BK34: 44.1 | BL34: 42.5 | BM34: 43.1 | BN34: 42.2 | BO34: 40.7 | BP34: 39.9 | BQ34: 39.1 | BR34: 147.4 | BS34: 151.4 | BT34: 151.2 | BU34: 156.9 | BV34: 180 | BW34: 180 | BX34: 180 | BY34: 1187.8 | BZ34: 992.9 | CA34: 880.6 | CB34: 799.9 | CC34: 760.1 | CD34: 739.7 | CE34: 725.3 | CF34: 770.3 | CG34: 651.6 | CH34: 578.1 | CI34: 543 | CJ34: 526.7 | CK34: 519.2 | CL34: 513.5 | CM34: 724.9 | CN34: 613 | CO34: 553.9 | CP34: 527.6 | CQ34: 512.5 | CR34: 503.3 | CS34: 496.1 | CT34: 687.3 | CU34: 582.4 | CV34: 537.2 | CW34: 515.2 | CX34: 498.9 | CY34: 485.5 | CZ34: 469 | DA34: 690.4 | DB34: 585.1 | DC34: 536.5 | DD34: 511.9 | DE34: 500.5 | DF34: 485.6 | DG34: 459.6 | DH34: 709.5 | DI34: 583.8 | DJ34: 530.3 | DK34: 503.9 | DL34: 481.6 | DM34: 465.3 | DN34: 448.7 | DO34: 728.7 | DP34: 598.1 | DQ34: 536.5 | DR34: 508.5 | DS34: 486 | DT34: 464.4 | DU34: 434 | DV34: 795.2 | DW34: 654.2 | DX34: 563 | DY34: 524.7 | DZ34: 501.3 | EA34: 479.9 | EB34: 440.9 | EC34: 933.3 | ED34: 743.7 | EE34: 630.7 | EF34: 557.8 | EG34: 524.4 | EH34: 502.7 | EI34: 463.7 | EJ34: 1077.6 | EK34: 858.3 | EL34: 727.5 | EM34: 636 | EN34: 574 | EO34: 534.6 | EP34: 491.7 | EQ34: 0.8484 | ER34: 1.1141 | ES34: 1.2684 | ET34: 0.6559 | EU34: 0.8985 | EV34: 1.0648 | EW34: 667.7 | EX34: 0.8985 | EY34: 0.713 | EZ34: 159.9 | FA34: 0.9016 | FB34: 0.61 | FC34: 38.8 | FD34: 665.5 | FE34: CLU00019021 | FF34: 7.771 | FG34: 6241 | FH34: 23.7 | FI34: 24.1 | FJ34: 39.5 | FK34: 85.3 | FL34: 0 | FM34: 34
A35: HUN010/16 | B35: HUN26 | C35: HUN 26 | D35: Manoken | E35: 30 Skerry Cruiser | F35: Style Yacht | G35: Jeno Benacsek | H35: 1938 | I35: HUNGARY | J35: Tracon Budapest Kft | K35: CLUB | L35: R | M35: 544 | N35: 20/4/2016 | O35: 12:49:46 | P35: 13.125 | Q35: 9.345 | R35: 1.535 | S35: 2.14 | T35: 3042 | U35: 130 | V35: 0.34 | W35: 639.6 | X35: 0.9598 | Y35: 703.3 | Z35: 0.592 | AA35: -4.7 | AB35: 1119.9 | AC35: 889 | AD35: 751.9 | AE35: 675.3 | AF35: 632.9 | AG35: 602.6 | AH35: 572.6 | AI35: 1063.8 | AJ35: 845.9 | AK35: 726.1 | AL35: 662.8 | AM35: 626.1 | AN35: 600.1 | AO35: 570.2 | AP35: 905.7 | AQ35: 720.2 | AR35: 618.9 | AS35: 559 | AT35: 521.5 | AU35: 496.6 | AV35: 465.9 | AW35: 956.7 | AX35: 757.4 | AY35: 647.5 | AZ35: 581.7 | BA35: 540 | BB35: 512.2 | BC35: 477.5 | BD35: 1125.2 | BE35: 854 | BF35: 699.7 | BG35: 604.6 | BH35: 542.5 | BI35: 499.1 | BJ35: 440.2 | BK35: 44.9 | BL35: 44.2 | BM35: 44.3 | BN35: 42.7 | BO35: 41.6 | BP35: 40.8 | BQ35: 41.2 | BR35: 144.7 | BS35: 148 | BT35: 145.3 | BU35: 154 | BV35: 166.1 | BW35: 180 | BX35: 180 | BY35: 1147.9 | BZ35: 931.2 | CA35: 810.4 | CB35: 756 | CC35: 727.1 | CD35: 708.7 | CE35: 704.1 | CF35: 733.7 | CG35: 597.8 | CH35: 527.6 | CI35: 502.5 | CJ35: 490.7 | CK35: 483.7 | CL35: 478.2 | CM35: 679.4 | CN35: 556.1 | CO35: 503.2 | CP35: 480.2 | CQ35: 469.8 | CR35: 463.2 | CS35: 456.2 | CT35: 633.1 | CU35: 525.9 | CV35: 486.5 | CW35: 458.8 | CX35: 440.8 | CY35: 431.8 | CZ35: 422.7 | DA35: 635.8 | DB35: 526.6 | DC35: 487 | DD35: 461.1 | DE35: 435.1 | DF35: 412.8 | DG35: 395.6 | DH35: 660.5 | DI35: 530.3 | DJ35: 480.7 | DK35: 446.1 | DL35: 427.7 | DM35: 411.3 | DN35: 385.9 | DO35: 692.2 | DP35: 546 | DQ35: 489.2 | DR35: 455.3 | DS35: 422.6 | DT35: 397.1 | DU35: 366.4 | DV35: 795.5 | DW35: 619.3 | DX35: 518.2 | DY35: 479.4 | DZ35: 448.4 | EA35: 418.4 | EB35: 352.5 | EC35: 945.6 | ED35: 733.4 | EE35: 600.5 | EF35: 518.7 | EG35: 481.8 | EH35: 453 | EI35: 397.2 | EJ35: 1091.9 | EK35: 846.8 | EL35: 693.4 | EM35: 594.6 | EN35: 538.7 | EO35: 496.5 | EP35: 441.1 | EQ35: 0.8887 | ER35: 1.2059 | ES35: 1.3904 | ET35: 0.672 | EU35: 0.9534 | EV35: 1.127 | EW35: 0 | EX35: 0 | EY35: 0.721 | EZ35: 139.6 | FA35: 0.9665 | FB35: 0 | FC35: 0 | FD35: 620.8 | FE35: HUN00062631 | FF35: 8.574 | FG35: 3764 | FH35: 20.4 | FI35: 27.2 | FJ35: 23.2 | FK35: 59.7 | FL35: 0 | FM35: 35
A36: ARG568401 | B36: ARG5684 | C36: ARG-5684 | D36: GANESH 2 | E36: 32DUE | F36: AST. PIERMARINE | G36: S. CARLINI | H36: 2015 | J36: CRISTIAN PAGLINI | K36: INTL | L36: C | M36: 630 | N36: 12/11/2016 | O36: 10:59:34 | P36: 9.762 | Q36: 9.096 | R36: 2.025 | S36: 3.29 | T36: 3914 | U36: 116.4 | V36: 0 | W36: 613.5 | X36: 1.0105 | Y36: 668 | Z36: 0.713 | AA36: 57.6 | AB36: 988.2 | AC36: 806.8 | AD36: 701.8 | AE36: 647.9 | AF36: 613.8 | AG36: 591.7 | AH36: 564 | AI36: 945.4 | AJ36: 774.3 | AK36: 685.3 | AL36: 639.2 | AM36: 611.1 | AN36: 590 | AO36: 561.3 | AP36: 836.7 | AQ36: 679.4 | AR36: 595.9 | AS36: 547.6 | AT36: 517.5 | AU36: 497.1 | AV36: 469.4 | AW36: 892.3 | AX36: 718.8 | AY36: 625.3 | AZ36: 570.6 | BA36: 536.5 | BB36: 513.8 | BC36: 484.4 | BD36: 1024.8 | BE36: 796.1 | BF36: 667.8 | BG36: 589.5 | BH36: 538.1 | BI36: 501.6 | BJ36: 449.4 | BK36: 43.2 | BL36: 42.2 | BM36: 40.9 | BN36: 39.2 | BO36: 38.8 | BP36: 38.3 | BQ36: 38.7 | BR36: 145 | BS36: 148.9 | BT36: 151.9 | BU36: 159.8 | BV36: 180 | BW36: 180 | BX36: 180 | BY36: 1022.5 | BZ36: 853.2 | CA36: 759.5 | CB36: 723 | CC36: 705.1 | CD36: 691.8 | CE36: 688 | CF36: 667.6 | CG36: 564.4 | CH36: 519.2 | CI36: 505 | CJ36: 498.6 | CK36: 495 | CL36: 487.8 | CM36: 627.9 | CN36: 539.3 | CO36: 504.6 | CP36: 490.1 | CQ36: 483.2 | CR36: 479.3 | CS36: 470 | CT36: 595.6 | CU36: 522.4 | CV36: 493.2 | CW36: 472 | CX36: 458 | CY36: 450.9 | CZ36: 445.1 | DA36: 598.2 | DB36: 523.5 | DC36: 494.2 | DD36: 471.9 | DE36: 449.2 | DF36: 430 | DG36: 414.1 | DH36: 614.4 | DI36: 519.6 | DJ36: 483.1 | DK36: 456.2 | DL36: 440.9 | DM36: 425.8 | DN36: 402.8 | DO36: 632.1 | DP36: 529 | DQ36: 489.7 | DR36: 458.4 | DS36: 427.4 | DT36: 410.1 | DU36: 383.9 | DV36: 698.9 | DW36: 568.6 | DX36: 510.1 | DY36: 479.8 | DZ36: 450 | EA36: 420.5 | EB36: 357.2 | EC36: 826.2 | ED36: 658.6 | EE36: 559.3 | EF36: 508.7 | EG36: 480.5 | EH36: 452.9 | EI36: 398.3 | EJ36: 954 | EK36: 760.5 | EL36: 644.2 | EM36: 572.8 | EN36: 522.6 | EO36: 491.6 | EP36: 440 | EQ36: 0.9718 | ER36: 1.2354 | ES36: 1.3836 | ET36: 0.7521 | EU36: 1.0066 | EV36: 1.1502 | EW36: 0 | EX36: 0 | EY36: 0.953 | EZ36: 269.8 | FA36: 1.0029 | FB36: 0 | FC36: 0 | FD36: 598.3 | FE36: ARG00003451 | FF36: 8.814 | FG36: 4685 | FH36: 22.4 | FI36: 39.4 | FJ36: 28.1 | FK36: 89.9 | FL36: 0 | FM36: 36
A37: ARG570501 | B37: OjodeB | C37: ARG-5705 | D37: OJO DE BALLENA | E37: 32DUE | F37: AST. PIERMARINE | G37: S. CARLINI | H37: 2015 | J37: PATRICIO GUISASOLA | K37: INTL | L37: C | M37: 650 | N37: 12/11/2016 | O37: 11:00:48 | P37: 9.762 | Q37: 9.148 | R37: 2.034 | S37: 3.29 | T37: 4058 | U37: 119.6 | V37: 0.01 | W37: 622.5 | X37: 0.9981 | Y37: 676.3 | Z37: 0.681 | AA37: 43 | AB37: 1018.9 | AC37: 828.4 | AD37: 716 | AE37: 652.6 | AF37: 616 | AG37: 594.8 | AH37: 563.7 | AI37: 973 | AJ37: 793.6 | AK37: 697 | AL37: 644.1 | AM37: 613.6 | AN37: 593.5 | AO37: 560.4 | AP37: 855.9 | AQ37: 692 | AR37: 604.2 | AS37: 552.9 | AT37: 520.9 | AU37: 499.2 | AV37: 469.6 | AW37: 912.3 | AX37: 732.2 | AY37: 634.5 | AZ37: 576.9 | BA37: 540.9 | BB37: 516.9 | BC37: 485.4 | BD37: 1049.8 | BE37: 811.9 | BF37: 677.8 | BG37: 595.6 | BH37: 541.7 | BI37: 503.6 | BJ37: 449.5 | BK37: 43.4 | BL37: 42.2 | BM37: 41.5 | BN37: 39.6 | BO37: 39.1 | BP37: 38.5 | BQ37: 38.3 | BR37: 145.2 | BS37: 149.4 | BT37: 150.8 | BU37: 159.1 | BV37: 180 | BW37: 180 | BX37: 180 | BY37: 1058 | BZ37: 878 | CA37: 775 | CB37: 725.4 | CC37: 703.8 | CD37: 693.3 | CE37: 680.9 | CF37: 688.8 | CG37: 579.1 | CH37: 526.1 | CI37: 505 | CJ37: 497.2 | CK37: 493.2 | CL37: 486.4 | CM37: 647 | CN37: 550.3 | CO37: 510.5 | CP37: 491.1 | CQ37: 482.1 | CR37: 477.2 | CS37: 470.5 | CT37: 612.7 | CU37: 530.5 | CV37: 499.1 | CW37: 477.6 | CX37: 459.6 | CY37: 449.3 | CZ37: 441.4 | DA37: 614.9 | DB37: 531.2 | DC37: 494.8 | DD37: 478.1 | DE37: 457.2 | DF37: 436.4 | DG37: 411.4 | DH37: 627 | DI37: 526 | DJ37: 488.1 | DK37: 458.2 | DL37: 439.3 | DM37: 425.7 | DN37: 401.5 | DO37: 644.5 | DP37: 535.9 | DQ37: 494.4 | DR37: 464.5 | DS37: 433.9 | DT37: 408.8 | DU37: 382.2 | DV37: 710.8 | DW37: 578.3 | DX37: 515 | DY37: 484.6 | DZ37: 456.4 | EA37: 427.9 | EB37: 369.3 | EC37: 848.5 | ED37: 674.4 | EE37: 569.6 | EF37: 513.4 | EG37: 485.2 | EH37: 459.2 | EI37: 407.7 | EJ37: 979.7 | EK37: 778.8 | EL37: 657.1 | EM37: 579.9 | EN37: 528.3 | EO37: 496.2 | EP37: 446.6 | EQ37: 0.9476 | ER37: 1.2224 | ES37: 1.3793 | ET37: 0.7308 | EU37: 0.9937 | EV37: 1.1471 | EW37: 0 | EX37: 0 | EY37: 0.879 | EZ37: 228.5 | FA37: 0.9907 | FB37: 0 | FC37: 0 | FD37: 605.7 | FE37: ARG00003466 | FF37: 8.811 | FG37: 4837 | FH37: 22.8 | FI37: 36.7 | FJ37: 29 | FK37: 89.7 | FL37: 0 | FM37: 37
A38: AUS281800 | B38: 2818 | C38: 7058 | D38: Nouvel Amour | E38: 335 Grand Large | F38: Dufour Yachts | G38: Umberto Felci | H38: 2013 | I38: 2303 Hamilton South Australia | J38: Justin Singleton | K38: CLUB | L38: C | M38: 500 | N38: 16/9/2016 | O38: 12:02:04 | P38: 9.99 | Q38: 9.395 | R38: 1.945 | S38: 3.54 | T38: 5900 | U38: 112.3 | V38: 0.41 | W38: 702 | X38: 0.8815 | Y38: 765.7 | Z38: 0.548 | AA38: 0.9 | AB38: 1200.8 | AC38: 965.3 | AD38: 836.6 | AE38: 749.6 | AF38: 688 | AG38: 641.6 | AH38: 602.9 | AI38: 1152.8 | AJ38: 930.6 | AK38: 806.9 | AL38: 727.2 | AM38: 672.7 | AN38: 636.9 | AO38: 605 | AP38: 989.2 | AQ38: 790.3 | AR38: 680.3 | AS38: 613.7 | AT38: 571.1 | AU38: 542.7 | AV38: 508.5 | AW38: 1044.8 | AX38: 828.4 | AY38: 707.3 | AZ38: 633.2 | BA38: 585.4 | BB38: 553.8 | BC38: 516.9 | BD38: 1219.3 | BE38: 932 | BF38: 767 | BG38: 663.8 | BH38: 595.8 | BI38: 549 | BJ38: 488.5 | BK38: 44.7 | BL38: 42.9 | BM38: 42 | BN38: 42.3 | BO38: 41.1 | BP38: 39.6 | BQ38: 39 | BR38: 145.8 | BS38: 147 | BT38: 146.6 | BU38: 146.8 | BV38: 172.4 | BW38: 173.7 | BX38: 178.6 | BY38: 1272.4 | BZ38: 1038.7 | CA38: 911.9 | CB38: 824.8 | CC38: 757.4 | CD38: 721.6 | CE38: 701.6 | CF38: 816.2 | CG38: 679.8 | CH38: 599.3 | CI38: 547.2 | CJ38: 520.1 | CK38: 506.1 | CL38: 496.8 | CM38: 761.7 | CN38: 640.6 | CO38: 565.4 | CP38: 526.5 | CQ38: 506 | CR38: 493.4 | CS38: 481.7 | CT38: 718.2 | CU38: 606.7 | CV38: 541.2 | CW38: 511.6 | CX38: 494.4 | CY38: 481.2 | CZ38: 459.8 | DA38: 713 | DB38: 590.2 | DC38: 525.1 | DD38: 497.2 | DE38: 478.7 | DF38: 467.3 | DG38: 453.4 | DH38: 712.4 | DI38: 589.3 | DJ38: 525.2 | DK38: 497.5 | DL38: 478 | DM38: 458.6 | DN38: 422.6 | DO38: 742.3 | DP38: 611.3 | DQ38: 536.5 | DR38: 504.1 | DS38: 483.9 | DT38: 465 | DU38: 427.1 | DV38: 830.4 | DW38: 672.4 | DX38: 577.2 | DY38: 524.9 | DZ38: 499.2 | EA38: 480.6 | EB38: 444.5 | EC38: 978 | ED38: 772.4 | EE38: 659.2 | EF38: 583.9 | EG38: 539.6 | EH38: 512.8 | EI38: 480.7 | EJ38: 1129.2 | EK38: 891.9 | EL38: 761.2 | EM38: 674.3 | EN38: 618.7 | EO38: 561.6 | EP38: 504.2 | EQ38: 0.8133 | ER38: 1.0936 | ES38: 1.2751 | ET38: 0.6232 | EU38: 0.8641 | EV38: 1.0568 | EW38: 680 | EX38: 0.8824 | EY38: 0.633 | EZ38: 111.3 | FA38: 0.8813 | FB38: 0.555 | FC38: 5.9 | FD38: 680.8 | FE38: AUS00000388 | FF38: 7.975 | FG38: 6743 | FH38: 25.9 | FI38: 29.5 | FJ38: 24.9 | FK38: 0 | FL38: 62.6 | FM38: 38
A39: HUN030/16 | B39: HUN 40-1 | C39: HUN 40-1 | D39: Gloria | E39: 40 Skerry Cruiser | F39: Balatonfured SY | G39: A. Harms | H39: 1925 | I39: HUNGARY | J39: Miklos Juhasz | K39: CLUB | L39: R | M39: 350 | N39: 3/6/2016 | O39: 10:49:06 | P39: 13.2 | Q39: 10.578 | R39: 1.691 | S39: 2.1 | T39: 4654 | U39: 146.3 | V39: 0.29 | W39: 641 | X39: 0.9519 | Y39: 709.1 | Z39: 0.613 | AA39: 13.3 | AB39: 1110.2 | AC39: 880.4 | AD39: 757.4 | AE39: 685.3 | AF39: 642.6 | AG39: 613.9 | AH39: 580.9 | AI39: 1056.3 | AJ39: 842.7 | AK39: 733.6 | AL39: 675.4 | AM39: 640.4 | AN39: 616.6 | AO39: 585.8 | AP39: 899.7 | AQ39: 717.9 | AR39: 620.3 | AS39: 564 | AT39: 529.7 | AU39: 507.2 | AV39: 478.3 | AW39: 954.5 | AX39: 756.9 | AY39: 649 | AZ39: 585.5 | BA39: 546.1 | BB39: 520.2 | BC39: 488.4 | BD39: 1120.4 | BE39: 853.5 | BF39: 703 | BG39: 611.3 | BH39: 552.1 | BI39: 511 | BJ39: 454.2 | BK39: 45.2 | BL39: 44.5 | BM39: 44.1 | BN39: 43.5 | BO39: 43 | BP39: 43.1 | BQ39: 43 | BR39: 143.7 | BS39: 147.3 | BT39: 144.4 | BU39: 153.1 | BV39: 162.1 | BW39: 180 | BX39: 180 | BY39: 1150.7 | BZ39: 933.8 | CA39: 839.9 | CB39: 792.1 | CC39: 762 | CD39: 747.1 | CE39: 730.5 | CF39: 733.2 | CG39: 598.6 | CH39: 540.4 | CI39: 514.9 | CJ39: 501.4 | CK39: 493.9 | CL39: 485.2 | CM39: 677 | CN39: 554.3 | CO39: 504.7 | CP39: 487.2 | CQ39: 478.2 | CR39: 472.5 | CS39: 465.9 | CT39: 629.2 | CU39: 517 | CV39: 477.2 | CW39: 462 | CX39: 454 | CY39: 448.6 | CZ39: 441.9 | DA39: 631 | DB39: 516.9 | DC39: 473.6 | DD39: 453.5 | DE39: 439 | DF39: 429.3 | DG39: 419.2 | DH39: 641.2 | DI39: 513.7 | DJ39: 470.8 | DK39: 455.7 | DL39: 442.6 | DM39: 430.6 | DN39: 398.8 | DO39: 671.8 | DP39: 529.8 | DQ39: 472.3 | DR39: 446.5 | DS39: 431.4 | DT39: 418 | DU39: 392 | DV39: 775.9 | DW39: 601.1 | DX39: 501.9 | DY39: 463.7 | DZ39: 438 | EA39: 411 | EB39: 367.2 | EC39: 926.4 | ED39: 716.2 | EE39: 584.5 | EF39: 503.8 | EG39: 466.3 | EH39: 441.8 | EI39: 391.7 | EJ39: 1069.7 | EK39: 827 | EL39: 675 | EM39: 578.5 | EN39: 523.1 | EO39: 480.8 | EP39: 431.3 | EQ39: 0.8996 | ER39: 1.2007 | ES39: 1.3577 | ET39: 0.6782 | EU39: 0.9442 | EV39: 1.1089 | EW39: 0 | EX39: 0 | EY39: 0.765 | EZ39: 174.9 | FA39: 0.9611 | FB39: 0 | FC39: 0 | FD39: 624.3 | FE39: HUN00063354 | FF39: 8.843 | FG39: 5549 | FH39: 24.9 | FI39: 40 | FJ39: 24.2 | FK39: 76.2 | FL39: 0 | FM39: 39
A40: HUN025/16 | B40: HUN 40-3 | C40: HUN 40-3 | D40: Addio | E40: 40 Skerry Cruiser | F40: Balatonfured SY | G40: Jeno Benacsek | H40: 1943 | I40: HUNGARY | J40: Ervin Vasarhelyi | K40: CLUB | L40: C | M40: 350 | N40: 10/5/2016 | O40: 08:19:40 | P40: 15.03 | Q40: 11.927 | R40: 1.707 | S40: 2.31 | T40: 5899 | U40: 111.3 | V40: 0.42 | W40: 655.1 | X40: 0.923 | Y40: 731.3 | Z40: 0.571 | AA40: -7.7 | AB40: 1173.4 | AC40: 917.6 | AD40: 778.9 | AE40: 702.4 | AF40: 657.7 | AG40: 631.2 | AH40: 594.6 | AI40: 1122 | AJ40: 881.9 | AK40: 757.2 | AL40: 692.4 | AM40: 656.4 | AN40: 634.5 | AO40: 604.4 | AP40: 935 | AQ40: 739 | AR40: 632.6 | AS40: 571.2 | AT40: 534.3 | AU40: 510.9 | AV40: 481.4 | AW40: 1005.7 | AX40: 789.5 | AY40: 670.1 | AZ40: 599.2 | BA40: 555.2 | BB40: 526.6 | BC40: 491.8 | BD40: 1164.1 | BE40: 879.1 | BF40: 717.7 | BG40: 619.3 | BH40: 555.7 | BI40: 511.6 | BJ40: 450.4 | BK40: 46.2 | BL40: 45.6 | BM40: 45.2 | BN40: 44.6 | BO40: 44.2 | BP40: 44.2 | BQ40: 44.9 | BR40: 144.1 | BS40: 146.9 | BT40: 143.1 | BU40: 150.2 | BV40: 155.7 | BW40: 170.1 | BX40: 180 | BY40: 1258.1 | BZ40: 1000.1 | CA40: 883 | CB40: 830.8 | CC40: 801 | CD40: 789.7 | CE40: 771.4 | CF40: 794.2 | CG40: 635.1 | CH40: 561.7 | CI40: 531.3 | CJ40: 514.3 | CK40: 506.4 | CL40: 492.9 | CM40: 727.8 | CN40: 584.6 | CO40: 515.2 | CP40: 489.8 | CQ40: 476.7 | CR40: 469.3 | CS40: 458.8 | CT40: 672.1 | CU40: 540.6 | CV40: 472.9 | CW40: 450.5 | CX40: 441.2 | CY40: 436.1 | CZ40: 431.1 | DA40: 665.7 | DB40: 539.4 | DC40: 469.4 | DD40: 439.1 | DE40: 424.6 | DF40: 417.7 | DG40: 411.5 | DH40: 656 | DI40: 517.5 | DJ40: 465.9 | DK40: 444.9 | DL40: 431.1 | DM40: 420.2 | DN40: 391 | DO40: 687.3 | DP40: 533.8 | DQ40: 458.7 | DR40: 434.7 | DS40: 421 | DT40: 409.1 | DU40: 386.5 | DV40: 790.6 | DW40: 605.4 | DX40: 496.1 | DY40: 446.3 | DZ40: 419.7 | EA40: 394.1 | EB40: 364.3 | EC40: 942.9 | ED40: 723.2 | EE40: 584.4 | EF40: 497.2 | EG40: 450.4 | EH40: 424.5 | EI40: 377.4 | EJ40: 1088.8 | EK40: 835.1 | EL40: 674.9 | EM40: 574 | EN40: 514.5 | EO40: 472.8 | EP40: 417.8 | EQ40: 0.8587 | ER40: 1.1866 | ES40: 1.3493 | ET40: 0.6456 | EU40: 0.9188 | EV40: 1.0815 | EW40: 0 | EX40: 0 | EY40: 0.714 | EZ40: 155.7 | FA40: 0.9429 | FB40: 0 | FC40: 0 | FD40: 636.3 | FE40: HUN00062895 | FF40: 9.194 | FG40: 6982 | FH40: 30 | FI40: 38.2 | FJ40: 25.7 | FK40: 87.7 | FL40: 0 | FM40: 40
A41: HUN028/16 | B41: HUN 40-4 | C41: HUN 40-4 | D41: Tabu | E41: 40 Skerry Cruiser | F41: Balatonfured SY | G41: Jeno Benacsek | H41: 1942 | I41: HUNGARY | J41: Dr Lajos Kollar | K41: CLUB | L41: C | M41: 350 | N41: 13/5/2016 | O41: 15:05:10 | P41: 15.058 | Q41: 12.076 | R41: 1.754 | S41: 2.36 | T41: 6502 | U41: 125.2 | V41: 0.43 | W41: 645.8 | X41: 0.9421 | Y41: 716.5 | Z41: 0.565 | AA41: -18.2 | AB41: 1170.5 | AC41: 915.3 | AD41: 768.9 | AE41: 687.3 | AF41: 639.9 | AG41: 607.7 | AH41: 575.2 | AI41: 1116.4 | AJ41: 875.5 | AK41: 744.2 | AL41: 674.2 | AM41: 635 | AN41: 608.9 | AO41: 581.3 | AP41: 928.7 | AQ41: 731.5 | AR41: 623.4 | AS41: 560 | AT41: 521.5 | AU41: 497.1 | AV41: 468.2 | AW41: 994.9 | AX41: 779.3 | AY41: 659.2 | AZ41: 587.2 | BA41: 542 | BB41: 512.8 | BC41: 478.5 | BD41: 1156.4 | BE41: 869.8 | BF41: 706.6 | BG41: 606.7 | BH41: 542.3 | BI41: 498.4 | BJ41: 440.4 | BK41: 46 | BL41: 45.1 | BM41: 45 | BN41: 44.5 | BO41: 44.1 | BP41: 43.8 | BQ41: 44.1 | BR41: 144.3 | BS41: 147.4 | BT41: 144.4 | BU41: 150.2 | BV41: 155.9 | BW41: 171.3 | BX41: 180 | BY41: 1240.9 | BZ41: 986.3 | CA41: 852.8 | CB41: 791.8 | CC41: 759.1 | CD41: 738.3 | CE41: 727.9 | CF41: 785.3 | CG41: 629 | CH41: 544.1 | CI41: 507.1 | CJ41: 488.8 | CK41: 478.5 | CL41: 473.7 | CM41: 721.3 | CN41: 580.8 | CO41: 502.7 | CP41: 471.3 | CQ41: 458.4 | CR41: 451.5 | CS41: 445.6 | CT41: 668.5 | CU41: 540.1 | CV41: 470.3 | CW41: 442.3 | CX41: 431.1 | CY41: 425.1 | CZ41: 419.2 | DA41: 663.7 | DB41: 528.9 | DC41: 469.8 | DD41: 439.9 | DE41: 421.9 | DF41: 409.6 | DG41: 398.2 | DH41: 659 | DI41: 521.6 | DJ41: 453.8 | DK41: 434.4 | DL41: 422.4 | DM41: 411.5 | DN41: 389 | DO41: 689.6 | DP41: 540.3 | DQ41: 463.1 | DR41: 430.1 | DS41: 412 | DT41: 399.8 | DU41: 378.7 | DV41: 798.5 | DW41: 613.7 | DX41: 504.2 | DY41: 451.7 | DZ41: 425.3 | EA41: 402.3 | EB41: 357.1 | EC41: 952.7 | ED41: 731.2 | EE41: 593.2 | EF41: 504.8 | EG41: 455.9 | EH41: 429.7 | EI41: 386.5 | EJ41: 1100.1 | EK41: 844.3 | EL41: 685 | EM41: 582.8 | EN41: 520.8 | EO41: 477.1 | EP41: 422.4 | EQ41: 0.8608 | ER41: 1.2065 | ES41: 1.3893 | ET41: 0.6472 | EU41: 0.9353 | EV41: 1.1183 | EW41: 0 | EX41: 0 | EY41: 0.671 | EZ41: 112.4 | FA41: 0.959 | FB41: 0 | FC41: 0 | FD41: 625.7 | FE41: HUN00062977 | FF41: 9.594 | FG41: 7609 | FH41: 31.4 | FI41: 39.3 | FJ41: 23.5 | FK41: 79.8 | FL41: 0 | FM41: 41
A42: AUS283900 | B42: 2839 | C42: AUS 29 | D42: Antares | E42: 5.5 Metre | F42: Mr I, Perdriau | G42: Mr E. B. Fay | H42: 1970 | I42: 2106 Newport Australia | J42: Martin Cross | K42: CLUB | L42: R | M42: 150 | N42: 31/10/2016 | O42: 13:59:32 | P42: 9.07 | Q42: 8.073 | R42: 1.35 | S42: 1.9 | T42: 2032 | U42: 98.2 | V42: 0.25 | W42: 707.9 | X42: 0.8755 | Y42: 771 | Z42: 0.609 | AA42: 53.3 | AB42: 1167.3 | AC42: 938.6 | AD42: 817.4 | AE42: 750.2 | AF42: 708.3 | AG42: 675 | AH42: 643.7 | AI42: 1120.4 | AJ42: 906 | AK42: 799.4 | AL42: 745.3 | AM42: 709.8 | AN42: 678.2 | AO42: 658.2 | AP42: 972.4 | AQ42: 785.5 | AR42: 686.7 | AS42: 630.3 | AT42: 595.8 | AU42: 573.2 | AV42: 544.7 | AW42: 1045.6 | AX42: 834.9 | AY42: 721.5 | AZ42: 655.8 | BA42: 615.5 | BB42: 589.5 | BC42: 559.2 | BD42: 1197.5 | BE42: 924.9 | BF42: 772.8 | BG42: 680.8 | BH42: 621.4 | BI42: 580.1 | BJ42: 523.8 | BK42: 44.2 | BL42: 42.2 | BM42: 41.8 | BN42: 41.2 | BO42: 40.4 | BP42: 39.8 | BQ42: 40 | BR42: 145.2 | BS42: 149.6 | BT42: 149.6 | BU42: 158.5 | BV42: 180 | BW42: 180 | BX42: 180 | BY42: 1240.5 | BZ42: 1014.4 | CA42: 912.6 | CB42: 869.8 | CC42: 844.8 | CD42: 811.5 | CE42: 803.4 | CF42: 803.9 | CG42: 665.3 | CH42: 603.2 | CI42: 584.4 | CJ42: 575.1 | CK42: 562.4 | CL42: 555.9 | CM42: 753 | CN42: 625.9 | CO42: 575 | CP42: 561.2 | CQ42: 554.4 | CR42: 547.9 | CS42: 538.8 | CT42: 712 | CU42: 598 | CV42: 554.9 | CW42: 537.6 | CX42: 530.6 | CY42: 526.5 | CZ42: 515.2 | DA42: 679.9 | DB42: 592.7 | DC42: 556.4 | DD42: 533.3 | DE42: 515.4 | DF42: 505.9 | DG42: 499.8 | DH42: 676.8 | DI42: 569.4 | DJ42: 541.4 | DK42: 526.7 | DL42: 513.9 | DM42: 502.1 | DN42: 471.4 | DO42: 706 | DP42: 580.7 | DQ42: 538.2 | DR42: 515 | DS42: 499.4 | DT42: 485 | DU42: 459.6 | DV42: 801.2 | DW42: 641.2 | DX42: 560.3 | DY42: 528.6 | DZ42: 498.8 | EA42: 465.9 | EB42: 426.8 | EC42: 947.4 | ED42: 747.3 | EE42: 625.4 | EF42: 558.7 | EG42: 529.1 | EH42: 501.3 | EI42: 439.5 | EJ42: 1094 | EK42: 862.9 | EL42: 722.2 | EM42: 630.6 | EN42: 571.8 | EO42: 538.6 | EP42: 484 | EQ42: 0.8369 | ER42: 1.0751 | ES42: 1.199 | ET42: 0.6411 | EU42: 0.8678 | EV42: 1.005 | EW42: 688.3 | EX42: 0.8717 | EY42: 0.771 | EZ42: 226.6 | FA42: 0.8695 | FB42: 0.608 | FC42: 51.2 | FD42: 690.1 | FE42: AUS00000462 | FF42: 6.984 | FG42: 2653 | FH42: 15.1 | FI42: 21.7 | FJ42: 10.4 | FK42: 47.2 | FL42: 0 | FM42: 42
A43: AUS2841 | B43: 2841 | C43: AUS26 | D43: Baragoola | E43: 5.5m | F43: Hald & Johansen | G43: Chance & Co | H43: 1970 | I43: 2106 Newport Australia | J43: Jason Antill | K43: CLUB | L43: R | M43: 150 | N43: 16/11/2016 | O43: 11:16:36 | P43: 9.07 | Q43: 8.073 | R43: 1.35 | S43: 1.9 | T43: 2032 | U43: 98.2 | V43: 0.25 | W43: 707.7 | X43: 0.8758 | Y43: 770.7 | Z43: 0.609 | AA43: 53.4 | AB43: 1166.5 | AC43: 938.2 | AD43: 817.1 | AE43: 750 | AF43: 707.9 | AG43: 674.7 | AH43: 643.4 | AI43: 1119.7 | AJ43: 905.6 | AK43: 799.1 | AL43: 745 | AM43: 709.4 | AN43: 677.9 | AO43: 657.8 | AP43: 972.1 | AQ43: 785.3 | AR43: 686.5 | AS43: 630.1 | AT43: 595.7 | AU43: 573 | AV43: 544.6 | AW43: 1045.3 | AX43: 834.7 | AY43: 721.3 | AZ43: 655.6 | BA43: 615.4 | BB43: 589.4 | BC43: 559.1 | BD43: 1197 | BE43: 924.6 | BF43: 772.5 | BG43: 680.6 | BH43: 621.3 | BI43: 580 | BJ43: 523.7 | BK43: 44.2 | BL43: 42.2 | BM43: 41.8 | BN43: 41.2 | BO43: 40.4 | BP43: 39.8 | BQ43: 40.1 | BR43: 145.2 | BS43: 149.6 | BT43: 149.6 | BU43: 158.5 | BV43: 180 | BW43: 180 | BX43: 180 | BY43: 1239.1 | BZ43: 1013.5 | CA43: 912.1 | CB43: 869.3 | CC43: 844 | CD43: 810.9 | CE43: 802.9 | CF43: 803.2 | CG43: 664.9 | CH43: 603 | CI43: 584.2 | CJ43: 574.9 | CK43: 562.3 | CL43: 555.8 | CM43: 752.6 | CN43: 625.7 | CO43: 574.9 | CP43: 561.1 | CQ43: 554.3 | CR43: 547.9 | CS43: 538.7 | CT43: 711.9 | CU43: 598 | CV43: 554.9 | CW43: 537.6 | CX43: 530.6 | CY43: 526.5 | CZ43: 515.2 | DA43: 680 | DB43: 592.7 | DC43: 556.5 | DD43: 533.4 | DE43: 515.5 | DF43: 505.9 | DG43: 499.8 | DH43: 676.9 | DI43: 569.5 | DJ43: 541.4 | DK43: 526.7 | DL43: 513.9 | DM43: 502.1 | DN43: 471.5 | DO43: 706.2 | DP43: 580.8 | DQ43: 538.2 | DR43: 515 | DS43: 499.4 | DT43: 485 | DU43: 459.6 | DV43: 801.2 | DW43: 641.3 | DX43: 560.3 | DY43: 528.6 | DZ43: 498.8 | EA43: 465.9 | EB43: 426.8 | EC43: 947.4 | ED43: 747.3 | EE43: 625.4 | EF43: 558.7 | EG43: 529.1 | EH43: 501.3 | EI43: 439.5 | EJ43: 1094 | EK43: 862.9 | EL43: 722.1 | EM43: 630.6 | EN43: 571.8 | EO43: 538.6 | EP43: 484 | EQ43: 0.8372 | ER43: 1.0754 | ES43: 1.1993 | ET43: 0.6414 | EU43: 0.8681 | EV43: 1.0055 | EW43: 688.1 | EX43: 0.8719 | EY43: 0.772 | EZ43: 226.6 | FA43: 0.8697 | FB43: 0.608 | FC43: 51.3 | FD43: 689.9 | FE43: AUS00000481 | FF43: 6.987 | FG43: 2653 | FH43: 15.1 | FI43: 21.7 | FJ43: 10.4 | FK43: 47.2 | FL43: 0 | FM43: 43
A44: ESP190901 | B44: GER1909 | C44: GER-1909 | D44: MYC-ONE | E44: 50 ' IOR | F44: SCHUETZ/KNIERIM | G44: JUDEL/VROLIJK | H44: 1991 | I44: C.N.P.A. | J44: MEDITERRANEAM YAACHT CLUB | K44: INTL | L44: R | M44: 1086 | N44: 11/3/2016 | O44: 06:30:16 | P44: 15.15 | Q44: 12.223 | R44: 2.897 | S44: 4.55 | T44: 11179 | U44: 126.8 | V44: 0 | W44: 535.4 | X44: 1.1528 | Y44: 585.5 | Z44: 0.797 | AA44: 48 | AB44: 866.4 | AC44: 716.5 | AD44: 623.7 | AE44: 568.7 | AF44: 535.1 | AG44: 511.2 | AH44: 482.9 | AI44: 822.6 | AJ44: 678.2 | AK44: 599.4 | AL44: 555.1 | AM44: 528 | AN44: 508.6 | AO44: 482.5 | AP44: 729.9 | AQ44: 593.4 | AR44: 520.3 | AS44: 477.4 | AT44: 450.3 | AU44: 431.8 | AV44: 407.5 | AW44: 759.3 | AX44: 614.8 | AY44: 536.7 | AZ44: 490.4 | BA44: 460.8 | BB44: 440.5 | BC44: 413.2 | BD44: 902 | BE44: 700.4 | BF44: 586.1 | BG44: 515.6 | BH44: 469.3 | BI44: 436.8 | BJ44: 392 | BK44: 42.5 | BL44: 42.5 | BM44: 40.6 | BN44: 38.8 | BO44: 37.5 | BP44: 36.7 | BQ44: 35.9 | BR44: 142.1 | BS44: 147.8 | BT44: 148.3 | BU44: 155.3 | BV44: 167.6 | BW44: 180 | BX44: 180 | BY44: 864.1 | BZ44: 726.1 | CA44: 650.4 | CB44: 613.7 | CC44: 592.8 | CD44: 580.3 | CE44: 566.3 | CF44: 566.4 | CG44: 479.1 | CH44: 446.2 | CI44: 433.6 | CJ44: 426.2 | CK44: 420.9 | CL44: 414 | CM44: 531.7 | CN44: 458.9 | CO44: 433.4 | CP44: 421 | CQ44: 412.9 | CR44: 407.4 | CS44: 401.6 | CT44: 500.9 | CU44: 444.9 | CV44: 422 | CW44: 405.8 | CX44: 393.3 | CY44: 385.8 | CZ44: 377.5 | DA44: 500.9 | DB44: 445.2 | DC44: 421.5 | DD44: 402.9 | DE44: 386.8 | DF44: 374.2 | DG44: 358.9 | DH44: 544.1 | DI44: 457.1 | DJ44: 424.1 | DK44: 400.5 | DL44: 382.2 | DM44: 372 | DN44: 354.4 | DO44: 565 | DP44: 468.7 | DQ44: 431.5 | DR44: 408.1 | DS44: 385.5 | DT44: 365.7 | DU44: 341.6 | DV44: 632.3 | DW44: 517.9 | DX44: 455.2 | DY44: 426.7 | DZ44: 404.9 | EA44: 383.7 | EB44: 345.2 | EC44: 752.3 | ED44: 612.3 | EE44: 517 | EF44: 458 | EG44: 429.5 | EH44: 408.5 | EI44: 369.7 | EJ44: 868.7 | EK44: 707 | EL44: 596.9 | EM44: 523.8 | EN44: 477.3 | EO44: 442.1 | EP44: 399.6 | EQ44: 1.1121 | ER44: 1.4137 | ES44: 1.5941 | ET44: 0.8529 | EU44: 1.1422 | EV44: 1.3325 | EW44: 528 | EX44: 1.1363 | EY44: 1.005 | EZ44: 219.2 | FA44: 1.1446 | FB44: 0.807 | FC44: 57.2 | FD44: 524.2 | FE44: ESP00017065 | FF44: 12.032 | FG44: 12418 | FH44: 40.4 | FI44: 91.8 | FJ44: 73.3 | FK44: 144.9 | FL44: 160 | FM44: 44
A45: nor9490 | B45: 9490 | C45: NOR 5 | D45: Pus | E45: 52 KVM KRYSSER | F45: Anker & Jensen | G45: ANKER | H45: 1909 | J45: Ole Stian Oslebye | K45: CLUB | L45: C | M45: 541 | N45: 24/5/2016 | O45: 23:26:04 | P45: 11.69 | Q45: 9.004 | R45: 1.823 | S45: 2.28 | T45: 5833 | U45: 153.6 | V45: 0.46 | W45: 684.4 | X45: 0.9027 | Y45: 747.7 | Z45: 0.568 | AA45: 7.3 | AB45: 1178.5 | AC45: 945.3 | AD45: 809.9 | AE45: 722.2 | AF45: 669.2 | AG45: 635.7 | AH45: 608 | AI45: 1120.2 | AJ45: 904.5 | AK45: 780.8 | AL45: 708.5 | AM45: 666.7 | AN45: 640.9 | AO45: 616.3 | AP45: 963.4 | AQ45: 769.1 | AR45: 662.6 | AS45: 599.6 | AT45: 560.8 | AU45: 536.2 | AV45: 508.6 | AW45: 997.2 | AX45: 793.4 | AY45: 681.2 | AZ45: 614.2 | BA45: 572.4 | BB45: 545.4 | BC45: 513.8 | BD45: 1193.7 | BE45: 910.1 | BF45: 748.3 | BG45: 648.8 | BH45: 584.5 | BI45: 540.6 | BJ45: 483.1 | BK45: 44.2 | BL45: 42.8 | BM45: 43.6 | BN45: 43.5 | BO45: 42.4 | BP45: 41.9 | BQ45: 41.4 | BR45: 147.7 | BS45: 152.1 | BT45: 152.1 | BU45: 155.6 | BV45: 172.8 | BW45: 180 | BX45: 180 | BY45: 1203.3 | BZ45: 992.6 | CA45: 870.7 | CB45: 803.2 | CC45: 767.1 | CD45: 746.7 | CE45: 736.4 | CF45: 776.3 | CG45: 647.4 | CH45: 564.7 | CI45: 528.3 | CJ45: 513.6 | CK45: 505.7 | CL45: 498.6 | CM45: 725.8 | CN45: 604.7 | CO45: 535.5 | CP45: 506.4 | CQ45: 493.9 | CR45: 487.5 | CS45: 481.3 | CT45: 684.1 | CU45: 569.6 | CV45: 517.6 | CW45: 491.8 | CX45: 475 | CY45: 465.8 | CZ45: 458.1 | DA45: 687.3 | DB45: 570.9 | DC45: 511.7 | DD45: 494.7 | DE45: 477.3 | DF45: 460.6 | DG45: 439.4 | DH45: 706 | DI45: 573.8 | DJ45: 513.7 | DK45: 486.5 | DL45: 464.8 | DM45: 454.2 | DN45: 438.4 | DO45: 734.9 | DP45: 596.7 | DQ45: 524.4 | DR45: 493.8 | DS45: 473.2 | DT45: 453.4 | DU45: 425.9 | DV45: 836.8 | DW45: 676.6 | DX45: 565.8 | DY45: 516.2 | DZ45: 491 | EA45: 471.2 | EB45: 433 | EC45: 999.2 | ED45: 778.6 | EE45: 649 | EF45: 559.3 | EG45: 515.8 | EH45: 492 | EI45: 455.1 | EJ45: 1153.7 | EK45: 898.1 | EL45: 749 | EM45: 641.3 | EN45: 571.2 | EO45: 524.7 | EP45: 479.6 | EQ45: 0.8341 | ER45: 1.1251 | ES45: 1.2872 | ET45: 0.6356 | EU45: 0.8919 | EV45: 1.0652 | EW45: 668.9 | EX45: 0.897 | EY45: 0.666 | EZ45: 128.4 | FA45: 0.903 | FB45: 0.574 | FC45: 14.7 | FD45: 664.4 | FE45: nor00001272 | FF45: 7.958 | FG45: 6551 | FH45: 26.4 | FI45: 37.6 | FJ45: 26.1 | FK45: 56.1 | FL45: 0 | FM45: 45
A46: CLU58_6M | B46: I58_6M | C46: ITA-58_6M | D46: BAU BAU | E46: 6 METRI S.I. | F46: BAGLIETTO | G46: BAGLIETTO | H46: 1938 | I46: R.Y.C.C.SAVOIA | J46: LA SCALA GIUSEPPE | K46: CLUB | L46: R | M46: 500 | N46: 3/4/2016 | O46: 18:53:26 | P46: 11.442 | Q46: 8.211 | R46: 1.584 | S46: 1.88 | T46: 4292 | U46: 137.6 | V46: 0.09 | W46: 673.6 | X46: 0.9012 | Y46: 749 | Z46: 0.676 | AA46: 83 | AB46: 1070.7 | AC46: 892.9 | AD46: 791.3 | AE46: 728.2 | AF46: 692 | AG46: 669.8 | AH46: 640.9 | AI46: 1025 | AJ46: 858.7 | AK46: 773.8 | AL46: 726.2 | AM46: 698.2 | AN46: 678.9 | AO46: 657.8 | AP46: 904 | AQ46: 740 | AR46: 654.8 | AS46: 607.1 | AT46: 578.9 | AU46: 561.1 | AV46: 539.1 | AW46: 939.4 | AX46: 765 | AY46: 673 | AZ46: 620.6 | BA46: 589.1 | BB46: 569.1 | BC46: 545.3 | BD46: 1121.3 | BE46: 877.1 | BF46: 740.6 | BG46: 657.7 | BH46: 604 | BI46: 566.5 | BJ46: 513.5 | BK46: 44.5 | BL46: 44.1 | BM46: 42.9 | BN46: 42.4 | BO46: 42.5 | BP46: 42.2 | BQ46: 42.9 | BR46: 145.7 | BS46: 150.1 | BT46: 149.7 | BU46: 158.5 | BV46: 180 | BW46: 180 | BX46: 180 | BY46: 1111.3 | BZ46: 965.3 | CA46: 896.1 | CB46: 856.1 | CC46: 839.1 | CD46: 826.5 | CE46: 812.3 | CF46: 715 | CG46: 623.7 | CH46: 584.6 | CI46: 565.3 | CJ46: 555.8 | CK46: 553.1 | CL46: 540.5 | CM46: 664.5 | CN46: 580.4 | CO46: 552.1 | CP46: 538.8 | CQ46: 531.5 | CR46: 528.1 | CS46: 519.1 | CT46: 617.9 | CU46: 543.5 | CV46: 522.7 | CW46: 513.3 | CX46: 507.7 | CY46: 504.2 | CZ46: 499.3 | DA46: 613.1 | DB46: 538.7 | DC46: 511 | DD46: 498.5 | DE46: 491.7 | DF46: 487.7 | DG46: 484.6 | DH46: 647.7 | DI46: 543.8 | DJ46: 519 | DK46: 504.8 | DL46: 488.8 | DM46: 474.3 | DN46: 464.6 | DO46: 669.9 | DP46: 553.1 | DQ46: 511.9 | DR46: 495.3 | DS46: 483.5 | DT46: 472.6 | DU46: 456.7 | DV46: 743.1 | DW46: 603.3 | DX46: 533.2 | DY46: 503.6 | DZ46: 480 | EA46: 456.6 | EB46: 435.6 | EC46: 892.1 | ED46: 709 | EE46: 594.5 | EF46: 531.6 | EG46: 504.2 | EH46: 481.9 | EI46: 439.8 | EJ46: 1030.2 | EK46: 820.6 | EL46: 686.5 | EM46: 600.4 | EN46: 544.9 | EO46: 513.2 | EP46: 469.6 | EQ46: 0.9032 | ER46: 1.1184 | ES46: 1.2215 | ET46: 0.6875 | EU46: 0.8953 | EV46: 1.0157 | EW46: 686.7 | EX46: 0.8737 | EY46: 0.914 | EZ46: 318.9 | FA46: 0.9027 | FB46: 0.674 | FC46: 96.4 | FD46: 664.7 | FE46: CLU00019112 | FF46: 7.148 | FG46: 4883 | FH46: 19.6 | FI46: 37.4 | FJ46: 28.1 | FK46: 68.8 | FL46: 0 | FM46: 46
A47: GER141080 | B47: 6KR737 | C47: 6KR 737 | D47: NATASCHA | E47: 6.5 KR | F47: MATTHIESSEN&PAULSE | G47: RHODES | H47: 1958 | I47: TYC | J47: ROLF MANDERLA | K47: CLUB | L47: C | M47: 340 | N47: 1/4/2016 | O47: 09:09:20 | P47: 11 | Q47: 8.608 | R47: 1.646 | S47: 2.81 | T47: 6801 | U47: 141.3 | V47: 0.71 | W47: 740.3 | X47: 0.8332 | Y47: 810.1 | Z47: 0.524 | AA47: 4.3 | AB47: 1264 | AC47: 1020.9 | AD47: 886.7 | AE47: 790.6 | AF47: 721.2 | AG47: 681.8 | AH47: 648.2 | AI47: 1226.4 | AJ47: 995.5 | AK47: 866.8 | AL47: 782.9 | AM47: 725.7 | AN47: 691.6 | AO47: 657 | AP47: 1040.4 | AQ47: 832.2 | AR47: 717.4 | AS47: 648.4 | AT47: 604.6 | AU47: 576.1 | AV47: 543.3 | AW47: 1111.7 | AX47: 883 | AY47: 755.1 | AZ47: 676.9 | BA47: 626.6 | BB47: 593.4 | BC47: 554.9 | BD47: 1281 | BE47: 981.3 | BF47: 808.9 | BG47: 700.9 | BH47: 629.7 | BI47: 580.6 | BJ47: 516.7 | BK47: 46.5 | BL47: 45.3 | BM47: 44.9 | BN47: 45.6 | BO47: 45.6 | BP47: 44.6 | BQ47: 43.7 | BR47: 147.1 | BS47: 151.3 | BT47: 152.1 | BU47: 155.5 | BV47: 174.9 | BW47: 180 | BX47: 180 | BY47: 1403.7 | BZ47: 1153.4 | CA47: 1021.9 | CB47: 926.9 | CC47: 854.7 | CD47: 819.3 | CE47: 794.5 | CF47: 885.9 | CG47: 738.3 | CH47: 654.2 | CI47: 590.2 | CJ47: 556.3 | CK47: 541 | CL47: 530.9 | CM47: 816.1 | CN47: 687.8 | CO47: 605.6 | CP47: 557.4 | CQ47: 534.7 | CR47: 521.8 | CS47: 511.7 | CT47: 760.3 | CU47: 642.7 | CV47: 568.7 | CW47: 536.4 | CX47: 518.4 | CY47: 505.3 | CZ47: 487.3 | DA47: 747.7 | DB47: 616.1 | DC47: 546.9 | DD47: 526.6 | DE47: 517.5 | DF47: 503.9 | DG47: 479.6 | DH47: 731.8 | DI47: 601.8 | DJ47: 540.1 | DK47: 513.5 | DL47: 495.2 | DM47: 485.4 | DN47: 470.1 | DO47: 753.7 | DP47: 618.5 | DQ47: 547.2 | DR47: 518 | DS47: 497.7 | DT47: 478.6 | DU47: 455.6 | DV47: 828.2 | DW47: 676.5 | DX47: 577.7 | DY47: 534.4 | DZ47: 511.3 | EA47: 492.3 | EB47: 455.7 | EC47: 973.6 | ED47: 769.7 | EE47: 651.6 | EF47: 571.7 | EG47: 534.2 | EH47: 512.6 | EI47: 477.2 | EJ47: 1124.3 | EK47: 888.4 | EL47: 751.5 | EM47: 654.4 | EN47: 587.6 | EO47: 544.3 | EP47: 501.9 | EQ47: 0.7736 | ER47: 1.0367 | ES47: 1.2002 | ET47: 0.5908 | EU47: 0.8187 | EV47: 0.9941 | EW47: 718.8 | EX47: 0.8347 | EY47: 0.606 | EZ47: 118.3 | FA47: 0.8351 | FB47: 0.528 | FC47: 7.5 | FD47: 718.5 | FE47: GER20014040 | FF47: 6.9 | FG47: 7506 | FH47: 27.5 | FI47: 29.9 | FJ47: 27 | FK47: 80.4 | FL47: 0 | FM47: 47
A48: HUN035/16 | B48: HUN 60-1 | C48: HUN 60-1 | D48: Daruvar | E48: 60-er Seefahrtkreu | F48: Balatonfured SY | G48: Jeno Benacsek | H48: 1937 | I48: HUNGARY | J48: Rudolf Barinkay | K48: CLUB | L48: C | M48: 647 | N48: 7/7/2016 | O48: 12:23:02 | P48: 14.15 | Q48: 10.3 | R48: 1.782 | S48: 3.01 | T48: 8826 | U48: 150.7 | V48: 0.48 | W48: 664.4 | X48: 0.9262 | Y48: 728.8 | Z48: 0.551 | AA48: -17.9 | AB48: 1171 | AC48: 934.6 | AD48: 801.9 | AE48: 707 | AF48: 647.1 | AG48: 606.7 | AH48: 565.8 | AI48: 1116.8 | AJ48: 898.2 | AK48: 772.8 | AL48: 692.1 | AM48: 641.7 | AN48: 609.4 | AO48: 572.2 | AP48: 945.3 | AQ48: 751.3 | AR48: 643.3 | AS48: 577.5 | AT48: 535.3 | AU48: 507 | AV48: 472.1 | AW48: 975.8 | AX48: 773.4 | AY48: 660.3 | AZ48: 591.1 | BA48: 546.3 | BB48: 516.1 | BC48: 478.2 | BD48: 1177 | BE48: 892.4 | BF48: 728.4 | BG48: 625.9 | BH48: 558.4 | BI48: 511.6 | BJ48: 448.9 | BK48: 46.7 | BL48: 45.1 | BM48: 45.5 | BN48: 46 | BO48: 44.4 | BP48: 43.2 | BQ48: 41.6 | BR48: 146.7 | BS48: 151.2 | BT48: 151.5 | BU48: 153.6 | BV48: 162.8 | BW48: 180 | BX48: 180 | BY48: 1226.1 | BZ48: 1001.6 | CA48: 880 | CB48: 793.1 | CC48: 740.6 | CD48: 709.6 | CE48: 676.4 | CF48: 773.7 | CG48: 641.3 | CH48: 558.8 | CI48: 508.9 | CJ48: 485.5 | CK48: 473.1 | CL48: 460.9 | CM48: 713.2 | CN48: 594.3 | CO48: 519.2 | CP48: 484.3 | CQ48: 465.6 | CR48: 454.3 | CS48: 443.3 | CT48: 662.9 | CU48: 550.8 | CV48: 493 | CW48: 467.7 | CX48: 451.2 | CY48: 436.6 | CZ48: 418.5 | DA48: 659 | DB48: 547.6 | DC48: 491.4 | DD48: 463 | DE48: 449.8 | DF48: 436.8 | DG48: 408.5 | DH48: 687.3 | DI48: 559.4 | DJ48: 491 | DK48: 462.3 | DL48: 442.6 | DM48: 424.1 | DN48: 403.5 | DO48: 713.3 | DP48: 580.6 | DQ48: 502 | DR48: 468.6 | DS48: 448.6 | DT48: 430.6 | DU48: 396.6 | DV48: 804.8 | DW48: 650 | DX48: 545 | DY48: 490.6 | DZ48: 464.3 | EA48: 445.6 | EB48: 411.4 | EC48: 966.4 | ED48: 751.4 | EE48: 626.9 | EF48: 540.7 | EG48: 491 | EH48: 465.8 | EI48: 431.3 | EJ48: 1115.9 | EK48: 867.7 | EL48: 723.7 | EM48: 620.9 | EN48: 553.5 | EO48: 503.8 | EP48: 455.2 | EQ48: 0.8481 | ER48: 1.1604 | ES48: 1.3662 | ET48: 0.6411 | EU48: 0.909 | EV48: 1.1223 | EW48: 0 | EX48: 0 | EY48: 0.626 | EZ48: 84.6 | FA48: 0.9306 | FB48: 0 | FC48: 0 | FD48: 644.7 | FE48: HUN00070066 | FF48: 8.695 | FG48: 9692 | FH48: 32.2 | FI48: 52.4 | FJ48: 35.4 | FK48: 73.2 | FL48: 0 | FM48: 48
A49: GER142195 | B49: 6MR15 | C49: 6MR 15 | D49: STEAM | E49: 6MR | F49: ABEKING&RASMUSSEN | G49: ANKER | H49: 1921 | I49: YCLL | J49: THORSTEN THELEN | K49: CLUB | L49: R | M49: 350 | N49: 30/6/2016 | O49: 11:05:54 | P49: 10.501 | Q49: 7.472 | R49: 1.506 | S49: 1.8 | T49: 3500 | U49: 184 | V49: 0.1 | W49: 664.6 | X49: 0.9345 | Y49: 722.3 | Z49: 0.659 | AA49: 61.4 | AB49: 1076.2 | AC49: 880.7 | AD49: 766.4 | AE49: 699.6 | AF49: 658.2 | AG49: 635.1 | AH49: 605.9 | AI49: 1024.3 | AJ49: 841.4 | AK49: 745.4 | AL49: 692.6 | AM49: 660.4 | AN49: 638.9 | AO49: 610.2 | AP49: 903.7 | AQ49: 735 | AR49: 645.6 | AS49: 594.2 | AT49: 562.6 | AU49: 541.7 | AV49: 515 | AW49: 936.7 | AX49: 758.4 | AY49: 662.9 | AZ49: 607.4 | BA49: 573.1 | BB49: 550.6 | BC49: 522.1 | BD49: 1116.5 | BE49: 866.5 | BF49: 726.3 | BG49: 641 | BH49: 586.1 | BI49: 548.1 | BJ49: 496.2 | BK49: 43.5 | BL49: 43.9 | BM49: 42.2 | BN49: 40.4 | BO49: 39.1 | BP49: 38.6 | BQ49: 38.2 | BR49: 146.4 | BS49: 151.1 | BT49: 151.3 | BU49: 162.8 | BV49: 180 | BW49: 180 | BX49: 180 | BY49: 1096.7 | BZ49: 918.8 | CA49: 826.7 | CB49: 781.5 | CC49: 755.5 | CD49: 739.3 | CE49: 725.8 | CF49: 712.4 | CG49: 599.6 | CH49: 558.6 | CI49: 542.3 | CJ49: 533.4 | CK49: 527.8 | CL49: 521 | CM49: 665.3 | CN49: 573.5 | CO49: 542.1 | CP49: 526.8 | CQ49: 518.3 | CR49: 512.6 | CS49: 505.9 | CT49: 624.9 | CU49: 556.5 | CV49: 529.1 | CW49: 510.8 | CX49: 497 | CY49: 488.9 | CZ49: 479.7 | DA49: 624.9 | DB49: 557.2 | DC49: 529.8 | DD49: 509.3 | DE49: 491.1 | DF49: 475 | DG49: 456.7 | DH49: 654.2 | DI49: 559.4 | DJ49: 524.9 | DK49: 499.6 | DL49: 485.3 | DM49: 474.1 | DN49: 454.7 | DO49: 681.7 | DP49: 570.9 | DQ49: 532.3 | DR49: 506.1 | DS49: 481.1 | DT49: 461.3 | DU49: 441.8 | DV49: 763.7 | DW49: 623.3 | DX49: 554.3 | DY49: 524.8 | DZ49: 500.5 | EA49: 476.8 | EB49: 432.8 | EC49: 914.2 | ED49: 728.5 | EE49: 612.6 | EF49: 552.1 | EG49: 524.5 | EH49: 501.5 | EI49: 458.3 | EJ49: 1055.7 | EK49: 842.7 | EL49: 706.1 | EM49: 617.7 | EN49: 560.9 | EO49: 530.9 | EP49: 486 | EQ49: 0.9 | ER49: 1.1393 | ES49: 1.2687 | ET49: 0.6899 | EU49: 0.929 | EV49: 1.0716 | EW49: 652.1 | EX49: 0.9201 | EY49: 0.836 | EZ49: 236.8 | FA49: 0.9231 | FB49: 0.663 | FC49: 65 | FD49: 650 | FE49: GER11001591 | FF49: 7.387 | FG49: 4013 | FH49: 17 | FI49: 35 | FJ49: 22.6 | FK49: 54.5 | FL49: 0 | FM49: 49
A50: HUN014/16 | B50: HUN6-2 | C50: HUN 6-2 | D50: Talizman | E50: 6mR | F50: Balatonfured SY | G50: SPARKMAN & STEPHENS | H50: 1941 | I50: HUNGARY | J50: Elek Straub | K50: CLUB | L50: C | M50: 420 | N50: 3/5/2016 | O50: 09:43:52 | P50: 10.89 | Q50: 8.549 | R50: 1.803 | S50: 1.92 | T50: 5199 | U50: 185.4 | V50: 0.39 | W50: 684.5 | X50: 0.9151 | Y50: 737.6 | Z50: 0.577 | AA50: 12.2 | AB50: 1170.8 | AC50: 940.2 | AD50: 801.3 | AE50: 710.6 | AF50: 656.9 | AG50: 623.8 | AH50: 587.9 | AI50: 1120 | AJ50: 902.1 | AK50: 776.7 | AL50: 701.4 | AM50: 656.5 | AN50: 627.4 | AO50: 591.1 | AP50: 962.2 | AQ50: 768.8 | AR50: 663 | AS50: 600.1 | AT50: 560.7 | AU50: 534.4 | AV50: 500.7 | AW50: 1015.7 | AX50: 807.1 | AY50: 691.7 | AZ50: 622.2 | BA50: 578.1 | BB50: 548.7 | BC50: 512.6 | BD50: 1185 | BE50: 905.4 | BF50: 746.2 | BG50: 648.3 | BH50: 584.9 | BI50: 541.3 | BJ50: 482.6 | BK50: 44.7 | BL50: 43.1 | BM50: 43.5 | BN50: 42.1 | BO50: 40.2 | BP50: 38.9 | BQ50: 37 | BR50: 146.6 | BS50: 150.7 | BT50: 148.7 | BU50: 157.1 | BV50: 180 | BW50: 180 | BX50: 180 | BY50: 1233.8 | BZ50: 1009.6 | CA50: 878.1 | CB50: 793.9 | CC50: 747.8 | CD50: 719.4 | CE50: 688.8 | CF50: 792.7 | CG50: 656 | CH50: 574.9 | CI50: 539 | CJ50: 521 | CK50: 510.2 | CL50: 498.2 | CM50: 739.5 | CN50: 613 | CO50: 550.2 | CP50: 523.8 | CQ50: 508 | CR50: 496.2 | CS50: 482.2 | CT50: 694.4 | CU50: 579 | CV50: 533.3 | CW50: 511.7 | CX50: 495.9 | CY50: 481.7 | CZ50: 458 | DA50: 696.1 | DB50: 576.3 | DC50: 526.1 | DD50: 506 | DE50: 496.4 | DF50: 481.7 | DG50: 452.4 | DH50: 697.1 | DI50: 570 | DJ50: 522.5 | DK50: 498.1 | DL50: 476.9 | DM50: 462.1 | DN50: 444.2 | DO50: 720.5 | DP50: 584.9 | DQ50: 529.1 | DR50: 503.2 | DS50: 481.8 | DT50: 460.3 | DU50: 428.5 | DV50: 805.3 | DW50: 650.6 | DX50: 554.6 | DY50: 519.1 | DZ50: 497 | EA50: 476.5 | EB50: 435.7 | EC50: 959.4 | ED50: 754.1 | EE50: 627.5 | EF50: 550.8 | EG50: 519 | EH50: 498.2 | EI50: 459.9 | EJ50: 1107.8 | EK50: 870.8 | EL50: 724.5 | EM50: 627.2 | EN50: 566.1 | EO50: 528.2 | EP50: 487.1 | EQ50: 0.8369 | ER50: 1.1232 | ES50: 1.292 | ET50: 0.6395 | EU50: 0.9042 | EV50: 1.0911 | EW50: 0 | EX50: 0 | EY50: 0.653 | EZ50: 112.4 | FA50: 0.9048 | FB50: 0 | FC50: 0 | FD50: 663.1 | FE50: HUN00062813 | FF50: 7.812 | FG50: 5858 | FH50: 22.9 | FI50: 35.9 | FJ50: 25.2 | FK50: 70.6 | FL50: 0 | FM50: 50
A51: nor8144 | B51: 8144 | C51: Sk 15 | D51: Ambition | E51: 7 m S | F51: Anker & Jensen | G51: Johan Anker | H51: 1918 | J51: Knut Erik Kismul | K51: CLUB | L51: C | M51: 515 | N51: 26/4/2016 | O51: 21:23:12 | P51: 12.41 | Q51: 8.94 | R51: 1.577 | S51: 2.24 | T51: 5648 | U51: 99.6 | V51: 0.16 | W51: 694.1 | X51: 0.8669 | Y51: 778.6 | Z51: 0.595 | AA51: 37.1 | AB51: 1147.2 | AC51: 939.4 | AD51: 831.1 | AE51: 762.2 | AF51: 715.8 | AG51: 682.6 | AH51: 653.5 | AI51: 1087.4 | AJ51: 902.8 | AK51: 808 | AL51: 753.3 | AM51: 719.7 | AN51: 694.9 | AO51: 671.3 | AP51: 948.6 | AQ51: 769.1 | AR51: 673.8 | AS51: 619.1 | AT51: 585.7 | AU51: 564.4 | AV51: 540.6 | AW51: 948.6 | AX51: 769.1 | AY51: 673.8 | AZ51: 619.1 | BA51: 585.7 | BB51: 564.4 | BC51: 540.6 | BD51: 1190.2 | BE51: 919.6 | BF51: 766.7 | BG51: 672.4 | BH51: 610.3 | BI51: 566.6 | BJ51: 508 | BK51: 44.9 | BL51: 43.6 | BM51: 43.1 | BN51: 43.1 | BO51: 43.7 | BP51: 44.2 | BQ51: 44.8 | BR51: 148.5 | BS51: 158 | BT51: 169.2 | BU51: 171 | BV51: 174.9 | BW51: 179.5 | BX51: 179.7 | BY51: 1127.9 | BZ51: 977.4 | CA51: 915.3 | CB51: 880.7 | CC51: 863.7 | CD51: 843.7 | CE51: 831.2 | CF51: 724 | CG51: 631.2 | CH51: 592 | CI51: 570.4 | CJ51: 559.2 | CK51: 545.3 | CL51: 535.7 | CM51: 674.3 | CN51: 583.1 | CO51: 549.7 | CP51: 533.3 | CQ51: 526.5 | CR51: 514.2 | CS51: 506.2 | CT51: 628.4 | CU51: 534.3 | CV51: 509.5 | CW51: 498.4 | CX51: 491.9 | CY51: 488.7 | CZ51: 479.3 | DA51: 625.3 | DB51: 530.7 | DC51: 492.2 | DD51: 480 | DE51: 473.6 | DF51: 470.1 | DG51: 467.2 | DH51: 689.7 | DI51: 563.9 | DJ51: 508.7 | DK51: 482.7 | DL51: 469.4 | DM51: 454.3 | DN51: 450.2 | DO51: 728.6 | DP51: 597.3 | DQ51: 526.4 | DR51: 495.4 | DS51: 474.5 | DT51: 454 | DU51: 439.5 | DV51: 849.5 | DW51: 684.2 | DX51: 580.3 | DY51: 522.7 | DZ51: 494.3 | EA51: 474.2 | EB51: 436.6 | EC51: 1010.2 | ED51: 784.8 | EE51: 659 | EF51: 571 | EG51: 520.6 | EH51: 493.7 | EI51: 455.3 | EJ51: 1166.5 | EK51: 901.4 | EL51: 746.8 | EM51: 643.7 | EN51: 567.9 | EO51: 521.4 | EP51: 475.8 | EQ51: 0.8577 | ER51: 1.0933 | ES51: 1.2177 | ET51: 0.647 | EU51: 0.8563 | EV51: 0.9927 | EW51: 713.2 | EX51: 0.8413 | EY51: 0.79 | EZ51: 245.8 | FA51: 0.8782 | FB51: 0.596 | FC51: 55.7 | FD51: 683.2 | FE51: nor00000708 | FF51: 7.345 | FG51: 6329 | FH51: 23 | FI51: 47.1 | FJ51: 27.1 | FK51: 0 | FL51: 0 | FM51: 51
A52: SUISUI133 | B52: SUI133 | C52: SUI 133 | D52: TALLY HO | E52: 7.9m CYD | F52: Farner & Stierlin | G52: J. Sprecher | H52: 1995 | I52: SCE | J52: Sprecher Patrik | K52: CLUB | L52: C | M52: 347 | N52: 19/4/2016 | O52: 16:06:30 | P52: 7.94 | Q52: 6.405 | R52: 1.053 | S52: 2.32 | T52: 2226 | U52: 120.8 | V52: 0.33 | W52: 792.3 | X52: 0.7814 | Y52: 863.8 | Z52: 0.609 | AA52: 114.6 | AB52: 1286.1 | AC52: 1053.3 | AD52: 921.2 | AE52: 832.6 | AF52: 788.3 | AG52: 764.1 | AH52: 1337.8 | AI52: 1251 | AJ52: 1028.7 | AK52: 910 | AL52: 842.7 | AM52: 803.8 | AN52: 791.8 | AO52: 1666.3 | AP52: 1079.9 | AQ52: 874.5 | AR52: 766.5 | AS52: 710.2 | AT52: 691.6 | AU52: 713.5 | AV52: 963.6 | AW52: 1124.5 | AX52: 905.6 | AY52: 789.8 | AZ52: 728.8 | BA52: 707.3 | BB52: 726.5 | BC52: 959.1 | BD52: 1323.5 | BE52: 1026.5 | BF52: 860 | BG52: 761.3 | BH52: 705.2 | BI52: 681.4 | BJ52: 716 | BK52: 46.6 | BL52: 45.6 | BM52: 46.3 | BN52: 46 | BO52: 45.4 | BP52: 44.7 | BQ52: 48 | BR52: 149.5 | BS52: 154.3 | BT52: 154.5 | BU52: 180 | BV52: 180 | BW52: 180 | BX52: 180 | BY52: 1421.8 | BZ52: 1188.4 | CA52: 1067.6 | CB52: 992.4 | CC52: 959.8 | CD52: 942.1 | CE52: 2142.3 | CF52: 899.4 | CG52: 756.4 | CH52: 698.2 | CI52: 640.3 | CJ52: 626.6 | CK52: 620 | CL52: 610.3 | CM52: 831 | CN52: 699 | CO52: 635.4 | CP52: 611 | CQ52: 600.6 | CR52: 595 | CS52: 556.6 | CT52: 770.5 | CU52: 654.6 | CV52: 610.4 | CW52: 587.4 | CX52: 571 | CY52: 561.4 | CZ52: 553.8 | DA52: 763.4 | DB52: 636.3 | DC52: 607.1 | DD52: 582 | DE52: 562.2 | DF52: 541.2 | DG52: 521.1 | DH52: 775.6 | DI52: 679.7 | DJ52: 618.8 | DK52: 560.8 | DL52: 536.3 | DM52: 524.1 | DN52: 509 | DO52: 774.8 | DP52: 678 | DQ52: 599.8 | DR52: 567.4 | DS52: 537.6 | DT52: 511.3 | DU52: 516.7 | DV52: 855.2 | DW52: 703.1 | DX52: 620.9 | DY52: 597.6 | DZ52: 577.7 | EA52: 528.8 | EB52: 531.2 | EC52: 996.2 | ED52: 795.7 | EE52: 678.2 | EF52: 612.8 | EG52: 582.8 | EH52: 556.2 | EI52: 542.5 | EJ52: 1150.3 | EK52: 918.2 | EL52: 774.9 | EM52: 672.8 | EN52: 616.8 | EO52: 586.1 | EP52: 533.4 | EQ52: 0.751 | ER52: 0.9657 | ES52: 0.9186 | ET52: 0.5771 | EU52: 0.7763 | EV52: 0.6851 | EW52: 0 | EX52: 0 | EY52: 0.742 | EZ52: 284 | FA52: 0.7825 | FB52: 0 | FC52: 0 | FD52: 766.8 | FE52: SUI00002141 | FF52: 5.466 | FG52: 2677 | FH52: 15.2 | FI52: 27.2 | FJ52: 9.9 | FK52: 38.6 | FL52: 0 | FM52: 52
A53: HUN020/16 | B53: HUN 75-1 | C53: HUN 75-1 | D53: Nemere II | E53: 75 skerry Cruiser | F53: Balatonfured SY | G53: Jeno Benacsek | H53: 1943 | I53: HUNGARY | J53: Robert Lang | K53: CLUB | L53: C | M53: 962 | N53: 5/5/2016 | O53: 08:25:56 | P53: 18.55 | Q53: 13.415 | R53: 1.928 | S53: 2.83 | T53: 10639 | U53: 119.2 | V53: 0.14 | W53: 553.7 | X53: 1.0831 | Y53: 623.2 | Z53: 0.763 | AA53: 46.4 | AB53: 910.5 | AC53: 747.3 | AD53: 657 | AE53: 606.4 | AF53: 578.4 | AG53: 553.7 | AH53: 523.9 | AI53: 879.3 | AJ53: 722.9 | AK53: 646.1 | AL53: 605.9 | AM53: 581.7 | AN53: 561.7 | AO53: 539.2 | AP53: 751.1 | AQ53: 611.5 | AR53: 538 | AS53: 495.9 | AT53: 470 | AU53: 452.6 | AV53: 429.4 | AW53: 835.8 | AX53: 669.7 | AY53: 579.5 | AZ53: 526.3 | BA53: 492.8 | BB53: 470.5 | BC53: 442.7 | BD53: 939.9 | BE53: 729.6 | BF53: 611.2 | BG53: 538.1 | BH53: 489.4 | BI53: 454.3 | BJ53: 403.8 | BK53: 46.9 | BL53: 44.6 | BM53: 43.9 | BN53: 43.6 | BO53: 43.8 | BP53: 43.7 | BQ53: 44.4 | BR53: 143.3 | BS53: 144.8 | BT53: 145.6 | BU53: 152.9 | BV53: 160.3 | BW53: 180 | BX53: 180 | BY53: 987.9 | BZ53: 837.4 | CA53: 770 | CB53: 732.1 | CC53: 712.2 | CD53: 691.2 | CE53: 676.4 | CF53: 621.2 | CG53: 535.5 | CH53: 494.6 | CI53: 472.4 | CJ53: 460.1 | CK53: 449.8 | CL53: 438.6 | CM53: 564.6 | CN53: 492.1 | CO53: 457.2 | CP53: 440.6 | CQ53: 431.2 | CR53: 425.9 | CS53: 415 | CT53: 502.7 | CU53: 447.2 | CV53: 422 | CW53: 410.3 | CX53: 403.7 | CY53: 399.6 | CZ53: 392.4 | DA53: 476.9 | DB53: 425.3 | DC53: 408.6 | DD53: 395 | DE53: 387.1 | DF53: 381.9 | DG53: 376.9 | DH53: 511.3 | DI53: 437.6 | DJ53: 409.6 | DK53: 388.9 | DL53: 377.5 | DM53: 369 | DN53: 353.7 | DO53: 545.3 | DP53: 456.2 | DQ53: 417.3 | DR53: 395.3 | DS53: 381.8 | DT53: 365.5 | DU53: 347 | DV53: 608.6 | DW53: 473.2 | DX53: 416.9 | DY53: 396.7 | DZ53: 382 | EA53: 368.7 | EB53: 338.8 | EC53: 721.5 | ED53: 569.2 | EE53: 471.1 | EF53: 418.5 | EG53: 394.1 | EH53: 370.7 | EI53: 323.1 | EJ53: 833.1 | EK53: 657.2 | EL53: 544 | EM53: 480.7 | EN53: 444.5 | EO53: 416.2 | EP53: 371.4 | EQ53: 1.0841 | ER53: 1.3655 | ES53: 1.5171 | ET53: 0.8143 | EU53: 1.0748 | EV53: 1.2302 | EW53: 0 | EX53: 0 | EY53: 1.05 | EZ53: 287 | FA53: 1.0985 | FB53: 0 | FC53: 0 | FD53: 546.2 | FE53: HUN00062845 | FF53: 10.867 | FG53: 11964 | FH53: 40.8 | FI53: 73.2 | FJ53: 44.6 | FK53: 236.1 | FL53: 0 | FM53: 53
A54: HUN021/16 | B54: HUN 75-3 | C54: HUN 75-3 | D54: Lillafured | E54: 75 skerry Cruiser | F54: Balatonfured SY | G54: Jeno Benacsek | H54: 1943 | I54: HUNGARY | J54: Gal & Partners Law Office | K54: CLUB | L54: C | M54: 900 | N54: 5/5/2016 | O54: 20:24:50 | P54: 18.55 | Q54: 13.17 | R54: 1.863 | S54: 2.8 | T54: 9176 | U54: 128.2 | V54: 0.07 | W54: 541.9 | X54: 1.1107 | Y54: 607.7 | Z54: 0.783 | AA54: 47.7 | AB54: 888.2 | AC54: 725.5 | AD54: 640 | AE54: 592.5 | AF54: 565.4 | AG54: 541 | AH54: 504.6 | AI54: 858.9 | AJ54: 705.8 | AK54: 630.7 | AL54: 591.4 | AM54: 567 | AN54: 546.3 | AO54: 522.4 | AP54: 733.5 | AQ54: 598 | AR54: 526.7 | AS54: 485.8 | AT54: 460.3 | AU54: 442.8 | AV54: 418.5 | AW54: 822.2 | AX54: 658.6 | AY54: 569.9 | AZ54: 517.4 | BA54: 484.3 | BB54: 462.2 | BC54: 434.4 | BD54: 917 | BE54: 712.2 | BF54: 597.2 | BG54: 526.3 | BH54: 478.8 | BI54: 444 | BJ54: 393.4 | BK54: 47.3 | BL54: 45 | BM54: 44.4 | BN54: 44 | BO54: 43.9 | BP54: 43.7 | BQ54: 43.9 | BR54: 142.7 | BS54: 139.7 | BT54: 147 | BU54: 153.8 | BV54: 160.1 | BW54: 174.8 | BX54: 150.9 | BY54: 974.3 | BZ54: 819.1 | CA54: 750.5 | CB54: 713.2 | CC54: 693.4 | CD54: 671.4 | CE54: 659.8 | CF54: 611.2 | CG54: 521.7 | CH54: 481.5 | CI54: 461.2 | CJ54: 450.2 | CK54: 440.4 | CL54: 432 | CM54: 553.5 | CN54: 479.7 | CO54: 448.1 | CP54: 433.8 | CQ54: 425.7 | CR54: 420.5 | CS54: 411.7 | CT54: 491.3 | CU54: 439.9 | CV54: 418.4 | CW54: 407.6 | CX54: 401 | CY54: 396.7 | CZ54: 388.5 | DA54: 466.7 | DB54: 421.5 | DC54: 406.1 | DD54: 393.2 | DE54: 383.1 | DF54: 376.4 | DG54: 370 | DH54: 497.5 | DI54: 431.7 | DJ54: 406.3 | DK54: 385.7 | DL54: 371.8 | DM54: 362.4 | DN54: 345.1 | DO54: 521.4 | DP54: 446 | DQ54: 413.6 | DR54: 390.4 | DS54: 374.4 | DT54: 359.2 | DU54: 337.6 | DV54: 583.2 | DW54: 465.2 | DX54: 410.5 | DY54: 389.1 | DZ54: 371.5 | EA54: 356.5 | EB54: 325.6 | EC54: 694.6 | ED54: 547.3 | EE54: 458.5 | EF54: 411.1 | EG54: 384.8 | EH54: 358 | EI54: 304.8 | EJ54: 802.1 | EK54: 631.9 | EL54: 529.4 | EM54: 471.8 | EN54: 437.3 | EO54: 410.5 | EP54: 349.5 | EQ54: 1.1116 | ER54: 1.393 | ES54: 1.5509 | ET54: 0.8366 | EU54: 1.1018 | EV54: 1.2653 | EW54: 0 | EX54: 0 | EY54: 1.093 | EZ54: 297 | FA54: 1.124 | FB54: 0 | FC54: 0 | FD54: 533.8 | FE54: HUN00062862 | FF54: 10.969 | FG54: 10456 | FH54: 39.1 | FI54: 73 | FJ54: 43 | FK54: 236.1 | FL54: 259.6 | FM54: 54
A55: HUN026/16 | B55: HUN75-2 | C55: HUN 75-2 | D55: Sirocco | E55: 75 Skerry Cruiser | F55: Balatonfured SY | G55: Jeno Benacsek | H55: 1943 | I55: HUNGARY | J55: Dimenzio Ingatlan Kft. | K55: CLUB | L55: C | M55: 750 | N55: 11/5/2016 | O55: 09:06:02 | P55: 18.55 | Q55: 13.337 | R55: 1.863 | S55: 2.91 | T55: 9992 | U55: 135.8 | V55: 0.09 | W55: 541.6 | X55: 1.1127 | Y55: 606.6 | Z55: 0.762 | AA55: 34.8 | AB55: 902 | AC55: 733 | AD55: 640.1 | AE55: 589.1 | AF55: 558.2 | AG55: 536.3 | AH55: 498.4 | AI55: 872.4 | AJ55: 710.4 | AK55: 630.1 | AL55: 586.7 | AM55: 559.2 | AN55: 540.3 | AO55: 509.7 | AP55: 740.3 | AQ55: 600.3 | AR55: 525.9 | AS55: 482.9 | AT55: 456 | AU55: 437.5 | AV55: 412 | AW55: 830.7 | AX55: 662.6 | AY55: 570.7 | AZ55: 515.9 | BA55: 481.2 | BB55: 457.8 | BC55: 427.3 | BD55: 924.6 | BE55: 714.9 | BF55: 596.7 | BG55: 523.7 | BH55: 475 | BI55: 439.4 | BJ55: 386.5 | BK55: 47.6 | BL55: 45.7 | BM55: 45 | BN55: 44.5 | BO55: 44.3 | BP55: 43.7 | BQ55: 43.7 | BR55: 143.6 | BS55: 144.8 | BT55: 146.5 | BU55: 153.5 | BV55: 160.3 | BW55: 180 | BX55: 149.9 | BY55: 990 | BZ55: 825.3 | CA55: 747.4 | CB55: 704.6 | CC55: 677.2 | CD55: 660.5 | CE55: 640.5 | CF55: 619.3 | CG55: 524 | CH55: 477 | CI55: 453.8 | CJ55: 440.7 | CK55: 434.1 | CL55: 422.2 | CM55: 559 | CN55: 481.7 | CO55: 443 | CP55: 426.7 | CQ55: 417.9 | CR55: 412.7 | CS55: 403.2 | CT55: 494.9 | CU55: 435.6 | CV55: 415 | CW55: 401.6 | CX55: 393.9 | CY55: 388.9 | CZ55: 382.6 | DA55: 473.2 | DB55: 418.2 | DC55: 401.1 | DD55: 390.9 | DE55: 377.4 | DF55: 369.3 | DG55: 360.6 | DH55: 508.7 | DI55: 436.1 | DJ55: 409 | DK55: 388.7 | DL55: 368.5 | DM55: 357.5 | DN55: 341.5 | DO55: 536.3 | DP55: 441.5 | DQ55: 415 | DR55: 393.8 | DS55: 373.5 | DT55: 362.3 | DU55: 332.8 | DV55: 596.2 | DW55: 463.2 | DX55: 412.2 | DY55: 389.9 | DZ55: 370 | EA55: 355.2 | EB55: 326.4 | EC55: 704.9 | ED55: 554.9 | EE55: 461.4 | EF55: 412.2 | EG55: 387.6 | EH55: 361.9 | EI55: 308.6 | EJ55: 813.9 | EK55: 640.7 | EL55: 532.8 | EM55: 473.7 | EN55: 439.1 | EO55: 412.2 | EP55: 356.3 | EQ55: 1.0996 | ER55: 1.4002 | ES55: 1.5722 | ET55: 0.8257 | EU55: 1.1059 | EV55: 1.2795 | EW55: 0 | EX55: 0 | EY55: 1.033 | EZ55: 259.3 | FA55: 1.1257 | FB55: 0 | FC55: 0 | FD55: 533 | FE55: HUN00062945 | FF55: 11.16 | FG55: 11302 | FH55: 39.8 | FI55: 73.3 | FJ55: 45.6 | FK55: 265.9 | FL55: 234.4 | FM55: 55
A56: knw | B56: nedo8770 | C56: NED 8770 | D56: Muschka | E56: 75m2 nationale kru | F56: W von Hacht | G56: W van Hacht | H56: 1923 | I56: 4037794 | J56: RFR van Leeuwen | K56: CLUB | L56: C | M56: 612 | N56: 11/7/2016 | O56: 14:49:46 | P56: 12.5 | Q56: 9.639 | R56: 1.526 | S56: 3.38 | T56: 7000 | U56: 125.6 | V56: 0.12 | W56: 626.8 | X56: 0.9799 | Y56: 688.9 | Z56: 0.674 | AA56: 44.8 | AB56: 1024.8 | AC56: 845.2 | AD56: 735.8 | AE56: 668.1 | AF56: 626.9 | AG56: 600.9 | AH56: 572.1 | AI56: 976.1 | AJ56: 807.1 | AK56: 713.1 | AL56: 659.2 | AM56: 627.1 | AN56: 605.4 | AO56: 578.3 | AP56: 857.8 | AQ56: 695.6 | AR56: 608.7 | AS56: 558.1 | AT56: 526.8 | AU56: 506.2 | AV56: 480.3 | AW56: 893.6 | AX56: 721.6 | AY56: 628.7 | AZ56: 574 | BA56: 539.8 | BB56: 517 | BC56: 487.9 | BD56: 1061.5 | BE56: 822.6 | BF56: 687.2 | BG56: 603.8 | BH56: 549.3 | BI56: 511.2 | BJ56: 458.8 | BK56: 44.3 | BL56: 44 | BM56: 44.7 | BN56: 43.2 | BO56: 42.1 | BP56: 41.3 | BQ56: 40.8 | BR56: 145.5 | BS56: 151.1 | BT56: 149.1 | BU56: 157.4 | BV56: 180 | BW56: 180 | BX56: 180 | BY56: 1046.8 | BZ56: 890.4 | CA56: 799.2 | CB56: 751.4 | CC56: 725.4 | CD56: 708.9 | CE56: 692.5 | CF56: 677.3 | CG56: 574.3 | CH56: 522.2 | CI56: 503 | CJ56: 493.5 | CK56: 488.3 | CL56: 482.6 | CM56: 634.1 | CN56: 539 | CO56: 501.7 | CP56: 485.7 | CQ56: 477.5 | CR56: 472.4 | CS56: 467.1 | CT56: 594.8 | CU56: 515.3 | CV56: 486.8 | CW56: 470.3 | CX56: 457.7 | CY56: 449.6 | CZ56: 441.3 | DA56: 593.9 | DB56: 514.3 | DC56: 485.7 | DD56: 468 | DE56: 452.7 | DF56: 438.7 | DG56: 420.6 | DH56: 632.6 | DI56: 524.6 | DJ56: 485.4 | DK56: 462.1 | DL56: 442.5 | DM56: 429.2 | DN56: 413.3 | DO56: 653 | DP56: 538 | DQ56: 491.6 | DR56: 467.5 | DS56: 445.8 | DT56: 425.4 | DU56: 400.3 | DV56: 722.6 | DW56: 592.5 | DX56: 515.4 | DY56: 483.7 | DZ56: 462 | EA56: 441.3 | EB56: 404 | EC56: 868.4 | ED56: 691.8 | EE56: 582.3 | EF56: 514 | EG56: 484.2 | EH56: 463.5 | EI56: 425.1 | EJ56: 1002.7 | EK56: 800 | EL56: 672.4 | EM56: 584.7 | EN56: 528.4 | EO56: 493 | EP56: 451.7 | EQ56: 0.9455 | ER56: 1.2115 | ES56: 1.3596 | ET56: 0.7219 | EU56: 0.9711 | EV56: 1.1314 | EW56: 618.1 | EX56: 0.9707 | EY56: 0.844 | EZ56: 213 | FA56: 0.9771 | FB56: 0.679 | FC56: 51.1 | FD56: 614.1 | FE56: knw00005647 | FF56: 8.768 | FG56: 7818 | FH56: 28.1 | FI56: 48.5 | FJ56: 40.6 | FK56: 96 | FL56: 85.7 | FM56: 56
A57: nor7173 | B57: 7173 | C57: NOR 28 | D57: Fenris | E57: 8 M | F57: Anker & Jensen | G57: J Anker | H57: 1931 | J57: Lars Magnus Hesselberg | K57: CLUB | L57: C | M57: 616 | N57: 22/4/2016 | O57: 09:08:18 | P57: 14.44 | Q57: 9.8 | R57: 2.192 | S57: 2.51 | T57: 9227 | U57: 187.5 | V57: 0.35 | W57: 600.3 | X57: 1.022 | Y57: 660.5 | Z57: 0.714 | AA57: 54.3 | AB57: 977.2 | AC57: 809.3 | AD57: 707.8 | AE57: 644 | AF57: 599.3 | AG57: 573 | AH57: 543.9 | AI57: 928 | AJ57: 767.2 | AK57: 678.9 | AL57: 627.8 | AM57: 595.8 | AN57: 574.9 | AO57: 546.3 | AP57: 812.6 | AQ57: 663.2 | AR57: 583.8 | AS57: 537.4 | AT57: 508.4 | AU57: 489.1 | AV57: 464.9 | AW57: 841.4 | AX57: 681.8 | AY57: 596 | AZ57: 545.6 | BA57: 514.2 | BB57: 493.4 | BC57: 467.7 | BD57: 1017.5 | BE57: 790.1 | BF57: 661.5 | BG57: 582.6 | BH57: 531.3 | BI57: 496.1 | BJ57: 449 | BK57: 43.3 | BL57: 43.8 | BM57: 42.5 | BN57: 40.6 | BO57: 39 | BP57: 38.2 | BQ57: 37.3 | BR57: 142.7 | BS57: 145.9 | BT57: 147.7 | BU57: 156.5 | BV57: 177.1 | BW57: 179.3 | BX57: 179.4 | BY57: 978.4 | BZ57: 825.3 | CA57: 739.3 | CB57: 695.1 | CC57: 668.1 | CD57: 652.5 | CE57: 633.3 | CF57: 637.4 | CG57: 536.2 | CH57: 496.1 | CI57: 480.9 | CJ57: 472.9 | CK57: 467.6 | CL57: 460.8 | CM57: 596.7 | CN57: 510.6 | CO57: 480.1 | CP57: 467.7 | CQ57: 460.7 | CR57: 456 | CS57: 450.3 | CT57: 543.8 | CU57: 487.7 | CV57: 469 | CW57: 453.5 | CX57: 444.4 | CY57: 438.5 | CZ57: 431.5 | DA57: 527.2 | DB57: 478.7 | DC57: 460.6 | DD57: 451.5 | DE57: 437.9 | DF57: 426.2 | DG57: 413.7 | DH57: 555.8 | DI57: 495.9 | DJ57: 471.4 | DK57: 451 | DL57: 434.2 | DM57: 420.9 | DN57: 408.4 | DO57: 604.6 | DP57: 517.9 | DQ57: 482 | DR57: 461.3 | DS57: 442.5 | DT57: 423.4 | DU57: 402.2 | DV57: 706.7 | DW57: 582.9 | DX57: 511.5 | DY57: 481.1 | DZ57: 461.9 | EA57: 444.5 | EB57: 410.3 | EC57: 845.3 | ED57: 687.1 | EE57: 585.8 | EF57: 519.2 | EG57: 486.6 | EH57: 466.7 | EI57: 432.9 | EJ57: 976.1 | EK57: 793.3 | EL57: 676.4 | EM57: 592.9 | EN57: 530.5 | EO57: 493.4 | EP57: 454.5 | EQ57: 1.0001 | ER57: 1.2569 | ES57: 1.4063 | ET57: 0.7556 | EU57: 1.0107 | EV57: 1.187 | EW57: 593 | EX57: 1.0118 | EY57: 0.873 | EZ57: 205.9 | FA57: 1.0142 | FB57: 0.719 | FC57: 58.4 | FD57: 591.6 | FE57: nor00000587 | FF57: 9.515 | FG57: 10050 | FH57: 30.8 | FI57: 66.7 | FJ57: 50.8 | FK57: 0 | FL57: 0 | FM57: 57
A58: FRA16104b | B58: F25 | C58: FRA- 25 | D58: CUTTY-TOU | E58: 8 Metres JI | F58: CAMPER & NICHOLSON | G58: CAMPER & NICHOLSON | H58: 1929 | I58: 33260 - LA TEST DU BUECH | J58: MINOS Gilles | K58: CLUB | L58: C | M58: 617 | N58: 13/6/2016 | O58: 16:48:00 | P58: 14.6 | Q58: 9.966 | R58: 2.012 | S58: 2.52 | T58: 8700 | U58: 187.3 | V58: 0.2 | W58: 607.6 | X58: 1.0102 | Y58: 668.2 | Z58: 0.683 | AA58: 37.5 | AB58: 1009.1 | AC58: 827.1 | AD58: 716.9 | AE58: 647.7 | AF58: 604.3 | AG58: 578.1 | AH58: 548.8 | AI58: 957.6 | AJ58: 786.1 | AK58: 691.3 | AL58: 636.3 | AM58: 602.7 | AN58: 581.6 | AO58: 552.6 | AP58: 835.2 | AQ58: 675.5 | AR58: 589.8 | AS58: 539.8 | AT58: 508.9 | AU58: 488.7 | AV58: 463.5 | AW58: 853.9 | AX58: 689.4 | AY58: 600.5 | AZ58: 548.3 | BA58: 515.7 | BB58: 494.2 | BC58: 467.1 | BD58: 1039.9 | BE58: 802.1 | BF58: 667.3 | BG58: 584.5 | BH58: 531 | BI58: 494.5 | BJ58: 446.2 | BK58: 45 | BL58: 45.2 | BM58: 44.1 | BN58: 42.4 | BO58: 40.9 | BP58: 40.4 | BQ58: 39.7 | BR58: 138.3 | BS58: 150.7 | BT58: 147.8 | BU58: 156.3 | BV58: 173.8 | BW58: 180 | BX58: 180 | BY58: 1019.7 | BZ58: 858.3 | CA58: 769.1 | CB58: 720.9 | CC58: 690.1 | CD58: 675.3 | CE58: 657.2 | CF58: 653.8 | CG58: 548.1 | CH58: 503.5 | CI58: 484.5 | CJ58: 474.4 | CK58: 467.9 | CL58: 461 | CM58: 607.6 | CN58: 513.3 | CO58: 481 | CP58: 467.2 | CQ58: 459.4 | CR58: 454.1 | CS58: 448.3 | CT58: 565.5 | CU58: 491.1 | CV58: 464.5 | CW58: 449.3 | CX58: 440.7 | CY58: 434.8 | CZ58: 427.7 | DA58: 562.1 | DB58: 490.1 | DC58: 463.5 | DD58: 445.8 | DE58: 430.8 | DF58: 420 | DG58: 409.3 | DH58: 616.9 | DI58: 508.2 | DJ58: 468.6 | DK58: 446.8 | DL58: 435.5 | DM58: 425.6 | DN58: 401.6 | DO58: 640.8 | DP58: 523.2 | DQ58: 476.1 | DR58: 452.3 | DS58: 432.3 | DT58: 415.8 | DU58: 399.6 | DV58: 717.8 | DW58: 582.3 | DX58: 503.3 | DY58: 470.2 | DZ58: 449.3 | EA58: 430.1 | EB58: 394.2 | EC58: 864.7 | ED58: 687.4 | EE58: 575.7 | EF58: 503.1 | EG58: 471.4 | EH58: 451.1 | EI58: 415.1 | EJ58: 998.4 | EK58: 795.8 | EL58: 664.7 | EM58: 574.4 | EN58: 518.4 | EO58: 481 | EP58: 440.5 | EQ58: 0.9706 | ER58: 1.2525 | ES58: 1.4083 | ET58: 0.7352 | EU58: 1.0002 | EV58: 1.1766 | EW58: 0 | EX58: 0 | EY58: 0.829 | EZ58: 184.6 | FA58: 1.008 | FB58: 0 | FC58: 0 | FD58: 595.2 | FE58: FRA00004591 | FF58: 9.274 | FG58: 9524 | FH58: 31.7 | FI58: 66.2 | FJ58: 53.6 | FK58: 93.5 | FL58: 0 | FM58: 58
A59: knw | B59: NEDC3969 | C59: NED 3969 | D59: 8 Modified | E59: 8 MOD | F59: -- | G59: Jakopin & Jakopin | H59: 1995 | I59: 4108718 | J59: Hans Voorn | K59: CLUB | L59: S | M59: 380 | N59: 23/3/2016 | O59: 14:24:32 | P59: 8.013 | Q59: 7.699 | R59: 1.638 | S59: 2.49 | T59: 1125 | U59: 106.9 | V59: 0.13 | W59: 623.1 | X59: 0.9799 | Y59: 688.9 | Z59: 0.64 | AA59: 11.5 | AB59: 1023.3 | AC59: 824.4 | AD59: 722.1 | AE59: 676.6 | AF59: 640.9 | AG59: 606.1 | AH59: 538.9 | AI59: 984.3 | AJ59: 798.7 | AK59: 704.8 | AL59: 655 | AM59: 620.2 | AN59: 590.3 | AO59: 547.6 | AP59: 857.5 | AQ59: 694.4 | AR59: 605.9 | AS59: 551.9 | AT59: 514.8 | AU59: 486.1 | AV59: 440.7 | AW59: 944.8 | AX59: 754.7 | AY59: 650.6 | AZ59: 588 | BA59: 547 | BB59: 517.6 | BC59: 474.4 | BD59: 1053.5 | BE59: 814.9 | BF59: 679.4 | BG59: 593.7 | BH59: 533.6 | BI59: 486.8 | BJ59: 413.6 | BK59: 44 | BL59: 42.6 | BM59: 39.9 | BN59: 38.3 | BO59: 37.5 | BP59: 37.1 | BQ59: 37.5 | BR59: 143.2 | BS59: 146.6 | BT59: 150.6 | BU59: 148.5 | BV59: 145.4 | BW59: 143.8 | BX59: 141.3 | BY59: 1102.6 | BZ59: 898 | CA59: 791 | CB59: 753.8 | CC59: 737.2 | CD59: 727.2 | CE59: 720.1 | CF59: 713.6 | CG59: 593.9 | CH59: 549.5 | CI59: 531.9 | CJ59: 521.7 | CK59: 515.3 | CL59: 499.5 | CM59: 667.2 | CN59: 570.4 | CO59: 531 | CP59: 506.5 | CQ59: 493.8 | CR59: 486.3 | CS59: 468.2 | CT59: 628.7 | CU59: 554 | CV59: 512.5 | CW59: 471.7 | CX59: 450.8 | CY59: 439.4 | CZ59: 425.7 | DA59: 599.9 | DB59: 537.5 | DC59: 510 | DD59: 471.4 | DE59: 427.5 | DF59: 400.2 | DG59: 378.1 | DH59: 594.7 | DI59: 523.2 | DJ59: 474.1 | DK59: 446.2 | DL59: 419.6 | DM59: 392.4 | DN59: 345.5 | DO59: 610.2 | DP59: 533.2 | DQ59: 474.2 | DR59: 427.2 | DS59: 399.6 | DT59: 375.7 | DU59: 331.6 | DV59: 687.2 | DW59: 566.8 | DX59: 511.8 | DY59: 458.1 | DZ59: 403.7 | EA59: 352.2 | EB59: 292.1 | EC59: 817.6 | ED59: 650.2 | EE59: 565.6 | EF59: 519.2 | EG59: 471.5 | EH59: 420 | EI59: 309.8 | EJ59: 944 | EK59: 750.8 | EL59: 653.2 | EM59: 599.5 | EN59: 544.5 | EO59: 485 | EP59: 357.7 | EQ59: 0.9469 | ER59: 1.214 | ES59: 1.4211 | ET59: 0.7306 | EU59: 0.971 | EV59: 1.1449 | EW59: 618.3 | EX59: 0.9704 | EY59: 0.921 | EZ59: 262.8 | FA59: 0.9894 | FB59: 0.666 | FC59: 38.3 | FD59: 606.4 | FE59: knw00004756 | FF59: 7.774 | FG59: 1738 | FH59: 14.2 | FI59: 24.4 | FJ59: 13.4 | FK59: 0 | FL59: 69.8 | FM59: 59
A60: knw16122 | B60: nedc3995 | C60: NED 3995 | D60: Pebbles | E60: 8M one design | F60: -- | G60: -- | H60: 1995 | I60: 148538 | J60: J.D. Peerdeman | K60: CLUB | L60: S | M60: 405 | N60: 23/3/2016 | O60: 14:24:14 | P60: 8.013 | Q60: 7.775 | R60: 1.673 | S60: 2.49 | T60: 1471 | U60: 98.5 | V60: 0.18 | W60: 662.6 | X60: 0.9338 | Y60: 722.8 | Z60: 0.608 | AA60: 18 | AB60: 1101.6 | AC60: 887 | AD60: 762.3 | AE60: 696.4 | AF60: 658 | AG60: 635.8 | AH60: 598.4 | AI60: 1048.1 | AJ60: 848.3 | AK60: 742.3 | AL60: 686.2 | AM60: 653 | AN60: 629.7 | AO60: 590.8 | AP60: 917.8 | AQ60: 739.6 | AR60: 643 | AS60: 585.5 | AT60: 548.3 | AU60: 522.2 | AV60: 485.5 | AW60: 969.5 | AX60: 776.4 | AY60: 671.2 | AZ60: 608.4 | BA60: 568.1 | BB60: 539.9 | BC60: 500.2 | BD60: 1129 | BE60: 868.9 | BF60: 721.5 | BG60: 630 | BH60: 568.5 | BI60: 523.3 | BJ60: 457.4 | BK60: 43.2 | BL60: 41.9 | BM60: 40.4 | BN60: 38.8 | BO60: 37.8 | BP60: 37.4 | BQ60: 38 | BR60: 145.1 | BS60: 149.6 | BT60: 151.9 | BU60: 162.9 | BV60: 180 | BW60: 180 | BX60: 180 | BY60: 1134.9 | BZ60: 931.3 | CA60: 816.4 | CB60: 770 | CC60: 750.4 | CD60: 740.7 | CE60: 733.9 | CF60: 737.7 | CG60: 615 | CH60: 563.7 | CI60: 544 | CJ60: 535 | CK60: 529.8 | CL60: 517.6 | CM60: 691.9 | CN60: 587.4 | CO60: 547.7 | CP60: 524.6 | CQ60: 512.7 | CR60: 505.6 | CS60: 491.2 | CT60: 654.1 | CU60: 568.8 | CV60: 533.5 | CW60: 500 | CX60: 475.7 | CY60: 464.6 | CZ60: 455.2 | DA60: 657.9 | DB60: 564.5 | DC60: 523.7 | DD60: 499.8 | DE60: 466.6 | DF60: 436.6 | DG60: 413 | DH60: 664.8 | DI60: 564.4 | DJ60: 521.5 | DK60: 476.4 | DL60: 440.7 | DM60: 420.5 | DN60: 389.2 | DO60: 689.6 | DP60: 576.3 | DQ60: 531.7 | DR60: 488.7 | DS60: 445.4 | DT60: 402.6 | DU60: 362.8 | DV60: 770.8 | DW60: 624.7 | DX60: 558.5 | DY60: 520.9 | DZ60: 480.7 | EA60: 440.3 | EB60: 360.8 | EC60: 925.2 | ED60: 729.7 | EE60: 615.2 | EF60: 555.9 | EG60: 520.8 | EH60: 483.8 | EI60: 410.9 | EJ60: 1068.3 | EK60: 842.6 | EL60: 708.2 | EM60: 622.8 | EN60: 565.7 | EO60: 530.9 | EP60: 462.9 | EQ60: 0.8827 | ER60: 1.1498 | ES60: 1.3218 | ET60: 0.6789 | EU60: 0.9315 | EV60: 1.076 | EW60: 652.2 | EX60: 0.92 | EY60: 0.817 | EZ60: 224.5 | FA60: 0.9328 | FB60: 0.628 | FC60: 39.3 | FD60: 643.2 | FE60: knw00004754 | FF60: 7.649 | FG60: 2131 | FH60: 15.1 | FI60: 24.1 | FJ60: 14.8 | FK60: 43 | FL60: 0 | FM60: 60
A61: SUISU9005 | B61: SUI9005 | C61: SUI 9 | D61: FROYA | E61: 8mIR | G61: BJARNE AAS | H61: 1939 | I61: YCL | J61: ROEL VAN MERKESTEYN | K61: CLUB | L61: R | M61: 603 | N61: 8/3/2016 | O61: 15:25:46 | P61: 14.6 | Q61: 9.501 | R61: 1.91 | S61: 2.44 | T61: 8603 | U61: 187.2 | V61: 0.28 | W61: 622.4 | X61: 0.9876 | Y61: 683.5 | Z61: 0.683 | AA61: 47.5 | AB61: 1018.2 | AC61: 840.2 | AD61: 730.2 | AE61: 663.1 | AF61: 620.4 | AG61: 594.9 | AH61: 566.4 | AI61: 974.5 | AJ61: 804.2 | AK61: 710.2 | AL61: 656 | AM61: 622.1 | AN61: 599.5 | AO61: 571 | AP61: 849.9 | AQ61: 690 | AR61: 604.6 | AS61: 554.8 | AT61: 523.9 | AU61: 503.5 | AV61: 477.3 | AW61: 875.2 | AX61: 708.7 | AY61: 619 | AZ61: 566.1 | BA61: 532.9 | BB61: 510.8 | BC61: 483.7 | BD61: 1053.5 | BE61: 816.8 | BF61: 682.6 | BG61: 600.1 | BH61: 546.4 | BI61: 509.1 | BJ61: 458.5 | BK61: 45.4 | BL61: 45 | BM61: 44.7 | BN61: 43 | BO61: 41.4 | BP61: 41 | BQ61: 40 | BR61: 145.2 | BS61: 150.9 | BT61: 149.1 | BU61: 158.5 | BV61: 180 | BW61: 180 | BX61: 180 | BY61: 1055.2 | BZ61: 894.4 | CA61: 801 | CB61: 750.3 | CC61: 718.1 | CD61: 698.5 | CE61: 680.3 | CF61: 674.5 | CG61: 569.2 | CH61: 522.1 | CI61: 501.9 | CJ61: 491.1 | CK61: 484.1 | CL61: 476.7 | CM61: 626 | CN61: 532.6 | CO61: 499 | CP61: 483.9 | CQ61: 474.7 | CR61: 468.7 | CS61: 461.2 | CT61: 582 | CU61: 510.2 | CV61: 483.8 | CW61: 467 | CX61: 454.6 | CY61: 446.8 | CZ61: 437.2 | DA61: 576.8 | DB61: 509 | DC61: 483.1 | DD61: 465.3 | DE61: 449.6 | DF61: 435.2 | DG61: 416.8 | DH61: 617.6 | DI61: 517.5 | DJ61: 482.6 | DK61: 461.4 | DL61: 450.1 | DM61: 439.8 | DN61: 419 | DO61: 639.8 | DP61: 528.8 | DQ61: 488.8 | DR61: 466 | DS61: 445 | DT61: 429 | DU61: 412.1 | DV61: 715.4 | DW61: 581.5 | DX61: 510 | DY61: 482.1 | DZ61: 461.6 | EA61: 441.5 | EB61: 403.4 | EC61: 849.6 | ED61: 679.7 | EE61: 571 | EF61: 509.2 | EG61: 482.8 | EH61: 463.3 | EI61: 426 | EJ61: 981.1 | EK61: 786 | EL61: 659.4 | EM61: 575.9 | EN61: 522.7 | EO61: 491.2 | EP61: 452.5 | EQ61: 0.9548 | ER61: 1.2186 | ES61: 1.3667 | ET61: 0.7264 | EU61: 0.9789 | EV61: 1.143 | EW61: 0 | EX61: 0 | EY61: 0.842 | EZ61: 206.8 | FA61: 0.983 | FB61: 0 | FC61: 0 | FD61: 610.4 | FE61: SUI00001913 | FF61: 8.712 | FG61: 9408 | FH61: 31.1 | FI61: 67.4 | FJ61: 52.4 | FK61: 110.8 | FL61: 0 | FM61: 61
A62: GER149016 | B62: 8OD71 | C62: 8OD 71 | D62: CAIPIRINHA | E62: 8MOD | F62: D+S | G62: J+J | H62: 1994 | I62: SVGA | J62: THOMAS WOERN | K62: CLUB | L62: S | M62: 400 | N62: 18/4/2016 | O62: 19:38:32 | P62: 7.998 | Q62: 7.708 | R62: 1.643 | S62: 2.49 | T62: 1075 | U62: 100 | V62: 0 | W62: 615.7 | X62: 0.9925 | Y62: 680.1 | Z62: 0.657 | AA62: 17.6 | AB62: 997.5 | AC62: 807.5 | AD62: 716.8 | AE62: 670.4 | AF62: 634.5 | AG62: 600.1 | AH62: 535.5 | AI62: 960.5 | AJ62: 785.5 | AK62: 700.2 | AL62: 652.9 | AM62: 619.6 | AN62: 593.8 | AO62: 553.9 | AP62: 842.9 | AQ62: 684.6 | AR62: 598.9 | AS62: 546.8 | AT62: 511.1 | AU62: 483.3 | AV62: 438.1 | AW62: 920 | AX62: 739.8 | AY62: 641.7 | AZ62: 582.7 | BA62: 543.8 | BB62: 515.4 | BC62: 472.5 | BD62: 1033.9 | BE62: 802.9 | BF62: 671.8 | BG62: 588.5 | BH62: 529.6 | BI62: 483.3 | BJ62: 409.9 | BK62: 44.3 | BL62: 43.4 | BM62: 40.7 | BN62: 40 | BO62: 39.2 | BP62: 39.1 | BQ62: 39.2 | BR62: 144.1 | BS62: 147.8 | BT62: 155.6 | BU62: 153.6 | BV62: 148.3 | BW62: 145.3 | BX62: 145.8 | BY62: 1073.1 | BZ62: 882 | CA62: 798.3 | CB62: 769.4 | CC62: 755.4 | CD62: 745.7 | CE62: 738.9 | CF62: 691.7 | CG62: 583.3 | CH62: 547.6 | CI62: 534.3 | CJ62: 526.1 | CK62: 520.2 | CL62: 503.8 | CM62: 645 | CN62: 561.3 | CO62: 525.8 | CP62: 507.1 | CQ62: 496.1 | CR62: 489.1 | CS62: 469.8 | CT62: 608.3 | CU62: 544.8 | CV62: 499 | CW62: 465.2 | CX62: 450.1 | CY62: 440.7 | CZ62: 420.9 | DA62: 605.7 | DB62: 544.8 | DC62: 500.3 | DD62: 451.8 | DE62: 414.8 | DF62: 398.3 | DG62: 381.1 | DH62: 592.8 | DI62: 520.4 | DJ62: 482.2 | DK62: 451.3 | DL62: 417.4 | DM62: 393.9 | DN62: 331.6 | DO62: 604 | DP62: 526.6 | DQ62: 466.5 | DR62: 433.4 | DS62: 405.7 | DT62: 377.1 | DU62: 325.2 | DV62: 672.2 | DW62: 557.8 | DX62: 496.7 | DY62: 437.6 | DZ62: 381.2 | EA62: 347.3 | EB62: 300.3 | EC62: 798.3 | ED62: 634.8 | EE62: 555.2 | EF62: 494.9 | EG62: 444.8 | EH62: 393.6 | EI62: 287.6 | EJ62: 921.9 | EK62: 733.1 | EL62: 635.4 | EM62: 571.3 | EN62: 513.6 | EO62: 454.5 | EP62: 332.1 | EQ62: 0.9646 | ER62: 1.226 | ES62: 1.4287 | ET62: 0.7479 | EU62: 0.9807 | EV62: 1.1549 | EW62: 617.3 | EX62: 0.9719 | EY62: 0.961 | EZ62: 281.3 | FA62: 1 | FB62: 0.686 | FC62: 50.1 | FD62: 600 | FE62: GER11001250 | FF62: 7.621 | FG62: 1688 | FH62: 14.2 | FI62: 24.9 | FJ62: 17.1 | FK62: 80.1 | FL62: 0 | FM62: 62
A63: GER140262 | B63: 8OD98 | C63: 8OD 98 | D63: 8 ung! | E63: 8MOD | F63: D+S | G63: J+J | H63: 1994 | J63: STEPHANIE FELS | K63: CLUB | L63: S | M63: 400 | N63: 4/5/2016 | O63: 08:53:34 | P63: 7.998 | Q63: 7.708 | R63: 1.643 | S63: 2.49 | T63: 1075 | U63: 100 | V63: 0 | W63: 615.7 | X63: 0.9925 | Y63: 680.1 | Z63: 0.657 | AA63: 17.6 | AB63: 997.5 | AC63: 807.5 | AD63: 716.8 | AE63: 670.4 | AF63: 634.5 | AG63: 600.1 | AH63: 535.5 | AI63: 960.5 | AJ63: 785.5 | AK63: 700.2 | AL63: 652.9 | AM63: 619.6 | AN63: 593.8 | AO63: 553.9 | AP63: 842.9 | AQ63: 684.6 | AR63: 598.9 | AS63: 546.8 | AT63: 511.1 | AU63: 483.3 | AV63: 438.1 | AW63: 920 | AX63: 739.8 | AY63: 641.7 | AZ63: 582.7 | BA63: 543.8 | BB63: 515.4 | BC63: 472.5 | BD63: 1033.9 | BE63: 802.9 | BF63: 671.8 | BG63: 588.5 | BH63: 529.6 | BI63: 483.3 | BJ63: 409.9 | BK63: 44.3 | BL63: 43.4 | BM63: 40.7 | BN63: 40 | BO63: 39.2 | BP63: 39.1 | BQ63: 39.2 | BR63: 144.1 | BS63: 147.8 | BT63: 155.6 | BU63: 153.6 | BV63: 148.3 | BW63: 145.3 | BX63: 145.8 | BY63: 1073.1 | BZ63: 882 | CA63: 798.3 | CB63: 769.4 | CC63: 755.4 | CD63: 745.7 | CE63: 738.9 | CF63: 691.7 | CG63: 583.3 | CH63: 547.6 | CI63: 534.3 | CJ63: 526.1 | CK63: 520.2 | CL63: 503.8 | CM63: 645 | CN63: 561.3 | CO63: 525.8 | CP63: 507.1 | CQ63: 496.1 | CR63: 489.1 | CS63: 469.8 | CT63: 608.3 | CU63: 544.8 | CV63: 499 | CW63: 465.2 | CX63: 450.1 | CY63: 440.7 | CZ63: 420.9 | DA63: 605.7 | DB63: 544.8 | DC63: 500.3 | DD63: 451.8 | DE63: 414.8 | DF63: 398.3 | DG63: 381.1 | DH63: 592.8 | DI63: 520.4 | DJ63: 482.2 | DK63: 451.3 | DL63: 417.4 | DM63: 393.9 | DN63: 331.6 | DO63: 604 | DP63: 526.6 | DQ63: 466.5 | DR63: 433.4 | DS63: 405.7 | DT63: 377.1 | DU63: 325.2 | DV63: 672.2 | DW63: 557.8 | DX63: 496.7 | DY63: 437.6 | DZ63: 381.2 | EA63: 347.3 | EB63: 300.3 | EC63: 798.3 | ED63: 634.8 | EE63: 555.2 | EF63: 494.9 | EG63: 444.8 | EH63: 393.6 | EI63: 287.6 | EJ63: 921.9 | EK63: 733.1 | EL63: 635.4 | EM63: 571.3 | EN63: 513.6 | EO63: 454.5 | EP63: 332.1 | EQ63: 0.9646 | ER63: 1.226 | ES63: 1.4287 | ET63: 0.7479 | EU63: 0.9807 | EV63: 1.1549 | EW63: 617.3 | EX63: 0.9719 | EY63: 0.961 | EZ63: 281.3 | FA63: 1 | FB63: 0.686 | FC63: 50.1 | FD63: 600 | FE63: GER11001382 | FF63: 7.621 | FG63: 1688 | FH63: 14.2 | FI63: 24.9 | FJ63: 17.1 | FK63: 80.1 | FL63: 0 | FM63: 63
A64: HUN027/16 | B64: HUN8-2 | C64: HUN 8-2 | D64: Kishamis | E64: 8mR | F64: Balatonfured SY | G64: G. L Watson | H64: 1900 | I64: HUNGARY | J64: Vizugyi SC | K64: CLUB | L64: C | M64: 600 | N64: 11/5/2016 | O64: 23:47:32 | P64: 12.57 | Q64: 10.157 | R64: 1.736 | S64: 2.93 | T64: 9208 | U64: 125.4 | V64: 0.21 | W64: 628.8 | X64: 0.9823 | Y64: 687.1 | Z64: 0.678 | AA64: 48.6 | AB64: 1038.4 | AC64: 852 | AD64: 737 | AE64: 665.2 | AF64: 623.3 | AG64: 594.4 | AH64: 563.8 | AI64: 1008.9 | AJ64: 824.9 | AK64: 723 | AL64: 662.6 | AM64: 625.2 | AN64: 599.5 | AO64: 573 | AP64: 863.6 | AQ64: 698.5 | AR64: 610.2 | AS64: 559.1 | AT64: 527.7 | AU64: 507.4 | AV64: 482.7 | AW64: 923.9 | AX64: 741.7 | AY64: 642.2 | AZ64: 583.2 | BA64: 546.3 | BB64: 522.3 | BC64: 493.5 | BD64: 1064.7 | BE64: 824.2 | BF64: 688.1 | BG64: 604.8 | BH64: 551.1 | BI64: 514.3 | BJ64: 465.1 | BK64: 46.9 | BL64: 45.6 | BM64: 45.6 | BN64: 44.6 | BO64: 42.7 | BP64: 41.1 | BQ64: 40.3 | BR64: 146 | BS64: 149.5 | BT64: 148.5 | BU64: 156 | BV64: 173.2 | BW64: 180 | BX64: 180 | BY64: 1143.2 | BZ64: 953.1 | CA64: 842.2 | CB64: 773.2 | CC64: 733.1 | CD64: 707.1 | CE64: 683.7 | CF64: 722.2 | CG64: 607.3 | CH64: 537.1 | CI64: 509 | CJ64: 497.3 | CK64: 490.4 | CL64: 482.2 | CM64: 667.6 | CN64: 560.1 | CO64: 508.2 | CP64: 491 | CQ64: 483.2 | CR64: 478.4 | CS64: 471.5 | CT64: 598.9 | CU64: 511.6 | CV64: 486.6 | CW64: 475.1 | CX64: 467.8 | CY64: 463.1 | CZ64: 457.2 | DA64: 579.3 | DB64: 504.3 | DC64: 479.8 | DD64: 467.2 | DE64: 459.6 | DF64: 451.4 | DG64: 443 | DH64: 624.3 | DI64: 516.1 | DJ64: 482.1 | DK64: 466.8 | DL64: 452.2 | DM64: 440.5 | DN64: 426.5 | DO64: 634.7 | DP64: 520.4 | DQ64: 480.3 | DR64: 463.3 | DS64: 449.1 | DT64: 437.7 | DU64: 414.1 | DV64: 695.5 | DW64: 558.3 | DX64: 493.6 | DY64: 468.8 | DZ64: 449.3 | EA64: 429.3 | EB64: 403.5 | EC64: 808.6 | ED64: 650.3 | EE64: 547.2 | EF64: 491.7 | EG64: 469 | EH64: 450.6 | EI64: 413.5 | EJ64: 933.7 | EK64: 750.9 | EL64: 631.8 | EM64: 557.2 | EN64: 513.5 | EO64: 481.7 | EP64: 443.8 | EQ64: 0.939 | ER64: 1.2104 | ES64: 1.3555 | ET64: 0.7141 | EU64: 0.9723 | EV64: 1.1438 | EW64: 0 | EX64: 0 | EY64: 0.802 | EZ64: 182.1 | FA64: 0.9757 | FB64: 0 | FC64: 0 | FD64: 615 | FE64: HUN00062946 | FF64: 8.808 | FG64: 10088 | FH64: 32.1 | FI64: 49.3 | FJ64: 55.1 | FK64: 170.5 | FL64: 135.3 | FM64: 64
A65: HUN022/16 | B65: HUN 8-1 | C65: HUN 8-1 | D65: Tramontana II | E65: 8mR | F65: W. Hacht | G65: W. Hacht | H65: 1907 | I65: HUNGARY | J65: Tramontana Vitorlas Alapitvany | K65: CLUB | L65: C | M65: 605 | N65: 12/5/2016 | O65: 22:18:48 | P65: 13 | Q65: 9.796 | R65: 1.673 | S65: 2.25 | T65: 6944 | U65: 186.6 | V65: 0.04 | W65: 594.8 | X65: 1.0324 | Y65: 653.8 | Z65: 0.724 | AA65: 53.8 | AB65: 967.6 | AC65: 796.8 | AD65: 693.9 | AE65: 634.8 | AF65: 596.2 | AG65: 573.5 | AH65: 545.4 | AI65: 928.2 | AJ65: 763.4 | AK65: 676.9 | AL65: 628.1 | AM65: 596.7 | AN65: 575.4 | AO65: 546.3 | AP65: 808.4 | AQ65: 657.9 | AR65: 578 | AS65: 531.6 | AT65: 502.6 | AU65: 483 | AV65: 456.4 | AW65: 840 | AX65: 680.9 | AY65: 595.4 | AZ65: 545.1 | BA65: 513.4 | BB65: 492.2 | BC65: 465.5 | BD65: 1002.3 | BE65: 778.4 | BF65: 652.1 | BG65: 574.6 | BH65: 524 | BI65: 488.5 | BJ65: 439 | BK65: 45.5 | BL65: 45.4 | BM65: 44 | BN65: 42.1 | BO65: 40.7 | BP65: 40.2 | BQ65: 39.7 | BR65: 144.1 | BS65: 146.8 | BT65: 149.8 | BU65: 158.5 | BV65: 180 | BW65: 180 | BX65: 180 | BY65: 1013 | BZ65: 852.9 | CA65: 765.3 | CB65: 719.6 | CC65: 690.6 | CD65: 673.7 | CE65: 660.1 | CF65: 646 | CG65: 543.5 | CH65: 504 | CI65: 486.7 | CJ65: 477.3 | CK65: 470.9 | CL65: 463.9 | CM65: 595.9 | CN65: 511.9 | CO65: 483.4 | CP65: 470.2 | CQ65: 462 | CR65: 456.2 | CS65: 448.7 | CT65: 551.6 | CU65: 492 | CV65: 467.7 | CW65: 451.4 | CX65: 440.9 | CY65: 433.3 | CZ65: 423.8 | DA65: 546.2 | DB65: 490.5 | DC65: 466.5 | DD65: 447.2 | DE65: 429.7 | DF65: 416.2 | DG65: 401.2 | DH65: 575.6 | DI65: 493.4 | DJ65: 462.4 | DK65: 445.1 | DL65: 432.4 | DM65: 420.8 | DN65: 392.8 | DO65: 595.6 | DP65: 501.3 | DQ65: 468.3 | DR65: 443.7 | DS65: 422 | DT65: 409.9 | DU65: 388.2 | DV65: 675 | DW65: 540.9 | DX65: 486.8 | DY65: 461.4 | DZ65: 438.5 | EA65: 415.7 | EB65: 369.1 | EC65: 798.7 | ED65: 641.5 | EE65: 539 | EF65: 487.5 | EG65: 463 | EH65: 441.4 | EI65: 399.1 | EJ65: 922.3 | EK65: 740.8 | EL65: 622.4 | EM65: 550 | EN65: 501.9 | EO65: 473.2 | EP65: 430.7 | EQ65: 1.0058 | ER65: 1.2719 | ES65: 1.4242 | ET65: 0.7651 | EU65: 1.0253 | EV65: 1.187 | EW65: 0 | EX65: 0 | EY65: 0.922 | EZ65: 234.8 | FA65: 1.0277 | FB65: 0 | FC65: 0 | FD65: 583.8 | FE65: HUN00062951 | FF65: 9.204 | FG65: 7751 | FH65: 26.8 | FI65: 73.2 | FJ65: 40.2 | FK65: 116.5 | FL65: 0 | FM65: 65
A66: CLU167411 | B66: I16741 | C66: ITA-16741 | D66: AKAMAI | E66: 998DS | F66: JPK COMPOSITES | G66: VALER JAQUES | H66: 2009 | I66: Y.C.ACQUAFRESCA | J66: PERNTHALER GUENTHER | K66: CLUB | L66: R | M66: 480 | N66: 9/3/2016 | O66: 11:06:18 | P66: 9.98 | Q66: 9.816 | R66: 2.11 | S66: 2.99 | T66: 3000 | U66: 117.2 | V66: 0 | W66: 562 | X66: 1.1036 | Y66: 611.6 | Z66: 0.731 | AA66: 25.3 | AB66: 917.1 | AC66: 740.2 | AD66: 644.6 | AE66: 594.5 | AF66: 563.3 | AG66: 539.3 | AH66: 487.4 | AI66: 876.4 | AJ66: 709.3 | AK66: 625.7 | AL66: 579.8 | AM66: 548.5 | AN66: 522.9 | AO66: 486.1 | AP66: 772.7 | AQ66: 625.6 | AR66: 546.2 | AS66: 498.4 | AT66: 466.3 | AU66: 442.1 | AV66: 404.5 | AW66: 847.1 | AX66: 678 | AY66: 585.4 | AZ66: 529.5 | BA66: 492.9 | BB66: 466.8 | BC66: 430.3 | BD66: 946.5 | BE66: 732.2 | BF66: 611.1 | BG66: 535.5 | BH66: 483.9 | BI66: 445 | BJ66: 385.6 | BK66: 42.6 | BL66: 41.9 | BM66: 38.5 | BN66: 36.4 | BO66: 35 | BP66: 33.9 | BQ66: 33.7 | BR66: 142 | BS66: 144.4 | BT66: 149.9 | BU66: 158.1 | BV66: 180 | BW66: 153.6 | BX66: 142.2 | BY66: 959.1 | BZ66: 778.4 | CA66: 689 | CB66: 652.5 | CC66: 632.6 | CD66: 617.8 | CE66: 606.3 | CF66: 627.6 | CG66: 521.8 | CH66: 487.5 | CI66: 473.2 | CJ66: 463.9 | CK66: 456.6 | CL66: 440.1 | CM66: 589.2 | CN66: 504.1 | CO66: 474.6 | CP66: 456.8 | CQ66: 444.8 | CR66: 436.4 | CS66: 417.8 | CT66: 557.8 | CU66: 492.6 | CV66: 461.6 | CW66: 432 | CX66: 413.5 | CY66: 402.2 | CZ66: 388.5 | DA66: 556.8 | DB66: 489.9 | DC66: 464.1 | DD66: 431.9 | DE66: 399.6 | DF66: 374.9 | DG66: 352.6 | DH66: 549.9 | DI66: 480 | DJ66: 444.6 | DK66: 420.7 | DL66: 399.6 | DM66: 376 | DN66: 337.4 | DO66: 565.7 | DP66: 486.4 | DQ66: 444.2 | DR66: 407.5 | DS66: 384.4 | DT66: 363.3 | DU66: 325.9 | DV66: 636.5 | DW66: 515.8 | DX66: 471.3 | DY66: 431 | DZ66: 388.7 | EA66: 345.8 | EB66: 294 | EC66: 757.9 | ED66: 607.9 | EE66: 519.8 | EF66: 473.1 | EG66: 436.8 | EH66: 395.7 | EI66: 319.1 | EJ66: 875.2 | EK66: 702 | EL66: 600.2 | EM66: 536.6 | EN66: 494 | EO66: 460.8 | EP66: 368.5 | EQ66: 1.0524 | ER66: 1.3475 | ES66: 1.5614 | ET66: 0.8146 | EU66: 1.0966 | EV66: 1.2837 | EW66: 552.1 | EX66: 1.0868 | EY66: 1.007 | EZ66: 247.9 | FA66: 1.1 | FB66: 0.746 | FC66: 39.4 | FD66: 545.4 | FE66: CLU00018734 | FF66: 10.146 | FG66: 3881 | FH66: 22.3 | FI66: 39.5 | FJ66: 27.6 | FK66: 78 | FL66: 120 | FM66: 66
A67: GER142025 | B67: GER7116 | C67: GER 7116 | D67: GUSTE | E67: A&R 36 | F67: A&R | G67: A. MANGELSDORF | H67: 1995 | I67: YCLL | J67: GIESELA + HENNING BRAUN | K67: CLUB | L67: C | M67: 350 | N67: 4/4/2016 | O67: 17:18:34 | P67: 10.7 | Q67: 9.42 | R67: 1.908 | S67: 3.3 | T67: 6991 | U67: 130.6 | V67: 0.48 | W67: 697.4 | X67: 0.8972 | Y67: 752.4 | Z67: 0.57 | AA67: 16.7 | AB67: 1184.2 | AC67: 947.1 | AD67: 812.6 | AE67: 728.5 | AF67: 675.1 | AG67: 640.6 | AH67: 607.4 | AI67: 1119 | AJ67: 907.3 | AK67: 789.1 | AL67: 715.6 | AM67: 672.1 | AN67: 646.7 | AO67: 617.9 | AP67: 976.6 | AQ67: 782.2 | AR67: 675.7 | AS67: 612.5 | AT67: 573.2 | AU67: 547.9 | AV67: 517.8 | AW67: 976.6 | AX67: 782.2 | AY67: 675.7 | AZ67: 612.5 | BA67: 573.2 | BB67: 547.9 | BC67: 517.8 | BD67: 1209.4 | BE67: 923.5 | BF67: 761.4 | BG67: 662.3 | BH67: 598.5 | BI67: 555.3 | BJ67: 498.4 | BK67: 43.3 | BL67: 41.6 | BM67: 42.9 | BN67: 42.3 | BO67: 41.1 | BP67: 40.2 | BQ67: 39.3 | BR67: 155.2 | BS67: 164.1 | BT67: 178.6 | BU67: 179.3 | BV67: 179.3 | BW67: 179.7 | BX67: 179.9 | BY67: 1138.2 | BZ67: 953.8 | CA67: 851.2 | CB67: 785.5 | CC67: 753.2 | CD67: 736.8 | CE67: 718.5 | CF67: 742.9 | CG67: 631.6 | CH67: 562.1 | CI67: 530.5 | CJ67: 517.4 | CK67: 511.5 | CL67: 507 | CM67: 700.9 | CN67: 595.9 | CO67: 538.2 | CP67: 514.6 | CQ67: 502.4 | CR67: 496.5 | CS67: 492 | CT67: 667.7 | CU67: 567.3 | CV67: 522.4 | CW67: 502 | CX67: 488.6 | CY67: 478.4 | CZ67: 467.8 | DA67: 673 | DB67: 571.3 | DC67: 524.5 | DD67: 503.3 | DE67: 488.6 | DF67: 475.6 | DG67: 453 | DH67: 743.9 | DI67: 619.5 | DJ67: 545.3 | DK67: 513.4 | DL67: 494.9 | DM67: 479.5 | DN67: 448.4 | DO67: 789.1 | DP67: 657 | DQ67: 570.9 | DR67: 525.6 | DS67: 503 | DT67: 486.7 | DU67: 455.7 | DV67: 914 | DW67: 731.3 | DX67: 629.7 | DY67: 558.3 | DZ67: 521.1 | EA67: 500.6 | EB67: 469.5 | EC67: 1067.5 | ED67: 825 | EE67: 695.5 | EF67: 610.4 | EG67: 549.9 | EH67: 517.5 | EI67: 482.8 | EJ67: 1230.2 | EK67: 940.5 | EL67: 774 | EM67: 671.4 | EN67: 596.9 | EO67: 544.3 | EP67: 496.2 | EQ67: 0.8249 | ER67: 1.1007 | ES67: 1.2597 | ET67: 0.6334 | EU67: 0.8866 | EV67: 1.0601 | EW67: 677.8 | EX67: 0.8852 | EY67: 0.671 | EZ67: 134.7 | FA67: 0.8869 | FB67: 0.571 | FC67: 18.2 | FD67: 676.5 | FE67: GER20014291 | FF67: 8.324 | FG67: 7837 | FH67: 27.7 | FI67: 36.3 | FJ67: 29.6 | FK67: 0 | FL67: 0 | FM67: 67
A68: knw11015 | B68: NEDI27 | C68: NED 27 | D68: FORMIDABLE | E68: A.C. | F68: Woof Boats | G68: E.Dubois | H68: 1985 | I68: 241998 | J68: A.J.M.,Verder | K68: CLUB | L68: R | M68: 756 | N68: 23/3/2016 | O68: 14:43:28 | P68: 13.43 | Q68: 10.696 | R68: 2.456 | S68: 4.09 | T68: 9382 | U68: 133.3 | V68: 0.1 | W68: 594.7 | X68: 1.0454 | Y68: 645.7 | Z68: 0.71 | AA68: 42.6 | AB68: 974.1 | AC68: 798 | AD68: 690.7 | AE68: 626 | AF68: 587 | AG68: 559.3 | AH68: 533.2 | AI68: 928.9 | AJ68: 761.5 | AK68: 666.4 | AL68: 612.5 | AM68: 580.9 | AN68: 559.4 | AO68: 536.6 | AP68: 819.6 | AQ68: 661.9 | AR68: 577.1 | AS68: 527.5 | AT68: 496.8 | AU68: 476.8 | AV68: 452.5 | AW68: 858.5 | AX68: 690.4 | AY68: 598.8 | AZ68: 544.5 | BA68: 510.4 | BB68: 488 | BC68: 460.8 | BD68: 1006.3 | BE68: 778 | BF68: 648.6 | BG68: 569.2 | BH68: 517.7 | BI68: 482.3 | BJ68: 435 | BK68: 43.4 | BL68: 42.7 | BM68: 42.6 | BN68: 40.5 | BO68: 39.1 | BP68: 38 | BQ68: 37.3 | BR68: 145.4 | BS68: 149.9 | BT68: 150 | BU68: 154.7 | BV68: 168.3 | BW68: 180 | BX68: 180 | BY68: 984.2 | BZ68: 827 | CA68: 730 | CB68: 681.2 | CC68: 655.3 | CD68: 639.4 | CE68: 629.5 | CF68: 642.8 | CG68: 540.5 | CH68: 490.6 | CI68: 471.9 | CJ68: 463 | CK68: 457.7 | CL68: 452.4 | CM68: 605.8 | CN68: 512.2 | CO68: 475.5 | CP68: 459 | CQ68: 449.8 | CR68: 443.9 | CS68: 438.1 | CT68: 573.8 | CU68: 493.6 | CV68: 464.2 | CW68: 447.1 | CX68: 434.2 | CY68: 424.6 | CZ68: 415.5 | DA68: 576.6 | DB68: 494.9 | DC68: 464.9 | DD68: 447.2 | DE68: 432.7 | DF68: 420.1 | DG68: 400.5 | DH68: 630.7 | DI68: 515.8 | DJ68: 468.9 | DK68: 444.5 | DL68: 426.6 | DM68: 416.5 | DN68: 400.1 | DO68: 647 | DP68: 528.8 | DQ68: 474.9 | DR68: 449.1 | DS68: 428.2 | DT68: 409.2 | DU68: 386.7 | DV68: 710.3 | DW68: 579 | DX68: 499.7 | DY68: 464.9 | DZ68: 442.8 | EA68: 423.3 | EB68: 387.1 | EC68: 834.7 | ED68: 666 | EE68: 564.1 | EF68: 499.4 | EG68: 466 | EH68: 445.2 | EI68: 409.5 | EJ68: 963.9 | EK68: 769 | EL68: 651.4 | EM68: 570.8 | EN68: 518.7 | EO68: 479.3 | EP68: 436.9 | EQ68: 0.9877 | ER68: 1.2811 | ES68: 1.444 | ET68: 0.7618 | EU68: 1.0351 | EV68: 1.2131 | EW68: 581.9 | EX68: 1.0311 | EY68: 0.865 | EZ68: 189.3 | FA68: 1.0361 | FB68: 0.718 | FC68: 49.6 | FD68: 579.1 | FE68: knw00004861 | FF68: 10.154 | FG68: 10405 | FH68: 36 | FI68: 41.8 | FJ68: 77.2 | FK68: 144.9 | FL68: 0 | FM68: 68
A69: GER142115 | B69: GER6749 | C69: GER 6749 | E69: A-27 DK | F69: ARCHAMBAULT | G69: JOUBERT-NIVELT | H69: 2012 | I69: BSC | J69: JENS TAMM | K69: CLUB | L69: C | M69: 360 | N69: 4/4/2016 | O69: 12:14:42 | P69: 8.35 | Q69: 7.554 | R69: 1.814 | S69: 2.93 | T69: 2185 | U69: 124.6 | V69: 0.07 | W69: 654.5 | X69: 0.9415 | Y69: 716.9 | Z69: 0.668 | AA69: 56.9 | AB69: 1061.3 | AC69: 857.9 | AD69: 743.7 | AE69: 697.1 | AF69: 663.7 | AG69: 639 | AH69: 608.8 | AI69: 1020.1 | AJ69: 827.6 | AK69: 728.7 | AL69: 680 | AM69: 650 | AN69: 626.2 | AO69: 592.8 | AP69: 893.5 | AQ69: 724.6 | AR69: 635.4 | AS69: 584.3 | AT69: 552.4 | AU69: 530.3 | AV69: 498.5 | AW69: 973.1 | AX69: 778.9 | AY69: 673.8 | AZ69: 612.3 | BA69: 574.2 | BB69: 548.8 | BC69: 515.6 | BD69: 1094 | BE69: 848.6 | BF69: 711.7 | BG69: 628.5 | BH69: 573.8 | BI69: 534.2 | BJ69: 475.7 | BK69: 44 | BL69: 42.3 | BM69: 40.8 | BN69: 38.9 | BO69: 38.1 | BP69: 37.4 | BQ69: 37.8 | BR69: 144.6 | BS69: 147.6 | BT69: 149.4 | BU69: 151.5 | BV69: 175.8 | BW69: 177.6 | BX69: 176.9 | BY69: 1131.5 | BZ69: 928 | CA69: 811.8 | CB69: 769.1 | CC69: 750.3 | CD69: 737.4 | CE69: 731.3 | CF69: 735.7 | CG69: 611.7 | CH69: 558.5 | CI69: 542.3 | CJ69: 535.2 | CK69: 531.3 | CL69: 523 | CM69: 690.3 | CN69: 584.1 | CO69: 543.4 | CP69: 526 | CQ69: 518.3 | CR69: 514.1 | CS69: 503.4 | CT69: 654 | CU69: 566 | CV69: 531.8 | CW69: 506.7 | CX69: 490.1 | CY69: 482.2 | CZ69: 476.4 | DA69: 634.4 | DB69: 549.5 | DC69: 530.8 | DD69: 508.3 | DE69: 481.7 | DF69: 458.5 | DG69: 441.7 | DH69: 629.5 | DI69: 544.1 | DJ69: 505.9 | DK69: 484.3 | DL69: 466.7 | DM69: 449.4 | DN69: 418.7 | DO69: 649.5 | DP69: 552.9 | DQ69: 513 | DR69: 473.3 | DS69: 447.3 | DT69: 428.9 | DU69: 391.4 | DV69: 726.6 | DW69: 590.3 | DX69: 536.3 | DY69: 500.8 | DZ69: 464 | EA69: 427 | EB69: 351.4 | EC69: 858.4 | ED69: 682.3 | EE69: 585.1 | EF69: 543.3 | EG69: 516.3 | EH69: 487.5 | EI69: 417.3 | EJ69: 991.2 | EK69: 787.8 | EL69: 675.6 | EM69: 625 | EN69: 577.2 | EO69: 540.6 | EP69: 486.2 | EQ69: 0.911 | ER69: 1.1588 | ES69: 1.2962 | ET69: 0.7034 | EU69: 0.9405 | EV69: 1.0649 | EW69: 646.1 | EX69: 0.9287 | EY69: 0.933 | EZ69: 302.7 | FA69: 0.9411 | FB69: 0.683 | FC69: 73.9 | FD69: 637.5 | FE69: GER20014265 | FF69: 7.546 | FG69: 2737 | FH69: 16.2 | FI69: 25.4 | FJ69: 18.6 | FK69: 0 | FL69: 73.4 | FM69: 69
A70: nor20967 | B70: 20967 | C70: NOR 13975 | D70: sparkling girl | E70: A-31 | F70: ARCHAMBAULT | G70: JOUBERT-NIVELT | H70: 2009 | J70: Emiko Walder | K70: CLUB | L70: C | M70: 548 | N70: 19/4/2016 | O70: 16:58:14 | P70: 9.55 | Q70: 8.855 | R70: 1.96 | S70: 3.27 | T70: 3308 | U70: 122 | V70: 0.17 | W70: 635.6 | X70: 0.9788 | Y70: 689.7 | Z70: 0.659 | AA70: 36.4 | AB70: 1046.1 | AC70: 846.5 | AD70: 731.3 | AE70: 665.1 | AF70: 627.1 | AG70: 605.8 | AH70: 574.3 | AI70: 1004.4 | AJ70: 815.4 | AK70: 714.2 | AL70: 657.5 | AM70: 625 | AN70: 603.9 | AO70: 569.7 | AP70: 877.7 | AQ70: 707.9 | AR70: 616.7 | AS70: 563.2 | AT70: 529.5 | AU70: 506.4 | AV70: 474.4 | AW70: 947.1 | AX70: 756.9 | AY70: 653.2 | AZ70: 591.9 | BA70: 553.4 | BB70: 527.8 | BC70: 494 | BD70: 1073.9 | BE70: 829.2 | BF70: 691.1 | BG70: 606.3 | BH70: 550.4 | BI70: 510.5 | BJ70: 453.1 | BK70: 43.5 | BL70: 42.2 | BM70: 41.6 | BN70: 39.7 | BO70: 39.1 | BP70: 38.7 | BQ70: 38.5 | BR70: 145.2 | BS70: 149.1 | BT70: 152 | BU70: 159.6 | BV70: 180 | BW70: 180 | BX70: 180 | BY70: 1106.5 | BZ70: 910.6 | CA70: 801.5 | CB70: 742.2 | CC70: 719 | CD70: 708.3 | CE70: 698.1 | CF70: 718.3 | CG70: 599.2 | CH70: 541.4 | CI70: 516.5 | CJ70: 506.5 | CK70: 501.6 | CL70: 496.7 | CM70: 673.6 | CN70: 567.6 | CO70: 524.3 | CP70: 502.6 | CQ70: 490 | CR70: 484 | CS70: 480.4 | CT70: 637.1 | CU70: 545.9 | CV70: 511.6 | CW70: 489.5 | CX70: 469.1 | CY70: 453.8 | CZ70: 442.9 | DA70: 635.4 | DB70: 535.7 | DC70: 499.8 | DD70: 487.2 | DE70: 468.2 | DF70: 446.8 | DG70: 412 | DH70: 634.9 | DI70: 533.8 | DJ70: 495.4 | DK70: 464.7 | DL70: 440.9 | DM70: 426.4 | DN70: 400.4 | DO70: 655 | DP70: 543.9 | DQ70: 502 | DR70: 470.3 | DS70: 436.8 | DT70: 409 | DU70: 378.7 | DV70: 723.9 | DW70: 585.9 | DX70: 523.5 | DY70: 492.2 | DZ70: 462.1 | EA70: 430.7 | EB70: 364.8 | EC70: 853.7 | ED70: 677.5 | EE70: 574.2 | EF70: 521.3 | EG70: 492.4 | EH70: 464.7 | EI70: 407.6 | EJ70: 985.7 | EK70: 782.3 | EL70: 661.2 | EM70: 587.9 | EN70: 535.3 | EO70: 503.2 | EP70: 450.6 | EQ70: 0.9242 | ER70: 1.1989 | ES70: 1.3605 | ET70: 0.7133 | EU70: 0.9743 | EV70: 1.1263 | EW70: 625.5 | EX70: 0.9592 | EY70: 0.852 | EZ70: 221.3 | FA70: 0.9724 | FB70: 0.678 | FC70: 56 | FD70: 617 | FE70: nor00000465 | FF70: 8.475 | FG70: 4036 | FH70: 20.3 | FI70: 29.9 | FJ70: 23.6 | FK70: 76 | FL70: 66 | FM70: 70
A71: CLU164361 | B71: I16436 | C71: ITA-16436 | D71: TAZ | E71: A-31 | F71: ARCHAMBAULT | G71: JOUBERT-NIVELT | H71: 2009 | I71: COMPAGNIA DELLA VELA SALERNO | J71: GRANDONE MAURIZIO | K71: CLUB | L71: C | M71: 545 | N71: 31/3/2016 | O71: 20:00:50 | P71: 9.5 | Q71: 8.851 | R71: 1.972 | S71: 3.27 | T71: 3398 | U71: 119.6 | V71: 0.18 | W71: 636.9 | X71: 0.9704 | Y71: 695.6 | Z71: 0.669 | AA71: 44.9 | AB71: 1043.9 | AC71: 845.4 | AD71: 731.9 | AE71: 672.6 | AF71: 641.4 | AG71: 615 | AH71: 585 | AI71: 1003.8 | AJ71: 814.7 | AK71: 714 | AL71: 658.9 | AM71: 627.4 | AN71: 604.7 | AO71: 571.4 | AP71: 876.1 | AQ71: 707.8 | AR71: 618 | AS71: 566.1 | AT71: 533.7 | AU71: 511.4 | AV71: 479.7 | AW71: 958.1 | AX71: 764.3 | AY71: 658.3 | AZ71: 595.4 | BA71: 555.8 | BB71: 529.5 | BC71: 495.8 | BD71: 1072.6 | BE71: 829.6 | BF71: 692.9 | BG71: 609.4 | BH71: 554.7 | BI71: 515.6 | BJ71: 459.1 | BK71: 43.3 | BL71: 41.9 | BM71: 41.4 | BN71: 39.5 | BO71: 38.7 | BP71: 38.2 | BQ71: 37.9 | BR71: 144.6 | BS71: 147.8 | BT71: 148.7 | BU71: 150.7 | BV71: 174.5 | BW71: 177.1 | BX71: 177.3 | BY71: 1113.5 | BZ71: 914.7 | CA71: 803.7 | CB71: 740.9 | CC71: 716.5 | CD71: 705.1 | CE71: 692.4 | CF71: 724.4 | CG71: 603.3 | CH71: 543.4 | CI71: 517.4 | CJ71: 507 | CK71: 501.9 | CL71: 496.9 | CM71: 680.2 | CN71: 571.3 | CO71: 526.2 | CP71: 503.9 | CQ71: 491.2 | CR71: 485.2 | CS71: 481.5 | CT71: 644.3 | CU71: 549.4 | CV71: 513.6 | CW71: 491.8 | CX71: 472.3 | CY71: 457.1 | CZ71: 446.2 | DA71: 628 | DB71: 531 | DC71: 503.7 | DD71: 490.6 | DE71: 473 | DF71: 451.6 | DG71: 417.2 | DH71: 621.8 | DI71: 526.6 | DJ71: 490.3 | DK71: 462.9 | DL71: 446.8 | DM71: 432.6 | DN71: 404.7 | DO71: 640.7 | DP71: 536.2 | DQ71: 497.5 | DR71: 465.5 | DS71: 432.4 | DT71: 413.1 | DU71: 384 | DV71: 715 | DW71: 578.5 | DX71: 518.2 | DY71: 487.8 | DZ71: 457.4 | EA71: 425.9 | EB71: 358.2 | EC71: 843.7 | ED71: 672.2 | EE71: 571.7 | EF71: 524 | EG71: 499.9 | EH71: 479.1 | EI71: 420.1 | EJ71: 974.3 | EK71: 776.1 | EL71: 660.1 | EM71: 604.2 | EN71: 566.3 | EO71: 524.9 | EP71: 477.6 | EQ71: 0.9271 | ER71: 1.195 | ES71: 1.3453 | ET71: 0.7146 | EU71: 0.9657 | EV71: 1.1059 | EW71: 627.7 | EX71: 0.9559 | EY71: 0.887 | EZ71: 251.2 | FA71: 0.9691 | FB71: 0.689 | FC71: 64.6 | FD71: 619.1 | FE71: CLU00019052 | FF71: 8.487 | FG71: 4129 | FH71: 20.3 | FI71: 29.4 | FJ71: 22.6 | FK71: 0 | FL71: 90.2 | FM71: 71
A72: nor20756 | B72: 20756 | C72: NOR 13882 | D72: El Dragon III | E72: A-31 | F72: ARCHAMBAULT | G72: JOUBERT-NIVELT | H72: 2008 | J72: Marius Frenvik Odberg | K72: CLUB | L72: C | M72: 548 | N72: 2/5/2016 | O72: 21:17:52 | P72: 9.55 | Q72: 8.861 | R72: 1.96 | S72: 3.27 | T72: 3318 | U72: 122.4 | V72: 0.18 | W72: 625.8 | X72: 0.9883 | Y72: 683 | Z72: 0.663 | AA72: 34.7 | AB72: 1040.1 | AC72: 839.9 | AD72: 725.5 | AE72: 658.6 | AF72: 620.6 | AG72: 598.9 | AH72: 566.9 | AI72: 997.3 | AJ72: 808.2 | AK72: 707.5 | AL72: 650.5 | AM72: 617.4 | AN72: 595.7 | AO72: 560.7 | AP72: 859.8 | AQ72: 695.7 | AR72: 607.6 | AS72: 555.9 | AT72: 523 | AU72: 500.2 | AV72: 468 | AW72: 949.1 | AX72: 757.5 | AY72: 652.7 | AZ72: 590.4 | BA72: 551.1 | BB72: 524.8 | BC72: 490.8 | BD72: 1066 | BE72: 821.8 | BF72: 684.2 | BG72: 599.9 | BH72: 544.5 | BI72: 505 | BJ72: 447.8 | BK72: 43 | BL72: 45 | BM72: 41 | BN72: 39.2 | BO72: 38.1 | BP72: 37.6 | BQ72: 37.3 | BR72: 144.7 | BS72: 148.9 | BT72: 151.7 | BU72: 159.6 | BV72: 180 | BW72: 180 | BX72: 180 | BY72: 1099.6 | BZ72: 900.2 | CA72: 792.1 | CB72: 731.3 | CC72: 706.8 | CD72: 695.1 | CE72: 683.9 | CF72: 696 | CG72: 575.2 | CH72: 536.4 | CI72: 514.7 | CJ72: 504.1 | CK72: 498.8 | CL72: 493.8 | CM72: 635.6 | CN72: 539.9 | CO72: 515.2 | CP72: 501.7 | CQ72: 488.2 | CR72: 481.7 | CS72: 476.8 | CT72: 579.8 | CU72: 516.1 | CV72: 491.4 | CW72: 480.2 | CX72: 468.9 | CY72: 452.7 | CZ72: 440.8 | DA72: 570.5 | DB72: 515.1 | DC72: 488.6 | DD72: 462.7 | DE72: 446.9 | DF72: 437.9 | DG72: 411.7 | DH72: 622.3 | DI72: 527.6 | DJ72: 491.6 | DK72: 461.1 | DL72: 442.5 | DM72: 414.6 | DN72: 384.5 | DO72: 642.2 | DP72: 538.4 | DQ72: 499.3 | DR72: 467.5 | DS72: 434.1 | DT72: 408.5 | DU72: 369.6 | DV72: 716.3 | DW72: 581.5 | DX72: 521 | DY72: 490.2 | DZ72: 459.7 | EA72: 428.1 | EB72: 361.1 | EC72: 849.2 | ED72: 675.2 | EE72: 571.9 | EF72: 519.5 | EG72: 490.9 | EH72: 462.9 | EI72: 405.3 | EJ72: 980.6 | EK72: 779.6 | EL72: 658.9 | EM72: 585.8 | EN72: 534.4 | EO72: 502.6 | EP72: 449.8 | EQ72: 0.9447 | ER72: 1.214 | ES72: 1.377 | ET72: 0.7181 | EU72: 0.9833 | EV72: 1.1397 | EW72: 618.8 | EX72: 0.9696 | EY72: 0.85 | EZ72: 214.2 | FA72: 0.983 | FB72: 0.686 | FC72: 56.1 | FD72: 610.4 | FE72: nor00000908 | FF72: 8.6 | FG72: 4045 | FH72: 20.3 | FI72: 29.8 | FJ72: 23.5 | FK72: 74.3 | FL72: 81.7 | FM72: 72
A73: ESP973101 | B73: E9731 | C73: ESP-9731 | D73: SOMEWHERITO | E73: A-31 | F73: ARCHAMBAULT | G73: JOUBERT-NIVELT | H73: 2009 | I73: R.C.R.CARTAGENA | J73: LEANDRO MARTIN | K73: INTL | L73: C | M73: 510 | N73: 11/3/2016 | O73: 04:39:16 | P73: 9.55 | Q73: 8.882 | R73: 1.983 | S73: 3.21 | T73: 3244 | U73: 131.5 | V73: 0.16 | W73: 632 | X73: 0.9903 | Y73: 681.6 | Z73: 0.654 | AA73: 30 | AB73: 1046.2 | AC73: 842.8 | AD73: 725 | AE73: 657.1 | AF73: 617.3 | AG73: 594.4 | AH73: 561.4 | AI73: 1000.9 | AJ73: 809.1 | AK73: 705.6 | AL73: 647.6 | AM73: 613.8 | AN73: 591.3 | AO73: 555.4 | AP73: 876.3 | AQ73: 705.4 | AR73: 613.1 | AS73: 558.7 | AT73: 524.1 | AU73: 500.2 | AV73: 466.6 | AW73: 941.3 | AX73: 751.3 | AY73: 647.4 | AZ73: 585.6 | BA73: 546.5 | BB73: 520 | BC73: 484.7 | BD73: 1071.8 | BE73: 825.5 | BF73: 686.4 | BG73: 600.9 | BH73: 544.6 | BI73: 504.5 | BJ73: 447.2 | BK73: 44 | BL73: 41.6 | BM73: 40.8 | BN73: 38.9 | BO73: 37.6 | BP73: 36.9 | BQ73: 36.3 | BR73: 145.1 | BS73: 149 | BT73: 151.6 | BU73: 159.1 | BV73: 180 | BW73: 180 | BX73: 180 | BY73: 1091.7 | BZ73: 894.2 | CA73: 782.6 | CB73: 722.9 | CC73: 697.3 | CD73: 684.5 | CE73: 670.8 | CF73: 711.2 | CG73: 591.9 | CH73: 535.5 | CI73: 511.5 | CJ73: 500.3 | CK73: 494.4 | CL73: 488.8 | CM73: 668.1 | CN73: 562.6 | CO73: 520.3 | CP73: 498.7 | CQ73: 484.4 | CR73: 476.8 | CS73: 470.5 | CT73: 633.3 | CU73: 542.7 | CV73: 509.1 | CW73: 486.6 | CX73: 465.1 | CY73: 447.8 | CZ73: 433.8 | DA73: 638.8 | DB73: 539.9 | DC73: 502.4 | DD73: 487.7 | DE73: 466.2 | DF73: 443.4 | DG73: 405.2 | DH73: 641.9 | DI73: 535.8 | DJ73: 496.7 | DK73: 464.8 | DL73: 443.1 | DM73: 428 | DN73: 399.2 | DO73: 661.8 | DP73: 546.8 | DQ73: 503.5 | DR73: 472.2 | DS73: 438.4 | DT73: 409.1 | DU73: 379.5 | DV73: 733.6 | DW73: 592 | DX73: 525.8 | DY73: 493.9 | DZ73: 464.1 | EA73: 432.7 | EB73: 367.2 | EC73: 866.7 | ED73: 685.4 | EE73: 579.1 | EF73: 523.4 | EG73: 494.1 | EH73: 466.6 | EI73: 409.3 | EJ73: 1000.7 | EK73: 791.5 | EL73: 667.3 | EM73: 591.3 | EN73: 537.3 | EO73: 504.4 | EP73: 451.9 | EQ73: 0.9248 | ER73: 1.2072 | ES73: 1.3788 | ET73: 0.7146 | EU73: 0.985 | EV73: 1.1484 | EW73: 617.3 | EX73: 0.9719 | EY73: 0.827 | EZ73: 196.7 | FA73: 0.98 | FB73: 0.671 | FC73: 45.3 | FD73: 612.2 | FE73: ESP00016937 | FF73: 8.707 | FG73: 3981 | FH73: 20 | FI73: 29.5 | FJ73: 23.5 | FK73: 70.8 | FL73: 0 | FM73: 73
A74: ESP993101 | B74: E9931 | C74: ESP-9931 | D74: SWAHILI | E74: A-31 | F74: ARCHAMBAULT | G74: JOUBERT-NIVELT | H74: 2009 | I74: R.C.N.BARCELONA | J74: PERE PERICOT COSP | K74: INTL | L74: C | M74: 459 | N74: 24/5/2016 | O74: 18:43:16 | P74: 9.55 | Q74: 8.874 | R74: 2.066 | S74: 3.27 | T74: 3097 | U74: 119.3 | V74: 0.18 | W74: 631.6 | X74: 0.9861 | Y74: 684.5 | Z74: 0.671 | AA74: 41.8 | AB74: 1036.9 | AC74: 838.1 | AD74: 721.5 | AE74: 660.5 | AF74: 623.7 | AG74: 602.2 | AH74: 568.2 | AI74: 992.6 | AJ74: 804.7 | AK74: 704.4 | AL74: 651.5 | AM74: 620.7 | AN74: 599.3 | AO74: 562 | AP74: 871 | AQ74: 702.8 | AR74: 612.8 | AS74: 560.3 | AT74: 527.4 | AU74: 504.7 | AV74: 472.6 | AW74: 938.5 | AX74: 750.3 | AY74: 647.9 | AZ74: 587.3 | BA74: 549.2 | BB74: 523.5 | BC74: 489.4 | BD74: 1065.1 | BE74: 822.6 | BF74: 686.2 | BG74: 602.9 | BH74: 548.3 | BI74: 509.5 | BJ74: 453.5 | BK74: 42.9 | BL74: 41.6 | BM74: 40.6 | BN74: 38.7 | BO74: 38.2 | BP74: 37.7 | BQ74: 37.7 | BR74: 145 | BS74: 148.8 | BT74: 151.8 | BU74: 159.4 | BV74: 180 | BW74: 180 | BX74: 180 | BY74: 1084.4 | BZ74: 892.8 | CA74: 782.1 | CB74: 734.1 | CC74: 713.3 | CD74: 702.8 | CE74: 689.2 | CF74: 707.2 | CG74: 590.2 | CH74: 535.5 | CI74: 515.3 | CJ74: 507.4 | CK74: 503.2 | CL74: 495.2 | CM74: 664.5 | CN74: 561.3 | CO74: 519.9 | CP74: 500.8 | CQ74: 491.6 | CR74: 486.4 | CS74: 479.2 | CT74: 630 | CU74: 540.8 | CV74: 508 | CW74: 485.8 | CX74: 467.3 | CY74: 456.2 | CZ74: 448.1 | DA74: 635.4 | DB74: 535.5 | DC74: 507.5 | DD74: 486.7 | DE74: 464.3 | DF74: 441.7 | DG74: 415 | DH74: 634.1 | DI74: 531.8 | DJ74: 493.3 | DK74: 465.7 | DL74: 449.3 | DM74: 433.6 | DN74: 406.4 | DO74: 653.4 | DP74: 542.1 | DQ74: 500.3 | DR74: 467.3 | DS74: 433.7 | DT74: 415 | DU74: 387.1 | DV74: 724.4 | DW74: 584.9 | DX74: 522.3 | DY74: 490.4 | DZ74: 459.2 | EA74: 426.5 | EB74: 358.1 | EC74: 856.9 | ED74: 678.4 | EE74: 573.7 | EF74: 520.1 | EG74: 490.7 | EH74: 461.8 | EI74: 401.6 | EJ74: 989.5 | EK74: 783.4 | EL74: 660.9 | EM74: 587 | EN74: 534.2 | EO74: 501.6 | EP74: 447.2 | EQ74: 0.9317 | ER74: 1.2063 | ES74: 1.3643 | ET74: 0.72 | EU74: 0.9833 | EV74: 1.1347 | EW74: 620.8 | EX74: 0.9665 | EY74: 0.871 | EZ74: 229.9 | FA74: 0.9783 | FB74: 0.687 | FC74: 58.6 | FD74: 613.3 | FE74: ESP00018009 | FF74: 8.575 | FG74: 3830 | FH74: 20.2 | FI74: 29.7 | FJ74: 22.7 | FK74: 70.6 | FL74: 0 | FM74: 74
A75: ESP100312 | B75: E10031 | C75: ESP-10031 | D75: VICTORIA | E75: A-31 | F75: ARCHAMBAULT | G75: JOUBERT-NIVELT | H75: 2009 | I75: C.N. MALPICA | J75: JESUS PINTOS AGER | K75: INTL | L75: C | M75: 78 | N75: 23/6/2016 | O75: 09:50:32 | P75: 9.55 | Q75: 8.925 | R75: 1.987 | S75: 3.21 | T75: 3329 | U75: 128.6 | V75: 0.18 | W75: 641.6 | X75: 0.9693 | Y75: 696.4 | Z75: 0.68 | AA75: 56.3 | AB75: 1043 | AC75: 844.1 | AD75: 734 | AE75: 675.1 | AF75: 637.7 | AG75: 615.1 | AH75: 583.2 | AI75: 1000.7 | AJ75: 813.8 | AK75: 717.7 | AL75: 667.2 | AM75: 636.5 | AN75: 614.8 | AO75: 585.4 | AP75: 879.3 | AQ75: 711.6 | AR75: 622.7 | AS75: 571.5 | AT75: 539.9 | AU75: 518.5 | AV75: 488.9 | AW75: 948.4 | AX75: 759.4 | AY75: 657.1 | AZ75: 597.1 | BA75: 559.7 | BB75: 535 | BC75: 503.8 | BD75: 1075.3 | BE75: 833.1 | BF75: 697.7 | BG75: 615.4 | BH75: 562 | BI75: 524.2 | BJ75: 469.8 | BK75: 43.1 | BL75: 41.6 | BM75: 40.9 | BN75: 39.8 | BO75: 39 | BP75: 38.3 | BQ75: 39.1 | BR75: 144.8 | BS75: 149 | BT75: 152 | BU75: 159.5 | BV75: 180 | BW75: 180 | BX75: 180 | BY75: 1100.7 | BZ75: 905.7 | CA75: 804.5 | CB75: 760.4 | CC75: 739.1 | CD75: 726.3 | CE75: 714.9 | CF75: 716.8 | CG75: 599.6 | CH75: 544.3 | CI75: 524.7 | CJ75: 516.2 | CK75: 511.7 | CL75: 503.8 | CM75: 673.6 | CN75: 568.9 | CO75: 525.9 | CP75: 508.1 | CQ75: 500.1 | CR75: 495.5 | CS75: 488.5 | CT75: 638.8 | CU75: 547.6 | CV75: 512.3 | CW75: 492.1 | CX75: 477 | CY75: 468.1 | CZ75: 460.7 | DA75: 638.4 | DB75: 546.3 | DC75: 514.2 | DD75: 492.5 | DE75: 472.2 | DF75: 452.5 | DG75: 428.8 | DH75: 633.9 | DI75: 534.3 | DJ75: 500.6 | DK75: 485.7 | DL75: 472.1 | DM75: 458.2 | DN75: 428 | DO75: 652.4 | DP75: 544.5 | DQ75: 502.9 | DR75: 474.4 | DS75: 456.8 | DT75: 442 | DU75: 416.4 | DV75: 722.1 | DW75: 587.2 | DX75: 524.4 | DY75: 493.1 | DZ75: 463.7 | EA75: 432.3 | EB75: 384.4 | EC75: 853.3 | ED75: 677.7 | EE75: 576.2 | EF75: 522.5 | EG75: 493.5 | EH75: 466.2 | EI75: 409.1 | EJ75: 985.3 | EK75: 782.6 | EL75: 663.5 | EM75: 589.8 | EN75: 536.2 | EO75: 503.8 | EP75: 451.6 | EQ75: 0.9248 | ER75: 1.1847 | ES75: 1.3262 | ET75: 0.7154 | EU75: 0.965 | EV75: 1.1088 | EW75: 620.7 | EX75: 0.9667 | EY75: 0.89 | EZ75: 253.6 | FA75: 0.9614 | FB75: 0.675 | FC75: 50.5 | FD75: 624.1 | FE75: ESP00018486 | FF75: 8.319 | FG75: 4074 | FH75: 20.3 | FI75: 30.4 | FJ75: 22.3 | FK75: 74.7 | FL75: 0 | FM75: 75
A76: GER165898 | B76: GER7375 | C76: GER 7375 | D76: FUNSHIP | E76: A-31 | F76: ARCHAMBAULT | G76: JOUBERT-NIVELT | H76: 2009 | J76: JORG VONDERHEIDEN | K76: INTL | L76: C | M76: 510 | N76: 8/6/2016 | O76: 15:21:02 | P76: 9.55 | Q76: 8.882 | R76: 1.983 | S76: 3.21 | T76: 3244 | U76: 131.5 | V76: 0.16 | W76: 632 | X76: 0.9903 | Y76: 681.6 | Z76: 0.654 | AA76: 30 | AB76: 1046.2 | AC76: 842.8 | AD76: 725 | AE76: 657.1 | AF76: 617.3 | AG76: 594.4 | AH76: 561.4 | AI76: 1000.9 | AJ76: 809.1 | AK76: 705.6 | AL76: 647.6 | AM76: 613.8 | AN76: 591.3 | AO76: 555.4 | AP76: 876.3 | AQ76: 705.4 | AR76: 613.1 | AS76: 558.7 | AT76: 524.1 | AU76: 500.2 | AV76: 466.6 | AW76: 941.3 | AX76: 751.3 | AY76: 647.4 | AZ76: 585.6 | BA76: 546.5 | BB76: 520 | BC76: 484.7 | BD76: 1071.8 | BE76: 825.5 | BF76: 686.4 | BG76: 600.9 | BH76: 544.6 | BI76: 504.5 | BJ76: 447.2 | BK76: 44 | BL76: 41.6 | BM76: 40.8 | BN76: 38.9 | BO76: 37.6 | BP76: 36.9 | BQ76: 36.3 | BR76: 145.1 | BS76: 149 | BT76: 151.6 | BU76: 159.1 | BV76: 180 | BW76: 180 | BX76: 180 | BY76: 1091.7 | BZ76: 894.2 | CA76: 782.6 | CB76: 722.9 | CC76: 697.3 | CD76: 684.5 | CE76: 670.8 | CF76: 711.2 | CG76: 591.9 | CH76: 535.5 | CI76: 511.5 | CJ76: 500.3 | CK76: 494.4 | CL76: 488.8 | CM76: 668.1 | CN76: 562.6 | CO76: 520.3 | CP76: 498.7 | CQ76: 484.4 | CR76: 476.8 | CS76: 470.5 | CT76: 633.3 | CU76: 542.7 | CV76: 509.1 | CW76: 486.6 | CX76: 465.1 | CY76: 447.8 | CZ76: 433.8 | DA76: 638.8 | DB76: 539.9 | DC76: 502.4 | DD76: 487.7 | DE76: 466.2 | DF76: 443.4 | DG76: 405.2 | DH76: 641.9 | DI76: 535.8 | DJ76: 496.7 | DK76: 464.8 | DL76: 443.1 | DM76: 428 | DN76: 399.2 | DO76: 661.8 | DP76: 546.8 | DQ76: 503.5 | DR76: 472.2 | DS76: 438.4 | DT76: 409.1 | DU76: 379.5 | DV76: 733.6 | DW76: 592 | DX76: 525.8 | DY76: 493.9 | DZ76: 464.1 | EA76: 432.7 | EB76: 367.2 | EC76: 866.7 | ED76: 685.4 | EE76: 579.1 | EF76: 523.4 | EG76: 494.1 | EH76: 466.6 | EI76: 409.3 | EJ76: 1000.7 | EK76: 791.5 | EL76: 667.3 | EM76: 591.3 | EN76: 537.3 | EO76: 504.4 | EP76: 451.9 | EQ76: 0.9248 | ER76: 1.2072 | ES76: 1.3788 | ET76: 0.7146 | EU76: 0.985 | EV76: 1.1484 | EW76: 617.3 | EX76: 0.9719 | EY76: 0.827 | EZ76: 196.7 | FA76: 0.98 | FB76: 0.671 | FC76: 45.3 | FD76: 612.2 | FE76: GER11001553 | FF76: 8.707 | FG76: 3981 | FH76: 20 | FI76: 29.5 | FJ76: 23.5 | FK76: 70.8 | FL76: 0 | FM76: 76
A77: knw26883 | B77: nedc8118 | C77: NED 8118 | D77: Rakker | E77: A-31 | F77: ARCHAMBAULT | G77: JOUBERT-NIVELT | H77: 2009 | I77: 211066 | J77: C.M. Keetels | K77: CLUB | L77: C | M77: 595 | N77: 23/3/2016 | O77: 13:09:42 | P77: 9.55 | Q77: 8.782 | R77: 1.964 | S77: 3.27 | T77: 3262 | U77: 122.7 | V77: 0.18 | W77: 641.4 | X77: 0.9773 | Y77: 690.7 | Z77: 0.634 | AA77: 23.3 | AB77: 1072.9 | AC77: 862 | AD77: 740.4 | AE77: 664 | AF77: 622.2 | AG77: 598.8 | AH77: 568.3 | AI77: 1022.9 | AJ77: 825.8 | AK77: 717.6 | AL77: 654.5 | AM77: 618.9 | AN77: 596.8 | AO77: 564.4 | AP77: 893.9 | AQ77: 717.5 | AR77: 621.9 | AS77: 565.4 | AT77: 529.7 | AU77: 505.5 | AV77: 472.8 | AW77: 958.5 | AX77: 762.8 | AY77: 655.3 | AZ77: 591.3 | BA77: 551.1 | BB77: 524.5 | BC77: 490.4 | BD77: 1095.4 | BE77: 841.1 | BF77: 697.1 | BG77: 608.6 | BH77: 550.7 | BI77: 509.8 | BJ77: 452.1 | BK77: 42.9 | BL77: 41.6 | BM77: 40.9 | BN77: 38.9 | BO77: 37.7 | BP77: 37.2 | BQ77: 36.8 | BR77: 145.3 | BS77: 149.5 | BT77: 150.8 | BU77: 158.6 | BV77: 180 | BW77: 180 | BX77: 180 | BY77: 1114.6 | BZ77: 911.2 | CA77: 798.1 | CB77: 728.8 | CC77: 701.2 | CD77: 688.8 | CE77: 678.4 | CF77: 727.6 | CG77: 603.2 | CH77: 543 | CI77: 515.3 | CJ77: 502.3 | CK77: 496.7 | CL77: 492.8 | CM77: 684.6 | CN77: 572.9 | CO77: 526.7 | CP77: 502.9 | CQ77: 487.5 | CR77: 479.8 | CS77: 474.5 | CT77: 650.2 | CU77: 552.1 | CV77: 514.3 | CW77: 492.3 | CX77: 471.4 | CY77: 453.5 | CZ77: 438.9 | DA77: 656.9 | DB77: 545.7 | DC77: 504.2 | DD77: 488 | DE77: 471.3 | DF77: 452.1 | DG77: 413 | DH77: 652.4 | DI77: 541.5 | DJ77: 500.5 | DK77: 469.4 | DL77: 442.1 | DM77: 427.5 | DN77: 400.7 | DO77: 673 | DP77: 553.6 | DQ77: 507.4 | DR77: 477.2 | DS77: 445.9 | DT77: 414.2 | DU77: 379.7 | DV77: 746.6 | DW77: 604 | DX77: 531.5 | DY77: 498.6 | DZ77: 470.4 | EA77: 440.7 | EB77: 379.4 | EC77: 893 | ED77: 704 | EE77: 591.7 | EF77: 529 | EG77: 498.8 | EH77: 472.6 | EI77: 418.5 | EJ77: 1031.1 | EK77: 812.9 | EL77: 682.7 | EM77: 599.3 | EN77: 543.3 | EO77: 508.8 | EP77: 458.2 | EQ77: 0.9051 | ER77: 1.1929 | ES77: 1.3647 | ET77: 0.6977 | EU77: 0.9705 | EV77: 1.1378 | EW77: 627.6 | EX77: 0.9561 | EY77: 0.78 | EZ77: 172.3 | FA77: 0.967 | FB77: 0.655 | FC77: 43.1 | FD77: 620.5 | FE77: knw00004338 | FF77: 8.589 | FG77: 3983 | FH77: 19.9 | FI77: 28 | FJ77: 21.8 | FK77: 69.1 | FL77: 0 | FM77: 77
A78: knw | B78: nedc8641 | C78: NED 8641 | D78: Njord 2 | E78: A-31 | F78: ARCHAMBAULT | G78: JOUBERT-NIVELT | H78: 2009 | I78: 219943 | J78: Dhr. Pieters | K78: CLUB | L78: C | M78: 510 | N78: 23/3/2016 | O78: 12:29:38 | P78: 9.5 | Q78: 8.874 | R78: 1.968 | S78: 3.27 | T78: 3385 | U78: 123.1 | V78: 0.19 | W78: 637.3 | X78: 0.9837 | Y78: 686.2 | Z78: 0.655 | AA78: 34.1 | AB78: 1052.1 | AC78: 849.2 | AD78: 731.6 | AE78: 661.3 | AF78: 621 | AG78: 598.3 | AH78: 566.3 | AI78: 1008.6 | AJ78: 816.7 | AK78: 712.5 | AL78: 652.7 | AM78: 618.4 | AN78: 596.2 | AO78: 561.8 | AP78: 882.9 | AQ78: 710.9 | AR78: 618.2 | AS78: 563.6 | AT78: 529.2 | AU78: 505.7 | AV78: 473.4 | AW78: 952.4 | AX78: 759.9 | AY78: 654.4 | AZ78: 591.8 | BA78: 552.3 | BB78: 525.7 | BC78: 490.6 | BD78: 1078.4 | BE78: 831.3 | BF78: 691.8 | BG78: 606.2 | BH78: 550.1 | BI78: 510.5 | BJ78: 454.5 | BK78: 42.9 | BL78: 41.4 | BM78: 40.8 | BN78: 38.7 | BO78: 37.7 | BP78: 37.2 | BQ78: 36.6 | BR78: 145.3 | BS78: 149.4 | BT78: 151.9 | BU78: 159.5 | BV78: 180 | BW78: 180 | BX78: 180 | BY78: 1106.9 | BZ78: 907.5 | CA78: 795 | CB78: 730 | CC78: 703.5 | CD78: 690.7 | CE78: 677.9 | CF78: 722.2 | CG78: 601.5 | CH78: 541.9 | CI78: 515.9 | CJ78: 504.1 | CK78: 498.5 | CL78: 493.7 | CM78: 679.3 | CN78: 571.1 | CO78: 525.9 | CP78: 503.4 | CQ78: 489.3 | CR78: 482.2 | CS78: 476.7 | CT78: 644.8 | CU78: 550.2 | CV78: 514.2 | CW78: 492.3 | CX78: 472.2 | CY78: 455.7 | CZ78: 442.2 | DA78: 647.7 | DB78: 541.8 | DC78: 505.2 | DD78: 492.8 | DE78: 473.7 | DF78: 452.6 | DG78: 415.9 | DH78: 642.3 | DI78: 537.4 | DJ78: 498.6 | DK78: 468.1 | DL78: 448.5 | DM78: 434.5 | DN78: 408.7 | DO78: 661.6 | DP78: 548.3 | DQ78: 505.2 | DR78: 474.9 | DS78: 442.4 | DT78: 415.5 | DU78: 387.9 | DV78: 731.9 | DW78: 592.7 | DX78: 527.4 | DY78: 495.8 | DZ78: 467.1 | EA78: 436.9 | EB78: 374 | EC78: 863.7 | ED78: 685 | EE78: 580.2 | EF78: 524.8 | EG78: 495.9 | EH78: 469.3 | EI78: 414.1 | EJ78: 997.3 | EK78: 790.9 | EL78: 668.3 | EM78: 592.6 | EN78: 538.5 | EO78: 505.9 | EP78: 454.8 | EQ78: 0.9179 | ER78: 1.1975 | ES78: 1.3631 | ET78: 0.71 | EU78: 0.9778 | EV78: 1.1402 | EW78: 622.5 | EX78: 0.9638 | EY78: 0.818 | EZ78: 194.8 | FA78: 0.9723 | FB78: 0.672 | FC78: 50.5 | FD78: 617.1 | FE78: knw00004169 | FF78: 8.621 | FG78: 4116 | FH78: 20.5 | FI78: 29.1 | FJ78: 22.2 | FK78: 70.7 | FL78: 0 | FM78: 78
A79: FRA16189a | B79: F38563 | C79: FRA-38563 | D79: ATLOG | E79: A-31 Bulb Keel | F79: ARCHAMBAULT | G79: JOUBERT-NIVELT | H79: 2009 | I79: 74290 - MENTHON SAINT BERNARD | J79: HEURTAULT Christophe | K79: CLUB | L79: R | M79: 544 | N79: 9/5/2016 | O79: 17:22:36 | P79: 9.5 | Q79: 8.79 | R79: 1.963 | S79: 3.27 | T79: 3258 | U79: 129.3 | V79: 0.15 | W79: 637 | X79: 0.985 | Y79: 685.3 | Z79: 0.642 | AA79: 24.6 | AB79: 1060 | AC79: 853 | AD79: 733.8 | AE79: 660.2 | AF79: 617.9 | AG79: 594.2 | AH79: 565.3 | AI79: 1017.9 | AJ79: 821.8 | AK79: 714.9 | AL79: 651.7 | AM79: 614.5 | AN79: 591.1 | AO79: 560.1 | AP79: 886.7 | AQ79: 712.3 | AR79: 617.8 | AS79: 561.8 | AT79: 526.1 | AU79: 501.7 | AV79: 468.4 | AW79: 962.8 | AX79: 765.5 | AY79: 656.9 | AZ79: 591.8 | BA79: 550.6 | BB79: 523.2 | BC79: 488.7 | BD79: 1082.8 | BE79: 832.9 | BF79: 691.3 | BG79: 604 | BH79: 546.5 | BI79: 505.7 | BJ79: 448.1 | BK79: 43.3 | BL79: 41.8 | BM79: 41.3 | BN79: 39.1 | BO79: 37.8 | BP79: 37.1 | BQ79: 37.3 | BR79: 145.3 | BS79: 148.9 | BT79: 151.7 | BU79: 159 | BV79: 180 | BW79: 180 | BX79: 180 | BY79: 1124.9 | BZ79: 918.3 | CA79: 802.9 | CB79: 730.2 | CC79: 698.7 | CD79: 684.2 | CE79: 679 | CF79: 732.1 | CG79: 606.2 | CH79: 544 | CI79: 515.3 | CJ79: 500.4 | CK79: 493.5 | CL79: 488.4 | CM79: 687.7 | CN79: 574.8 | CO79: 527.2 | CP79: 503 | CQ79: 486.2 | CR79: 475.8 | CS79: 468.5 | CT79: 652.2 | CU79: 553.1 | CV79: 514.7 | CW79: 492.3 | CX79: 470.8 | CY79: 450.9 | CZ79: 431.7 | DA79: 649.4 | DB79: 541.2 | DC79: 502.8 | DD79: 490.3 | DE79: 472 | DF79: 451.3 | DG79: 408.7 | DH79: 642.3 | DI79: 536 | DJ79: 496.5 | DK79: 464.4 | DL79: 443.3 | DM79: 428.7 | DN79: 400.7 | DO79: 661.3 | DP79: 546.7 | DQ79: 503.2 | DR79: 471.6 | DS79: 437.8 | DT79: 409 | DU79: 379.1 | DV79: 731.9 | DW79: 590.6 | DX79: 524.7 | DY79: 492.8 | DZ79: 462.7 | EA79: 431.3 | EB79: 365.5 | EC79: 861.7 | ED79: 682.1 | EE79: 576.8 | EF79: 522.4 | EG79: 493.1 | EH79: 465.4 | EI79: 408.6 | EJ79: 995 | EK79: 787.7 | EL79: 664.7 | EM79: 590.2 | EN79: 537.1 | EO79: 504.2 | EP79: 451.7 | EQ79: 0.9132 | ER79: 1.1997 | ES79: 1.3755 | ET79: 0.7057 | EU79: 0.9779 | EV79: 1.1454 | EW79: 0 | EX79: 0 | EY79: 0.794 | EZ79: 176.9 | FA79: 0.9742 | FB79: 0 | FC79: 0 | FD79: 615.9 | FE79: FRA00004274 | FF79: 8.576 | FG79: 3980 | FH79: 20.1 | FI79: 27.9 | FJ79: 22.3 | FK79: 74.2 | FL79: 0 | FM79: 79
A80: FRA16037a | B80: F9770 | C80: FRA- 9770 | D80: A+ | E80: A-31 IRC Keel | F80: ARCHAMBAULT | G80: JOUBERT-NIVELT | H80: 2009 | I80: 33115 - PYLA sur MER | J80: LEONART Francois | K80: CLUB | L80: R | M80: 440 | N80: 16/2/2016 | O80: 17:37:26 | P80: 9.5 | Q80: 8.797 | R80: 1.96 | S80: 3.27 | T80: 3256 | U80: 115.6 | V80: 0.15 | W80: 638.7 | X80: 0.9744 | Y80: 692.8 | Z80: 0.98 | AA80: 175.4 | AB80: 1047.6 | AC80: 847.9 | AD80: 730.6 | AE80: 668.5 | AF80: 631.2 | AG80: 609.7 | AH80: 578.3 | AI80: 1004.5 | AJ80: 815.2 | AK80: 713.9 | AL80: 660.2 | AM80: 629.3 | AN80: 608.4 | AO80: 574.2 | AP80: 880.5 | AQ80: 710.5 | AR80: 619.6 | AS80: 566.9 | AT80: 534.2 | AU80: 512 | AV80: 481.4 | AW80: 949.3 | AX80: 758.7 | AY80: 655 | AZ80: 593.9 | BA80: 555.7 | BB80: 530.3 | BC80: 497.6 | BD80: 874.3 | BE80: 699.1 | BF80: 603.7 | BG80: 547.1 | BH80: 510.7 | BI80: 484.9 | BJ80: 446.7 | BK80: 43.2 | BL80: 41.8 | BM80: 41.1 | BN80: 39.4 | BO80: 39 | BP80: 38.5 | BQ80: 38.6 | BR80: 145.1 | BS80: 149 | BT80: 151.8 | BU80: 159.3 | BV80: 180 | BW80: 180 | BX80: 180 | BY80: 1101.5 | BZ80: 908.2 | CA80: 796.4 | CB80: 746.9 | CC80: 725.7 | CD80: 715.2 | CE80: 704.8 | CF80: 718 | CG80: 599.7 | CH80: 541 | CI80: 518.9 | CJ80: 510.8 | CK80: 506.6 | CL80: 500.6 | CM80: 675 | CN80: 569.2 | CO80: 524.2 | CP80: 504.2 | CQ80: 495 | CR80: 490.1 | CS80: 484.9 | CT80: 640.5 | CU80: 547.5 | CV80: 512.4 | CW80: 490.3 | CX80: 472.5 | CY80: 461.5 | CZ80: 454.1 | DA80: 643.9 | DB80: 539.3 | DC80: 512 | DD80: 491.9 | DE80: 470.7 | DF80: 449.1 | DG80: 422.1 | DH80: 638.8 | DI80: 534.9 | DJ80: 496.2 | DK80: 472 | DL80: 456.7 | DM80: 442.2 | DN80: 415.9 | DO80: 658.2 | DP80: 545.7 | DQ80: 502.9 | DR80: 471.6 | DS80: 440.9 | DT80: 424.1 | DU80: 398.2 | DV80: 729.3 | DW80: 589.5 | DX80: 524.9 | DY80: 493.2 | DZ80: 463.6 | EA80: 432.4 | EB80: 367 | EC80: 860.5 | ED80: 682 | EE80: 577.1 | EF80: 522.7 | EG80: 493.5 | EH80: 466.1 | EI80: 408.7 | EJ80: 993.7 | EK80: 787.5 | EL80: 664.8 | EM80: 590.2 | EN80: 536.7 | EO80: 504.1 | EP80: 451.9 | EQ80: 0.9215 | ER80: 1.1933 | ES80: 1.3443 | ET80: 0.7122 | EU80: 0.9714 | EV80: 1.1189 | EW80: 0 | EX80: 0 | EY80: 0.863 | EZ80: 231.5 | FA80: 0.967 | FB80: 0 | FC80: 0 | FD80: 620.5 | FE80: FRA00002690 | FF80: 8.396 | FG80: 3979 | FH80: 20 | FI80: 29.5 | FJ80: 22.6 | FK80: 73.1 | FL80: 0 | FM80: 80
A81: FRA16266a | B81: F37370 | C81: FRA-37370 | D81: TAGAN IV | E81: A-31 IRC Keel | F81: ARCHAMBAULT | G81: JOUBERT-NIVELT | H81: 2009 | I81: 44580 - VILLENEUVE en RETZ | J81: DYNABOAT | K81: CLUB | L81: R | M81: 537 | N81: 31/8/2016 | O81: 11:12:38 | P81: 9.5 | Q81: 8.79 | R81: 1.96 | S81: 3.27 | T81: 3261 | U81: 119.8 | V81: 0.15 | W81: 641.2 | X81: 0.9762 | Y81: 691.4 | Z81: 0.642 | AA81: 28.5 | AB81: 1067.3 | AC81: 858.8 | AD81: 738.4 | AE81: 665.3 | AF81: 624.8 | AG81: 601.7 | AH81: 570.6 | AI81: 1023.2 | AJ81: 826.1 | AK81: 718.8 | AL81: 656.9 | AM81: 621.8 | AN81: 599.4 | AO81: 565.8 | AP81: 891.8 | AQ81: 716.5 | AR81: 621.7 | AS81: 565.9 | AT81: 530.8 | AU81: 506.9 | AV81: 474.4 | AW81: 961.2 | AX81: 765.5 | AY81: 658.2 | AZ81: 594.4 | BA81: 554.3 | BB81: 527.6 | BC81: 493.3 | BD81: 1090.2 | BE81: 838.6 | BF81: 696.3 | BG81: 609 | BH81: 551.9 | BI81: 511.6 | BJ81: 454.8 | BK81: 43.3 | BL81: 42 | BM81: 41.4 | BN81: 39.6 | BO81: 38.3 | BP81: 37.7 | BQ81: 37.5 | BR81: 145.4 | BS81: 149.1 | BT81: 151.2 | BU81: 158.7 | BV81: 180 | BW81: 180 | BX81: 180 | BY81: 1128 | BZ81: 921.4 | CA81: 805.8 | CB81: 737.1 | CC81: 709.8 | CD81: 697.1 | CE81: 686.4 | CF81: 733.1 | CG81: 607.2 | CH81: 544.6 | CI81: 516.6 | CJ81: 505 | CK81: 499.5 | CL81: 494.8 | CM81: 687.8 | CN81: 575 | CO81: 527.3 | CP81: 503.6 | CQ81: 489.4 | CR81: 482.6 | CS81: 477.6 | CT81: 651.2 | CU81: 552.6 | CV81: 514.7 | CW81: 492.2 | CX81: 471.4 | CY81: 454.8 | CZ81: 442.1 | DA81: 656 | DB81: 544.9 | DC81: 506.6 | DD81: 492.7 | DE81: 473 | DF81: 451 | DG81: 414 | DH81: 647.9 | DI81: 539 | DJ81: 498.6 | DK81: 467.6 | DL81: 449.1 | DM81: 434.8 | DN81: 407 | DO81: 666.7 | DP81: 549.8 | DQ81: 505.1 | DR81: 474 | DS81: 440.9 | DT81: 415.6 | DU81: 387.3 | DV81: 736.7 | DW81: 594.4 | DX81: 526.9 | DY81: 494.9 | DZ81: 465.6 | EA81: 434.7 | EB81: 370.4 | EC81: 871.7 | ED81: 689.6 | EE81: 582 | EF81: 524.6 | EG81: 495.2 | EH81: 468.3 | EI81: 412.3 | EJ81: 1006.6 | EK81: 796.3 | EL81: 671.1 | EM81: 593.5 | EN81: 539.8 | EO81: 506.4 | EP81: 454.8 | EQ81: 0.908 | ER81: 1.1925 | ES81: 1.3602 | ET81: 0.7009 | EU81: 0.9703 | EV81: 1.1329 | EW81: 0 | EX81: 0 | EY81: 0.798 | EZ81: 185.7 | FA81: 0.9669 | FB81: 0 | FC81: 0 | FD81: 620.5 | FE81: FRA00004949 | FF81: 8.499 | FG81: 3973 | FH81: 20.4 | FI81: 28.2 | FJ81: 22.8 | FK81: 73.6 | FL81: 0 | FM81: 81
A82: ITA96511 | B82: FRA9651 | C82: FRA-9651 | D82: WILLIAM B | E82: A-35 | F82: ARCHAMBAULT | G82: JOUBERT-NIVELT | H82: 2005 | I82: S.V.O.COSULICH | J82: ALESSANDRO BOTTECCHIA | K82: INTL | L82: C | M82: 550 | N82: 23/6/2016 | O82: 17:18:58 | P82: 10.617 | Q82: 9.682 | R82: 2.168 | S82: 3.59 | T82: 4711 | U82: 113.8 | V82: 0.17 | W82: 615.2 | X82: 1.0151 | Y82: 664.9 | Z82: 0.673 | AA82: 32 | AB82: 1022.9 | AC82: 825.3 | AD82: 708.7 | AE82: 640.7 | AF82: 601.9 | AG82: 578.1 | AH82: 546.7 | AI82: 978.5 | AJ82: 791.4 | AK82: 688.2 | AL82: 630.6 | AM82: 598 | AN82: 576.5 | AO82: 543.3 | AP82: 853.9 | AQ82: 686.8 | AR82: 596.6 | AS82: 543.7 | AT82: 510.6 | AU82: 488.3 | AV82: 458 | AW82: 917.1 | AX82: 731.4 | AY82: 629.6 | AZ82: 568.9 | BA82: 530.7 | BB82: 505.2 | BC82: 472.4 | BD82: 1046.3 | BE82: 805.3 | BF82: 669 | BG82: 585.6 | BH82: 531.3 | BI82: 493.3 | BJ82: 440.2 | BK82: 43.3 | BL82: 41.9 | BM82: 41.3 | BN82: 39.5 | BO82: 38.2 | BP82: 37.6 | BQ82: 37.1 | BR82: 144.7 | BS82: 148.7 | BT82: 151.1 | BU82: 157.2 | BV82: 180 | BW82: 180 | BX82: 180 | BY82: 1068.2 | BZ82: 876.8 | CA82: 764.5 | CB82: 704.9 | CC82: 680.3 | CD82: 667.8 | CE82: 652.5 | CF82: 694.2 | CG82: 578.3 | CH82: 517.8 | CI82: 493.5 | CJ82: 484.2 | CK82: 479.3 | CL82: 472.9 | CM82: 651.2 | CN82: 547.5 | CO82: 501.6 | CP82: 480.8 | CQ82: 469.9 | CR82: 464.2 | CS82: 458.9 | CT82: 616.4 | CU82: 525.4 | CV82: 490 | CW82: 469 | CX82: 451.4 | CY82: 438.9 | CZ82: 429.4 | DA82: 620.6 | DB82: 521.8 | DC82: 486 | DD82: 470.2 | DE82: 451.5 | DF82: 431.7 | DG82: 402.1 | DH82: 625 | DI82: 518.4 | DJ82: 478.8 | DK82: 451.6 | DL82: 435.2 | DM82: 421.8 | DN82: 397.9 | DO82: 644.4 | DP82: 530.4 | DQ82: 485.4 | DR82: 457.5 | DS82: 428.2 | DT82: 404.9 | DU82: 379.6 | DV82: 715.4 | DW82: 577.8 | DX82: 508.5 | DY82: 476.8 | DZ82: 450.8 | EA82: 423.3 | EB82: 366.6 | EC82: 846.7 | ED82: 670.2 | EE82: 566 | EF82: 507.1 | EG82: 477.6 | EH82: 453.4 | EI82: 403.1 | EJ82: 977.6 | EK82: 773.8 | EL82: 652.9 | EM82: 576.6 | EN82: 523.5 | EO82: 488.4 | EP82: 440.8 | EQ82: 0.9477 | ER82: 1.2424 | ES82: 1.4113 | ET82: 0.7304 | EU82: 1.0089 | EV82: 1.1796 | EW82: 601.6 | EX82: 0.9974 | EY82: 0.832 | EZ82: 186.2 | FA82: 1.0058 | FB82: 0.689 | FC82: 46.7 | FD82: 596.6 | FE82: ITA00020250 | FF82: 9.329 | FG82: 5550 | FH82: 25.1 | FI82: 37.7 | FJ82: 29 | FK82: 89 | FL82: 0 | FM82: 82
A83: nor20887 | B83: 20887 | C83: NOR 13911 | D83: PILAR | E83: A-35 | F83: ARCHAMBAULT | G83: JOUBERT-NIVELT | H83: 2005 | J83: Stein Frode Bulling-Ness | K83: CLUB | L83: C | M83: 623 | N83: 22/4/2016 | O83: 09:08:34 | P83: 10.58 | Q83: 9.658 | R83: 2.163 | S83: 3.59 | T83: 4623 | U83: 114.9 | V83: 0.1 | W83: 597.4 | X83: 1.0264 | Y83: 657.6 | Z83: 0.71 | AA83: 45.5 | AB83: 986.3 | AC83: 800.2 | AD83: 689.4 | AE83: 634.7 | AF83: 608.6 | AG83: 582 | AH83: 551.7 | AI83: 946.1 | AJ83: 767.8 | AK83: 671.9 | AL83: 621.2 | AM83: 592.4 | AN83: 570.1 | AO83: 537 | AP83: 817.2 | AQ83: 662.4 | AR83: 580 | AS83: 532.4 | AT83: 502.5 | AU83: 481.7 | AV83: 451.5 | AW83: 904.3 | AX83: 722.5 | AY83: 623 | AZ83: 564 | BA83: 526.9 | BB83: 502 | BC83: 469.6 | BD83: 1012.6 | BE83: 782.5 | BF83: 653.4 | BG83: 574.8 | BH83: 523.5 | BI83: 486.7 | BJ83: 432.2 | BK83: 43.3 | BL83: 41.9 | BM83: 41.2 | BN83: 39.3 | BO83: 38 | BP83: 37.4 | BQ83: 36.9 | BR83: 143.9 | BS83: 147.6 | BT83: 148.6 | BU83: 150.9 | BV83: 173.9 | BW83: 176.8 | BX83: 177.3 | BY83: 1042.7 | BZ83: 858.5 | CA83: 750 | CB83: 696.8 | CC83: 673.8 | CD83: 662 | CE83: 648 | CF83: 669.5 | CG83: 553 | CH83: 511 | CI83: 489.6 | CJ83: 481.3 | CK83: 476.6 | CL83: 470.1 | CM83: 609.8 | CN83: 516.6 | CO83: 493.8 | CP83: 476.7 | CQ83: 466.8 | CR83: 461.2 | CS83: 455.4 | CT83: 553.3 | CU83: 491.3 | CV83: 471.6 | CW83: 460.7 | CX83: 446.2 | CY83: 434.6 | CZ83: 425.2 | DA83: 541.9 | DB83: 488.8 | DC83: 463.2 | DD83: 441.7 | DE83: 430.5 | DF83: 421.7 | DG83: 396.3 | DH83: 588.2 | DI83: 499.9 | DJ83: 465.3 | DK83: 443.9 | DL83: 421 | DM83: 397.4 | DN83: 372.4 | DO83: 606.5 | DP83: 508.2 | DQ83: 471.6 | DR83: 440.3 | DS83: 413 | DT83: 396.8 | DU83: 357.3 | DV83: 680.3 | DW83: 548.5 | DX83: 491.7 | DY83: 462.4 | DZ83: 432.8 | EA83: 402.3 | EB83: 336.5 | EC83: 805.2 | ED83: 642.5 | EE83: 544.6 | EF83: 496.6 | EG83: 473.6 | EH83: 453.1 | EI83: 396.8 | EJ83: 929.8 | EK83: 741.8 | EL83: 628.9 | EM83: 572.6 | EN83: 543.5 | EO83: 502 | EP83: 455.5 | EQ83: 0.994 | ER83: 1.2707 | ES83: 1.4273 | ET83: 0.7557 | EU83: 1.0224 | EV83: 1.1692 | EW83: 591.4 | EX83: 1.0145 | EY83: 0.941 | EZ83: 252.9 | FA83: 1.0275 | FB83: 0.73 | FC83: 64.6 | FD83: 583.9 | FE83: nor00000588 | FF83: 9.421 | FG83: 5456 | FH83: 24.9 | FI83: 38.7 | FJ83: 30.3 | FK83: 0 | FL83: 123.7 | FM83: 83
A84: ESP793201 | B84: E7932 | C84: ESP-7932 | D84: PESTANEO | E84: A-35 | F84: ARCHAMBAULT | G84: JOUBERT-NIVELT | H84: 2005 | I84: R.C.N.VALENCIA | J84: JAVIER MORENO MOYA | K84: INTL | L84: C | M84: 525 | N84: 11/3/2016 | O84: 03:15:10 | P84: 10.617 | Q84: 9.69 | R84: 2.17 | S84: 3.59 | T84: 4734 | U84: 113.7 | V84: 0.18 | W84: 617.1 | X84: 1.0113 | Y84: 667.5 | Z84: 0.666 | AA84: 28.5 | AB84: 1029.5 | AC84: 830.1 | AD84: 711.9 | AE84: 642.8 | AF84: 603.7 | AG84: 579.5 | AH84: 548.1 | AI84: 982.1 | AJ84: 794.3 | AK84: 690.2 | AL84: 632.2 | AM84: 599.7 | AN84: 578.2 | AO84: 545.1 | AP84: 857.3 | AQ84: 689.1 | AR84: 598.3 | AS84: 545 | AT84: 511.6 | AU84: 488.9 | AV84: 458.3 | AW84: 918.9 | AX84: 732.8 | AY84: 630.8 | AZ84: 570.3 | BA84: 532.2 | BB84: 506.7 | BC84: 473.1 | BD84: 1052 | BE84: 808.9 | BF84: 671.4 | BG84: 587.1 | BH84: 532.2 | BI84: 493.5 | BJ84: 438.4 | BK84: 43.3 | BL84: 41.8 | BM84: 41.2 | BN84: 39.2 | BO84: 38.2 | BP84: 37.6 | BQ84: 37 | BR84: 144.7 | BS84: 148.9 | BT84: 150.7 | BU84: 157 | BV84: 175.2 | BW84: 180 | BX84: 180 | BY84: 1069 | BZ84: 877.7 | CA84: 764.7 | CB84: 705.6 | CC84: 681.3 | CD84: 668.9 | CE84: 653.1 | CF84: 695.1 | CG84: 579.2 | CH84: 518.2 | CI84: 494.1 | CJ84: 485 | CK84: 480.1 | CL84: 473.8 | CM84: 652.5 | CN84: 548.5 | CO84: 502.1 | CP84: 481.3 | CQ84: 470.8 | CR84: 465.4 | CS84: 460.1 | CT84: 617.9 | CU84: 526.4 | CV84: 490.6 | CW84: 469.7 | CX84: 452.5 | CY84: 440.5 | CZ84: 431.5 | DA84: 622.5 | DB84: 521.3 | DC84: 482.5 | DD84: 466.2 | DE84: 451.6 | DF84: 433.2 | DG84: 404.4 | DH84: 628.1 | DI84: 520.3 | DJ84: 479.9 | DK84: 452.4 | DL84: 428.3 | DM84: 412.7 | DN84: 388.4 | DO84: 647.7 | DP84: 532.3 | DQ84: 486.4 | DR84: 458.6 | DS84: 430.2 | DT84: 405.1 | DU84: 368 | DV84: 718.6 | DW84: 581.6 | DX84: 510.9 | DY84: 478.5 | DZ84: 452.9 | EA84: 426 | EB84: 370.3 | EC84: 857.4 | ED84: 677.7 | EE84: 571.2 | EF84: 509.5 | EG84: 479.3 | EH84: 455.5 | EI84: 405.9 | EJ84: 990 | EK84: 782.5 | EL84: 659.2 | EM84: 580 | EN84: 526.2 | EO84: 490.1 | EP84: 443 | EQ84: 0.9434 | ER84: 1.2392 | ES84: 1.4095 | ET84: 0.726 | EU84: 1.0049 | EV84: 1.1764 | EW84: 602.5 | EX84: 0.9959 | EY84: 0.822 | EZ84: 181.3 | FA84: 1.0026 | FB84: 0.68 | FC84: 41.2 | FD84: 598.4 | FE84: ESP00016801 | FF84: 9.323 | FG84: 5575 | FH84: 25.1 | FI84: 36.9 | FJ84: 29.5 | FK84: 88.8 | FL84: 74.4 | FM84: 84
